Workbook

Sheet Home
B3: DESIGN FLOOD ESTIMATION TOOL VERSION 1.4
B5: STELLENBOSCH UNIVERSITY
B6: DEPARTMENT OF CIVIL ENGINEERING
B7: Developed by OJ GERICKE (jgericke@cut.ac.za)
B8: Copyright reserved © 2019
B10: DATABASE and DESIGN TABLES | J10: DESIGN FLOOD ESTIMATION METHODS
B27: GIS-BASED MAPS | J27: GRAPHICAL PLOTS
B35: DISCLAIMER
B36: Although every effort has been made as to the accuracy and applicability of the information contained in this software and supporting databases, the
B37: Stellenbosch University and the developer cannot accept any legal responsibility or liability for any errors or omissions or for any other reason whatsoever

Sheet Catchment Information
A1: GENERAL CATCHMENT INFORMATION
A2: 1. LOCATION | D2: 4. CATCHMENT CLASSIFICATION
A3: Secondary drainage region number | B3: C5 | H3: 1
A4: Tertiary drainage region number | B4: C52
A5: Quaternary drainage region number | B5: C52A- G | H5: 1
A6: Catchment description | B6: Krugersdrift Dam
A7: 2. AREA DISTRIBUTION FACTORS | D7: 5. FLOW PATHS: NATURAL
A8: Size of catchment (A, km²) | B8: 6331 | D8: Main watercourse/river | F8: Modder River
A9: Rural areas (a, %) | B9: 96.62 | D9: Overland flow (LO, km)
A10: Urban areas (b, %) | B10: 3.04 | D10: Overland flow height difference (H, m)
A11: Lake areas (¡, %) | B11: 0.34 | D11: Overland flow surface description | H11: 12
A12: Dolomite areas (D, %) | D12: Distance to catchment centroid (LC, km) | F12: 113.015
D13: Longest main watercourse (LCH, km) | F13: =MAX('Channel Slope'!$F$22:$H$5021)/1000 -> 186.696039
A14: Test: Area distribution total (%) | B14: =IF(OR(SUM($B$9:$C$11)>100,SUM($B$9:$C$11)<100),"%-Error","OK") -> OK | D14: Average main watercourse slope (SCH, m/m) | F14: =IF('Channel Slope'!$K$19=1,'Channel Slope'!$I$9,IF('Channel Slope'!$K$19=2,'Channel Slope'!$I$13,IF('Channel Slope'!$K$19=3,'Channel Slope'!$I$17,""))) -> 0.001310444883
A15: 3. DESIGN RAINFALL INFORMATION | D15: 6. FLOW PATHS: ARTIFICIAL | H15: 2
B16: MAP (mm) | D16: STREET FLOW | F16: CANAL FLOW | H16: 2
B17: =IF(AND(H16=1,'Design Rainfall'!C41>0),'Design Rainfall'!C41,IF(OR('Catchment Information'!H16=2,'Design Rainfall'!$C$41="",'Design Rainfall'!$D$41=""),IF(AND('Design Rainfall'!$L$68=1,'Design Rainfall'!$L$69=1),'Design Rainfall'!$D$8,IF(AND('Design Rainfall'!$L$68=1,'Design Rainfall'!$L$69=2),'Design Rainfall'!$D$16,IF(AND('Design Rainfall'!$L$68=2,'Design Rainfall'!$L$69=1),'Design Rainfall'!$D$25,IF(AND('Design Rainfall'!$L$68=2,'Design Rainfall'!$L$69=2),'Design Rainfall'!$D$33)))),'Design Rainfall'!D41)) -> 518.4664834 | D17: Flow path length (km) | F17: Canal length (km)
D18: Slope (m/m) | F18: Actual velocity (m/s)
B19: =IF(H16=3,B17,"") ->  | D19: Manning's n value | H19: 14
D20: Actual velocity (m/s) | E20: =IF(OR($H$15=2,$E$17=""),"",(1/$E$19)*(0.1225/3.57)^(2/3)*($E$18)^0.5) ->  | F20: Max velocity (m/s) | G20: =IF($H$15=2,"",INDEX('Design Tables'!$B$24:$B$39,$H$19)) -> 
A21: 7. DESIGNER'S AND SUPERVISOR'S DETAILS
A22: Designed | B22: OJ Gericke | D22: Checked | F22: JA du Plessis
A23: Date | B23: 2009-06-15 | D23: Date | F23: 2009-06-15

Sheet Design Rainfall
A1: DESIGN RAINFALL
A2: Secondary drainage region number | D2: =IF('Catchment Information'!$B$3="","",'Catchment Information'!$B$3) -> C5 | F2: Main watercourse/river | I2: =IF('Catchment Information'!$F$8="","",'Catchment Information'!$F$8) -> Modder River
A3: Tertiary drainage region number | D3: =IF('Catchment Information'!$B$4="","",'Catchment Information'!$B$4) -> C52 | F3: Designed | I3: =IF('Catchment Information'!$B$22="","",'Catchment Information'!$B$22) -> OJ Gericke
A4: Quaternary drainage region number | D4: =IF('Catchment Information'!$B$5="","",'Catchment Information'!$B$5) -> C52A- G | F4: Checked | I4: =IF('Catchment Information'!$F$22="","",'Catchment Information'!$F$22) -> JA du Plessis
A5: Catchment description | D5: =IF('Catchment Information'!$B$6="","",'Catchment Information'!$B$6) -> Krugersdrift Dam | F5: Date | I5: =IF('Catchment Information'!$B$23="","",'Catchment Information'!$B$23) -> 2009-06-15
A6: RLMA-SAWS DAILY DESIGN RAINFALL INFORMATION
A7: ARITHMETIC MEAN METHOD
A8: Average MAP (mm) | D8: =IF($C$73="","",$P$273) -> 530.1914894 | F8: Average number of thunder days/year (R) | J8: =IF($C$73="","",$AS$273) -> 61.78723404
A9: Duration | C9: Design rainfall depth (PT, mm) and associated return period (T, years)
A10: (days) | C10: 2 | D10: 5 | E10: 10 | F10: 20 | G10: 50 | H10: 100 | I10: 200
A11: 1 | C11: =IF($C$73="","",Q$273) -> 48.69148936 | D11: 65.82978723 | E11: 77.87446809 | F11: 89.96595745 | G11: 106.4914894 | H11: 119.5148936 | I11: 133.1
A12: 2 | C12: =IF($C$73="","",X$273) -> 61.58510638 | D12: 82.89787234 | E12: 97.78085106 | F12: 112.7446809 | G12: 133.0085106 | H12: 148.887234 | I12: 165.4170213
A13: 3 | C13: =IF($C$73="","",AE$273) -> 68.55957447 | D13: 91.95319149 | E13: 108.0468085 | F13: 123.9276596 | G13: 145.1893617 | H13: 161.6765957 | I13: 178.4851064
A14: 7 | C14: =IF($C$73="","",AL$273) -> 86.17021277 | D14: 115.987234 | E14: 136.2744681 | F14: 156.2319149 | G14: 182.7191489 | H14: 203.0617021 | I14: 223.7574468
A15: THIESSEN POLYGON METHOD
A16: Average MAP (mm) | D16: =IF($C$73="","",$AX$273) -> 518.4664834 | F16: Average number of thunder days/year (R) | J16: =IF($C$73="","",$DD$273) -> 62.25218445
A17: Duration | C17: Design rainfall depth (PT, mm) and associated return period (T, years)
A18: (days) | C18: 2 | D18: 5 | E18: 10 | F18: 20 | G18: 50 | H18: 100 | I18: 200
A19: 1 | C19: =IF($C$73="","",AZ$273) -> 48.46391079 | D19: =IF($C$73="","",BB$273) -> 65.52510233 | E19: =IF($C$73="","",BD$273) -> 77.51632442 | F19: =IF($C$73="","",BF$273) -> 89.56034043 | G19: =IF($C$73="","",BH$273) -> 106.0320171 | H19: =IF($C$73="","",BJ$273) -> 118.9998628 | I19: =IF($C$73="","",BL$273) -> 132.5442468
A20: 2 | C20: =IF($C$73="","",BN$273) -> 61.17270608 | D20: =IF($C$73="","",BP$273) -> 82.34564433 | E20: =IF($C$73="","",BR$273) -> 97.12694982 | F20: =IF($C$73="","",BT$273) -> 112.0114267 | G20: =IF($C$73="","",BV$273) -> 132.1449037 | H20: =IF($C$73="","",BX$273) -> 147.9298461 | I20: =IF($C$73="","",BZ$273) -> 164.3625033
A21: 3 | C21: =IF($C$73="","",CB$273) -> 68.00283291 | D21: =IF($C$73="","",CD$273) -> 91.2052077 | E21: =IF($C$73="","",CF$273) -> 107.167068 | F21: =IF($C$73="","",CH$273) -> 122.9217311 | G21: =IF($C$73="","",CJ$273) -> 144.0148539 | H21: =IF($C$73="","",CL$273) -> 160.3710439 | I21: =IF($C$73="","",CN$273) -> 177.050761
A22: 7 | C22: =IF($C$73="","",CP$273) -> 85.94938106 | D22: =IF($C$73="","",CR$273) -> 115.682103 | E22: =IF($C$73="","",CT$273) -> 135.9098478 | F22: =IF($C$73="","",CV$273) -> 155.8069843 | G22: =IF($C$73="","",CX$273) -> 182.2236069 | H22: =IF($C$73="","",CZ$273) -> 202.5142094 | I22: =IF($C$73="","",DB$273) -> 223.1668435
A23: TR102 DAILY DESIGN RAINFALL INFORMATION
A24: ARITHMETIC MEAN METHOD
A25: Average MAP (mm) | D25: =IF($C$73="","",$P$479) -> 522.5106383 | F25: Average number of thunder days/year (R) | J25: =IF($C$73="","",$AS$479) -> 61.70212766
A26: Duration | C26: Design rainfall depth (PT, mm) and associated return period (T, years)
A27: (days) | C27: 2 | D27: 5 | E27: 10 | F27: 20 | G27: 50 | H27: 100 | I27: 200
A28: 1 | C28: =IF($C$73="","",Q$479) -> 49.0212766 | D28: 67.70212766 | E28: 77.76595745 | F28: 97.31914894 | G28: 119.8297872 | H28: 138.6382979 | I28: 159.6170213
A29: 2 | C29: =IF($C$73="","",X$479) -> 61.14893617 | D29: 84.93617021 | E29: 102.7446809 | F29: 121.8085106 | G29: 149.6595745 | H29: 172.787234 | I29: 198
A30: 3 | C30: =IF($C$73="","",AE$479) -> 67.87234043 | D30: 94.53191489 | E30: 114.6595745 | F30: 136.3404255 | G30: 167.6808511 | H30: 192.9574468 | I30: 222.5744681
A31: 7 | C31: =IF($C$73="","",AL$479) -> 85.23404255 | D31: 121.3829787 | E31: 148.5744681 | F31: 175.212766 | G31: 218.893617 | H31: 253.2553191 | I31: 287.3829787
A32: THIESSEN POLYGON METHOD
A33: Average MAP (mm) | D33: =IF($C$73="","",$AX$479) -> 511.2459665 | F33: Average number of thunder days/year (R) | J33: =IF($C$73="","",$DD$479) -> 62.14968744
A34: Duration | C34: Design rainfall depth (PT, mm) and associated return period (T, years)
A35: (days) | C35: 2 | D35: 5 | E35: 10 | F35: 20 | G35: 50 | H35: 100 | I35: 200
A36: 1 | C36: =IF($C$73="","",AZ$479) -> 48.72028232 | D36: =IF($C$73="","",BB$479) -> 67.230046 | E36: =IF($C$73="","",BD$479) -> 77.22217566 | F36: =IF($C$73="","",BF$479) -> 96.33131165 | G36: =IF($C$73="","",BH$479) -> 118.4294324 | H36: =IF($C$73="","",BJ$479) -> 136.8220129 | I36: =IF($C$73="","",BL$479) -> 157.4549295
A37: 2 | C37: =IF($C$73="","",BN$479) -> 60.60598942 | D37: =IF($C$73="","",BP$479) -> 84.07324531 | E37: =IF($C$73="","",BR$479) -> 101.6539441 | F37: =IF($C$73="","",BT$479) -> 120.2903505 | G37: =IF($C$73="","",BV$479) -> 147.609534 | H37: =IF($C$73="","",BX$479) -> 170.2934105 | I37: =IF($C$73="","",BZ$479) -> 194.9835995
A38: 3 | C38: =IF($C$73="","",CB$479) -> 67.28902263 | D38: =IF($C$73="","",CD$479) -> 93.72680723 | E38: =IF($C$73="","",CF$479) -> 113.5667779 | F38: =IF($C$73="","",CH$479) -> 134.9959368 | G38: =IF($C$73="","",CJ$479) -> 165.864806 | H38: =IF($C$73="","",CL$479) -> 190.8566044 | I38: =IF($C$73="","",CN$479) -> 219.8325437
A39: 7 | C39: =IF($C$73="","",CP$479) -> 84.26391783 | D39: =IF($C$73="","",CR$479) -> 120.2308491 | E39: =IF($C$73="","",CT$479) -> 147.21335 | F39: =IF($C$73="","",CV$479) -> 173.6177471 | G39: =IF($C$73="","",CX$479) -> 217.0081743 | H39: =IF($C$73="","",CZ$479) -> 251.1522338 | I39: =IF($C$73="","",DB$479) -> 284.8529475
A40: 1' x 1' GRID RLMA&SI DESIGN RAINFALL INFORMATION
A41: User-defined MAP (mm) | C41: 550 | D41: 520 | E41: Grid MAP (mm)
A42: Duration | C42: 1' x 1' Grid design rainfall depth (PT, mm) and associated return period (T, years)
A43: (minutes/hours) | C43: 2 | D43: 5 | E43: 10 | F43: 20 | G43: 50 | H43: 100 | I43: 200 | N43: Duration (hours) | O43: 2-year | P43: 5-year | Q43: 10-year | R43: 20-year | S43: 50-year | T43: 100-year | U43: 200-year | V43: Duration (hours) | W43: 2-year | X43: 5-year | Y43: 10-year | Z43: 20-year | AA43: 50-year | AB43: 100-year | AC43: 200-year | AD43: Duration (hours) | AE43: 2-year | AF43: 5-year | AG43: 10-year | AH43: 20-year | AI43: 50-year | AJ43: 100-year | AK43: 200-year
K44: FALSE | L44: FALSE | M44: TRUE | N44: =IF(C44="","",5/60) ->  | O44: =IF($N44="","",C44) ->  | P44: =IF($N44="","",D44) ->  | V44: =IF(C52="","",4) ->  | W44: =IF($V44="","",C52) ->  | X44: =IF($V44="","",D52) ->  | AD44: =IF(C60="","",24) -> 24 | AE44: =IF($AD44="","",C60) -> 46 | AF44: =IF($AD44="","",D60) -> 68 | AG44: 78 | AH44: 85 | AI44: 108 | AJ44: 120 | AK44: 130
K45: FALSE | L45: FALSE | M45: TRUE | N45: =IF(C45="","",10/60) ->  | O45: =IF($N45="","",C45) ->  | V45: =IF(C53="","",6) ->  | W45: =IF($V45="","",C53) ->  | X45: =IF($V45="","",D53) ->  | Y45: =IF($V45="","",E53) ->  | Z45: =IF($V45="","",F53) ->  | AA45: =IF($V45="","",G53) ->  | AB45: =IF($V45="","",H53) ->  | AC45: =IF($V45="","",I53) ->  | AD45: =IF(C61="","",48) -> 48 | AE45: =IF($AD45="","",C61) -> 54 | AF45: 76 | AG45: 91 | AH45: 105 | AI45: 123 | AJ45: 137 | AK45: 152
K46: FALSE | L46: FALSE | M46: FALSE | N46: =IF(C46="","",15/60) ->  | V46: =IF(C54="","",8) ->  | AD46: =IF(C62="","",72) -> 72 | AE46: 65 | AF46: 88 | AG46: 103 | AH46: 118 | AI46: 140 | AJ46: 155 | AK46: 172
K47: FALSE | L47: FALSE | M47: FALSE | N47: =IF(C47="","",30/60) ->  | V47: =IF(C55="","",10) ->  | AD47: =IF(C63="","",96) -> 96 | AE47: 68 | AF47: 92 | AG47: 109 | AH47: 127 | AI47: 148 | AJ47: 166 | AK47: 184
K48: FALSE | L48: FALSE | M48: FALSE | N48: =IF(C48="","",45/60) ->  | V48: =IF(C56="","",12) -> 12 | W48: 36 | X48: 45 | Y48: 62 | Z48: 74 | AA48: 82 | AB48: 90 | AC48: 104 | AD48: =IF(C64="","",120) -> 120 | AE48: 70 | AF48: 98 | AG48: 118 | AH48: 138 | AI48: 156 | AJ48: 178 | AK48: 192
K49: FALSE | L49: FALSE | M49: FALSE | N49: =IF(C49="","",1) ->  | V49: =IF(C57="","",16) -> 16 | W49: 38 | X49: 55 | Y49: 68 | Z49: 76 | AA49: 89 | AB49: 98 | AC49: 112 | AD49: =IF(C65="","",144) -> 144 | AE49: 75 | AF49: 105 | AG49: 124 | AH49: 145 | AI49: 165 | AJ49: 190 | AK49: 205
K50: FALSE | L50: FALSE | M50: FALSE | N50: =IF(C50="","",1.5) ->  | V50: =IF(C58="","",20) -> 20 | W50: 40 | X50: 62 | Y50: 74 | Z50: 78 | AA50: 95 | AB50: 106 | AC50: 122 | AD50: =IF(C66="","",168) -> 168 | AE50: 82 | AF50: 110 | AG50: 130 | AH50: 150 | AI50: 178 | AJ50: 198 | AK50: 218
K51: FALSE | L51: FALSE | N51: =IF(C51="","",2) ->  | V51: =IF(C59="","",24) -> 24 | W51: 51 | X51: 76 | Y51: 87 | Z51: 94 | AA51: 120 | AB51: 133 | AC51: 144 | AD51: =IF(C67="","",24) -> 
C56: 36 | D56: 45 | E56: 62 | F56: 74 | G56: 82 | H56: 90 | I56: 104
C57: 38 | D57: 55 | E57: 68 | F57: 76 | G57: 89 | H57: 98 | I57: 112
C58: 40 | D58: 62 | E58: 74 | F58: 78 | G58: 95 | H58: 106 | I58: 122
C59: 51 | D59: 76 | E59: 87 | F59: 94 | G59: 120 | H59: 133 | I59: 144
C60: 46 | D60: 68 | E60: 78 | F60: 85 | G60: 108 | H60: 120 | I60: 130
C61: 54 | D61: 76 | E61: 91 | F61: 105 | G61: 123 | H61: 137 | I61: 152
C62: 65 | D62: 88 | E62: 103 | F62: 118 | G62: 140 | H62: 155 | I62: 172
C63: 68 | D63: 92 | E63: 109 | F63: 127 | G63: 148 | H63: 166 | I63: 184
C64: 70 | D64: 98 | E64: 118 | F64: 138 | G64: 156 | H64: 178 | I64: 192
C65: 75 | D65: 105 | E65: 124 | F65: 145 | G65: 165 | H65: 190 | I65: 205
C66: 82 | D66: 110 | E66: 130 | F66: 150 | G66: 178 | H66: 198 | I66: 218
A67: SELECTION OF FINAL DESIGN RAINFALL ESTIMATION RESULTS
A68: PREFERRED DAILY DESIGN RAINFALL DATABASE | L68: 1
A69: PREFERRED AVERAGING METHOD | L69: 2
A70: USER-DEFINED AVERAGE NUMBER OF THUNDER DAYS/YEAR (R)
B71: SELECTION OF DAILY SAWS RAINFALL STATIONS (RLMA-SAWS/TR102) | M71: RLMA-SAWS DATA: ARITHMETIC MEAN | AU71: RLMA-SAWS DATA: THIESSEN POLYGON METHOD
A72: Number | C72: Station number | D72: Area (km²) | E72: Station name | F72: Number | G72: Station number | I72: Area (km²) | J72: Station name | M72: Rainfall station number | N72: Rainfall station name | O72: Area (km²) | P72: MAP | Q72: 2 year-1 day | R72: 5 year-1 day | S72: 10 year-1 day | T72: 20 year-1 day | U72: 50 year-1 day | V72: 100 year-1 day | W72: 200 year-1 day | X72: 2 year-2 days | Y72: 5 year-2 days | Z72: 10 year-2 days | AA72: 20 year-2 days | AB72: 50 year-2 days | AC72: 100 year-2 days | AD72: 200 year-2 days | AE72: 2 year-3 days | AF72: 5 year-3 days | AG72: 10 year-3 days | AH72: 20 year-3 days | AI72: 50 year-3 days | AJ72: 100 year-3 days | AK72: 200 year-3 days | AL72: 2 year-7 days | AM72: 5 year-7 days | AN72: 10 year-7 days | AO72: 20 year-7 days | AP72: 50 year-7 days | AQ72: 100 year-7 days | AR72: 200 year-7 days | AS72: R (per year) | AU72: Rainfall station number | AV72: Rainfall station name | AW72: Area (km²) | AX72: MAP | AY72: P.A (mm.km²) | AZ72: 2 year-1 day | BA72: P.A (mm.km²) | BB72: 5 year-1 day | BC72: P.A (mm.km²) | BD72: 10 year-1 day | BE72: P.A (mm.km²) | BF72: 20 year-1 day | BG72: P.A (mm.km²) | BH72: 50 year-1 day | BI72: P.A (mm.km²) | BJ72: 100 year-1 day | BK72: P.A (mm.km²) | BL72: 200 year-1 day | BM72: P.A (mm.km²) | BN72: 2 year-2 days | BO72: P.A (mm.km²) | BP72: 5 year-2 days | BQ72: P.A (mm.km²) | BR72: 10 year-2 days | BS72: P.A (mm.km²) | BT72: 20 year-2 days | BU72: P.A (mm.km²) | BV72: 50 year-2 days | BW72: P.A (mm.km²) | BX72: 100 year-2 days | BY72: P.A (mm.km²) | BZ72: 200 year-2 days | CA72: P.A (mm.km²) | CB72: 2 year-3 days | CC72: P.A (mm.km²) | CD72: 5 year-3 days | CE72: P.A (mm.km²) | CF72: 10 year-3 days | CG72: P.A (mm.km²) | CH72: 20 year-3 days | CI72: P.A (mm.km²) | CJ72: 50 year-3 days | CK72: P.A (mm.km²) | CL72: 100 year-3 days | CM72: P.A (mm.km²) | CN72: 200 year-3 days | CO72: P.A (mm.km²) | CP72: 2 year-7 days | CQ72: P.A (mm.km²) | CR72: 5 year-7 days | CS72: P.A (mm.km²) | CT72: 10 year-7 days | CU72: P.A (mm.km²) | CV72: 20 year-7 days | CW72: P.A (mm.km²) | CX72: 50 year-7 days | CY72: P.A (mm.km²) | CZ72: 100 year-7 days | DA72: P.A (mm.km²) | DB72: 200 year-7 days | DC72: P.A (mm.km²) | DD72: R (per year) | DE72: R.A (mm.km²)
A73: 1 | C73: 0232123W | D73: 118.72772 | E73: =IF($C73="","",VLOOKUP($C73,'RLMA-SAWS Database'!$A$5:$BF$3950,2)) -> ROODEPOORT | F73: 101 | J73: =IF($G73="","",VLOOKUP($G73,'RLMA-SAWS Database'!$A$5:$BF$3950,2)) ->  | K73: FALSE | L73: FALSE | M73: =IF($K$73=TRUE,"",$C$73) -> 0232123W | N73: =IF(OR($M73="",$M73=0),"",VLOOKUP($M73,'RLMA-SAWS Database'!$A$5:$BF$3950,2)) -> ROODEPOORT | O73: =IF(OR($M73="",$M73=0),0,$D73) -> 118.72772 | P73: =IF(OR($M73="",$M73=0),"",VLOOKUP($M73,'RLMA-SAWS Database'!$A$5:$BF$3950,7)) -> 555 | Q73: =IF(OR($M73="",$M73=0),"",VLOOKUP($M73,'RLMA-SAWS Database'!$A$5:$BF$3950,9)) -> 48.4 | R73: =IF(OR($M73="",$M73=0),"",VLOOKUP($M73,'RLMA-SAWS Database'!$A$5:$BF$3950,10)) -> 65.5 | S73: =IF(OR($M73="",$M73=0),"",VLOOKUP($M73,'RLMA-SAWS Database'!$A$5:$BF$3950,11)) -> 77.7 | T73: =IF(OR($M73="",$M73=0),"",VLOOKUP($M73,'RLMA-SAWS Database'!$A$5:$BF$3950,12)) -> 90.1 | U73: =IF(OR($M73="",$M73=0),"",VLOOKUP($M73,'RLMA-SAWS Database'!$A$5:$BF$3950,13)) -> 107.3 | V73: =IF(OR($M73="",$M73=0),"",VLOOKUP($M73,'RLMA-SAWS Database'!$A$5:$BF$3950,14)) -> 121 | W73: =IF(OR($M73="",$M73=0),"",VLOOKUP($M73,'RLMA-SAWS Database'!$A$5:$BF$3950,15)) -> 135.4 | X73: =IF(OR($M73="",$M73=0),"",VLOOKUP($M73,'RLMA-SAWS Database'!$A$5:$BF$3950,16)) -> 63.4 | Y73: =IF(OR($M73="",$M73=0),"",VLOOKUP($M73,'RLMA-SAWS Database'!$A$5:$BF$3950,17)) -> 85.5 | Z73: =IF(OR($M73="",$M73=0),"",VLOOKUP($M73,'RLMA-SAWS Database'!$A$5:$BF$3950,18)) -> 101 | AA73: =IF(OR($M73="",$M73=0),"",VLOOKUP($M73,'RLMA-SAWS Database'!$A$5:$BF$3950,19)) -> 116.7 | AB73: =IF(OR($M73="",$M73=0),"",VLOOKUP($M73,'RLMA-SAWS Database'!$A$5:$BF$3950,20)) -> 138.2 | AC73: =IF(OR($M73="",$M73=0),"",VLOOKUP($M73,'RLMA-SAWS Database'!$A$5:$BF$3950,21)) -> 155.1 | AD73: =IF(OR($M73="",$M73=0),"",VLOOKUP($M73,'RLMA-SAWS Database'!$A$5:$BF$3950,22)) -> 172.8 | AE73: =IF(OR($M73="",$M73=0),"",VLOOKUP($M73,'RLMA-SAWS Database'!$A$5:$BF$3950,23)) -> 71.7 | AF73: =IF(OR($M73="",$M73=0),"",VLOOKUP($M73,'RLMA-SAWS Database'!$A$5:$BF$3950,24)) -> 96 | AG73: =IF(OR($M73="",$M73=0),"",VLOOKUP($M73,'RLMA-SAWS Database'!$A$5:$BF$3950,25)) -> 112.9 | AH73: =IF(OR($M73="",$M73=0),"",VLOOKUP($M73,'RLMA-SAWS Database'!$A$5:$BF$3950,26)) -> 129.6 | AI73: =IF(OR($M73="",$M73=0),"",VLOOKUP($M73,'RLMA-SAWS Database'!$A$5:$BF$3950,27)) -> 152.1 | AJ73: =IF(OR($M73="",$M73=0),"",VLOOKUP($M73,'RLMA-SAWS Database'!$A$5:$BF$3950,28)) -> 169.5 | AK73: =IF(OR($M73="",$M73=0),"",VLOOKUP($M73,'RLMA-SAWS Database'!$A$5:$BF$3950,29)) -> 187.5 | AL73: =IF(OR($M73="",$M73=0),"",VLOOKUP($M73,'RLMA-SAWS Database'!$A$5:$BF$3950,51)) -> 90.4 | AM73: =IF(OR($M73="",$M73=0),"",VLOOKUP($M73,'RLMA-SAWS Database'!$A$5:$BF$3950,52)) -> 121 | AN73: =IF(OR($M73="",$M73=0),"",VLOOKUP($M73,'RLMA-SAWS Database'!$A$5:$BF$3950,53)) -> 141.9 | AO73: =IF(OR($M73="",$M73=0),"",VLOOKUP($M73,'RLMA-SAWS Database'!$A$5:$BF$3950,54)) -> 162.6 | AP73: =IF(OR($M73="",$M73=0),"",VLOOKUP($M73,'RLMA-SAWS Database'!$A$5:$BF$3950,55)) -> 190.4 | AQ73: =IF(OR($M73="",$M73=0),"",VLOOKUP($M73,'RLMA-SAWS Database'!$A$5:$BF$3950,56)) -> 211.8 | AR73: =IF(OR($M73="",$M73=0),"",VLOOKUP($M73,'RLMA-SAWS Database'!$A$5:$BF$3950,57)) -> 233.8 | AS73: =IF(OR($M73="",$M73=0),"",VLOOKUP($M73,'RLMA-SAWS Database'!$A$5:$BF$3950,58)) -> 54 | AU73: =IF($C$73="","",$C$73) -> 0232123W | AV73: =IF($AU73="","",VLOOKUP($AU73,'RLMA-SAWS Database'!$A$5:$BF$3950,2)) -> ROODEPOORT | AW73: =IF($AU73="",0,$D$73) -> 118.72772 | AX73: =IF($AU73="",0,VLOOKUP($AU73,'RLMA-SAWS Database'!$A$5:$BF$3950,7)) -> 555 | AY73: =$AW73*$AX73 -> 65893.8846 | AZ73: =IF($AU73="",0,VLOOKUP($AU73,'RLMA-SAWS Database'!$A$5:$BF$3950,9)) -> 48.4 | BA73: =$AW73*$AZ73 -> 5746.421648 | BB73: =IF($AU73="",0,VLOOKUP($AU73,'RLMA-SAWS Database'!$A$5:$BF$3950,10)) -> 65.5 | BC73: =$AW73*$BB73 -> 7776.66566 | BD73: =IF($AU73="",0,VLOOKUP($AU73,'RLMA-SAWS Database'!$A$5:$BF$3950,11)) -> 77.7 | BE73: =$AW73*$BD73 -> 9225.143844 | BF73: =IF($AU73="",0,VLOOKUP($AU73,'RLMA-SAWS Database'!$A$5:$BF$3950,12)) -> 90.1 | BG73: =$AW73*$BF73 -> 10697.36757 | BH73: =IF($AU73="",0,VLOOKUP($AU73,'RLMA-SAWS Database'!$A$5:$BF$3950,13)) -> 107.3 | BI73: =$AW73*$BH73 -> 12739.48436 | BJ73: =IF($AU73="",0,VLOOKUP($AU73,'RLMA-SAWS Database'!$A$5:$BF$3950,14)) -> 121 | BK73: =$AW73*$BJ73 -> 14366.05412 | BL73: =IF($AU73="",0,VLOOKUP($AU73,'RLMA-SAWS Database'!$A$5:$BF$3950,15)) -> 135.4 | BM73: =$AW73*$BL73 -> 16075.73329 | BN73: =IF($AU73="",0,VLOOKUP($AU73,'RLMA-SAWS Database'!$A$5:$BF$3950,16)) -> 63.4 | BO73: =$AW73*$BN73 -> 7527.337448 | BP73: =IF($AU73="",0,VLOOKUP($AU73,'RLMA-SAWS Database'!$A$5:$BF$3950,17)) -> 85.5 | BQ73: =$AW73*$BP73 -> 10151.22006 | BR73: =IF($AU73="",0,VLOOKUP($AU73,'RLMA-SAWS Database'!$A$5:$BF$3950,18)) -> 101 | BS73: =$AW73*$BR73 -> 11991.49972 | BT73: =IF($AU73="",0,VLOOKUP($AU73,'RLMA-SAWS Database'!$A$5:$BF$3950,19)) -> 116.7 | BU73: =$AW73*$BT73 -> 13855.52492 | BV73: =IF($AU73="",0,VLOOKUP($AU73,'RLMA-SAWS Database'!$A$5:$BF$3950,20)) -> 138.2 | BW73: =$AW73*$BV73 -> 16408.1709 | BX73: =IF($AU73="",0,VLOOKUP($AU73,'RLMA-SAWS Database'!$A$5:$BF$3950,21)) -> 155.1 | BY73: =$AW73*$BX73 -> 18414.66937 | BZ73: =IF($AU73="",0,VLOOKUP($AU73,'RLMA-SAWS Database'!$A$5:$BF$3950,22)) -> 172.8 | CA73: =$AW73*$BZ73 -> 20516.15002 | CB73: =IF($AU73="",0,VLOOKUP($AU73,'RLMA-SAWS Database'!$A$5:$BF$3950,23)) -> 71.7 | CC73: =$AW73*$CB73 -> 8512.777524 | CD73: =IF($AU73="",0,VLOOKUP($AU73,'RLMA-SAWS Database'!$A$5:$BF$3950,24)) -> 96 | CE73: =$AW73*$CD73 -> 11397.86112 | CF73: =IF($AU73="",0,VLOOKUP($AU73,'RLMA-SAWS Database'!$A$5:$BF$3950,25)) -> 112.9 | CG73: =$AW73*$CF73 -> 13404.35959 | CH73: =IF($AU73="",0,VLOOKUP($AU73,'RLMA-SAWS Database'!$A$5:$BF$3950,26)) -> 129.6 | CI73: =$AW73*$CH73 -> 15387.11251 | CJ73: =IF($AU73="",0,VLOOKUP($AU73,'RLMA-SAWS Database'!$A$5:$BF$3950,27)) -> 152.1 | CK73: =$AW73*$CJ73 -> 18058.48621 | CL73: =IF($AU73="",0,VLOOKUP($AU73,'RLMA-SAWS Database'!$A$5:$BF$3950,28)) -> 169.5 | CM73: =$AW73*$CL73 -> 20124.34854 | CN73: =IF($AU73="",0,VLOOKUP($AU73,'RLMA-SAWS Database'!$A$5:$BF$3950,29)) -> 187.5 | CO73: =$AW73*$CN73 -> 22261.4475 | CP73: =IF($AU73="",0,VLOOKUP($AU73,'RLMA-SAWS Database'!$A$5:$BF$3950,51)) -> 90.4 | CQ73: =$AW73*$CP73 -> 10732.98589 | CR73: =IF($AU73="",0,VLOOKUP($AU73,'RLMA-SAWS Database'!$A$5:$BF$3950,52)) -> 121 | CS73: =$AW73*$CR73 -> 14366.05412 | CT73: =IF($AU73="",0,VLOOKUP($AU73,'RLMA-SAWS Database'!$A$5:$BF$3950,53)) -> 141.9 | CU73: =$AW73*$CT73 -> 16847.46347 | CV73: =IF($AU73="",0,VLOOKUP($AU73,'RLMA-SAWS Database'!$A$5:$BF$3950,54)) -> 162.6 | CW73: =$AW73*$CV73 -> 19305.12727 | CX73: =IF($AU73="",0,VLOOKUP($AU73,'RLMA-SAWS Database'!$A$5:$BF$3950,55)) -> 190.4 | CY73: =$AW73*$CX73 -> 22605.75789 | CZ73: =IF($AU73="",0,VLOOKUP($AU73,'RLMA-SAWS Database'!$A$5:$BF$3950,56)) -> 211.8 | DA73: =$AW73*$CZ73 -> 25146.5311 | DB73: =IF($AU73="",0,VLOOKUP($AU73,'RLMA-SAWS Database'!$A$5:$BF$3950,57)) -> 233.8 | DC73: =$AW73*$DB73 -> 27758.54094 | DD73: =IF($AU73="",0,VLOOKUP($AU73,'RLMA-SAWS Database'!$A$5:$BF$3950,58)) -> 54 | DE73: =$AW73*$DD73 -> 6411.29688
A74: =$A73+1 -> 2 | C74: 0232181W | D74: 100.85715 | E74: =IF($C74="","",VLOOKUP($C74,'RLMA-SAWS Database'!$A$5:$BF$3950,2)) -> ROODEPOORT | F74: =$F73+1 -> 102 | J74: =IF($G74="","",VLOOKUP($G74,'RLMA-SAWS Database'!$A$5:$BF$3950,2)) ->  | K74: FALSE | L74: FALSE | M74: =IF($K74=TRUE,"",$C74) -> 0232181W | N74: =IF(OR($M74="",$M74=0),"",VLOOKUP($M74,'RLMA-SAWS Database'!$A$5:$BF$3950,2)) -> ROODEPOORT | O74: =IF(OR($M74="",$M74=0),0,$D74) -> 100.85715 | P74: =IF(OR($M74="",$M74=0),"",VLOOKUP($M74,'RLMA-SAWS Database'!$A$5:$BF$3950,7)) -> 555 | Q74: =IF(OR($M74="",$M74=0),"",VLOOKUP($M74,'RLMA-SAWS Database'!$A$5:$BF$3950,9)) -> 48.4 | R74: =IF(OR($M74="",$M74=0),"",VLOOKUP($M74,'RLMA-SAWS Database'!$A$5:$BF$3950,10)) -> 65.5 | S74: =IF(OR($M74="",$M74=0),"",VLOOKUP($M74,'RLMA-SAWS Database'!$A$5:$BF$3950,11)) -> 77.7 | T74: =IF(OR($M74="",$M74=0),"",VLOOKUP($M74,'RLMA-SAWS Database'!$A$5:$BF$3950,12)) -> 90.1 | U74: =IF(OR($M74="",$M74=0),"",VLOOKUP($M74,'RLMA-SAWS Database'!$A$5:$BF$3950,13)) -> 107.3 | V74: =IF(OR($M74="",$M74=0),"",VLOOKUP($M74,'RLMA-SAWS Database'!$A$5:$BF$3950,14)) -> 121 | W74: =IF(OR($M74="",$M74=0),"",VLOOKUP($M74,'RLMA-SAWS Database'!$A$5:$BF$3950,15)) -> 135.4 | X74: =IF(OR($M74="",$M74=0),"",VLOOKUP($M74,'RLMA-SAWS Database'!$A$5:$BF$3950,16)) -> 63.4 | Y74: =IF(OR($M74="",$M74=0),"",VLOOKUP($M74,'RLMA-SAWS Database'!$A$5:$BF$3950,17)) -> 85.5 | Z74: =IF(OR($M74="",$M74=0),"",VLOOKUP($M74,'RLMA-SAWS Database'!$A$5:$BF$3950,18)) -> 101 | AA74: =IF(OR($M74="",$M74=0),"",VLOOKUP($M74,'RLMA-SAWS Database'!$A$5:$BF$3950,19)) -> 116.7 | AB74: =IF(OR($M74="",$M74=0),"",VLOOKUP($M74,'RLMA-SAWS Database'!$A$5:$BF$3950,20)) -> 138.2 | AC74: =IF(OR($M74="",$M74=0),"",VLOOKUP($M74,'RLMA-SAWS Database'!$A$5:$BF$3950,21)) -> 155.1 | AD74: =IF(OR($M74="",$M74=0),"",VLOOKUP($M74,'RLMA-SAWS Database'!$A$5:$BF$3950,22)) -> 172.8 | AE74: =IF(OR($M74="",$M74=0),"",VLOOKUP($M74,'RLMA-SAWS Database'!$A$5:$BF$3950,23)) -> 71.7 | AF74: =IF(OR($M74="",$M74=0),"",VLOOKUP($M74,'RLMA-SAWS Database'!$A$5:$BF$3950,24)) -> 96 | AG74: =IF(OR($M74="",$M74=0),"",VLOOKUP($M74,'RLMA-SAWS Database'!$A$5:$BF$3950,25)) -> 112.9 | AH74: =IF(OR($M74="",$M74=0),"",VLOOKUP($M74,'RLMA-SAWS Database'!$A$5:$BF$3950,26)) -> 129.6 | AI74: =IF(OR($M74="",$M74=0),"",VLOOKUP($M74,'RLMA-SAWS Database'!$A$5:$BF$3950,27)) -> 152.1 | AJ74: =IF(OR($M74="",$M74=0),"",VLOOKUP($M74,'RLMA-SAWS Database'!$A$5:$BF$3950,28)) -> 169.5 | AK74: =IF(OR($M74="",$M74=0),"",VLOOKUP($M74,'RLMA-SAWS Database'!$A$5:$BF$3950,29)) -> 187.5 | AL74: =IF(OR($M74="",$M74=0),"",VLOOKUP($M74,'RLMA-SAWS Database'!$A$5:$BF$3950,51)) -> 90.4 | AM74: =IF(OR($M74="",$M74=0),"",VLOOKUP($M74,'RLMA-SAWS Database'!$A$5:$BF$3950,52)) -> 121 | AN74: =IF(OR($M74="",$M74=0),"",VLOOKUP($M74,'RLMA-SAWS Database'!$A$5:$BF$3950,53)) -> 141.9 | AO74: =IF(OR($M74="",$M74=0),"",VLOOKUP($M74,'RLMA-SAWS Database'!$A$5:$BF$3950,54)) -> 162.6 | AP74: =IF(OR($M74="",$M74=0),"",VLOOKUP($M74,'RLMA-SAWS Database'!$A$5:$BF$3950,55)) -> 190.4 | AQ74: =IF(OR($M74="",$M74=0),"",VLOOKUP($M74,'RLMA-SAWS Database'!$A$5:$BF$3950,56)) -> 211.8 | AR74: =IF(OR($M74="",$M74=0),"",VLOOKUP($M74,'RLMA-SAWS Database'!$A$5:$BF$3950,57)) -> 233.8 | AS74: =IF(OR($M74="",$M74=0),"",VLOOKUP($M74,'RLMA-SAWS Database'!$A$5:$BF$3950,58)) -> 54 | AU74: =IF($C$74="","",$C$74) -> 0232181W | AV74: =IF($AU74="","",VLOOKUP($AU74,'RLMA-SAWS Database'!$A$5:$BF$3950,2)) -> ROODEPOORT | AW74: =IF($AU74="",0,$D$74) -> 100.85715 | AX74: =IF($AU74="",0,VLOOKUP($AU74,'RLMA-SAWS Database'!$A$5:$BF$3950,7)) -> 555 | AY74: =$AW74*$AX74 -> 55975.71825 | AZ74: =IF($AU74="",0,VLOOKUP($AU74,'RLMA-SAWS Database'!$A$5:$BF$3950,9)) -> 48.4 | BA74: =$AW74*$AZ74 -> 4881.48606 | BB74: =IF($AU74="",0,VLOOKUP($AU74,'RLMA-SAWS Database'!$A$5:$BF$3950,10)) -> 65.5 | BC74: =$AW74*$BB74 -> 6606.143325 | BD74: =IF($AU74="",0,VLOOKUP($AU74,'RLMA-SAWS Database'!$A$5:$BF$3950,11)) -> 77.7 | BE74: =$AW74*$BD74 -> 7836.600555 | BF74: =IF($AU74="",0,VLOOKUP($AU74,'RLMA-SAWS Database'!$A$5:$BF$3950,12)) -> 90.1 | BG74: =$AW74*$BF74 -> 9087.229215 | BH74: =IF($AU74="",0,VLOOKUP($AU74,'RLMA-SAWS Database'!$A$5:$BF$3950,13)) -> 107.3 | BI74: =$AW74*$BH74 -> 10821.9722 | BJ74: =IF($AU74="",0,VLOOKUP($AU74,'RLMA-SAWS Database'!$A$5:$BF$3950,14)) -> 121 | BK74: =$AW74*$BJ74 -> 12203.71515 | BL74: =IF($AU74="",0,VLOOKUP($AU74,'RLMA-SAWS Database'!$A$5:$BF$3950,15)) -> 135.4 | BM74: =$AW74*$BL74 -> 13656.05811 | BN74: =IF($AU74="",0,VLOOKUP($AU74,'RLMA-SAWS Database'!$A$5:$BF$3950,16)) -> 63.4 | BO74: =$AW74*$BN74 -> 6394.34331 | BP74: =IF($AU74="",0,VLOOKUP($AU74,'RLMA-SAWS Database'!$A$5:$BF$3950,17)) -> 85.5 | BQ74: =$AW74*$BP74 -> 8623.286325 | BR74: =IF($AU74="",0,VLOOKUP($AU74,'RLMA-SAWS Database'!$A$5:$BF$3950,18)) -> 101 | BS74: =$AW74*$BR74 -> 10186.57215 | BT74: =IF($AU74="",0,VLOOKUP($AU74,'RLMA-SAWS Database'!$A$5:$BF$3950,19)) -> 116.7 | BU74: =$AW74*$BT74 -> 11770.02941 | BV74: =IF($AU74="",0,VLOOKUP($AU74,'RLMA-SAWS Database'!$A$5:$BF$3950,20)) -> 138.2 | BW74: =$AW74*$BV74 -> 13938.45813 | BX74: =IF($AU74="",0,VLOOKUP($AU74,'RLMA-SAWS Database'!$A$5:$BF$3950,21)) -> 155.1 | BY74: =$AW74*$BX74 -> 15642.94397 | BZ74: =IF($AU74="",0,VLOOKUP($AU74,'RLMA-SAWS Database'!$A$5:$BF$3950,22)) -> 172.8 | CA74: =$AW74*$BZ74 -> 17428.11552 | CB74: =IF($AU74="",0,VLOOKUP($AU74,'RLMA-SAWS Database'!$A$5:$BF$3950,23)) -> 71.7 | CC74: =$AW74*$CB74 -> 7231.457655 | CD74: =IF($AU74="",0,VLOOKUP($AU74,'RLMA-SAWS Database'!$A$5:$BF$3950,24)) -> 96 | CE74: =$AW74*$CD74 -> 9682.2864 | CF74: =IF($AU74="",0,VLOOKUP($AU74,'RLMA-SAWS Database'!$A$5:$BF$3950,25)) -> 112.9 | CG74: =$AW74*$CF74 -> 11386.77224 | CH74: =IF($AU74="",0,VLOOKUP($AU74,'RLMA-SAWS Database'!$A$5:$BF$3950,26)) -> 129.6 | CI74: =$AW74*$CH74 -> 13071.08664 | CJ74: =IF($AU74="",0,VLOOKUP($AU74,'RLMA-SAWS Database'!$A$5:$BF$3950,27)) -> 152.1 | CK74: =$AW74*$CJ74 -> 15340.37252 | CL74: =IF($AU74="",0,VLOOKUP($AU74,'RLMA-SAWS Database'!$A$5:$BF$3950,28)) -> 169.5 | CM74: =$AW74*$CL74 -> 17095.28693 | CN74: =IF($AU74="",0,VLOOKUP($AU74,'RLMA-SAWS Database'!$A$5:$BF$3950,29)) -> 187.5 | CO74: =$AW74*$CN74 -> 18910.71563 | CP74: =IF($AU74="",0,VLOOKUP($AU74,'RLMA-SAWS Database'!$A$5:$BF$3950,51)) -> 90.4 | CQ74: =$AW74*$CP74 -> 9117.48636 | CR74: =IF($AU74="",0,VLOOKUP($AU74,'RLMA-SAWS Database'!$A$5:$BF$3950,52)) -> 121 | CS74: =$AW74*$CR74 -> 12203.71515 | CT74: =IF($AU74="",0,VLOOKUP($AU74,'RLMA-SAWS Database'!$A$5:$BF$3950,53)) -> 141.9 | CU74: =$AW74*$CT74 -> 14311.62959 | CV74: =IF($AU74="",0,VLOOKUP($AU74,'RLMA-SAWS Database'!$A$5:$BF$3950,54)) -> 162.6 | CW74: =$AW74*$CV74 -> 16399.37259 | CX74: =IF($AU74="",0,VLOOKUP($AU74,'RLMA-SAWS Database'!$A$5:$BF$3950,55)) -> 190.4 | CY74: =$AW74*$CX74 -> 19203.20136 | CZ74: =IF($AU74="",0,VLOOKUP($AU74,'RLMA-SAWS Database'!$A$5:$BF$3950,56)) -> 211.8 | DA74: =$AW74*$CZ74 -> 21361.54437 | DB74: =IF($AU74="",0,VLOOKUP($AU74,'RLMA-SAWS Database'!$A$5:$BF$3950,57)) -> 233.8 | DC74: =$AW74*$DB74 -> 23580.40167 | DD74: =IF($AU74="",0,VLOOKUP($AU74,'RLMA-SAWS Database'!$A$5:$BF$3950,58)) -> 54 | DE74: =$AW74*$DD74 -> 5446.2861
A75: 3 | C75: 0232211W | D75: 40.13608 | E75: =IF($C75="","",VLOOKUP($C75,'RLMA-SAWS Database'!$A$5:$BF$3950,2)) -> NIEUWEJAARSFONTEIN | F75: =$F74+1 -> 103 | J75: =IF($G75="","",VLOOKUP($G75,'RLMA-SAWS Database'!$A$5:$BF$3950,2)) ->  | K75: FALSE | L75: FALSE | M75: =IF($K75=TRUE,"",$C75) -> 0232211W | N75: =IF(OR($M75="",$M75=0),"",VLOOKUP($M75,'RLMA-SAWS Database'!$A$5:$BF$3950,2)) -> NIEUWEJAARSFONTEIN | O75: 40.13608 | P75: =IF(OR($M75="",$M75=0),"",VLOOKUP($M75,'RLMA-SAWS Database'!$A$5:$BF$3950,7)) -> 555 | Q75: =IF(OR($M75="",$M75=0),"",VLOOKUP($M75,'RLMA-SAWS Database'!$A$5:$BF$3950,9)) -> 47.5 | R75: =IF(OR($M75="",$M75=0),"",VLOOKUP($M75,'RLMA-SAWS Database'!$A$5:$BF$3950,10)) -> 64.2 | S75: =IF(OR($M75="",$M75=0),"",VLOOKUP($M75,'RLMA-SAWS Database'!$A$5:$BF$3950,11)) -> 76.2 | T75: =IF(OR($M75="",$M75=0),"",VLOOKUP($M75,'RLMA-SAWS Database'!$A$5:$BF$3950,12)) -> 88.3 | U75: =IF(OR($M75="",$M75=0),"",VLOOKUP($M75,'RLMA-SAWS Database'!$A$5:$BF$3950,13)) -> 105.2 | V75: =IF(OR($M75="",$M75=0),"",VLOOKUP($M75,'RLMA-SAWS Database'!$A$5:$BF$3950,14)) -> 118.6 | W75: =IF(OR($M75="",$M75=0),"",VLOOKUP($M75,'RLMA-SAWS Database'!$A$5:$BF$3950,15)) -> 132.8 | X75: =IF(OR($M75="",$M75=0),"",VLOOKUP($M75,'RLMA-SAWS Database'!$A$5:$BF$3950,16)) -> 61.5 | Y75: =IF(OR($M75="",$M75=0),"",VLOOKUP($M75,'RLMA-SAWS Database'!$A$5:$BF$3950,17)) -> 82.9 | Z75: =IF(OR($M75="",$M75=0),"",VLOOKUP($M75,'RLMA-SAWS Database'!$A$5:$BF$3950,18)) -> 98 | AA75: =IF(OR($M75="",$M75=0),"",VLOOKUP($M75,'RLMA-SAWS Database'!$A$5:$BF$3950,19)) -> 113.2 | AB75: =IF(OR($M75="",$M75=0),"",VLOOKUP($M75,'RLMA-SAWS Database'!$A$5:$BF$3950,20)) -> 134 | AC75: =IF(OR($M75="",$M75=0),"",VLOOKUP($M75,'RLMA-SAWS Database'!$A$5:$BF$3950,21)) -> 150.4 | AD75: =IF(OR($M75="",$M75=0),"",VLOOKUP($M75,'RLMA-SAWS Database'!$A$5:$BF$3950,22)) -> 167.6 | AE75: =IF(OR($M75="",$M75=0),"",VLOOKUP($M75,'RLMA-SAWS Database'!$A$5:$BF$3950,23)) -> 68.4 | AF75: =IF(OR($M75="",$M75=0),"",VLOOKUP($M75,'RLMA-SAWS Database'!$A$5:$BF$3950,24)) -> 91.5 | AG75: =IF(OR($M75="",$M75=0),"",VLOOKUP($M75,'RLMA-SAWS Database'!$A$5:$BF$3950,25)) -> 107.6 | AH75: =IF(OR($M75="",$M75=0),"",VLOOKUP($M75,'RLMA-SAWS Database'!$A$5:$BF$3950,26)) -> 123.5 | AI75: =IF(OR($M75="",$M75=0),"",VLOOKUP($M75,'RLMA-SAWS Database'!$A$5:$BF$3950,27)) -> 144.9 | AJ75: =IF(OR($M75="",$M75=0),"",VLOOKUP($M75,'RLMA-SAWS Database'!$A$5:$BF$3950,28)) -> 161.6 | AK75: =IF(OR($M75="",$M75=0),"",VLOOKUP($M75,'RLMA-SAWS Database'!$A$5:$BF$3950,29)) -> 178.7 | AL75: =IF(OR($M75="",$M75=0),"",VLOOKUP($M75,'RLMA-SAWS Database'!$A$5:$BF$3950,51)) -> 87.4 | AM75: =IF(OR($M75="",$M75=0),"",VLOOKUP($M75,'RLMA-SAWS Database'!$A$5:$BF$3950,52)) -> 117 | AN75: =IF(OR($M75="",$M75=0),"",VLOOKUP($M75,'RLMA-SAWS Database'!$A$5:$BF$3950,53)) -> 137.2 | AO75: =IF(OR($M75="",$M75=0),"",VLOOKUP($M75,'RLMA-SAWS Database'!$A$5:$BF$3950,54)) -> 157.3 | AP75: =IF(OR($M75="",$M75=0),"",VLOOKUP($M75,'RLMA-SAWS Database'!$A$5:$BF$3950,55)) -> 184.2 | AQ75: =IF(OR($M75="",$M75=0),"",VLOOKUP($M75,'RLMA-SAWS Database'!$A$5:$BF$3950,56)) -> 204.9 | AR75: =IF(OR($M75="",$M75=0),"",VLOOKUP($M75,'RLMA-SAWS Database'!$A$5:$BF$3950,57)) -> 226.1 | AS75: =IF(OR($M75="",$M75=0),"",VLOOKUP($M75,'RLMA-SAWS Database'!$A$5:$BF$3950,58)) -> 55 | AU75: =IF($C$75="","",$C$75) -> 0232211W | AV75: =IF($AU75="","",VLOOKUP($AU75,'RLMA-SAWS Database'!$A$5:$BF$3950,2)) -> NIEUWEJAARSFONTEIN | AW75: =IF($AU75="",0,$D$75) -> 40.13608 | AX75: =IF($AU75="",0,VLOOKUP($AU75,'RLMA-SAWS Database'!$A$5:$BF$3950,7)) -> 555 | AY75: 22275.5244 | AZ75: =IF($AU75="",0,VLOOKUP($AU75,'RLMA-SAWS Database'!$A$5:$BF$3950,9)) -> 47.5 | BA75: 1906.4638 | BB75: =IF($AU75="",0,VLOOKUP($AU75,'RLMA-SAWS Database'!$A$5:$BF$3950,10)) -> 64.2 | BC75: 2576.736336 | BD75: =IF($AU75="",0,VLOOKUP($AU75,'RLMA-SAWS Database'!$A$5:$BF$3950,11)) -> 76.2 | BE75: 3058.369296 | BF75: =IF($AU75="",0,VLOOKUP($AU75,'RLMA-SAWS Database'!$A$5:$BF$3950,12)) -> 88.3 | BG75: 3544.015864 | BH75: =IF($AU75="",0,VLOOKUP($AU75,'RLMA-SAWS Database'!$A$5:$BF$3950,13)) -> 105.2 | BI75: 4222.315616 | BJ75: =IF($AU75="",0,VLOOKUP($AU75,'RLMA-SAWS Database'!$A$5:$BF$3950,14)) -> 118.6 | BK75: 4760.139088 | BL75: =IF($AU75="",0,VLOOKUP($AU75,'RLMA-SAWS Database'!$A$5:$BF$3950,15)) -> 132.8 | BM75: 5330.071424 | BN75: =IF($AU75="",0,VLOOKUP($AU75,'RLMA-SAWS Database'!$A$5:$BF$3950,16)) -> 61.5 | BO75: 2468.36892 | BP75: =IF($AU75="",0,VLOOKUP($AU75,'RLMA-SAWS Database'!$A$5:$BF$3950,17)) -> 82.9 | BQ75: 3327.281032 | BR75: =IF($AU75="",0,VLOOKUP($AU75,'RLMA-SAWS Database'!$A$5:$BF$3950,18)) -> 98 | BS75: 3933.33584 | BT75: =IF($AU75="",0,VLOOKUP($AU75,'RLMA-SAWS Database'!$A$5:$BF$3950,19)) -> 113.2 | BU75: 4543.404256 | BV75: =IF($AU75="",0,VLOOKUP($AU75,'RLMA-SAWS Database'!$A$5:$BF$3950,20)) -> 134 | BW75: 5378.23472 | BX75: =IF($AU75="",0,VLOOKUP($AU75,'RLMA-SAWS Database'!$A$5:$BF$3950,21)) -> 150.4 | BY75: 6036.466432 | BZ75: =IF($AU75="",0,VLOOKUP($AU75,'RLMA-SAWS Database'!$A$5:$BF$3950,22)) -> 167.6 | CA75: 6726.807008 | CB75: =IF($AU75="",0,VLOOKUP($AU75,'RLMA-SAWS Database'!$A$5:$BF$3950,23)) -> 68.4 | CC75: 2745.307872 | CD75: =IF($AU75="",0,VLOOKUP($AU75,'RLMA-SAWS Database'!$A$5:$BF$3950,24)) -> 91.5 | CE75: 3672.45132 | CF75: =IF($AU75="",0,VLOOKUP($AU75,'RLMA-SAWS Database'!$A$5:$BF$3950,25)) -> 107.6 | CG75: 4318.642208 | CH75: =IF($AU75="",0,VLOOKUP($AU75,'RLMA-SAWS Database'!$A$5:$BF$3950,26)) -> 123.5 | CI75: 4956.80588 | CJ75: =IF($AU75="",0,VLOOKUP($AU75,'RLMA-SAWS Database'!$A$5:$BF$3950,27)) -> 144.9 | CK75: 5815.717992 | CL75: =IF($AU75="",0,VLOOKUP($AU75,'RLMA-SAWS Database'!$A$5:$BF$3950,28)) -> 161.6 | CM75: 6485.990528 | CN75: =IF($AU75="",0,VLOOKUP($AU75,'RLMA-SAWS Database'!$A$5:$BF$3950,29)) -> 178.7 | CO75: 7172.317496 | CP75: =IF($AU75="",0,VLOOKUP($AU75,'RLMA-SAWS Database'!$A$5:$BF$3950,51)) -> 87.4 | CQ75: 3507.893392 | CR75: =IF($AU75="",0,VLOOKUP($AU75,'RLMA-SAWS Database'!$A$5:$BF$3950,52)) -> 117 | CS75: 4695.92136 | CT75: =IF($AU75="",0,VLOOKUP($AU75,'RLMA-SAWS Database'!$A$5:$BF$3950,53)) -> 137.2 | CU75: 5506.670176 | CV75: =IF($AU75="",0,VLOOKUP($AU75,'RLMA-SAWS Database'!$A$5:$BF$3950,54)) -> 157.3 | CW75: 6313.405384 | CX75: =IF($AU75="",0,VLOOKUP($AU75,'RLMA-SAWS Database'!$A$5:$BF$3950,55)) -> 184.2 | CY75: 7393.065936 | CZ75: =IF($AU75="",0,VLOOKUP($AU75,'RLMA-SAWS Database'!$A$5:$BF$3950,56)) -> 204.9 | DA75: 8223.882792 | DB75: =IF($AU75="",0,VLOOKUP($AU75,'RLMA-SAWS Database'!$A$5:$BF$3950,57)) -> 226.1 | DC75: 9074.767688 | DD75: =IF($AU75="",0,VLOOKUP($AU75,'RLMA-SAWS Database'!$A$5:$BF$3950,58)) -> 55 | DE75: 2207.4844
A76: 4 | C76: 0232275W | D76: 86.58925 | E76: =IF($C76="","",VLOOKUP($C76,'RLMA-SAWS Database'!$A$5:$BF$3950,2)) -> DEWETSDORP (Police) | F76: 104 | J76: =IF($G76="","",VLOOKUP($G76,'RLMA-SAWS Database'!$A$5:$BF$3950,2)) ->  | K76: FALSE | L76: FALSE | M76: 0232275W | N76: =IF(OR($M76="",$M76=0),"",VLOOKUP($M76,'RLMA-SAWS Database'!$A$5:$BF$3950,2)) -> DEWETSDORP (Police) | O76: 86.58925 | P76: =IF(OR($M76="",$M76=0),"",VLOOKUP($M76,'RLMA-SAWS Database'!$A$5:$BF$3950,7)) -> 585 | Q76: =IF(OR($M76="",$M76=0),"",VLOOKUP($M76,'RLMA-SAWS Database'!$A$5:$BF$3950,9)) -> 50.8 | R76: =IF(OR($M76="",$M76=0),"",VLOOKUP($M76,'RLMA-SAWS Database'!$A$5:$BF$3950,10)) -> 68.8 | S76: =IF(OR($M76="",$M76=0),"",VLOOKUP($M76,'RLMA-SAWS Database'!$A$5:$BF$3950,11)) -> 81.6 | T76: =IF(OR($M76="",$M76=0),"",VLOOKUP($M76,'RLMA-SAWS Database'!$A$5:$BF$3950,12)) -> 94.6 | U76: =IF(OR($M76="",$M76=0),"",VLOOKUP($M76,'RLMA-SAWS Database'!$A$5:$BF$3950,13)) -> 112.6 | V76: =IF(OR($M76="",$M76=0),"",VLOOKUP($M76,'RLMA-SAWS Database'!$A$5:$BF$3950,14)) -> 127 | W76: =IF(OR($M76="",$M76=0),"",VLOOKUP($M76,'RLMA-SAWS Database'!$A$5:$BF$3950,15)) -> 142.2 | X76: =IF(OR($M76="",$M76=0),"",VLOOKUP($M76,'RLMA-SAWS Database'!$A$5:$BF$3950,16)) -> 67.1 | Y76: =IF(OR($M76="",$M76=0),"",VLOOKUP($M76,'RLMA-SAWS Database'!$A$5:$BF$3950,17)) -> 90.5 | Z76: =IF(OR($M76="",$M76=0),"",VLOOKUP($M76,'RLMA-SAWS Database'!$A$5:$BF$3950,18)) -> 106.9 | AA76: =IF(OR($M76="",$M76=0),"",VLOOKUP($M76,'RLMA-SAWS Database'!$A$5:$BF$3950,19)) -> 123.6 | AB76: =IF(OR($M76="",$M76=0),"",VLOOKUP($M76,'RLMA-SAWS Database'!$A$5:$BF$3950,20)) -> 146.3 | AC76: =IF(OR($M76="",$M76=0),"",VLOOKUP($M76,'RLMA-SAWS Database'!$A$5:$BF$3950,21)) -> 164.2 | AD76: =IF(OR($M76="",$M76=0),"",VLOOKUP($M76,'RLMA-SAWS Database'!$A$5:$BF$3950,22)) -> 182.9 | AE76: =IF(OR($M76="",$M76=0),"",VLOOKUP($M76,'RLMA-SAWS Database'!$A$5:$BF$3950,23)) -> 75 | AF76: =IF(OR($M76="",$M76=0),"",VLOOKUP($M76,'RLMA-SAWS Database'!$A$5:$BF$3950,24)) -> 100.4 | AG76: =IF(OR($M76="",$M76=0),"",VLOOKUP($M76,'RLMA-SAWS Database'!$A$5:$BF$3950,25)) -> 118 | AH76: =IF(OR($M76="",$M76=0),"",VLOOKUP($M76,'RLMA-SAWS Database'!$A$5:$BF$3950,26)) -> 135.4 | AI76: =IF(OR($M76="",$M76=0),"",VLOOKUP($M76,'RLMA-SAWS Database'!$A$5:$BF$3950,27)) -> 158.9 | AJ76: =IF(OR($M76="",$M76=0),"",VLOOKUP($M76,'RLMA-SAWS Database'!$A$5:$BF$3950,28)) -> 177.2 | AK76: =IF(OR($M76="",$M76=0),"",VLOOKUP($M76,'RLMA-SAWS Database'!$A$5:$BF$3950,29)) -> 195.9 | AL76: =IF(OR($M76="",$M76=0),"",VLOOKUP($M76,'RLMA-SAWS Database'!$A$5:$BF$3950,51)) -> 94.1 | AM76: =IF(OR($M76="",$M76=0),"",VLOOKUP($M76,'RLMA-SAWS Database'!$A$5:$BF$3950,52)) -> 125.9 | AN76: =IF(OR($M76="",$M76=0),"",VLOOKUP($M76,'RLMA-SAWS Database'!$A$5:$BF$3950,53)) -> 147.7 | AO76: =IF(OR($M76="",$M76=0),"",VLOOKUP($M76,'RLMA-SAWS Database'!$A$5:$BF$3950,54)) -> 169.3 | AP76: =IF(OR($M76="",$M76=0),"",VLOOKUP($M76,'RLMA-SAWS Database'!$A$5:$BF$3950,55)) -> 198.3 | AQ76: =IF(OR($M76="",$M76=0),"",VLOOKUP($M76,'RLMA-SAWS Database'!$A$5:$BF$3950,56)) -> 220.5 | AR76: =IF(OR($M76="",$M76=0),"",VLOOKUP($M76,'RLMA-SAWS Database'!$A$5:$BF$3950,57)) -> 243.4 | AS76: =IF(OR($M76="",$M76=0),"",VLOOKUP($M76,'RLMA-SAWS Database'!$A$5:$BF$3950,58)) -> 55 | AU76: =IF($C$76="","",$C$76) -> 0232275W | AV76: =IF($AU76="","",VLOOKUP($AU76,'RLMA-SAWS Database'!$A$5:$BF$3950,2)) -> DEWETSDORP (Police) | AW76: =IF($AU76="",0,$D$76) -> 86.58925 | AX76: =IF($AU76="",0,VLOOKUP($AU76,'RLMA-SAWS Database'!$A$5:$BF$3950,7)) -> 585 | AY76: 50654.71125 | AZ76: =IF($AU76="",0,VLOOKUP($AU76,'RLMA-SAWS Database'!$A$5:$BF$3950,9)) -> 50.8 | BA76: 4398.7339 | BB76: =IF($AU76="",0,VLOOKUP($AU76,'RLMA-SAWS Database'!$A$5:$BF$3950,10)) -> 68.8 | BC76: 5957.3404 | BD76: =IF($AU76="",0,VLOOKUP($AU76,'RLMA-SAWS Database'!$A$5:$BF$3950,11)) -> 81.6 | BE76: 7065.6828 | BF76: =IF($AU76="",0,VLOOKUP($AU76,'RLMA-SAWS Database'!$A$5:$BF$3950,12)) -> 94.6 | BG76: 8191.34305 | BH76: =IF($AU76="",0,VLOOKUP($AU76,'RLMA-SAWS Database'!$A$5:$BF$3950,13)) -> 112.6 | BI76: 9749.94955 | BJ76: =IF($AU76="",0,VLOOKUP($AU76,'RLMA-SAWS Database'!$A$5:$BF$3950,14)) -> 127 | BK76: 10996.83475 | BL76: =IF($AU76="",0,VLOOKUP($AU76,'RLMA-SAWS Database'!$A$5:$BF$3950,15)) -> 142.2 | BM76: 12312.99135 | BN76: =IF($AU76="",0,VLOOKUP($AU76,'RLMA-SAWS Database'!$A$5:$BF$3950,16)) -> 67.1 | BO76: 5810.138675 | BP76: =IF($AU76="",0,VLOOKUP($AU76,'RLMA-SAWS Database'!$A$5:$BF$3950,17)) -> 90.5 | BQ76: 7836.327125 | BR76: =IF($AU76="",0,VLOOKUP($AU76,'RLMA-SAWS Database'!$A$5:$BF$3950,18)) -> 106.9 | BS76: 9256.390825 | BT76: =IF($AU76="",0,VLOOKUP($AU76,'RLMA-SAWS Database'!$A$5:$BF$3950,19)) -> 123.6 | BU76: 10702.4313 | BV76: =IF($AU76="",0,VLOOKUP($AU76,'RLMA-SAWS Database'!$A$5:$BF$3950,20)) -> 146.3 | BW76: 12668.00728 | BX76: =IF($AU76="",0,VLOOKUP($AU76,'RLMA-SAWS Database'!$A$5:$BF$3950,21)) -> 164.2 | BY76: 14217.95485 | BZ76: =IF($AU76="",0,VLOOKUP($AU76,'RLMA-SAWS Database'!$A$5:$BF$3950,22)) -> 182.9 | CA76: 15837.17383 | CB76: =IF($AU76="",0,VLOOKUP($AU76,'RLMA-SAWS Database'!$A$5:$BF$3950,23)) -> 75 | CC76: 6494.19375 | CD76: =IF($AU76="",0,VLOOKUP($AU76,'RLMA-SAWS Database'!$A$5:$BF$3950,24)) -> 100.4 | CE76: 8693.5607 | CF76: =IF($AU76="",0,VLOOKUP($AU76,'RLMA-SAWS Database'!$A$5:$BF$3950,25)) -> 118 | CG76: 10217.5315 | CH76: =IF($AU76="",0,VLOOKUP($AU76,'RLMA-SAWS Database'!$A$5:$BF$3950,26)) -> 135.4 | CI76: 11724.18445 | CJ76: =IF($AU76="",0,VLOOKUP($AU76,'RLMA-SAWS Database'!$A$5:$BF$3950,27)) -> 158.9 | CK76: 13759.03183 | CL76: =IF($AU76="",0,VLOOKUP($AU76,'RLMA-SAWS Database'!$A$5:$BF$3950,28)) -> 177.2 | CM76: 15343.6151 | CN76: =IF($AU76="",0,VLOOKUP($AU76,'RLMA-SAWS Database'!$A$5:$BF$3950,29)) -> 195.9 | CO76: 16962.83408 | CP76: =IF($AU76="",0,VLOOKUP($AU76,'RLMA-SAWS Database'!$A$5:$BF$3950,51)) -> 94.1 | CQ76: 8148.048425 | CR76: =IF($AU76="",0,VLOOKUP($AU76,'RLMA-SAWS Database'!$A$5:$BF$3950,52)) -> 125.9 | CS76: 10901.58658 | CT76: =IF($AU76="",0,VLOOKUP($AU76,'RLMA-SAWS Database'!$A$5:$BF$3950,53)) -> 147.7 | CU76: 12789.23222 | CV76: =IF($AU76="",0,VLOOKUP($AU76,'RLMA-SAWS Database'!$A$5:$BF$3950,54)) -> 169.3 | CW76: 14659.56003 | CX76: =IF($AU76="",0,VLOOKUP($AU76,'RLMA-SAWS Database'!$A$5:$BF$3950,55)) -> 198.3 | CY76: 17170.64828 | CZ76: =IF($AU76="",0,VLOOKUP($AU76,'RLMA-SAWS Database'!$A$5:$BF$3950,56)) -> 220.5 | DA76: 19092.92963 | DB76: =IF($AU76="",0,VLOOKUP($AU76,'RLMA-SAWS Database'!$A$5:$BF$3950,57)) -> 243.4 | DC76: 21075.82345 | DD76: =IF($AU76="",0,VLOOKUP($AU76,'RLMA-SAWS Database'!$A$5:$BF$3950,58)) -> 55 | DE76: 4762.40875
A77: 5 | C77: 0232301W | D77: 74.0323 | E77: =IF($C77="","",VLOOKUP($C77,'RLMA-SAWS Database'!$A$5:$BF$3950,2)) -> KILDARE | F77: 105 | J77: =IF($G77="","",VLOOKUP($G77,'RLMA-SAWS Database'!$A$5:$BF$3950,2)) ->  | K77: FALSE | L77: FALSE | M77: 0232301W | N77: =IF(OR($M77="",$M77=0),"",VLOOKUP($M77,'RLMA-SAWS Database'!$A$5:$BF$3950,2)) -> KILDARE | O77: 74.0323 | P77: =IF(OR($M77="",$M77=0),"",VLOOKUP($M77,'RLMA-SAWS Database'!$A$5:$BF$3950,7)) -> 488 | Q77: =IF(OR($M77="",$M77=0),"",VLOOKUP($M77,'RLMA-SAWS Database'!$A$5:$BF$3950,9)) -> 45.5 | R77: =IF(OR($M77="",$M77=0),"",VLOOKUP($M77,'RLMA-SAWS Database'!$A$5:$BF$3950,10)) -> 61.6 | S77: =IF(OR($M77="",$M77=0),"",VLOOKUP($M77,'RLMA-SAWS Database'!$A$5:$BF$3950,11)) -> 73.1 | T77: =IF(OR($M77="",$M77=0),"",VLOOKUP($M77,'RLMA-SAWS Database'!$A$5:$BF$3950,12)) -> 84.7 | U77: =IF(OR($M77="",$M77=0),"",VLOOKUP($M77,'RLMA-SAWS Database'!$A$5:$BF$3950,13)) -> 100.9 | V77: =IF(OR($M77="",$M77=0),"",VLOOKUP($M77,'RLMA-SAWS Database'!$A$5:$BF$3950,14)) -> 113.7 | W77: =IF(OR($M77="",$M77=0),"",VLOOKUP($M77,'RLMA-SAWS Database'!$A$5:$BF$3950,15)) -> 127.4 | X77: =IF(OR($M77="",$M77=0),"",VLOOKUP($M77,'RLMA-SAWS Database'!$A$5:$BF$3950,16)) -> 57.4 | Y77: =IF(OR($M77="",$M77=0),"",VLOOKUP($M77,'RLMA-SAWS Database'!$A$5:$BF$3950,17)) -> 77.4 | Z77: =IF(OR($M77="",$M77=0),"",VLOOKUP($M77,'RLMA-SAWS Database'!$A$5:$BF$3950,18)) -> 91.5 | AA77: =IF(OR($M77="",$M77=0),"",VLOOKUP($M77,'RLMA-SAWS Database'!$A$5:$BF$3950,19)) -> 105.8 | AB77: =IF(OR($M77="",$M77=0),"",VLOOKUP($M77,'RLMA-SAWS Database'!$A$5:$BF$3950,20)) -> 125.2 | AC77: =IF(OR($M77="",$M77=0),"",VLOOKUP($M77,'RLMA-SAWS Database'!$A$5:$BF$3950,21)) -> 140.5 | AD77: =IF(OR($M77="",$M77=0),"",VLOOKUP($M77,'RLMA-SAWS Database'!$A$5:$BF$3950,22)) -> 156.5 | AE77: =IF(OR($M77="",$M77=0),"",VLOOKUP($M77,'RLMA-SAWS Database'!$A$5:$BF$3950,23)) -> 64.8 | AF77: =IF(OR($M77="",$M77=0),"",VLOOKUP($M77,'RLMA-SAWS Database'!$A$5:$BF$3950,24)) -> 86.7 | AG77: =IF(OR($M77="",$M77=0),"",VLOOKUP($M77,'RLMA-SAWS Database'!$A$5:$BF$3950,25)) -> 102 | AH77: =IF(OR($M77="",$M77=0),"",VLOOKUP($M77,'RLMA-SAWS Database'!$A$5:$BF$3950,26)) -> 117 | AI77: =IF(OR($M77="",$M77=0),"",VLOOKUP($M77,'RLMA-SAWS Database'!$A$5:$BF$3950,27)) -> 137.3 | AJ77: =IF(OR($M77="",$M77=0),"",VLOOKUP($M77,'RLMA-SAWS Database'!$A$5:$BF$3950,28)) -> 153.1 | AK77: =IF(OR($M77="",$M77=0),"",VLOOKUP($M77,'RLMA-SAWS Database'!$A$5:$BF$3950,29)) -> 169.3 | AL77: =IF(OR($M77="",$M77=0),"",VLOOKUP($M77,'RLMA-SAWS Database'!$A$5:$BF$3950,51)) -> 79.6 | AM77: =IF(OR($M77="",$M77=0),"",VLOOKUP($M77,'RLMA-SAWS Database'!$A$5:$BF$3950,52)) -> 106.5 | AN77: =IF(OR($M77="",$M77=0),"",VLOOKUP($M77,'RLMA-SAWS Database'!$A$5:$BF$3950,53)) -> 124.9 | AO77: =IF(OR($M77="",$M77=0),"",VLOOKUP($M77,'RLMA-SAWS Database'!$A$5:$BF$3950,54)) -> 143.2 | AP77: =IF(OR($M77="",$M77=0),"",VLOOKUP($M77,'RLMA-SAWS Database'!$A$5:$BF$3950,55)) -> 167.6 | AQ77: =IF(OR($M77="",$M77=0),"",VLOOKUP($M77,'RLMA-SAWS Database'!$A$5:$BF$3950,56)) -> 186.5 | AR77: =IF(OR($M77="",$M77=0),"",VLOOKUP($M77,'RLMA-SAWS Database'!$A$5:$BF$3950,57)) -> 205.8 | AS77: =IF(OR($M77="",$M77=0),"",VLOOKUP($M77,'RLMA-SAWS Database'!$A$5:$BF$3950,58)) -> 55 | AU77: =IF($C$77="","",$C$77) -> 0232301W | AV77: =IF($AU77="","",VLOOKUP($AU77,'RLMA-SAWS Database'!$A$5:$BF$3950,2)) -> KILDARE | AW77: =IF($AU77="",0,$D$77) -> 74.0323 | AX77: =IF($AU77="",0,VLOOKUP($AU77,'RLMA-SAWS Database'!$A$5:$BF$3950,7)) -> 488 | AY77: 36127.7624 | AZ77: =IF($AU77="",0,VLOOKUP($AU77,'RLMA-SAWS Database'!$A$5:$BF$3950,9)) -> 45.5 | BA77: 3368.46965 | BB77: =IF($AU77="",0,VLOOKUP($AU77,'RLMA-SAWS Database'!$A$5:$BF$3950,10)) -> 61.6 | BC77: 4560.38968 | BD77: =IF($AU77="",0,VLOOKUP($AU77,'RLMA-SAWS Database'!$A$5:$BF$3950,11)) -> 73.1 | BE77: 5411.76113 | BF77: =IF($AU77="",0,VLOOKUP($AU77,'RLMA-SAWS Database'!$A$5:$BF$3950,12)) -> 84.7 | BG77: 6270.53581 | BH77: =IF($AU77="",0,VLOOKUP($AU77,'RLMA-SAWS Database'!$A$5:$BF$3950,13)) -> 100.9 | BI77: 7469.85907 | BJ77: =IF($AU77="",0,VLOOKUP($AU77,'RLMA-SAWS Database'!$A$5:$BF$3950,14)) -> 113.7 | BK77: 8417.47251 | BL77: =IF($AU77="",0,VLOOKUP($AU77,'RLMA-SAWS Database'!$A$5:$BF$3950,15)) -> 127.4 | BM77: 9431.71502 | BN77: =IF($AU77="",0,VLOOKUP($AU77,'RLMA-SAWS Database'!$A$5:$BF$3950,16)) -> 57.4 | BO77: 4249.45402 | BP77: =IF($AU77="",0,VLOOKUP($AU77,'RLMA-SAWS Database'!$A$5:$BF$3950,17)) -> 77.4 | BQ77: 5730.10002 | BR77: =IF($AU77="",0,VLOOKUP($AU77,'RLMA-SAWS Database'!$A$5:$BF$3950,18)) -> 91.5 | BS77: 6773.95545 | BT77: =IF($AU77="",0,VLOOKUP($AU77,'RLMA-SAWS Database'!$A$5:$BF$3950,19)) -> 105.8 | BU77: 7832.61734 | BV77: =IF($AU77="",0,VLOOKUP($AU77,'RLMA-SAWS Database'!$A$5:$BF$3950,20)) -> 125.2 | BW77: 9268.84396 | BX77: =IF($AU77="",0,VLOOKUP($AU77,'RLMA-SAWS Database'!$A$5:$BF$3950,21)) -> 140.5 | BY77: 10401.53815 | BZ77: =IF($AU77="",0,VLOOKUP($AU77,'RLMA-SAWS Database'!$A$5:$BF$3950,22)) -> 156.5 | CA77: 11586.05495 | CB77: =IF($AU77="",0,VLOOKUP($AU77,'RLMA-SAWS Database'!$A$5:$BF$3950,23)) -> 64.8 | CC77: 4797.29304 | CD77: =IF($AU77="",0,VLOOKUP($AU77,'RLMA-SAWS Database'!$A$5:$BF$3950,24)) -> 86.7 | CE77: 6418.60041 | CF77: =IF($AU77="",0,VLOOKUP($AU77,'RLMA-SAWS Database'!$A$5:$BF$3950,25)) -> 102 | CG77: 7551.2946 | CH77: =IF($AU77="",0,VLOOKUP($AU77,'RLMA-SAWS Database'!$A$5:$BF$3950,26)) -> 117 | CI77: 8661.7791 | CJ77: =IF($AU77="",0,VLOOKUP($AU77,'RLMA-SAWS Database'!$A$5:$BF$3950,27)) -> 137.3 | CK77: 10164.63479 | CL77: =IF($AU77="",0,VLOOKUP($AU77,'RLMA-SAWS Database'!$A$5:$BF$3950,28)) -> 153.1 | CM77: 11334.34513 | CN77: =IF($AU77="",0,VLOOKUP($AU77,'RLMA-SAWS Database'!$A$5:$BF$3950,29)) -> 169.3 | CO77: 12533.66839 | CP77: =IF($AU77="",0,VLOOKUP($AU77,'RLMA-SAWS Database'!$A$5:$BF$3950,51)) -> 79.6 | CQ77: 5892.97108 | CR77: =IF($AU77="",0,VLOOKUP($AU77,'RLMA-SAWS Database'!$A$5:$BF$3950,52)) -> 106.5 | CS77: 7884.43995 | CT77: =IF($AU77="",0,VLOOKUP($AU77,'RLMA-SAWS Database'!$A$5:$BF$3950,53)) -> 124.9 | CU77: 9246.63427 | CV77: =IF($AU77="",0,VLOOKUP($AU77,'RLMA-SAWS Database'!$A$5:$BF$3950,54)) -> 143.2 | CW77: 10601.42536 | CX77: =IF($AU77="",0,VLOOKUP($AU77,'RLMA-SAWS Database'!$A$5:$BF$3950,55)) -> 167.6 | CY77: 12407.81348 | CZ77: =IF($AU77="",0,VLOOKUP($AU77,'RLMA-SAWS Database'!$A$5:$BF$3950,56)) -> 186.5 | DA77: 13807.02395 | DB77: =IF($AU77="",0,VLOOKUP($AU77,'RLMA-SAWS Database'!$A$5:$BF$3950,57)) -> 205.8 | DC77: 15235.84734 | DD77: =IF($AU77="",0,VLOOKUP($AU77,'RLMA-SAWS Database'!$A$5:$BF$3950,58)) -> 55 | DE77: 4071.7765
A78: 6 | C78: 0232512W | D78: 98.53756 | E78: =IF($C78="","",VLOOKUP($C78,'RLMA-SAWS Database'!$A$5:$BF$3950,2)) -> THORLEY | F78: 106 | J78: =IF($G78="","",VLOOKUP($G78,'RLMA-SAWS Database'!$A$5:$BF$3950,2)) ->  | K78: FALSE | L78: FALSE | M78: 0232512W | N78: =IF(OR($M78="",$M78=0),"",VLOOKUP($M78,'RLMA-SAWS Database'!$A$5:$BF$3950,2)) -> THORLEY | O78: 98.53756 | P78: =IF(OR($M78="",$M78=0),"",VLOOKUP($M78,'RLMA-SAWS Database'!$A$5:$BF$3950,7)) -> 599 | Q78: =IF(OR($M78="",$M78=0),"",VLOOKUP($M78,'RLMA-SAWS Database'!$A$5:$BF$3950,9)) -> 47.7 | R78: =IF(OR($M78="",$M78=0),"",VLOOKUP($M78,'RLMA-SAWS Database'!$A$5:$BF$3950,10)) -> 64.6 | S78: =IF(OR($M78="",$M78=0),"",VLOOKUP($M78,'RLMA-SAWS Database'!$A$5:$BF$3950,11)) -> 76.6 | T78: =IF(OR($M78="",$M78=0),"",VLOOKUP($M78,'RLMA-SAWS Database'!$A$5:$BF$3950,12)) -> 88.8 | U78: =IF(OR($M78="",$M78=0),"",VLOOKUP($M78,'RLMA-SAWS Database'!$A$5:$BF$3950,13)) -> 105.7 | V78: =IF(OR($M78="",$M78=0),"",VLOOKUP($M78,'RLMA-SAWS Database'!$A$5:$BF$3950,14)) -> 119.2 | W78: =IF(OR($M78="",$M78=0),"",VLOOKUP($M78,'RLMA-SAWS Database'!$A$5:$BF$3950,15)) -> 133.5 | X78: =IF(OR($M78="",$M78=0),"",VLOOKUP($M78,'RLMA-SAWS Database'!$A$5:$BF$3950,16)) -> 61.5 | Y78: =IF(OR($M78="",$M78=0),"",VLOOKUP($M78,'RLMA-SAWS Database'!$A$5:$BF$3950,17)) -> 83 | Z78: =IF(OR($M78="",$M78=0),"",VLOOKUP($M78,'RLMA-SAWS Database'!$A$5:$BF$3950,18)) -> 98.1 | AA78: =IF(OR($M78="",$M78=0),"",VLOOKUP($M78,'RLMA-SAWS Database'!$A$5:$BF$3950,19)) -> 113.3 | AB78: =IF(OR($M78="",$M78=0),"",VLOOKUP($M78,'RLMA-SAWS Database'!$A$5:$BF$3950,20)) -> 134.1 | AC78: =IF(OR($M78="",$M78=0),"",VLOOKUP($M78,'RLMA-SAWS Database'!$A$5:$BF$3950,21)) -> 150.5 | AD78: =IF(OR($M78="",$M78=0),"",VLOOKUP($M78,'RLMA-SAWS Database'!$A$5:$BF$3950,22)) -> 167.8 | AE78: =IF(OR($M78="",$M78=0),"",VLOOKUP($M78,'RLMA-SAWS Database'!$A$5:$BF$3950,23)) -> 68.6 | AF78: =IF(OR($M78="",$M78=0),"",VLOOKUP($M78,'RLMA-SAWS Database'!$A$5:$BF$3950,24)) -> 91.9 | AG78: =IF(OR($M78="",$M78=0),"",VLOOKUP($M78,'RLMA-SAWS Database'!$A$5:$BF$3950,25)) -> 108 | AH78: =IF(OR($M78="",$M78=0),"",VLOOKUP($M78,'RLMA-SAWS Database'!$A$5:$BF$3950,26)) -> 124 | AI78: =IF(OR($M78="",$M78=0),"",VLOOKUP($M78,'RLMA-SAWS Database'!$A$5:$BF$3950,27)) -> 145.5 | AJ78: =IF(OR($M78="",$M78=0),"",VLOOKUP($M78,'RLMA-SAWS Database'!$A$5:$BF$3950,28)) -> 162.3 | AK78: =IF(OR($M78="",$M78=0),"",VLOOKUP($M78,'RLMA-SAWS Database'!$A$5:$BF$3950,29)) -> 179.4 | AL78: =IF(OR($M78="",$M78=0),"",VLOOKUP($M78,'RLMA-SAWS Database'!$A$5:$BF$3950,51)) -> 85.1 | AM78: =IF(OR($M78="",$M78=0),"",VLOOKUP($M78,'RLMA-SAWS Database'!$A$5:$BF$3950,52)) -> 113.9 | AN78: =IF(OR($M78="",$M78=0),"",VLOOKUP($M78,'RLMA-SAWS Database'!$A$5:$BF$3950,53)) -> 133.6 | AO78: =IF(OR($M78="",$M78=0),"",VLOOKUP($M78,'RLMA-SAWS Database'!$A$5:$BF$3950,54)) -> 153.2 | AP78: =IF(OR($M78="",$M78=0),"",VLOOKUP($M78,'RLMA-SAWS Database'!$A$5:$BF$3950,55)) -> 179.3 | AQ78: =IF(OR($M78="",$M78=0),"",VLOOKUP($M78,'RLMA-SAWS Database'!$A$5:$BF$3950,56)) -> 199.5 | AR78: =IF(OR($M78="",$M78=0),"",VLOOKUP($M78,'RLMA-SAWS Database'!$A$5:$BF$3950,57)) -> 220.2 | AS78: =IF(OR($M78="",$M78=0),"",VLOOKUP($M78,'RLMA-SAWS Database'!$A$5:$BF$3950,58)) -> 55 | AU78: =IF($C$78="","",$C$78) -> 0232512W | AV78: =IF($AU78="","",VLOOKUP($AU78,'RLMA-SAWS Database'!$A$5:$BF$3950,2)) -> THORLEY | AW78: =IF($AU78="",0,$D$78) -> 98.53756 | AX78: =IF($AU78="",0,VLOOKUP($AU78,'RLMA-SAWS Database'!$A$5:$BF$3950,7)) -> 599 | AY78: 59023.99844 | AZ78: =IF($AU78="",0,VLOOKUP($AU78,'RLMA-SAWS Database'!$A$5:$BF$3950,9)) -> 47.7 | BA78: 4700.241612 | BB78: =IF($AU78="",0,VLOOKUP($AU78,'RLMA-SAWS Database'!$A$5:$BF$3950,10)) -> 64.6 | BC78: 6365.526376 | BD78: =IF($AU78="",0,VLOOKUP($AU78,'RLMA-SAWS Database'!$A$5:$BF$3950,11)) -> 76.6 | BE78: 7547.977096 | BF78: =IF($AU78="",0,VLOOKUP($AU78,'RLMA-SAWS Database'!$A$5:$BF$3950,12)) -> 88.8 | BG78: 8750.135328 | BH78: =IF($AU78="",0,VLOOKUP($AU78,'RLMA-SAWS Database'!$A$5:$BF$3950,13)) -> 105.7 | BI78: 10415.42009 | BJ78: =IF($AU78="",0,VLOOKUP($AU78,'RLMA-SAWS Database'!$A$5:$BF$3950,14)) -> 119.2 | BK78: 11745.67715 | BL78: =IF($AU78="",0,VLOOKUP($AU78,'RLMA-SAWS Database'!$A$5:$BF$3950,15)) -> 133.5 | BM78: 13154.76426 | BN78: =IF($AU78="",0,VLOOKUP($AU78,'RLMA-SAWS Database'!$A$5:$BF$3950,16)) -> 61.5 | BO78: 6060.05994 | BP78: =IF($AU78="",0,VLOOKUP($AU78,'RLMA-SAWS Database'!$A$5:$BF$3950,17)) -> 83 | BQ78: 8178.61748 | BR78: =IF($AU78="",0,VLOOKUP($AU78,'RLMA-SAWS Database'!$A$5:$BF$3950,18)) -> 98.1 | BS78: 9666.534636 | BT78: =IF($AU78="",0,VLOOKUP($AU78,'RLMA-SAWS Database'!$A$5:$BF$3950,19)) -> 113.3 | BU78: 11164.30555 | BV78: =IF($AU78="",0,VLOOKUP($AU78,'RLMA-SAWS Database'!$A$5:$BF$3950,20)) -> 134.1 | BW78: 13213.8868 | BX78: =IF($AU78="",0,VLOOKUP($AU78,'RLMA-SAWS Database'!$A$5:$BF$3950,21)) -> 150.5 | BY78: 14829.90278 | BZ78: =IF($AU78="",0,VLOOKUP($AU78,'RLMA-SAWS Database'!$A$5:$BF$3950,22)) -> 167.8 | CA78: 16534.60257 | CB78: =IF($AU78="",0,VLOOKUP($AU78,'RLMA-SAWS Database'!$A$5:$BF$3950,23)) -> 68.6 | CC78: 6759.676616 | CD78: =IF($AU78="",0,VLOOKUP($AU78,'RLMA-SAWS Database'!$A$5:$BF$3950,24)) -> 91.9 | CE78: 9055.601764 | CF78: =IF($AU78="",0,VLOOKUP($AU78,'RLMA-SAWS Database'!$A$5:$BF$3950,25)) -> 108 | CG78: 10642.05648 | CH78: =IF($AU78="",0,VLOOKUP($AU78,'RLMA-SAWS Database'!$A$5:$BF$3950,26)) -> 124 | CI78: 12218.65744 | CJ78: =IF($AU78="",0,VLOOKUP($AU78,'RLMA-SAWS Database'!$A$5:$BF$3950,27)) -> 145.5 | CK78: 14337.21498 | CL78: =IF($AU78="",0,VLOOKUP($AU78,'RLMA-SAWS Database'!$A$5:$BF$3950,28)) -> 162.3 | CM78: 15992.64599 | CN78: =IF($AU78="",0,VLOOKUP($AU78,'RLMA-SAWS Database'!$A$5:$BF$3950,29)) -> 179.4 | CO78: 17677.63826 | CP78: =IF($AU78="",0,VLOOKUP($AU78,'RLMA-SAWS Database'!$A$5:$BF$3950,51)) -> 85.1 | CQ78: 8385.546356 | CR78: =IF($AU78="",0,VLOOKUP($AU78,'RLMA-SAWS Database'!$A$5:$BF$3950,52)) -> 113.9 | CS78: 11223.42808 | CT78: =IF($AU78="",0,VLOOKUP($AU78,'RLMA-SAWS Database'!$A$5:$BF$3950,53)) -> 133.6 | CU78: 13164.61802 | CV78: =IF($AU78="",0,VLOOKUP($AU78,'RLMA-SAWS Database'!$A$5:$BF$3950,54)) -> 153.2 | CW78: 15095.95419 | CX78: =IF($AU78="",0,VLOOKUP($AU78,'RLMA-SAWS Database'!$A$5:$BF$3950,55)) -> 179.3 | CY78: 17667.78451 | CZ78: =IF($AU78="",0,VLOOKUP($AU78,'RLMA-SAWS Database'!$A$5:$BF$3950,56)) -> 199.5 | DA78: 19658.24322 | DB78: =IF($AU78="",0,VLOOKUP($AU78,'RLMA-SAWS Database'!$A$5:$BF$3950,57)) -> 220.2 | DC78: 21697.97071 | DD78: =IF($AU78="",0,VLOOKUP($AU78,'RLMA-SAWS Database'!$A$5:$BF$3950,58)) -> 55 | DE78: 5419.5658
A79: 7 | C79: 0261307W | D79: 20.40571 | E79: =IF($C79="","",VLOOKUP($C79,'RLMA-SAWS Database'!$A$5:$BF$3950,2)) -> BLOEMFONTEIN | F79: 107 | J79: =IF($G79="","",VLOOKUP($G79,'RLMA-SAWS Database'!$A$5:$BF$3950,2)) ->  | K79: FALSE | L79: FALSE | M79: 0261307W | N79: =IF(OR($M79="",$M79=0),"",VLOOKUP($M79,'RLMA-SAWS Database'!$A$5:$BF$3950,2)) -> BLOEMFONTEIN | O79: 20.40571 | P79: =IF(OR($M79="",$M79=0),"",VLOOKUP($M79,'RLMA-SAWS Database'!$A$5:$BF$3950,7)) -> 537 | Q79: =IF(OR($M79="",$M79=0),"",VLOOKUP($M79,'RLMA-SAWS Database'!$A$5:$BF$3950,9)) -> 50.2 | R79: =IF(OR($M79="",$M79=0),"",VLOOKUP($M79,'RLMA-SAWS Database'!$A$5:$BF$3950,10)) -> 67.8 | S79: =IF(OR($M79="",$M79=0),"",VLOOKUP($M79,'RLMA-SAWS Database'!$A$5:$BF$3950,11)) -> 80 | T79: =IF(OR($M79="",$M79=0),"",VLOOKUP($M79,'RLMA-SAWS Database'!$A$5:$BF$3950,12)) -> 92.2 | U79: =IF(OR($M79="",$M79=0),"",VLOOKUP($M79,'RLMA-SAWS Database'!$A$5:$BF$3950,13)) -> 108.6 | V79: =IF(OR($M79="",$M79=0),"",VLOOKUP($M79,'RLMA-SAWS Database'!$A$5:$BF$3950,14)) -> 121.4 | W79: =IF(OR($M79="",$M79=0),"",VLOOKUP($M79,'RLMA-SAWS Database'!$A$5:$BF$3950,15)) -> 134.6 | X79: =IF(OR($M79="",$M79=0),"",VLOOKUP($M79,'RLMA-SAWS Database'!$A$5:$BF$3950,16)) -> 63.4 | Y79: =IF(OR($M79="",$M79=0),"",VLOOKUP($M79,'RLMA-SAWS Database'!$A$5:$BF$3950,17)) -> 85.3 | Z79: =IF(OR($M79="",$M79=0),"",VLOOKUP($M79,'RLMA-SAWS Database'!$A$5:$BF$3950,18)) -> 100.4 | AA79: =IF(OR($M79="",$M79=0),"",VLOOKUP($M79,'RLMA-SAWS Database'!$A$5:$BF$3950,19)) -> 115.5 | AB79: =IF(OR($M79="",$M79=0),"",VLOOKUP($M79,'RLMA-SAWS Database'!$A$5:$BF$3950,20)) -> 135.9 | AC79: =IF(OR($M79="",$M79=0),"",VLOOKUP($M79,'RLMA-SAWS Database'!$A$5:$BF$3950,21)) -> 151.8 | AD79: =IF(OR($M79="",$M79=0),"",VLOOKUP($M79,'RLMA-SAWS Database'!$A$5:$BF$3950,22)) -> 168.3 | AE79: =IF(OR($M79="",$M79=0),"",VLOOKUP($M79,'RLMA-SAWS Database'!$A$5:$BF$3950,23)) -> 70.4 | AF79: =IF(OR($M79="",$M79=0),"",VLOOKUP($M79,'RLMA-SAWS Database'!$A$5:$BF$3950,24)) -> 94.6 | AG79: =IF(OR($M79="",$M79=0),"",VLOOKUP($M79,'RLMA-SAWS Database'!$A$5:$BF$3950,25)) -> 111.1 | AH79: =IF(OR($M79="",$M79=0),"",VLOOKUP($M79,'RLMA-SAWS Database'!$A$5:$BF$3950,26)) -> 127.3 | AI79: =IF(OR($M79="",$M79=0),"",VLOOKUP($M79,'RLMA-SAWS Database'!$A$5:$BF$3950,27)) -> 149 | AJ79: =IF(OR($M79="",$M79=0),"",VLOOKUP($M79,'RLMA-SAWS Database'!$A$5:$BF$3950,28)) -> 165.7 | AK79: =IF(OR($M79="",$M79=0),"",VLOOKUP($M79,'RLMA-SAWS Database'!$A$5:$BF$3950,29)) -> 182.7 | AL79: =IF(OR($M79="",$M79=0),"",VLOOKUP($M79,'RLMA-SAWS Database'!$A$5:$BF$3950,51)) -> 84.9 | AM79: =IF(OR($M79="",$M79=0),"",VLOOKUP($M79,'RLMA-SAWS Database'!$A$5:$BF$3950,52)) -> 114.7 | AN79: =IF(OR($M79="",$M79=0),"",VLOOKUP($M79,'RLMA-SAWS Database'!$A$5:$BF$3950,53)) -> 135 | AO79: =IF(OR($M79="",$M79=0),"",VLOOKUP($M79,'RLMA-SAWS Database'!$A$5:$BF$3950,54)) -> 154.8 | AP79: =IF(OR($M79="",$M79=0),"",VLOOKUP($M79,'RLMA-SAWS Database'!$A$5:$BF$3950,55)) -> 180.9 | AQ79: =IF(OR($M79="",$M79=0),"",VLOOKUP($M79,'RLMA-SAWS Database'!$A$5:$BF$3950,56)) -> 200.9 | AR79: =IF(OR($M79="",$M79=0),"",VLOOKUP($M79,'RLMA-SAWS Database'!$A$5:$BF$3950,57)) -> 221 | AS79: =IF(OR($M79="",$M79=0),"",VLOOKUP($M79,'RLMA-SAWS Database'!$A$5:$BF$3950,58)) -> 62 | AU79: =IF($C$79="","",$C$79) -> 0261307W | AV79: =IF($AU79="","",VLOOKUP($AU79,'RLMA-SAWS Database'!$A$5:$BF$3950,2)) -> BLOEMFONTEIN | AW79: =IF($AU79="",0,$D$79) -> 20.40571 | AX79: =IF($AU79="",0,VLOOKUP($AU79,'RLMA-SAWS Database'!$A$5:$BF$3950,7)) -> 537 | AY79: 10957.86627 | AZ79: =IF($AU79="",0,VLOOKUP($AU79,'RLMA-SAWS Database'!$A$5:$BF$3950,9)) -> 50.2 | BA79: 1024.366642 | BB79: =IF($AU79="",0,VLOOKUP($AU79,'RLMA-SAWS Database'!$A$5:$BF$3950,10)) -> 67.8 | BC79: 1383.507138 | BD79: =IF($AU79="",0,VLOOKUP($AU79,'RLMA-SAWS Database'!$A$5:$BF$3950,11)) -> 80 | BE79: 1632.4568 | BF79: =IF($AU79="",0,VLOOKUP($AU79,'RLMA-SAWS Database'!$A$5:$BF$3950,12)) -> 92.2 | BG79: 1881.406462 | BH79: =IF($AU79="",0,VLOOKUP($AU79,'RLMA-SAWS Database'!$A$5:$BF$3950,13)) -> 108.6 | BI79: 2216.060106 | BJ79: =IF($AU79="",0,VLOOKUP($AU79,'RLMA-SAWS Database'!$A$5:$BF$3950,14)) -> 121.4 | BK79: 2477.253194 | BL79: =IF($AU79="",0,VLOOKUP($AU79,'RLMA-SAWS Database'!$A$5:$BF$3950,15)) -> 134.6 | BM79: 2746.608566 | BN79: =IF($AU79="",0,VLOOKUP($AU79,'RLMA-SAWS Database'!$A$5:$BF$3950,16)) -> 63.4 | BO79: 1293.722014 | BP79: =IF($AU79="",0,VLOOKUP($AU79,'RLMA-SAWS Database'!$A$5:$BF$3950,17)) -> 85.3 | BQ79: 1740.607063 | BR79: =IF($AU79="",0,VLOOKUP($AU79,'RLMA-SAWS Database'!$A$5:$BF$3950,18)) -> 100.4 | BS79: 2048.733284 | BT79: =IF($AU79="",0,VLOOKUP($AU79,'RLMA-SAWS Database'!$A$5:$BF$3950,19)) -> 115.5 | BU79: 2356.859505 | BV79: =IF($AU79="",0,VLOOKUP($AU79,'RLMA-SAWS Database'!$A$5:$BF$3950,20)) -> 135.9 | BW79: 2773.135989 | BX79: =IF($AU79="",0,VLOOKUP($AU79,'RLMA-SAWS Database'!$A$5:$BF$3950,21)) -> 151.8 | BY79: 3097.586778 | BZ79: =IF($AU79="",0,VLOOKUP($AU79,'RLMA-SAWS Database'!$A$5:$BF$3950,22)) -> 168.3 | CA79: 3434.280993 | CB79: =IF($AU79="",0,VLOOKUP($AU79,'RLMA-SAWS Database'!$A$5:$BF$3950,23)) -> 70.4 | CC79: 1436.561984 | CD79: =IF($AU79="",0,VLOOKUP($AU79,'RLMA-SAWS Database'!$A$5:$BF$3950,24)) -> 94.6 | CE79: 1930.380166 | CF79: =IF($AU79="",0,VLOOKUP($AU79,'RLMA-SAWS Database'!$A$5:$BF$3950,25)) -> 111.1 | CG79: 2267.074381 | CH79: =IF($AU79="",0,VLOOKUP($AU79,'RLMA-SAWS Database'!$A$5:$BF$3950,26)) -> 127.3 | CI79: 2597.646883 | CJ79: =IF($AU79="",0,VLOOKUP($AU79,'RLMA-SAWS Database'!$A$5:$BF$3950,27)) -> 149 | CK79: 3040.45079 | CL79: =IF($AU79="",0,VLOOKUP($AU79,'RLMA-SAWS Database'!$A$5:$BF$3950,28)) -> 165.7 | CM79: 3381.226147 | CN79: =IF($AU79="",0,VLOOKUP($AU79,'RLMA-SAWS Database'!$A$5:$BF$3950,29)) -> 182.7 | CO79: 3728.123217 | CP79: =IF($AU79="",0,VLOOKUP($AU79,'RLMA-SAWS Database'!$A$5:$BF$3950,51)) -> 84.9 | CQ79: 1732.444779 | CR79: =IF($AU79="",0,VLOOKUP($AU79,'RLMA-SAWS Database'!$A$5:$BF$3950,52)) -> 114.7 | CS79: 2340.534937 | CT79: =IF($AU79="",0,VLOOKUP($AU79,'RLMA-SAWS Database'!$A$5:$BF$3950,53)) -> 135 | CU79: 2754.77085 | CV79: =IF($AU79="",0,VLOOKUP($AU79,'RLMA-SAWS Database'!$A$5:$BF$3950,54)) -> 154.8 | CW79: 3158.803908 | CX79: =IF($AU79="",0,VLOOKUP($AU79,'RLMA-SAWS Database'!$A$5:$BF$3950,55)) -> 180.9 | CY79: 3691.392939 | CZ79: =IF($AU79="",0,VLOOKUP($AU79,'RLMA-SAWS Database'!$A$5:$BF$3950,56)) -> 200.9 | DA79: 4099.507139 | DB79: =IF($AU79="",0,VLOOKUP($AU79,'RLMA-SAWS Database'!$A$5:$BF$3950,57)) -> 221 | DC79: 4509.66191 | DD79: =IF($AU79="",0,VLOOKUP($AU79,'RLMA-SAWS Database'!$A$5:$BF$3950,58)) -> 62 | DE79: 1265.15402
A80: 8 | C80: 0261365W | D80: 60.03816 | E80: =IF($C80="","",VLOOKUP($C80,'RLMA-SAWS Database'!$A$5:$BF$3950,2)) -> BLOEMFONTEIN (BAYSWATER) | F80: 108 | J80: =IF($G80="","",VLOOKUP($G80,'RLMA-SAWS Database'!$A$5:$BF$3950,2)) ->  | K80: FALSE | L80: FALSE | M80: 0261365W | N80: =IF(OR($M80="",$M80=0),"",VLOOKUP($M80,'RLMA-SAWS Database'!$A$5:$BF$3950,2)) -> BLOEMFONTEIN (BAYSWATER) | O80: 60.03816 | P80: =IF(OR($M80="",$M80=0),"",VLOOKUP($M80,'RLMA-SAWS Database'!$A$5:$BF$3950,7)) -> 558 | Q80: =IF(OR($M80="",$M80=0),"",VLOOKUP($M80,'RLMA-SAWS Database'!$A$5:$BF$3950,9)) -> 49.5 | R80: =IF(OR($M80="",$M80=0),"",VLOOKUP($M80,'RLMA-SAWS Database'!$A$5:$BF$3950,10)) -> 66.8 | S80: =IF(OR($M80="",$M80=0),"",VLOOKUP($M80,'RLMA-SAWS Database'!$A$5:$BF$3950,11)) -> 78.9 | T80: =IF(OR($M80="",$M80=0),"",VLOOKUP($M80,'RLMA-SAWS Database'!$A$5:$BF$3950,12)) -> 90.9 | U80: =IF(OR($M80="",$M80=0),"",VLOOKUP($M80,'RLMA-SAWS Database'!$A$5:$BF$3950,13)) -> 107 | V80: =IF(OR($M80="",$M80=0),"",VLOOKUP($M80,'RLMA-SAWS Database'!$A$5:$BF$3950,14)) -> 119.7 | W80: =IF(OR($M80="",$M80=0),"",VLOOKUP($M80,'RLMA-SAWS Database'!$A$5:$BF$3950,15)) -> 132.7 | X80: =IF(OR($M80="",$M80=0),"",VLOOKUP($M80,'RLMA-SAWS Database'!$A$5:$BF$3950,16)) -> 60.8 | Y80: =IF(OR($M80="",$M80=0),"",VLOOKUP($M80,'RLMA-SAWS Database'!$A$5:$BF$3950,17)) -> 81.7 | Z80: =IF(OR($M80="",$M80=0),"",VLOOKUP($M80,'RLMA-SAWS Database'!$A$5:$BF$3950,18)) -> 96.2 | AA80: =IF(OR($M80="",$M80=0),"",VLOOKUP($M80,'RLMA-SAWS Database'!$A$5:$BF$3950,19)) -> 110.8 | AB80: =IF(OR($M80="",$M80=0),"",VLOOKUP($M80,'RLMA-SAWS Database'!$A$5:$BF$3950,20)) -> 130.3 | AC80: =IF(OR($M80="",$M80=0),"",VLOOKUP($M80,'RLMA-SAWS Database'!$A$5:$BF$3950,21)) -> 145.5 | AD80: =IF(OR($M80="",$M80=0),"",VLOOKUP($M80,'RLMA-SAWS Database'!$A$5:$BF$3950,22)) -> 161.3 | AE80: =IF(OR($M80="",$M80=0),"",VLOOKUP($M80,'RLMA-SAWS Database'!$A$5:$BF$3950,23)) -> 68.5 | AF80: =IF(OR($M80="",$M80=0),"",VLOOKUP($M80,'RLMA-SAWS Database'!$A$5:$BF$3950,24)) -> 92 | AG80: =IF(OR($M80="",$M80=0),"",VLOOKUP($M80,'RLMA-SAWS Database'!$A$5:$BF$3950,25)) -> 108 | AH80: =IF(OR($M80="",$M80=0),"",VLOOKUP($M80,'RLMA-SAWS Database'!$A$5:$BF$3950,26)) -> 123.8 | AI80: =IF(OR($M80="",$M80=0),"",VLOOKUP($M80,'RLMA-SAWS Database'!$A$5:$BF$3950,27)) -> 144.9 | AJ80: =IF(OR($M80="",$M80=0),"",VLOOKUP($M80,'RLMA-SAWS Database'!$A$5:$BF$3950,28)) -> 161.2 | AK80: =IF(OR($M80="",$M80=0),"",VLOOKUP($M80,'RLMA-SAWS Database'!$A$5:$BF$3950,29)) -> 177.7 | AL80: =IF(OR($M80="",$M80=0),"",VLOOKUP($M80,'RLMA-SAWS Database'!$A$5:$BF$3950,51)) -> 86 | AM80: =IF(OR($M80="",$M80=0),"",VLOOKUP($M80,'RLMA-SAWS Database'!$A$5:$BF$3950,52)) -> 116.2 | AN80: =IF(OR($M80="",$M80=0),"",VLOOKUP($M80,'RLMA-SAWS Database'!$A$5:$BF$3950,53)) -> 136.8 | AO80: =IF(OR($M80="",$M80=0),"",VLOOKUP($M80,'RLMA-SAWS Database'!$A$5:$BF$3950,54)) -> 156.8 | AP80: =IF(OR($M80="",$M80=0),"",VLOOKUP($M80,'RLMA-SAWS Database'!$A$5:$BF$3950,55)) -> 183.2 | AQ80: =IF(OR($M80="",$M80=0),"",VLOOKUP($M80,'RLMA-SAWS Database'!$A$5:$BF$3950,56)) -> 203.5 | AR80: =IF(OR($M80="",$M80=0),"",VLOOKUP($M80,'RLMA-SAWS Database'!$A$5:$BF$3950,57)) -> 223.9 | AS80: =IF(OR($M80="",$M80=0),"",VLOOKUP($M80,'RLMA-SAWS Database'!$A$5:$BF$3950,58)) -> 62 | AU80: =IF($C$80="","",$C$80) -> 0261365W | AV80: =IF($AU80="","",VLOOKUP($AU80,'RLMA-SAWS Database'!$A$5:$BF$3950,2)) -> BLOEMFONTEIN (BAYSWATER) | AW80: =IF($AU80="",0,$D$80) -> 60.03816 | AX80: =IF($AU80="",0,VLOOKUP($AU80,'RLMA-SAWS Database'!$A$5:$BF$3950,7)) -> 558 | AY80: 33501.29328 | AZ80: =IF($AU80="",0,VLOOKUP($AU80,'RLMA-SAWS Database'!$A$5:$BF$3950,9)) -> 49.5 | BA80: 2971.88892 | BB80: =IF($AU80="",0,VLOOKUP($AU80,'RLMA-SAWS Database'!$A$5:$BF$3950,10)) -> 66.8 | BC80: 4010.549088 | BD80: =IF($AU80="",0,VLOOKUP($AU80,'RLMA-SAWS Database'!$A$5:$BF$3950,11)) -> 78.9 | BE80: 4737.010824 | BF80: =IF($AU80="",0,VLOOKUP($AU80,'RLMA-SAWS Database'!$A$5:$BF$3950,12)) -> 90.9 | BG80: 5457.468744 | BH80: =IF($AU80="",0,VLOOKUP($AU80,'RLMA-SAWS Database'!$A$5:$BF$3950,13)) -> 107 | BI80: 6424.08312 | BJ80: =IF($AU80="",0,VLOOKUP($AU80,'RLMA-SAWS Database'!$A$5:$BF$3950,14)) -> 119.7 | BK80: 7186.567752 | BL80: =IF($AU80="",0,VLOOKUP($AU80,'RLMA-SAWS Database'!$A$5:$BF$3950,15)) -> 132.7 | BM80: 7967.063832 | BN80: =IF($AU80="",0,VLOOKUP($AU80,'RLMA-SAWS Database'!$A$5:$BF$3950,16)) -> 60.8 | BO80: 3650.320128 | BP80: =IF($AU80="",0,VLOOKUP($AU80,'RLMA-SAWS Database'!$A$5:$BF$3950,17)) -> 81.7 | BQ80: 4905.117672 | BR80: =IF($AU80="",0,VLOOKUP($AU80,'RLMA-SAWS Database'!$A$5:$BF$3950,18)) -> 96.2 | BS80: 5775.670992 | BT80: =IF($AU80="",0,VLOOKUP($AU80,'RLMA-SAWS Database'!$A$5:$BF$3950,19)) -> 110.8 | BU80: 6652.228128 | BV80: =IF($AU80="",0,VLOOKUP($AU80,'RLMA-SAWS Database'!$A$5:$BF$3950,20)) -> 130.3 | BW80: 7822.972248 | BX80: =IF($AU80="",0,VLOOKUP($AU80,'RLMA-SAWS Database'!$A$5:$BF$3950,21)) -> 145.5 | BY80: 8735.55228 | BZ80: =IF($AU80="",0,VLOOKUP($AU80,'RLMA-SAWS Database'!$A$5:$BF$3950,22)) -> 161.3 | CA80: 9684.155208 | CB80: =IF($AU80="",0,VLOOKUP($AU80,'RLMA-SAWS Database'!$A$5:$BF$3950,23)) -> 68.5 | CC80: 4112.61396 | CD80: =IF($AU80="",0,VLOOKUP($AU80,'RLMA-SAWS Database'!$A$5:$BF$3950,24)) -> 92 | CE80: 5523.51072 | CF80: =IF($AU80="",0,VLOOKUP($AU80,'RLMA-SAWS Database'!$A$5:$BF$3950,25)) -> 108 | CG80: 6484.12128 | CH80: =IF($AU80="",0,VLOOKUP($AU80,'RLMA-SAWS Database'!$A$5:$BF$3950,26)) -> 123.8 | CI80: 7432.724208 | CJ80: =IF($AU80="",0,VLOOKUP($AU80,'RLMA-SAWS Database'!$A$5:$BF$3950,27)) -> 144.9 | CK80: 8699.529384 | CL80: =IF($AU80="",0,VLOOKUP($AU80,'RLMA-SAWS Database'!$A$5:$BF$3950,28)) -> 161.2 | CM80: 9678.151392 | CN80: =IF($AU80="",0,VLOOKUP($AU80,'RLMA-SAWS Database'!$A$5:$BF$3950,29)) -> 177.7 | CO80: 10668.78103 | CP80: =IF($AU80="",0,VLOOKUP($AU80,'RLMA-SAWS Database'!$A$5:$BF$3950,51)) -> 86 | CQ80: 5163.28176 | CR80: =IF($AU80="",0,VLOOKUP($AU80,'RLMA-SAWS Database'!$A$5:$BF$3950,52)) -> 116.2 | CS80: 6976.434192 | CT80: =IF($AU80="",0,VLOOKUP($AU80,'RLMA-SAWS Database'!$A$5:$BF$3950,53)) -> 136.8 | CU80: 8213.220288 | CV80: =IF($AU80="",0,VLOOKUP($AU80,'RLMA-SAWS Database'!$A$5:$BF$3950,54)) -> 156.8 | CW80: 9413.983488 | CX80: =IF($AU80="",0,VLOOKUP($AU80,'RLMA-SAWS Database'!$A$5:$BF$3950,55)) -> 183.2 | CY80: 10998.99091 | CZ80: =IF($AU80="",0,VLOOKUP($AU80,'RLMA-SAWS Database'!$A$5:$BF$3950,56)) -> 203.5 | DA80: 12217.76556 | DB80: =IF($AU80="",0,VLOOKUP($AU80,'RLMA-SAWS Database'!$A$5:$BF$3950,57)) -> 223.9 | DC80: 13442.54402 | DD80: =IF($AU80="",0,VLOOKUP($AU80,'RLMA-SAWS Database'!$A$5:$BF$3950,58)) -> 62 | DE80: 3722.36592
A81: 9 | C81: 0261366W | D81: 7.00294 | E81: =IF($C81="","",VLOOKUP($C81,'RLMA-SAWS Database'!$A$5:$BF$3950,2)) -> BLOEMFONTEIN (ARBORETUM) | F81: 109 | J81: =IF($G81="","",VLOOKUP($G81,'RLMA-SAWS Database'!$A$5:$BF$3950,2)) ->  | K81: FALSE | L81: FALSE | M81: 0261366W | N81: =IF(OR($M81="",$M81=0),"",VLOOKUP($M81,'RLMA-SAWS Database'!$A$5:$BF$3950,2)) -> BLOEMFONTEIN (ARBORETUM) | O81: 7.00294 | P81: =IF(OR($M81="",$M81=0),"",VLOOKUP($M81,'RLMA-SAWS Database'!$A$5:$BF$3950,7)) -> 563 | Q81: =IF(OR($M81="",$M81=0),"",VLOOKUP($M81,'RLMA-SAWS Database'!$A$5:$BF$3950,9)) -> 50.8 | R81: =IF(OR($M81="",$M81=0),"",VLOOKUP($M81,'RLMA-SAWS Database'!$A$5:$BF$3950,10)) -> 68.7 | S81: =IF(OR($M81="",$M81=0),"",VLOOKUP($M81,'RLMA-SAWS Database'!$A$5:$BF$3950,11)) -> 81.6 | T81: =IF(OR($M81="",$M81=0),"",VLOOKUP($M81,'RLMA-SAWS Database'!$A$5:$BF$3950,12)) -> 94.6 | U81: =IF(OR($M81="",$M81=0),"",VLOOKUP($M81,'RLMA-SAWS Database'!$A$5:$BF$3950,13)) -> 112.5 | V81: =IF(OR($M81="",$M81=0),"",VLOOKUP($M81,'RLMA-SAWS Database'!$A$5:$BF$3950,14)) -> 126.9 | W81: =IF(OR($M81="",$M81=0),"",VLOOKUP($M81,'RLMA-SAWS Database'!$A$5:$BF$3950,15)) -> 142.1 | X81: =IF(OR($M81="",$M81=0),"",VLOOKUP($M81,'RLMA-SAWS Database'!$A$5:$BF$3950,16)) -> 65.6 | Y81: =IF(OR($M81="",$M81=0),"",VLOOKUP($M81,'RLMA-SAWS Database'!$A$5:$BF$3950,17)) -> 88.5 | Z81: =IF(OR($M81="",$M81=0),"",VLOOKUP($M81,'RLMA-SAWS Database'!$A$5:$BF$3950,18)) -> 104.6 | AA81: =IF(OR($M81="",$M81=0),"",VLOOKUP($M81,'RLMA-SAWS Database'!$A$5:$BF$3950,19)) -> 120.9 | AB81: =IF(OR($M81="",$M81=0),"",VLOOKUP($M81,'RLMA-SAWS Database'!$A$5:$BF$3950,20)) -> 143 | AC81: =IF(OR($M81="",$M81=0),"",VLOOKUP($M81,'RLMA-SAWS Database'!$A$5:$BF$3950,21)) -> 160.5 | AD81: =IF(OR($M81="",$M81=0),"",VLOOKUP($M81,'RLMA-SAWS Database'!$A$5:$BF$3950,22)) -> 178.9 | AE81: =IF(OR($M81="",$M81=0),"",VLOOKUP($M81,'RLMA-SAWS Database'!$A$5:$BF$3950,23)) -> 71.9 | AF81: =IF(OR($M81="",$M81=0),"",VLOOKUP($M81,'RLMA-SAWS Database'!$A$5:$BF$3950,24)) -> 96.3 | AG81: =IF(OR($M81="",$M81=0),"",VLOOKUP($M81,'RLMA-SAWS Database'!$A$5:$BF$3950,25)) -> 113.2 | AH81: =IF(OR($M81="",$M81=0),"",VLOOKUP($M81,'RLMA-SAWS Database'!$A$5:$BF$3950,26)) -> 129.9 | AI81: =IF(OR($M81="",$M81=0),"",VLOOKUP($M81,'RLMA-SAWS Database'!$A$5:$BF$3950,27)) -> 152.4 | AJ81: =IF(OR($M81="",$M81=0),"",VLOOKUP($M81,'RLMA-SAWS Database'!$A$5:$BF$3950,28)) -> 169.9 | AK81: =IF(OR($M81="",$M81=0),"",VLOOKUP($M81,'RLMA-SAWS Database'!$A$5:$BF$3950,29)) -> 187.9 | AL81: =IF(OR($M81="",$M81=0),"",VLOOKUP($M81,'RLMA-SAWS Database'!$A$5:$BF$3950,51)) -> 89.5 | AM81: =IF(OR($M81="",$M81=0),"",VLOOKUP($M81,'RLMA-SAWS Database'!$A$5:$BF$3950,52)) -> 119.8 | AN81: =IF(OR($M81="",$M81=0),"",VLOOKUP($M81,'RLMA-SAWS Database'!$A$5:$BF$3950,53)) -> 140.5 | AO81: =IF(OR($M81="",$M81=0),"",VLOOKUP($M81,'RLMA-SAWS Database'!$A$5:$BF$3950,54)) -> 161.1 | AP81: =IF(OR($M81="",$M81=0),"",VLOOKUP($M81,'RLMA-SAWS Database'!$A$5:$BF$3950,55)) -> 188.6 | AQ81: =IF(OR($M81="",$M81=0),"",VLOOKUP($M81,'RLMA-SAWS Database'!$A$5:$BF$3950,56)) -> 209.8 | AR81: =IF(OR($M81="",$M81=0),"",VLOOKUP($M81,'RLMA-SAWS Database'!$A$5:$BF$3950,57)) -> 231.6 | AS81: =IF(OR($M81="",$M81=0),"",VLOOKUP($M81,'RLMA-SAWS Database'!$A$5:$BF$3950,58)) -> 62 | AU81: =IF($C$81="","",$C$81) -> 0261366W | AV81: =IF($AU81="","",VLOOKUP($AU81,'RLMA-SAWS Database'!$A$5:$BF$3950,2)) -> BLOEMFONTEIN (ARBORETUM) | AW81: =IF($AU81="",0,$D$81) -> 7.00294 | AX81: =IF($AU81="",0,VLOOKUP($AU81,'RLMA-SAWS Database'!$A$5:$BF$3950,7)) -> 563 | AY81: 3942.65522 | AZ81: =IF($AU81="",0,VLOOKUP($AU81,'RLMA-SAWS Database'!$A$5:$BF$3950,9)) -> 50.8 | BA81: 355.749352 | BB81: =IF($AU81="",0,VLOOKUP($AU81,'RLMA-SAWS Database'!$A$5:$BF$3950,10)) -> 68.7 | BC81: 481.101978 | BD81: =IF($AU81="",0,VLOOKUP($AU81,'RLMA-SAWS Database'!$A$5:$BF$3950,11)) -> 81.6 | BE81: 571.439904 | BF81: =IF($AU81="",0,VLOOKUP($AU81,'RLMA-SAWS Database'!$A$5:$BF$3950,12)) -> 94.6 | BG81: 662.478124 | BH81: =IF($AU81="",0,VLOOKUP($AU81,'RLMA-SAWS Database'!$A$5:$BF$3950,13)) -> 112.5 | BI81: 787.83075 | BJ81: =IF($AU81="",0,VLOOKUP($AU81,'RLMA-SAWS Database'!$A$5:$BF$3950,14)) -> 126.9 | BK81: 888.673086 | BL81: =IF($AU81="",0,VLOOKUP($AU81,'RLMA-SAWS Database'!$A$5:$BF$3950,15)) -> 142.1 | BM81: 995.117774 | BN81: =IF($AU81="",0,VLOOKUP($AU81,'RLMA-SAWS Database'!$A$5:$BF$3950,16)) -> 65.6 | BO81: 459.392864 | BP81: =IF($AU81="",0,VLOOKUP($AU81,'RLMA-SAWS Database'!$A$5:$BF$3950,17)) -> 88.5 | BQ81: 619.76019 | BR81: =IF($AU81="",0,VLOOKUP($AU81,'RLMA-SAWS Database'!$A$5:$BF$3950,18)) -> 104.6 | BS81: 732.507524 | BT81: =IF($AU81="",0,VLOOKUP($AU81,'RLMA-SAWS Database'!$A$5:$BF$3950,19)) -> 120.9 | BU81: 846.655446 | BV81: =IF($AU81="",0,VLOOKUP($AU81,'RLMA-SAWS Database'!$A$5:$BF$3950,20)) -> 143 | BW81: 1001.42042 | BX81: =IF($AU81="",0,VLOOKUP($AU81,'RLMA-SAWS Database'!$A$5:$BF$3950,21)) -> 160.5 | BY81: 1123.97187 | BZ81: =IF($AU81="",0,VLOOKUP($AU81,'RLMA-SAWS Database'!$A$5:$BF$3950,22)) -> 178.9 | CA81: 1252.825966 | CB81: =IF($AU81="",0,VLOOKUP($AU81,'RLMA-SAWS Database'!$A$5:$BF$3950,23)) -> 71.9 | CC81: 503.511386 | CD81: =IF($AU81="",0,VLOOKUP($AU81,'RLMA-SAWS Database'!$A$5:$BF$3950,24)) -> 96.3 | CE81: 674.383122 | CF81: =IF($AU81="",0,VLOOKUP($AU81,'RLMA-SAWS Database'!$A$5:$BF$3950,25)) -> 113.2 | CG81: 792.732808 | CH81: =IF($AU81="",0,VLOOKUP($AU81,'RLMA-SAWS Database'!$A$5:$BF$3950,26)) -> 129.9 | CI81: 909.681906 | CJ81: =IF($AU81="",0,VLOOKUP($AU81,'RLMA-SAWS Database'!$A$5:$BF$3950,27)) -> 152.4 | CK81: 1067.248056 | CL81: =IF($AU81="",0,VLOOKUP($AU81,'RLMA-SAWS Database'!$A$5:$BF$3950,28)) -> 169.9 | CM81: 1189.799506 | CN81: =IF($AU81="",0,VLOOKUP($AU81,'RLMA-SAWS Database'!$A$5:$BF$3950,29)) -> 187.9 | CO81: 1315.852426 | CP81: =IF($AU81="",0,VLOOKUP($AU81,'RLMA-SAWS Database'!$A$5:$BF$3950,51)) -> 89.5 | CQ81: 626.76313 | CR81: =IF($AU81="",0,VLOOKUP($AU81,'RLMA-SAWS Database'!$A$5:$BF$3950,52)) -> 119.8 | CS81: 838.952212 | CT81: =IF($AU81="",0,VLOOKUP($AU81,'RLMA-SAWS Database'!$A$5:$BF$3950,53)) -> 140.5 | CU81: 983.91307 | CV81: =IF($AU81="",0,VLOOKUP($AU81,'RLMA-SAWS Database'!$A$5:$BF$3950,54)) -> 161.1 | CW81: 1128.173634 | CX81: =IF($AU81="",0,VLOOKUP($AU81,'RLMA-SAWS Database'!$A$5:$BF$3950,55)) -> 188.6 | CY81: 1320.754484 | CZ81: =IF($AU81="",0,VLOOKUP($AU81,'RLMA-SAWS Database'!$A$5:$BF$3950,56)) -> 209.8 | DA81: 1469.216812 | DB81: =IF($AU81="",0,VLOOKUP($AU81,'RLMA-SAWS Database'!$A$5:$BF$3950,57)) -> 231.6 | DC81: 1621.880904 | DD81: =IF($AU81="",0,VLOOKUP($AU81,'RLMA-SAWS Database'!$A$5:$BF$3950,58)) -> 62 | DE81: 434.18228
A82: 10 | C82: 0261367W | D82: 6.97812 | E82: =IF($C82="","",VLOOKUP($C82,'RLMA-SAWS Database'!$A$5:$BF$3950,2)) -> BLOEMFONTEIN (ST. MICHAEL'S) | F82: 110 | J82: =IF($G82="","",VLOOKUP($G82,'RLMA-SAWS Database'!$A$5:$BF$3950,2)) ->  | K82: FALSE | L82: FALSE | M82: 0261367W | N82: =IF(OR($M82="",$M82=0),"",VLOOKUP($M82,'RLMA-SAWS Database'!$A$5:$BF$3950,2)) -> BLOEMFONTEIN (ST. MICHAEL'S) | O82: 6.97812 | P82: =IF(OR($M82="",$M82=0),"",VLOOKUP($M82,'RLMA-SAWS Database'!$A$5:$BF$3950,7)) -> 552 | Q82: =IF(OR($M82="",$M82=0),"",VLOOKUP($M82,'RLMA-SAWS Database'!$A$5:$BF$3950,9)) -> 48.6 | R82: =IF(OR($M82="",$M82=0),"",VLOOKUP($M82,'RLMA-SAWS Database'!$A$5:$BF$3950,10)) -> 65.7 | S82: =IF(OR($M82="",$M82=0),"",VLOOKUP($M82,'RLMA-SAWS Database'!$A$5:$BF$3950,11)) -> 77.6 | T82: =IF(OR($M82="",$M82=0),"",VLOOKUP($M82,'RLMA-SAWS Database'!$A$5:$BF$3950,12)) -> 89.3 | U82: =IF(OR($M82="",$M82=0),"",VLOOKUP($M82,'RLMA-SAWS Database'!$A$5:$BF$3950,13)) -> 105.3 | V82: =IF(OR($M82="",$M82=0),"",VLOOKUP($M82,'RLMA-SAWS Database'!$A$5:$BF$3950,14)) -> 117.7 | W82: =IF(OR($M82="",$M82=0),"",VLOOKUP($M82,'RLMA-SAWS Database'!$A$5:$BF$3950,15)) -> 130.4 | X82: =IF(OR($M82="",$M82=0),"",VLOOKUP($M82,'RLMA-SAWS Database'!$A$5:$BF$3950,16)) -> 60.5 | Y82: =IF(OR($M82="",$M82=0),"",VLOOKUP($M82,'RLMA-SAWS Database'!$A$5:$BF$3950,17)) -> 81.3 | Z82: =IF(OR($M82="",$M82=0),"",VLOOKUP($M82,'RLMA-SAWS Database'!$A$5:$BF$3950,18)) -> 95.8 | AA82: =IF(OR($M82="",$M82=0),"",VLOOKUP($M82,'RLMA-SAWS Database'!$A$5:$BF$3950,19)) -> 110.2 | AB82: =IF(OR($M82="",$M82=0),"",VLOOKUP($M82,'RLMA-SAWS Database'!$A$5:$BF$3950,20)) -> 129.7 | AC82: =IF(OR($M82="",$M82=0),"",VLOOKUP($M82,'RLMA-SAWS Database'!$A$5:$BF$3950,21)) -> 144.9 | AD82: =IF(OR($M82="",$M82=0),"",VLOOKUP($M82,'RLMA-SAWS Database'!$A$5:$BF$3950,22)) -> 160.5 | AE82: =IF(OR($M82="",$M82=0),"",VLOOKUP($M82,'RLMA-SAWS Database'!$A$5:$BF$3950,23)) -> 65.9 | AF82: =IF(OR($M82="",$M82=0),"",VLOOKUP($M82,'RLMA-SAWS Database'!$A$5:$BF$3950,24)) -> 88.6 | AG82: =IF(OR($M82="",$M82=0),"",VLOOKUP($M82,'RLMA-SAWS Database'!$A$5:$BF$3950,25)) -> 104 | AH82: =IF(OR($M82="",$M82=0),"",VLOOKUP($M82,'RLMA-SAWS Database'!$A$5:$BF$3950,26)) -> 119.2 | AI82: =IF(OR($M82="",$M82=0),"",VLOOKUP($M82,'RLMA-SAWS Database'!$A$5:$BF$3950,27)) -> 139.5 | AJ82: =IF(OR($M82="",$M82=0),"",VLOOKUP($M82,'RLMA-SAWS Database'!$A$5:$BF$3950,28)) -> 155.2 | AK82: =IF(OR($M82="",$M82=0),"",VLOOKUP($M82,'RLMA-SAWS Database'!$A$5:$BF$3950,29)) -> 171.1 | AL82: =IF(OR($M82="",$M82=0),"",VLOOKUP($M82,'RLMA-SAWS Database'!$A$5:$BF$3950,51)) -> 84.7 | AM82: =IF(OR($M82="",$M82=0),"",VLOOKUP($M82,'RLMA-SAWS Database'!$A$5:$BF$3950,52)) -> 114.5 | AN82: =IF(OR($M82="",$M82=0),"",VLOOKUP($M82,'RLMA-SAWS Database'!$A$5:$BF$3950,53)) -> 134.7 | AO82: =IF(OR($M82="",$M82=0),"",VLOOKUP($M82,'RLMA-SAWS Database'!$A$5:$BF$3950,54)) -> 154.5 | AP82: =IF(OR($M82="",$M82=0),"",VLOOKUP($M82,'RLMA-SAWS Database'!$A$5:$BF$3950,55)) -> 180.5 | AQ82: =IF(OR($M82="",$M82=0),"",VLOOKUP($M82,'RLMA-SAWS Database'!$A$5:$BF$3950,56)) -> 200.5 | AR82: =IF(OR($M82="",$M82=0),"",VLOOKUP($M82,'RLMA-SAWS Database'!$A$5:$BF$3950,57)) -> 220.6 | AS82: =IF(OR($M82="",$M82=0),"",VLOOKUP($M82,'RLMA-SAWS Database'!$A$5:$BF$3950,58)) -> 62 | AU82: =IF($C82="","",$C82) -> 0261367W | AV82: =IF($AU82="","",VLOOKUP($AU82,'RLMA-SAWS Database'!$A$5:$BF$3950,2)) -> BLOEMFONTEIN (ST. MICHAEL'S) | AW82: =IF($AU82="",0,$D82) -> 6.97812 | AX82: =IF($AU82="",0,VLOOKUP($AU82,'RLMA-SAWS Database'!$A$5:$BF$3950,7)) -> 552 | AY82: 3851.92224 | AZ82: =IF($AU82="",0,VLOOKUP($AU82,'RLMA-SAWS Database'!$A$5:$BF$3950,9)) -> 48.6 | BA82: 339.136632 | BB82: =IF($AU82="",0,VLOOKUP($AU82,'RLMA-SAWS Database'!$A$5:$BF$3950,10)) -> 65.7 | BC82: 458.462484 | BD82: =IF($AU82="",0,VLOOKUP($AU82,'RLMA-SAWS Database'!$A$5:$BF$3950,11)) -> 77.6 | BE82: 541.502112 | BF82: =IF($AU82="",0,VLOOKUP($AU82,'RLMA-SAWS Database'!$A$5:$BF$3950,12)) -> 89.3 | BG82: 623.146116 | BH82: =IF($AU82="",0,VLOOKUP($AU82,'RLMA-SAWS Database'!$A$5:$BF$3950,13)) -> 105.3 | BI82: 734.796036 | BJ82: =IF($AU82="",0,VLOOKUP($AU82,'RLMA-SAWS Database'!$A$5:$BF$3950,14)) -> 117.7 | BK82: 821.324724 | BL82: =IF($AU82="",0,VLOOKUP($AU82,'RLMA-SAWS Database'!$A$5:$BF$3950,15)) -> 130.4 | BM82: 909.946848 | BN82: =IF($AU82="",0,VLOOKUP($AU82,'RLMA-SAWS Database'!$A$5:$BF$3950,16)) -> 60.5 | BO82: 422.17626 | BP82: =IF($AU82="",0,VLOOKUP($AU82,'RLMA-SAWS Database'!$A$5:$BF$3950,17)) -> 81.3 | BQ82: 567.321156 | BR82: =IF($AU82="",0,VLOOKUP($AU82,'RLMA-SAWS Database'!$A$5:$BF$3950,18)) -> 95.8 | BS82: 668.503896 | BT82: =IF($AU82="",0,VLOOKUP($AU82,'RLMA-SAWS Database'!$A$5:$BF$3950,19)) -> 110.2 | BU82: 768.988824 | BV82: =IF($AU82="",0,VLOOKUP($AU82,'RLMA-SAWS Database'!$A$5:$BF$3950,20)) -> 129.7 | BW82: 905.062164 | BX82: =IF($AU82="",0,VLOOKUP($AU82,'RLMA-SAWS Database'!$A$5:$BF$3950,21)) -> 144.9 | BY82: 1011.129588 | BZ82: =IF($AU82="",0,VLOOKUP($AU82,'RLMA-SAWS Database'!$A$5:$BF$3950,22)) -> 160.5 | CA82: 1119.98826 | CB82: =IF($AU82="",0,VLOOKUP($AU82,'RLMA-SAWS Database'!$A$5:$BF$3950,23)) -> 65.9 | CC82: 459.858108 | CD82: =IF($AU82="",0,VLOOKUP($AU82,'RLMA-SAWS Database'!$A$5:$BF$3950,24)) -> 88.6 | CE82: 618.261432 | CF82: =IF($AU82="",0,VLOOKUP($AU82,'RLMA-SAWS Database'!$A$5:$BF$3950,25)) -> 104 | CG82: 725.72448 | CH82: =IF($AU82="",0,VLOOKUP($AU82,'RLMA-SAWS Database'!$A$5:$BF$3950,26)) -> 119.2 | CI82: 831.791904 | CJ82: =IF($AU82="",0,VLOOKUP($AU82,'RLMA-SAWS Database'!$A$5:$BF$3950,27)) -> 139.5 | CK82: 973.44774 | CL82: =IF($AU82="",0,VLOOKUP($AU82,'RLMA-SAWS Database'!$A$5:$BF$3950,28)) -> 155.2 | CM82: 1083.004224 | CN82: =IF($AU82="",0,VLOOKUP($AU82,'RLMA-SAWS Database'!$A$5:$BF$3950,29)) -> 171.1 | CO82: 1193.956332 | CP82: =IF($AU82="",0,VLOOKUP($AU82,'RLMA-SAWS Database'!$A$5:$BF$3950,51)) -> 84.7 | CQ82: 591.046764 | CR82: =IF($AU82="",0,VLOOKUP($AU82,'RLMA-SAWS Database'!$A$5:$BF$3950,52)) -> 114.5 | CS82: 798.99474 | CT82: =IF($AU82="",0,VLOOKUP($AU82,'RLMA-SAWS Database'!$A$5:$BF$3950,53)) -> 134.7 | CU82: 939.952764 | CV82: =IF($AU82="",0,VLOOKUP($AU82,'RLMA-SAWS Database'!$A$5:$BF$3950,54)) -> 154.5 | CW82: 1078.11954 | CX82: =IF($AU82="",0,VLOOKUP($AU82,'RLMA-SAWS Database'!$A$5:$BF$3950,55)) -> 180.5 | CY82: 1259.55066 | CZ82: =IF($AU82="",0,VLOOKUP($AU82,'RLMA-SAWS Database'!$A$5:$BF$3950,56)) -> 200.5 | DA82: 1399.11306 | DB82: =IF($AU82="",0,VLOOKUP($AU82,'RLMA-SAWS Database'!$A$5:$BF$3950,57)) -> 220.6 | DC82: 1539.373272 | DD82: =IF($AU82="",0,VLOOKUP($AU82,'RLMA-SAWS Database'!$A$5:$BF$3950,58)) -> 62 | DE82: 432.64344
A83: 11 | C83: 0261368W | D83: 10.86123 | E83: =IF($C83="","",VLOOKUP($C83,'RLMA-SAWS Database'!$A$5:$BF$3950,2)) -> BLOEMFONTEIN (KING'S PARK) | F83: 111 | J83: =IF($G83="","",VLOOKUP($G83,'RLMA-SAWS Database'!$A$5:$BF$3950,2)) ->  | K83: FALSE | L83: FALSE | M83: 0261368W | N83: =IF(OR($M83="",$M83=0),"",VLOOKUP($M83,'RLMA-SAWS Database'!$A$5:$BF$3950,2)) -> BLOEMFONTEIN (KING'S PARK) | O83: 10.86123 | P83: =IF(OR($M83="",$M83=0),"",VLOOKUP($M83,'RLMA-SAWS Database'!$A$5:$BF$3950,7)) -> 545 | Q83: =IF(OR($M83="",$M83=0),"",VLOOKUP($M83,'RLMA-SAWS Database'!$A$5:$BF$3950,9)) -> 49.9 | R83: =IF(OR($M83="",$M83=0),"",VLOOKUP($M83,'RLMA-SAWS Database'!$A$5:$BF$3950,10)) -> 67.4 | S83: =IF(OR($M83="",$M83=0),"",VLOOKUP($M83,'RLMA-SAWS Database'!$A$5:$BF$3950,11)) -> 79.5 | T83: =IF(OR($M83="",$M83=0),"",VLOOKUP($M83,'RLMA-SAWS Database'!$A$5:$BF$3950,12)) -> 91.6 | U83: =IF(OR($M83="",$M83=0),"",VLOOKUP($M83,'RLMA-SAWS Database'!$A$5:$BF$3950,13)) -> 107.9 | V83: =IF(OR($M83="",$M83=0),"",VLOOKUP($M83,'RLMA-SAWS Database'!$A$5:$BF$3950,14)) -> 120.6 | W83: =IF(OR($M83="",$M83=0),"",VLOOKUP($M83,'RLMA-SAWS Database'!$A$5:$BF$3950,15)) -> 133.7 | X83: =IF(OR($M83="",$M83=0),"",VLOOKUP($M83,'RLMA-SAWS Database'!$A$5:$BF$3950,16)) -> 63.4 | Y83: =IF(OR($M83="",$M83=0),"",VLOOKUP($M83,'RLMA-SAWS Database'!$A$5:$BF$3950,17)) -> 85.3 | Z83: =IF(OR($M83="",$M83=0),"",VLOOKUP($M83,'RLMA-SAWS Database'!$A$5:$BF$3950,18)) -> 100.4 | AA83: =IF(OR($M83="",$M83=0),"",VLOOKUP($M83,'RLMA-SAWS Database'!$A$5:$BF$3950,19)) -> 115.5 | AB83: =IF(OR($M83="",$M83=0),"",VLOOKUP($M83,'RLMA-SAWS Database'!$A$5:$BF$3950,20)) -> 135.9 | AC83: =IF(OR($M83="",$M83=0),"",VLOOKUP($M83,'RLMA-SAWS Database'!$A$5:$BF$3950,21)) -> 151.8 | AD83: =IF(OR($M83="",$M83=0),"",VLOOKUP($M83,'RLMA-SAWS Database'!$A$5:$BF$3950,22)) -> 168.3 | AE83: =IF(OR($M83="",$M83=0),"",VLOOKUP($M83,'RLMA-SAWS Database'!$A$5:$BF$3950,23)) -> 70.5 | AF83: =IF(OR($M83="",$M83=0),"",VLOOKUP($M83,'RLMA-SAWS Database'!$A$5:$BF$3950,24)) -> 94.7 | AG83: =IF(OR($M83="",$M83=0),"",VLOOKUP($M83,'RLMA-SAWS Database'!$A$5:$BF$3950,25)) -> 111.2 | AH83: =IF(OR($M83="",$M83=0),"",VLOOKUP($M83,'RLMA-SAWS Database'!$A$5:$BF$3950,26)) -> 127.5 | AI83: =IF(OR($M83="",$M83=0),"",VLOOKUP($M83,'RLMA-SAWS Database'!$A$5:$BF$3950,27)) -> 149.2 | AJ83: =IF(OR($M83="",$M83=0),"",VLOOKUP($M83,'RLMA-SAWS Database'!$A$5:$BF$3950,28)) -> 166 | AK83: =IF(OR($M83="",$M83=0),"",VLOOKUP($M83,'RLMA-SAWS Database'!$A$5:$BF$3950,29)) -> 183 | AL83: =IF(OR($M83="",$M83=0),"",VLOOKUP($M83,'RLMA-SAWS Database'!$A$5:$BF$3950,51)) -> 88.1 | AM83: =IF(OR($M83="",$M83=0),"",VLOOKUP($M83,'RLMA-SAWS Database'!$A$5:$BF$3950,52)) -> 119.2 | AN83: =IF(OR($M83="",$M83=0),"",VLOOKUP($M83,'RLMA-SAWS Database'!$A$5:$BF$3950,53)) -> 140.2 | AO83: =IF(OR($M83="",$M83=0),"",VLOOKUP($M83,'RLMA-SAWS Database'!$A$5:$BF$3950,54)) -> 160.8 | AP83: =IF(OR($M83="",$M83=0),"",VLOOKUP($M83,'RLMA-SAWS Database'!$A$5:$BF$3950,55)) -> 187.9 | AQ83: =IF(OR($M83="",$M83=0),"",VLOOKUP($M83,'RLMA-SAWS Database'!$A$5:$BF$3950,56)) -> 208.7 | AR83: =IF(OR($M83="",$M83=0),"",VLOOKUP($M83,'RLMA-SAWS Database'!$A$5:$BF$3950,57)) -> 229.6 | AS83: =IF(OR($M83="",$M83=0),"",VLOOKUP($M83,'RLMA-SAWS Database'!$A$5:$BF$3950,58)) -> 62 | AU83: 0261368W | AV83: =IF($AU83="","",VLOOKUP($AU83,'RLMA-SAWS Database'!$A$5:$BF$3950,2)) -> BLOEMFONTEIN (KING'S PARK) | AW83: 10.86123 | AX83: =IF($AU83="",0,VLOOKUP($AU83,'RLMA-SAWS Database'!$A$5:$BF$3950,7)) -> 545 | AY83: 5919.37035 | AZ83: =IF($AU83="",0,VLOOKUP($AU83,'RLMA-SAWS Database'!$A$5:$BF$3950,9)) -> 49.9 | BA83: 541.975377 | BB83: =IF($AU83="",0,VLOOKUP($AU83,'RLMA-SAWS Database'!$A$5:$BF$3950,10)) -> 67.4 | BC83: 732.046902 | BD83: =IF($AU83="",0,VLOOKUP($AU83,'RLMA-SAWS Database'!$A$5:$BF$3950,11)) -> 79.5 | BE83: 863.467785 | BF83: =IF($AU83="",0,VLOOKUP($AU83,'RLMA-SAWS Database'!$A$5:$BF$3950,12)) -> 91.6 | BG83: 994.888668 | BH83: =IF($AU83="",0,VLOOKUP($AU83,'RLMA-SAWS Database'!$A$5:$BF$3950,13)) -> 107.9 | BI83: 1171.926717 | BJ83: =IF($AU83="",0,VLOOKUP($AU83,'RLMA-SAWS Database'!$A$5:$BF$3950,14)) -> 120.6 | BK83: 1309.864338 | BL83: =IF($AU83="",0,VLOOKUP($AU83,'RLMA-SAWS Database'!$A$5:$BF$3950,15)) -> 133.7 | BM83: 1452.146451 | BN83: =IF($AU83="",0,VLOOKUP($AU83,'RLMA-SAWS Database'!$A$5:$BF$3950,16)) -> 63.4 | BO83: 688.601982 | BP83: =IF($AU83="",0,VLOOKUP($AU83,'RLMA-SAWS Database'!$A$5:$BF$3950,17)) -> 85.3 | BQ83: 926.462919 | BR83: =IF($AU83="",0,VLOOKUP($AU83,'RLMA-SAWS Database'!$A$5:$BF$3950,18)) -> 100.4 | BS83: 1090.467492 | BT83: =IF($AU83="",0,VLOOKUP($AU83,'RLMA-SAWS Database'!$A$5:$BF$3950,19)) -> 115.5 | BU83: 1254.472065 | BV83: =IF($AU83="",0,VLOOKUP($AU83,'RLMA-SAWS Database'!$A$5:$BF$3950,20)) -> 135.9 | BW83: 1476.041157 | BX83: =IF($AU83="",0,VLOOKUP($AU83,'RLMA-SAWS Database'!$A$5:$BF$3950,21)) -> 151.8 | BY83: 1648.734714 | BZ83: =IF($AU83="",0,VLOOKUP($AU83,'RLMA-SAWS Database'!$A$5:$BF$3950,22)) -> 168.3 | CA83: 1827.945009 | CB83: =IF($AU83="",0,VLOOKUP($AU83,'RLMA-SAWS Database'!$A$5:$BF$3950,23)) -> 70.5 | CC83: 765.716715 | CD83: =IF($AU83="",0,VLOOKUP($AU83,'RLMA-SAWS Database'!$A$5:$BF$3950,24)) -> 94.7 | CE83: 1028.558481 | CF83: =IF($AU83="",0,VLOOKUP($AU83,'RLMA-SAWS Database'!$A$5:$BF$3950,25)) -> 111.2 | CG83: 1207.768776 | CH83: =IF($AU83="",0,VLOOKUP($AU83,'RLMA-SAWS Database'!$A$5:$BF$3950,26)) -> 127.5 | CI83: 1384.806825 | CJ83: =IF($AU83="",0,VLOOKUP($AU83,'RLMA-SAWS Database'!$A$5:$BF$3950,27)) -> 149.2 | CK83: 1620.495516 | CL83: =IF($AU83="",0,VLOOKUP($AU83,'RLMA-SAWS Database'!$A$5:$BF$3950,28)) -> 166 | CM83: 1802.96418 | CN83: =IF($AU83="",0,VLOOKUP($AU83,'RLMA-SAWS Database'!$A$5:$BF$3950,29)) -> 183 | CO83: 1987.60509 | CP83: =IF($AU83="",0,VLOOKUP($AU83,'RLMA-SAWS Database'!$A$5:$BF$3950,51)) -> 88.1 | CQ83: 956.874363 | CR83: =IF($AU83="",0,VLOOKUP($AU83,'RLMA-SAWS Database'!$A$5:$BF$3950,52)) -> 119.2 | CS83: 1294.658616 | CT83: =IF($AU83="",0,VLOOKUP($AU83,'RLMA-SAWS Database'!$A$5:$BF$3950,53)) -> 140.2 | CU83: 1522.744446 | CV83: =IF($AU83="",0,VLOOKUP($AU83,'RLMA-SAWS Database'!$A$5:$BF$3950,54)) -> 160.8 | CW83: 1746.485784 | CX83: =IF($AU83="",0,VLOOKUP($AU83,'RLMA-SAWS Database'!$A$5:$BF$3950,55)) -> 187.9 | CY83: 2040.825117 | CZ83: =IF($AU83="",0,VLOOKUP($AU83,'RLMA-SAWS Database'!$A$5:$BF$3950,56)) -> 208.7 | DA83: 2266.738701 | DB83: =IF($AU83="",0,VLOOKUP($AU83,'RLMA-SAWS Database'!$A$5:$BF$3950,57)) -> 229.6 | DC83: 2493.738408 | DD83: =IF($AU83="",0,VLOOKUP($AU83,'RLMA-SAWS Database'!$A$5:$BF$3950,58)) -> 62 | DE83: 673.39626
A84: 12 | C84: 0261369W | D84: 39.34377 | E84: =IF($C84="","",VLOOKUP($C84,'RLMA-SAWS Database'!$A$5:$BF$3950,2)) -> BLOEMFONTEIN (HAMILTON) | F84: 112 | J84: =IF($G84="","",VLOOKUP($G84,'RLMA-SAWS Database'!$A$5:$BF$3950,2)) ->  | K84: FALSE | L84: FALSE | M84: 0261369W | N84: =IF(OR($M84="",$M84=0),"",VLOOKUP($M84,'RLMA-SAWS Database'!$A$5:$BF$3950,2)) -> BLOEMFONTEIN (HAMILTON) | O84: 39.34377 | P84: =IF(OR($M84="",$M84=0),"",VLOOKUP($M84,'RLMA-SAWS Database'!$A$5:$BF$3950,7)) -> 613 | Q84: =IF(OR($M84="",$M84=0),"",VLOOKUP($M84,'RLMA-SAWS Database'!$A$5:$BF$3950,9)) -> 64.2 | R84: =IF(OR($M84="",$M84=0),"",VLOOKUP($M84,'RLMA-SAWS Database'!$A$5:$BF$3950,10)) -> 86.8 | S84: =IF(OR($M84="",$M84=0),"",VLOOKUP($M84,'RLMA-SAWS Database'!$A$5:$BF$3950,11)) -> 103 | T84: =IF(OR($M84="",$M84=0),"",VLOOKUP($M84,'RLMA-SAWS Database'!$A$5:$BF$3950,12)) -> 119.4 | U84: =IF(OR($M84="",$M84=0),"",VLOOKUP($M84,'RLMA-SAWS Database'!$A$5:$BF$3950,13)) -> 142.1 | V84: =IF(OR($M84="",$M84=0),"",VLOOKUP($M84,'RLMA-SAWS Database'!$A$5:$BF$3950,14)) -> 160.3 | W84: =IF(OR($M84="",$M84=0),"",VLOOKUP($M84,'RLMA-SAWS Database'!$A$5:$BF$3950,15)) -> 179.5 | X84: =IF(OR($M84="",$M84=0),"",VLOOKUP($M84,'RLMA-SAWS Database'!$A$5:$BF$3950,16)) -> 80.3 | Y84: =IF(OR($M84="",$M84=0),"",VLOOKUP($M84,'RLMA-SAWS Database'!$A$5:$BF$3950,17)) -> 108.3 | Z84: =IF(OR($M84="",$M84=0),"",VLOOKUP($M84,'RLMA-SAWS Database'!$A$5:$BF$3950,18)) -> 128 | AA84: =IF(OR($M84="",$M84=0),"",VLOOKUP($M84,'RLMA-SAWS Database'!$A$5:$BF$3950,19)) -> 147.9 | AB84: =IF(OR($M84="",$M84=0),"",VLOOKUP($M84,'RLMA-SAWS Database'!$A$5:$BF$3950,20)) -> 175 | AC84: =IF(OR($M84="",$M84=0),"",VLOOKUP($M84,'RLMA-SAWS Database'!$A$5:$BF$3950,21)) -> 196.5 | AD84: =IF(OR($M84="",$M84=0),"",VLOOKUP($M84,'RLMA-SAWS Database'!$A$5:$BF$3950,22)) -> 218.9 | AE84: =IF(OR($M84="",$M84=0),"",VLOOKUP($M84,'RLMA-SAWS Database'!$A$5:$BF$3950,23)) -> 93.3 | AF84: =IF(OR($M84="",$M84=0),"",VLOOKUP($M84,'RLMA-SAWS Database'!$A$5:$BF$3950,24)) -> 124.9 | AG84: =IF(OR($M84="",$M84=0),"",VLOOKUP($M84,'RLMA-SAWS Database'!$A$5:$BF$3950,25)) -> 146.8 | AH84: =IF(OR($M84="",$M84=0),"",VLOOKUP($M84,'RLMA-SAWS Database'!$A$5:$BF$3950,26)) -> 168.6 | AI84: =IF(OR($M84="",$M84=0),"",VLOOKUP($M84,'RLMA-SAWS Database'!$A$5:$BF$3950,27)) -> 197.8 | AJ84: =IF(OR($M84="",$M84=0),"",VLOOKUP($M84,'RLMA-SAWS Database'!$A$5:$BF$3950,28)) -> 220.5 | AK84: =IF(OR($M84="",$M84=0),"",VLOOKUP($M84,'RLMA-SAWS Database'!$A$5:$BF$3950,29)) -> 243.8 | AL84: =IF(OR($M84="",$M84=0),"",VLOOKUP($M84,'RLMA-SAWS Database'!$A$5:$BF$3950,51)) -> 110.8 | AM84: =IF(OR($M84="",$M84=0),"",VLOOKUP($M84,'RLMA-SAWS Database'!$A$5:$BF$3950,52)) -> 148.4 | AN84: =IF(OR($M84="",$M84=0),"",VLOOKUP($M84,'RLMA-SAWS Database'!$A$5:$BF$3950,53)) -> 174 | AO84: =IF(OR($M84="",$M84=0),"",VLOOKUP($M84,'RLMA-SAWS Database'!$A$5:$BF$3950,54)) -> 199.5 | AP84: =IF(OR($M84="",$M84=0),"",VLOOKUP($M84,'RLMA-SAWS Database'!$A$5:$BF$3950,55)) -> 233.6 | AQ84: =IF(OR($M84="",$M84=0),"",VLOOKUP($M84,'RLMA-SAWS Database'!$A$5:$BF$3950,56)) -> 259.8 | AR84: =IF(OR($M84="",$M84=0),"",VLOOKUP($M84,'RLMA-SAWS Database'!$A$5:$BF$3950,57)) -> 286.8 | AS84: =IF(OR($M84="",$M84=0),"",VLOOKUP($M84,'RLMA-SAWS Database'!$A$5:$BF$3950,58)) -> 62 | AU84: 0261369W | AV84: =IF($AU84="","",VLOOKUP($AU84,'RLMA-SAWS Database'!$A$5:$BF$3950,2)) -> BLOEMFONTEIN (HAMILTON) | AW84: 39.34377 | AX84: =IF($AU84="",0,VLOOKUP($AU84,'RLMA-SAWS Database'!$A$5:$BF$3950,7)) -> 613 | AY84: 24117.73101 | AZ84: =IF($AU84="",0,VLOOKUP($AU84,'RLMA-SAWS Database'!$A$5:$BF$3950,9)) -> 64.2 | BA84: 2525.870034 | BB84: =IF($AU84="",0,VLOOKUP($AU84,'RLMA-SAWS Database'!$A$5:$BF$3950,10)) -> 86.8 | BC84: 3415.039236 | BD84: =IF($AU84="",0,VLOOKUP($AU84,'RLMA-SAWS Database'!$A$5:$BF$3950,11)) -> 103 | BE84: 4052.40831 | BF84: =IF($AU84="",0,VLOOKUP($AU84,'RLMA-SAWS Database'!$A$5:$BF$3950,12)) -> 119.4 | BG84: 4697.646138 | BH84: =IF($AU84="",0,VLOOKUP($AU84,'RLMA-SAWS Database'!$A$5:$BF$3950,13)) -> 142.1 | BI84: 5590.749717 | BJ84: =IF($AU84="",0,VLOOKUP($AU84,'RLMA-SAWS Database'!$A$5:$BF$3950,14)) -> 160.3 | BK84: 6306.806331 | BL84: =IF($AU84="",0,VLOOKUP($AU84,'RLMA-SAWS Database'!$A$5:$BF$3950,15)) -> 179.5 | BM84: 7062.206715 | BN84: =IF($AU84="",0,VLOOKUP($AU84,'RLMA-SAWS Database'!$A$5:$BF$3950,16)) -> 80.3 | BO84: 3159.304731 | BP84: =IF($AU84="",0,VLOOKUP($AU84,'RLMA-SAWS Database'!$A$5:$BF$3950,17)) -> 108.3 | BQ84: 4260.930291 | BR84: =IF($AU84="",0,VLOOKUP($AU84,'RLMA-SAWS Database'!$A$5:$BF$3950,18)) -> 128 | BS84: 5036.00256 | BT84: =IF($AU84="",0,VLOOKUP($AU84,'RLMA-SAWS Database'!$A$5:$BF$3950,19)) -> 147.9 | BU84: 5818.943583 | BV84: =IF($AU84="",0,VLOOKUP($AU84,'RLMA-SAWS Database'!$A$5:$BF$3950,20)) -> 175 | BW84: 6885.15975 | BX84: =IF($AU84="",0,VLOOKUP($AU84,'RLMA-SAWS Database'!$A$5:$BF$3950,21)) -> 196.5 | BY84: 7731.050805 | BZ84: =IF($AU84="",0,VLOOKUP($AU84,'RLMA-SAWS Database'!$A$5:$BF$3950,22)) -> 218.9 | CA84: 8612.351253 | CB84: =IF($AU84="",0,VLOOKUP($AU84,'RLMA-SAWS Database'!$A$5:$BF$3950,23)) -> 93.3 | CC84: 3670.773741 | CD84: =IF($AU84="",0,VLOOKUP($AU84,'RLMA-SAWS Database'!$A$5:$BF$3950,24)) -> 124.9 | CE84: 4914.036873 | CF84: =IF($AU84="",0,VLOOKUP($AU84,'RLMA-SAWS Database'!$A$5:$BF$3950,25)) -> 146.8 | CG84: 5775.665436 | CH84: =IF($AU84="",0,VLOOKUP($AU84,'RLMA-SAWS Database'!$A$5:$BF$3950,26)) -> 168.6 | CI84: 6633.359622 | CJ84: =IF($AU84="",0,VLOOKUP($AU84,'RLMA-SAWS Database'!$A$5:$BF$3950,27)) -> 197.8 | CK84: 7782.197706 | CL84: =IF($AU84="",0,VLOOKUP($AU84,'RLMA-SAWS Database'!$A$5:$BF$3950,28)) -> 220.5 | CM84: 8675.301285 | CN84: =IF($AU84="",0,VLOOKUP($AU84,'RLMA-SAWS Database'!$A$5:$BF$3950,29)) -> 243.8 | CO84: 9592.011126 | CP84: =IF($AU84="",0,VLOOKUP($AU84,'RLMA-SAWS Database'!$A$5:$BF$3950,51)) -> 110.8 | CQ84: 4359.289716 | CR84: =IF($AU84="",0,VLOOKUP($AU84,'RLMA-SAWS Database'!$A$5:$BF$3950,52)) -> 148.4 | CS84: 5838.615468 | CT84: =IF($AU84="",0,VLOOKUP($AU84,'RLMA-SAWS Database'!$A$5:$BF$3950,53)) -> 174 | CU84: 6845.81598 | CV84: =IF($AU84="",0,VLOOKUP($AU84,'RLMA-SAWS Database'!$A$5:$BF$3950,54)) -> 199.5 | CW84: 7849.082115 | CX84: =IF($AU84="",0,VLOOKUP($AU84,'RLMA-SAWS Database'!$A$5:$BF$3950,55)) -> 233.6 | CY84: 9190.704672 | CZ84: =IF($AU84="",0,VLOOKUP($AU84,'RLMA-SAWS Database'!$A$5:$BF$3950,56)) -> 259.8 | DA84: 10221.51145 | DB84: =IF($AU84="",0,VLOOKUP($AU84,'RLMA-SAWS Database'!$A$5:$BF$3950,57)) -> 286.8 | DC84: 11283.79324 | DD84: =IF($AU84="",0,VLOOKUP($AU84,'RLMA-SAWS Database'!$A$5:$BF$3950,58)) -> 62 | DE84: 2439.31374
A85: 13 | C85: 0261425W | D85: 45.53855 | E85: =IF($C85="","",VLOOKUP($C85,'RLMA-SAWS Database'!$A$5:$BF$3950,2)) -> BLOEMFONTEIN (WAVERLEY) | F85: 113 | J85: =IF($G85="","",VLOOKUP($G85,'RLMA-SAWS Database'!$A$5:$BF$3950,2)) ->  | K85: FALSE | L85: FALSE | M85: 0261425W | N85: =IF(OR($M85="",$M85=0),"",VLOOKUP($M85,'RLMA-SAWS Database'!$A$5:$BF$3950,2)) -> BLOEMFONTEIN (WAVERLEY) | O85: 45.53855 | P85: =IF(OR($M85="",$M85=0),"",VLOOKUP($M85,'RLMA-SAWS Database'!$A$5:$BF$3950,7)) -> 553 | Q85: =IF(OR($M85="",$M85=0),"",VLOOKUP($M85,'RLMA-SAWS Database'!$A$5:$BF$3950,9)) -> 51 | R85: =IF(OR($M85="",$M85=0),"",VLOOKUP($M85,'RLMA-SAWS Database'!$A$5:$BF$3950,10)) -> 68.9 | S85: =IF(OR($M85="",$M85=0),"",VLOOKUP($M85,'RLMA-SAWS Database'!$A$5:$BF$3950,11)) -> 81.3 | T85: =IF(OR($M85="",$M85=0),"",VLOOKUP($M85,'RLMA-SAWS Database'!$A$5:$BF$3950,12)) -> 93.6 | U85: =IF(OR($M85="",$M85=0),"",VLOOKUP($M85,'RLMA-SAWS Database'!$A$5:$BF$3950,13)) -> 110.3 | V85: =IF(OR($M85="",$M85=0),"",VLOOKUP($M85,'RLMA-SAWS Database'!$A$5:$BF$3950,14)) -> 123.3 | W85: =IF(OR($M85="",$M85=0),"",VLOOKUP($M85,'RLMA-SAWS Database'!$A$5:$BF$3950,15)) -> 136.7 | X85: =IF(OR($M85="",$M85=0),"",VLOOKUP($M85,'RLMA-SAWS Database'!$A$5:$BF$3950,16)) -> 63.3 | Y85: =IF(OR($M85="",$M85=0),"",VLOOKUP($M85,'RLMA-SAWS Database'!$A$5:$BF$3950,17)) -> 85.1 | Z85: =IF(OR($M85="",$M85=0),"",VLOOKUP($M85,'RLMA-SAWS Database'!$A$5:$BF$3950,18)) -> 100.2 | AA85: =IF(OR($M85="",$M85=0),"",VLOOKUP($M85,'RLMA-SAWS Database'!$A$5:$BF$3950,19)) -> 115.3 | AB85: =IF(OR($M85="",$M85=0),"",VLOOKUP($M85,'RLMA-SAWS Database'!$A$5:$BF$3950,20)) -> 135.7 | AC85: =IF(OR($M85="",$M85=0),"",VLOOKUP($M85,'RLMA-SAWS Database'!$A$5:$BF$3950,21)) -> 151.6 | AD85: =IF(OR($M85="",$M85=0),"",VLOOKUP($M85,'RLMA-SAWS Database'!$A$5:$BF$3950,22)) -> 168 | AE85: =IF(OR($M85="",$M85=0),"",VLOOKUP($M85,'RLMA-SAWS Database'!$A$5:$BF$3950,23)) -> 69.8 | AF85: =IF(OR($M85="",$M85=0),"",VLOOKUP($M85,'RLMA-SAWS Database'!$A$5:$BF$3950,24)) -> 93.8 | AG85: =IF(OR($M85="",$M85=0),"",VLOOKUP($M85,'RLMA-SAWS Database'!$A$5:$BF$3950,25)) -> 110.2 | AH85: =IF(OR($M85="",$M85=0),"",VLOOKUP($M85,'RLMA-SAWS Database'!$A$5:$BF$3950,26)) -> 126.3 | AI85: =IF(OR($M85="",$M85=0),"",VLOOKUP($M85,'RLMA-SAWS Database'!$A$5:$BF$3950,27)) -> 147.8 | AJ85: =IF(OR($M85="",$M85=0),"",VLOOKUP($M85,'RLMA-SAWS Database'!$A$5:$BF$3950,28)) -> 164.4 | AK85: =IF(OR($M85="",$M85=0),"",VLOOKUP($M85,'RLMA-SAWS Database'!$A$5:$BF$3950,29)) -> 181.2 | AL85: =IF(OR($M85="",$M85=0),"",VLOOKUP($M85,'RLMA-SAWS Database'!$A$5:$BF$3950,51)) -> 87.8 | AM85: =IF(OR($M85="",$M85=0),"",VLOOKUP($M85,'RLMA-SAWS Database'!$A$5:$BF$3950,52)) -> 118.7 | AN85: =IF(OR($M85="",$M85=0),"",VLOOKUP($M85,'RLMA-SAWS Database'!$A$5:$BF$3950,53)) -> 139.7 | AO85: =IF(OR($M85="",$M85=0),"",VLOOKUP($M85,'RLMA-SAWS Database'!$A$5:$BF$3950,54)) -> 160.2 | AP85: =IF(OR($M85="",$M85=0),"",VLOOKUP($M85,'RLMA-SAWS Database'!$A$5:$BF$3950,55)) -> 187.2 | AQ85: =IF(OR($M85="",$M85=0),"",VLOOKUP($M85,'RLMA-SAWS Database'!$A$5:$BF$3950,56)) -> 207.9 | AR85: =IF(OR($M85="",$M85=0),"",VLOOKUP($M85,'RLMA-SAWS Database'!$A$5:$BF$3950,57)) -> 228.7 | AS85: =IF(OR($M85="",$M85=0),"",VLOOKUP($M85,'RLMA-SAWS Database'!$A$5:$BF$3950,58)) -> 62 | AU85: 0261425W | AV85: =IF($AU85="","",VLOOKUP($AU85,'RLMA-SAWS Database'!$A$5:$BF$3950,2)) -> BLOEMFONTEIN (WAVERLEY) | AW85: 45.53855 | AX85: =IF($AU85="",0,VLOOKUP($AU85,'RLMA-SAWS Database'!$A$5:$BF$3950,7)) -> 553 | AY85: 25182.81815 | AZ85: =IF($AU85="",0,VLOOKUP($AU85,'RLMA-SAWS Database'!$A$5:$BF$3950,9)) -> 51 | BA85: 2322.46605 | BB85: =IF($AU85="",0,VLOOKUP($AU85,'RLMA-SAWS Database'!$A$5:$BF$3950,10)) -> 68.9 | BC85: 3137.606095 | BD85: =IF($AU85="",0,VLOOKUP($AU85,'RLMA-SAWS Database'!$A$5:$BF$3950,11)) -> 81.3 | BE85: 3702.284115 | BF85: =IF($AU85="",0,VLOOKUP($AU85,'RLMA-SAWS Database'!$A$5:$BF$3950,12)) -> 93.6 | BG85: 4262.40828 | BH85: =IF($AU85="",0,VLOOKUP($AU85,'RLMA-SAWS Database'!$A$5:$BF$3950,13)) -> 110.3 | BI85: 5022.902065 | BJ85: =IF($AU85="",0,VLOOKUP($AU85,'RLMA-SAWS Database'!$A$5:$BF$3950,14)) -> 123.3 | BK85: 5614.903215 | BL85: =IF($AU85="",0,VLOOKUP($AU85,'RLMA-SAWS Database'!$A$5:$BF$3950,15)) -> 136.7 | BM85: 6225.119785 | BN85: =IF($AU85="",0,VLOOKUP($AU85,'RLMA-SAWS Database'!$A$5:$BF$3950,16)) -> 63.3 | BO85: 2882.590215 | BP85: =IF($AU85="",0,VLOOKUP($AU85,'RLMA-SAWS Database'!$A$5:$BF$3950,17)) -> 85.1 | BQ85: 3875.330605 | BR85: =IF($AU85="",0,VLOOKUP($AU85,'RLMA-SAWS Database'!$A$5:$BF$3950,18)) -> 100.2 | BS85: 4562.96271 | BT85: =IF($AU85="",0,VLOOKUP($AU85,'RLMA-SAWS Database'!$A$5:$BF$3950,19)) -> 115.3 | BU85: 5250.594815 | BV85: =IF($AU85="",0,VLOOKUP($AU85,'RLMA-SAWS Database'!$A$5:$BF$3950,20)) -> 135.7 | BW85: 6179.581235 | BX85: =IF($AU85="",0,VLOOKUP($AU85,'RLMA-SAWS Database'!$A$5:$BF$3950,21)) -> 151.6 | BY85: 6903.64418 | BZ85: =IF($AU85="",0,VLOOKUP($AU85,'RLMA-SAWS Database'!$A$5:$BF$3950,22)) -> 168 | CA85: 7650.4764 | CB85: =IF($AU85="",0,VLOOKUP($AU85,'RLMA-SAWS Database'!$A$5:$BF$3950,23)) -> 69.8 | CC85: 3178.59079 | CD85: =IF($AU85="",0,VLOOKUP($AU85,'RLMA-SAWS Database'!$A$5:$BF$3950,24)) -> 93.8 | CE85: 4271.51599 | CF85: =IF($AU85="",0,VLOOKUP($AU85,'RLMA-SAWS Database'!$A$5:$BF$3950,25)) -> 110.2 | CG85: 5018.34821 | CH85: =IF($AU85="",0,VLOOKUP($AU85,'RLMA-SAWS Database'!$A$5:$BF$3950,26)) -> 126.3 | CI85: 5751.518865 | CJ85: =IF($AU85="",0,VLOOKUP($AU85,'RLMA-SAWS Database'!$A$5:$BF$3950,27)) -> 147.8 | CK85: 6730.59769 | CL85: =IF($AU85="",0,VLOOKUP($AU85,'RLMA-SAWS Database'!$A$5:$BF$3950,28)) -> 164.4 | CM85: 7486.53762 | CN85: =IF($AU85="",0,VLOOKUP($AU85,'RLMA-SAWS Database'!$A$5:$BF$3950,29)) -> 181.2 | CO85: 8251.58526 | CP85: =IF($AU85="",0,VLOOKUP($AU85,'RLMA-SAWS Database'!$A$5:$BF$3950,51)) -> 87.8 | CQ85: 3998.28469 | CR85: =IF($AU85="",0,VLOOKUP($AU85,'RLMA-SAWS Database'!$A$5:$BF$3950,52)) -> 118.7 | CS85: 5405.425885 | CT85: =IF($AU85="",0,VLOOKUP($AU85,'RLMA-SAWS Database'!$A$5:$BF$3950,53)) -> 139.7 | CU85: 6361.735435 | CV85: =IF($AU85="",0,VLOOKUP($AU85,'RLMA-SAWS Database'!$A$5:$BF$3950,54)) -> 160.2 | CW85: 7295.27571 | CX85: =IF($AU85="",0,VLOOKUP($AU85,'RLMA-SAWS Database'!$A$5:$BF$3950,55)) -> 187.2 | CY85: 8524.81656 | CZ85: =IF($AU85="",0,VLOOKUP($AU85,'RLMA-SAWS Database'!$A$5:$BF$3950,56)) -> 207.9 | DA85: 9467.464545 | DB85: =IF($AU85="",0,VLOOKUP($AU85,'RLMA-SAWS Database'!$A$5:$BF$3950,57)) -> 228.7 | DC85: 10414.66639 | DD85: =IF($AU85="",0,VLOOKUP($AU85,'RLMA-SAWS Database'!$A$5:$BF$3950,58)) -> 62 | DE85: 2823.3901
A86: 14 | C86: 0261426W | D86: 14.99495 | E86: =IF($C86="","",VLOOKUP($C86,'RLMA-SAWS Database'!$A$5:$BF$3950,2)) -> BLOEMFONTEIN (ESTIORE) | F86: 114 | J86: =IF($G86="","",VLOOKUP($G86,'RLMA-SAWS Database'!$A$5:$BF$3950,2)) ->  | K86: FALSE | L86: FALSE | M86: 0261426W | N86: =IF(OR($M86="",$M86=0),"",VLOOKUP($M86,'RLMA-SAWS Database'!$A$5:$BF$3950,2)) -> BLOEMFONTEIN (ESTIORE) | O86: 14.99495 | P86: =IF(OR($M86="",$M86=0),"",VLOOKUP($M86,'RLMA-SAWS Database'!$A$5:$BF$3950,7)) -> 553 | Q86: =IF(OR($M86="",$M86=0),"",VLOOKUP($M86,'RLMA-SAWS Database'!$A$5:$BF$3950,9)) -> 47.6 | R86: =IF(OR($M86="",$M86=0),"",VLOOKUP($M86,'RLMA-SAWS Database'!$A$5:$BF$3950,10)) -> 64.3 | S86: =IF(OR($M86="",$M86=0),"",VLOOKUP($M86,'RLMA-SAWS Database'!$A$5:$BF$3950,11)) -> 75.9 | T86: =IF(OR($M86="",$M86=0),"",VLOOKUP($M86,'RLMA-SAWS Database'!$A$5:$BF$3950,12)) -> 87.4 | U86: =IF(OR($M86="",$M86=0),"",VLOOKUP($M86,'RLMA-SAWS Database'!$A$5:$BF$3950,13)) -> 103 | V86: =IF(OR($M86="",$M86=0),"",VLOOKUP($M86,'RLMA-SAWS Database'!$A$5:$BF$3950,14)) -> 115.2 | W86: =IF(OR($M86="",$M86=0),"",VLOOKUP($M86,'RLMA-SAWS Database'!$A$5:$BF$3950,15)) -> 127.7 | X86: =IF(OR($M86="",$M86=0),"",VLOOKUP($M86,'RLMA-SAWS Database'!$A$5:$BF$3950,16)) -> 58.4 | Y86: =IF(OR($M86="",$M86=0),"",VLOOKUP($M86,'RLMA-SAWS Database'!$A$5:$BF$3950,17)) -> 78.4 | Z86: =IF(OR($M86="",$M86=0),"",VLOOKUP($M86,'RLMA-SAWS Database'!$A$5:$BF$3950,18)) -> 92.4 | AA86: =IF(OR($M86="",$M86=0),"",VLOOKUP($M86,'RLMA-SAWS Database'!$A$5:$BF$3950,19)) -> 106.3 | AB86: =IF(OR($M86="",$M86=0),"",VLOOKUP($M86,'RLMA-SAWS Database'!$A$5:$BF$3950,20)) -> 125.1 | AC86: =IF(OR($M86="",$M86=0),"",VLOOKUP($M86,'RLMA-SAWS Database'!$A$5:$BF$3950,21)) -> 139.7 | AD86: =IF(OR($M86="",$M86=0),"",VLOOKUP($M86,'RLMA-SAWS Database'!$A$5:$BF$3950,22)) -> 154.8 | AE86: =IF(OR($M86="",$M86=0),"",VLOOKUP($M86,'RLMA-SAWS Database'!$A$5:$BF$3950,23)) -> 64.7 | AF86: =IF(OR($M86="",$M86=0),"",VLOOKUP($M86,'RLMA-SAWS Database'!$A$5:$BF$3950,24)) -> 86.8 | AG86: =IF(OR($M86="",$M86=0),"",VLOOKUP($M86,'RLMA-SAWS Database'!$A$5:$BF$3950,25)) -> 102 | AH86: =IF(OR($M86="",$M86=0),"",VLOOKUP($M86,'RLMA-SAWS Database'!$A$5:$BF$3950,26)) -> 116.9 | AI86: =IF(OR($M86="",$M86=0),"",VLOOKUP($M86,'RLMA-SAWS Database'!$A$5:$BF$3950,27)) -> 136.8 | AJ86: =IF(OR($M86="",$M86=0),"",VLOOKUP($M86,'RLMA-SAWS Database'!$A$5:$BF$3950,28)) -> 152.2 | AK86: =IF(OR($M86="",$M86=0),"",VLOOKUP($M86,'RLMA-SAWS Database'!$A$5:$BF$3950,29)) -> 167.8 | AL86: =IF(OR($M86="",$M86=0),"",VLOOKUP($M86,'RLMA-SAWS Database'!$A$5:$BF$3950,51)) -> 80.3 | AM86: =IF(OR($M86="",$M86=0),"",VLOOKUP($M86,'RLMA-SAWS Database'!$A$5:$BF$3950,52)) -> 108.6 | AN86: =IF(OR($M86="",$M86=0),"",VLOOKUP($M86,'RLMA-SAWS Database'!$A$5:$BF$3950,53)) -> 127.7 | AO86: =IF(OR($M86="",$M86=0),"",VLOOKUP($M86,'RLMA-SAWS Database'!$A$5:$BF$3950,54)) -> 146.5 | AP86: =IF(OR($M86="",$M86=0),"",VLOOKUP($M86,'RLMA-SAWS Database'!$A$5:$BF$3950,55)) -> 171.1 | AQ86: =IF(OR($M86="",$M86=0),"",VLOOKUP($M86,'RLMA-SAWS Database'!$A$5:$BF$3950,56)) -> 190 | AR86: =IF(OR($M86="",$M86=0),"",VLOOKUP($M86,'RLMA-SAWS Database'!$A$5:$BF$3950,57)) -> 209.1 | AS86: =IF(OR($M86="",$M86=0),"",VLOOKUP($M86,'RLMA-SAWS Database'!$A$5:$BF$3950,58)) -> 62 | AU86: 0261426W | AV86: =IF($AU86="","",VLOOKUP($AU86,'RLMA-SAWS Database'!$A$5:$BF$3950,2)) -> BLOEMFONTEIN (ESTIORE) | AW86: 14.99495 | AX86: =IF($AU86="",0,VLOOKUP($AU86,'RLMA-SAWS Database'!$A$5:$BF$3950,7)) -> 553 | AY86: 8292.20735 | AZ86: =IF($AU86="",0,VLOOKUP($AU86,'RLMA-SAWS Database'!$A$5:$BF$3950,9)) -> 47.6 | BA86: 713.75962 | BB86: =IF($AU86="",0,VLOOKUP($AU86,'RLMA-SAWS Database'!$A$5:$BF$3950,10)) -> 64.3 | BC86: 964.175285 | BD86: =IF($AU86="",0,VLOOKUP($AU86,'RLMA-SAWS Database'!$A$5:$BF$3950,11)) -> 75.9 | BE86: 1138.116705 | BF86: =IF($AU86="",0,VLOOKUP($AU86,'RLMA-SAWS Database'!$A$5:$BF$3950,12)) -> 87.4 | BG86: 1310.55863 | BH86: =IF($AU86="",0,VLOOKUP($AU86,'RLMA-SAWS Database'!$A$5:$BF$3950,13)) -> 103 | BI86: 1544.47985 | BJ86: =IF($AU86="",0,VLOOKUP($AU86,'RLMA-SAWS Database'!$A$5:$BF$3950,14)) -> 115.2 | BK86: 1727.41824 | BL86: =IF($AU86="",0,VLOOKUP($AU86,'RLMA-SAWS Database'!$A$5:$BF$3950,15)) -> 127.7 | BM86: 1914.855115 | BN86: =IF($AU86="",0,VLOOKUP($AU86,'RLMA-SAWS Database'!$A$5:$BF$3950,16)) -> 58.4 | BO86: 875.70508 | BP86: =IF($AU86="",0,VLOOKUP($AU86,'RLMA-SAWS Database'!$A$5:$BF$3950,17)) -> 78.4 | BQ86: 1175.60408 | BR86: =IF($AU86="",0,VLOOKUP($AU86,'RLMA-SAWS Database'!$A$5:$BF$3950,18)) -> 92.4 | BS86: 1385.53338 | BT86: =IF($AU86="",0,VLOOKUP($AU86,'RLMA-SAWS Database'!$A$5:$BF$3950,19)) -> 106.3 | BU86: 1593.963185 | BV86: =IF($AU86="",0,VLOOKUP($AU86,'RLMA-SAWS Database'!$A$5:$BF$3950,20)) -> 125.1 | BW86: 1875.868245 | BX86: =IF($AU86="",0,VLOOKUP($AU86,'RLMA-SAWS Database'!$A$5:$BF$3950,21)) -> 139.7 | BY86: 2094.794515 | BZ86: =IF($AU86="",0,VLOOKUP($AU86,'RLMA-SAWS Database'!$A$5:$BF$3950,22)) -> 154.8 | CA86: 2321.21826 | CB86: =IF($AU86="",0,VLOOKUP($AU86,'RLMA-SAWS Database'!$A$5:$BF$3950,23)) -> 64.7 | CC86: 970.173265 | CD86: =IF($AU86="",0,VLOOKUP($AU86,'RLMA-SAWS Database'!$A$5:$BF$3950,24)) -> 86.8 | CE86: 1301.56166 | CF86: =IF($AU86="",0,VLOOKUP($AU86,'RLMA-SAWS Database'!$A$5:$BF$3950,25)) -> 102 | CG86: 1529.4849 | CH86: =IF($AU86="",0,VLOOKUP($AU86,'RLMA-SAWS Database'!$A$5:$BF$3950,26)) -> 116.9 | CI86: 1752.909655 | CJ86: =IF($AU86="",0,VLOOKUP($AU86,'RLMA-SAWS Database'!$A$5:$BF$3950,27)) -> 136.8 | CK86: 2051.30916 | CL86: =IF($AU86="",0,VLOOKUP($AU86,'RLMA-SAWS Database'!$A$5:$BF$3950,28)) -> 152.2 | CM86: 2282.23139 | CN86: =IF($AU86="",0,VLOOKUP($AU86,'RLMA-SAWS Database'!$A$5:$BF$3950,29)) -> 167.8 | CO86: 2516.15261 | CP86: =IF($AU86="",0,VLOOKUP($AU86,'RLMA-SAWS Database'!$A$5:$BF$3950,51)) -> 80.3 | CQ86: 1204.094485 | CR86: =IF($AU86="",0,VLOOKUP($AU86,'RLMA-SAWS Database'!$A$5:$BF$3950,52)) -> 108.6 | CS86: 1628.45157 | CT86: =IF($AU86="",0,VLOOKUP($AU86,'RLMA-SAWS Database'!$A$5:$BF$3950,53)) -> 127.7 | CU86: 1914.855115 | CV86: =IF($AU86="",0,VLOOKUP($AU86,'RLMA-SAWS Database'!$A$5:$BF$3950,54)) -> 146.5 | CW86: 2196.760175 | CX86: =IF($AU86="",0,VLOOKUP($AU86,'RLMA-SAWS Database'!$A$5:$BF$3950,55)) -> 171.1 | CY86: 2565.635945 | CZ86: =IF($AU86="",0,VLOOKUP($AU86,'RLMA-SAWS Database'!$A$5:$BF$3950,56)) -> 190 | DA86: 2849.0405 | DB86: =IF($AU86="",0,VLOOKUP($AU86,'RLMA-SAWS Database'!$A$5:$BF$3950,57)) -> 209.1 | DC86: 3135.444045 | DD86: =IF($AU86="",0,VLOOKUP($AU86,'RLMA-SAWS Database'!$A$5:$BF$3950,58)) -> 62 | DE86: 929.6869
A87: 15 | C87: 0261516W | D87: 55.97389 | E87: =IF($C87="","",VLOOKUP($C87,'RLMA-SAWS Database'!$A$5:$BF$3950,2)) -> BLOEMFONTEIN (ESTIORE) | F87: 115 | J87: =IF($G87="","",VLOOKUP($G87,'RLMA-SAWS Database'!$A$5:$BF$3950,2)) ->  | K87: FALSE | L87: FALSE | M87: 0261516W | N87: =IF(OR($M87="",$M87=0),"",VLOOKUP($M87,'RLMA-SAWS Database'!$A$5:$BF$3950,2)) -> BLOEMFONTEIN (ESTIORE) | O87: 55.97389 | P87: =IF(OR($M87="",$M87=0),"",VLOOKUP($M87,'RLMA-SAWS Database'!$A$5:$BF$3950,7)) -> 553 | Q87: =IF(OR($M87="",$M87=0),"",VLOOKUP($M87,'RLMA-SAWS Database'!$A$5:$BF$3950,9)) -> 47.6 | R87: =IF(OR($M87="",$M87=0),"",VLOOKUP($M87,'RLMA-SAWS Database'!$A$5:$BF$3950,10)) -> 64.3 | S87: =IF(OR($M87="",$M87=0),"",VLOOKUP($M87,'RLMA-SAWS Database'!$A$5:$BF$3950,11)) -> 75.9 | T87: =IF(OR($M87="",$M87=0),"",VLOOKUP($M87,'RLMA-SAWS Database'!$A$5:$BF$3950,12)) -> 87.4 | U87: =IF(OR($M87="",$M87=0),"",VLOOKUP($M87,'RLMA-SAWS Database'!$A$5:$BF$3950,13)) -> 103 | V87: =IF(OR($M87="",$M87=0),"",VLOOKUP($M87,'RLMA-SAWS Database'!$A$5:$BF$3950,14)) -> 115.2 | W87: =IF(OR($M87="",$M87=0),"",VLOOKUP($M87,'RLMA-SAWS Database'!$A$5:$BF$3950,15)) -> 127.7 | X87: =IF(OR($M87="",$M87=0),"",VLOOKUP($M87,'RLMA-SAWS Database'!$A$5:$BF$3950,16)) -> 58.4 | Y87: =IF(OR($M87="",$M87=0),"",VLOOKUP($M87,'RLMA-SAWS Database'!$A$5:$BF$3950,17)) -> 78.4 | Z87: =IF(OR($M87="",$M87=0),"",VLOOKUP($M87,'RLMA-SAWS Database'!$A$5:$BF$3950,18)) -> 92.4 | AA87: =IF(OR($M87="",$M87=0),"",VLOOKUP($M87,'RLMA-SAWS Database'!$A$5:$BF$3950,19)) -> 106.3 | AB87: =IF(OR($M87="",$M87=0),"",VLOOKUP($M87,'RLMA-SAWS Database'!$A$5:$BF$3950,20)) -> 125.1 | AC87: =IF(OR($M87="",$M87=0),"",VLOOKUP($M87,'RLMA-SAWS Database'!$A$5:$BF$3950,21)) -> 139.7 | AD87: =IF(OR($M87="",$M87=0),"",VLOOKUP($M87,'RLMA-SAWS Database'!$A$5:$BF$3950,22)) -> 154.8 | AE87: =IF(OR($M87="",$M87=0),"",VLOOKUP($M87,'RLMA-SAWS Database'!$A$5:$BF$3950,23)) -> 64.7 | AF87: =IF(OR($M87="",$M87=0),"",VLOOKUP($M87,'RLMA-SAWS Database'!$A$5:$BF$3950,24)) -> 86.8 | AG87: =IF(OR($M87="",$M87=0),"",VLOOKUP($M87,'RLMA-SAWS Database'!$A$5:$BF$3950,25)) -> 102 | AH87: =IF(OR($M87="",$M87=0),"",VLOOKUP($M87,'RLMA-SAWS Database'!$A$5:$BF$3950,26)) -> 116.9 | AI87: =IF(OR($M87="",$M87=0),"",VLOOKUP($M87,'RLMA-SAWS Database'!$A$5:$BF$3950,27)) -> 136.8 | AJ87: =IF(OR($M87="",$M87=0),"",VLOOKUP($M87,'RLMA-SAWS Database'!$A$5:$BF$3950,28)) -> 152.2 | AK87: =IF(OR($M87="",$M87=0),"",VLOOKUP($M87,'RLMA-SAWS Database'!$A$5:$BF$3950,29)) -> 167.8 | AL87: =IF(OR($M87="",$M87=0),"",VLOOKUP($M87,'RLMA-SAWS Database'!$A$5:$BF$3950,51)) -> 80.3 | AM87: =IF(OR($M87="",$M87=0),"",VLOOKUP($M87,'RLMA-SAWS Database'!$A$5:$BF$3950,52)) -> 108.6 | AN87: =IF(OR($M87="",$M87=0),"",VLOOKUP($M87,'RLMA-SAWS Database'!$A$5:$BF$3950,53)) -> 127.7 | AO87: =IF(OR($M87="",$M87=0),"",VLOOKUP($M87,'RLMA-SAWS Database'!$A$5:$BF$3950,54)) -> 146.5 | AP87: =IF(OR($M87="",$M87=0),"",VLOOKUP($M87,'RLMA-SAWS Database'!$A$5:$BF$3950,55)) -> 171.1 | AQ87: =IF(OR($M87="",$M87=0),"",VLOOKUP($M87,'RLMA-SAWS Database'!$A$5:$BF$3950,56)) -> 190 | AR87: =IF(OR($M87="",$M87=0),"",VLOOKUP($M87,'RLMA-SAWS Database'!$A$5:$BF$3950,57)) -> 209.1 | AS87: =IF(OR($M87="",$M87=0),"",VLOOKUP($M87,'RLMA-SAWS Database'!$A$5:$BF$3950,58)) -> 62 | AU87: 0261516W | AV87: =IF($AU87="","",VLOOKUP($AU87,'RLMA-SAWS Database'!$A$5:$BF$3950,2)) -> BLOEMFONTEIN (ESTIORE) | AW87: 55.97389 | AX87: =IF($AU87="",0,VLOOKUP($AU87,'RLMA-SAWS Database'!$A$5:$BF$3950,7)) -> 553 | AY87: 30953.56117 | AZ87: =IF($AU87="",0,VLOOKUP($AU87,'RLMA-SAWS Database'!$A$5:$BF$3950,9)) -> 47.6 | BA87: 2664.357164 | BB87: =IF($AU87="",0,VLOOKUP($AU87,'RLMA-SAWS Database'!$A$5:$BF$3950,10)) -> 64.3 | BC87: 3599.121127 | BD87: =IF($AU87="",0,VLOOKUP($AU87,'RLMA-SAWS Database'!$A$5:$BF$3950,11)) -> 75.9 | BE87: 4248.418251 | BF87: =IF($AU87="",0,VLOOKUP($AU87,'RLMA-SAWS Database'!$A$5:$BF$3950,12)) -> 87.4 | BG87: 4892.117986 | BH87: =IF($AU87="",0,VLOOKUP($AU87,'RLMA-SAWS Database'!$A$5:$BF$3950,13)) -> 103 | BI87: 5765.31067 | BJ87: =IF($AU87="",0,VLOOKUP($AU87,'RLMA-SAWS Database'!$A$5:$BF$3950,14)) -> 115.2 | BK87: 6448.192128 | BL87: =IF($AU87="",0,VLOOKUP($AU87,'RLMA-SAWS Database'!$A$5:$BF$3950,15)) -> 127.7 | BM87: 7147.865753 | BN87: =IF($AU87="",0,VLOOKUP($AU87,'RLMA-SAWS Database'!$A$5:$BF$3950,16)) -> 58.4 | BO87: 3268.875176 | BP87: =IF($AU87="",0,VLOOKUP($AU87,'RLMA-SAWS Database'!$A$5:$BF$3950,17)) -> 78.4 | BQ87: 4388.352976 | BR87: =IF($AU87="",0,VLOOKUP($AU87,'RLMA-SAWS Database'!$A$5:$BF$3950,18)) -> 92.4 | BS87: 5171.987436 | BT87: =IF($AU87="",0,VLOOKUP($AU87,'RLMA-SAWS Database'!$A$5:$BF$3950,19)) -> 106.3 | BU87: 5950.024507 | BV87: =IF($AU87="",0,VLOOKUP($AU87,'RLMA-SAWS Database'!$A$5:$BF$3950,20)) -> 125.1 | BW87: 7002.333639 | BX87: =IF($AU87="",0,VLOOKUP($AU87,'RLMA-SAWS Database'!$A$5:$BF$3950,21)) -> 139.7 | BY87: 7819.552433 | BZ87: =IF($AU87="",0,VLOOKUP($AU87,'RLMA-SAWS Database'!$A$5:$BF$3950,22)) -> 154.8 | CA87: 8664.758172 | CB87: =IF($AU87="",0,VLOOKUP($AU87,'RLMA-SAWS Database'!$A$5:$BF$3950,23)) -> 64.7 | CC87: 3621.510683 | CD87: =IF($AU87="",0,VLOOKUP($AU87,'RLMA-SAWS Database'!$A$5:$BF$3950,24)) -> 86.8 | CE87: 4858.533652 | CF87: =IF($AU87="",0,VLOOKUP($AU87,'RLMA-SAWS Database'!$A$5:$BF$3950,25)) -> 102 | CG87: 5709.33678 | CH87: =IF($AU87="",0,VLOOKUP($AU87,'RLMA-SAWS Database'!$A$5:$BF$3950,26)) -> 116.9 | CI87: 6543.347741 | CJ87: =IF($AU87="",0,VLOOKUP($AU87,'RLMA-SAWS Database'!$A$5:$BF$3950,27)) -> 136.8 | CK87: 7657.228152 | CL87: =IF($AU87="",0,VLOOKUP($AU87,'RLMA-SAWS Database'!$A$5:$BF$3950,28)) -> 152.2 | CM87: 8519.226058 | CN87: =IF($AU87="",0,VLOOKUP($AU87,'RLMA-SAWS Database'!$A$5:$BF$3950,29)) -> 167.8 | CO87: 9392.418742 | CP87: =IF($AU87="",0,VLOOKUP($AU87,'RLMA-SAWS Database'!$A$5:$BF$3950,51)) -> 80.3 | CQ87: 4494.703367 | CR87: =IF($AU87="",0,VLOOKUP($AU87,'RLMA-SAWS Database'!$A$5:$BF$3950,52)) -> 108.6 | CS87: 6078.764454 | CT87: =IF($AU87="",0,VLOOKUP($AU87,'RLMA-SAWS Database'!$A$5:$BF$3950,53)) -> 127.7 | CU87: 7147.865753 | CV87: =IF($AU87="",0,VLOOKUP($AU87,'RLMA-SAWS Database'!$A$5:$BF$3950,54)) -> 146.5 | CW87: 8200.174885 | CX87: =IF($AU87="",0,VLOOKUP($AU87,'RLMA-SAWS Database'!$A$5:$BF$3950,55)) -> 171.1 | CY87: 9577.132579 | CZ87: =IF($AU87="",0,VLOOKUP($AU87,'RLMA-SAWS Database'!$A$5:$BF$3950,56)) -> 190 | DA87: 10635.0391 | DB87: =IF($AU87="",0,VLOOKUP($AU87,'RLMA-SAWS Database'!$A$5:$BF$3950,57)) -> 209.1 | DC87: 11704.1404 | DD87: =IF($AU87="",0,VLOOKUP($AU87,'RLMA-SAWS Database'!$A$5:$BF$3950,58)) -> 62 | DE87: 3470.38118
A88: 16 | C88: 0261517W | D88: 16.20471 | E88: =IF($C88="","",VLOOKUP($C88,'RLMA-SAWS Database'!$A$5:$BF$3950,2)) -> BLOEMSPRUIT | F88: 116 | J88: =IF($G88="","",VLOOKUP($G88,'RLMA-SAWS Database'!$A$5:$BF$3950,2)) ->  | K88: FALSE | L88: FALSE | M88: 0261517W | N88: =IF(OR($M88="",$M88=0),"",VLOOKUP($M88,'RLMA-SAWS Database'!$A$5:$BF$3950,2)) -> BLOEMSPRUIT | O88: 16.20471 | P88: =IF(OR($M88="",$M88=0),"",VLOOKUP($M88,'RLMA-SAWS Database'!$A$5:$BF$3950,7)) -> 514 | Q88: =IF(OR($M88="",$M88=0),"",VLOOKUP($M88,'RLMA-SAWS Database'!$A$5:$BF$3950,9)) -> 50.8 | R88: =IF(OR($M88="",$M88=0),"",VLOOKUP($M88,'RLMA-SAWS Database'!$A$5:$BF$3950,10)) -> 68.6 | S88: =IF(OR($M88="",$M88=0),"",VLOOKUP($M88,'RLMA-SAWS Database'!$A$5:$BF$3950,11)) -> 80.9 | T88: =IF(OR($M88="",$M88=0),"",VLOOKUP($M88,'RLMA-SAWS Database'!$A$5:$BF$3950,12)) -> 93.2 | U88: =IF(OR($M88="",$M88=0),"",VLOOKUP($M88,'RLMA-SAWS Database'!$A$5:$BF$3950,13)) -> 109.8 | V88: =IF(OR($M88="",$M88=0),"",VLOOKUP($M88,'RLMA-SAWS Database'!$A$5:$BF$3950,14)) -> 122.8 | W88: =IF(OR($M88="",$M88=0),"",VLOOKUP($M88,'RLMA-SAWS Database'!$A$5:$BF$3950,15)) -> 136.1 | X88: =IF(OR($M88="",$M88=0),"",VLOOKUP($M88,'RLMA-SAWS Database'!$A$5:$BF$3950,16)) -> 67.1 | Y88: =IF(OR($M88="",$M88=0),"",VLOOKUP($M88,'RLMA-SAWS Database'!$A$5:$BF$3950,17)) -> 90.2 | Z88: =IF(OR($M88="",$M88=0),"",VLOOKUP($M88,'RLMA-SAWS Database'!$A$5:$BF$3950,18)) -> 106.2 | AA88: =IF(OR($M88="",$M88=0),"",VLOOKUP($M88,'RLMA-SAWS Database'!$A$5:$BF$3950,19)) -> 122.2 | AB88: =IF(OR($M88="",$M88=0),"",VLOOKUP($M88,'RLMA-SAWS Database'!$A$5:$BF$3950,20)) -> 143.8 | AC88: =IF(OR($M88="",$M88=0),"",VLOOKUP($M88,'RLMA-SAWS Database'!$A$5:$BF$3950,21)) -> 160.6 | AD88: =IF(OR($M88="",$M88=0),"",VLOOKUP($M88,'RLMA-SAWS Database'!$A$5:$BF$3950,22)) -> 178 | AE88: =IF(OR($M88="",$M88=0),"",VLOOKUP($M88,'RLMA-SAWS Database'!$A$5:$BF$3950,23)) -> 74.7 | AF88: =IF(OR($M88="",$M88=0),"",VLOOKUP($M88,'RLMA-SAWS Database'!$A$5:$BF$3950,24)) -> 100.3 | AG88: =IF(OR($M88="",$M88=0),"",VLOOKUP($M88,'RLMA-SAWS Database'!$A$5:$BF$3950,25)) -> 117.8 | AH88: =IF(OR($M88="",$M88=0),"",VLOOKUP($M88,'RLMA-SAWS Database'!$A$5:$BF$3950,26)) -> 135 | AI88: =IF(OR($M88="",$M88=0),"",VLOOKUP($M88,'RLMA-SAWS Database'!$A$5:$BF$3950,27)) -> 158 | AJ88: =IF(OR($M88="",$M88=0),"",VLOOKUP($M88,'RLMA-SAWS Database'!$A$5:$BF$3950,28)) -> 175.7 | AK88: =IF(OR($M88="",$M88=0),"",VLOOKUP($M88,'RLMA-SAWS Database'!$A$5:$BF$3950,29)) -> 193.7 | AL88: =IF(OR($M88="",$M88=0),"",VLOOKUP($M88,'RLMA-SAWS Database'!$A$5:$BF$3950,51)) -> 90.2 | AM88: =IF(OR($M88="",$M88=0),"",VLOOKUP($M88,'RLMA-SAWS Database'!$A$5:$BF$3950,52)) -> 122 | AN88: =IF(OR($M88="",$M88=0),"",VLOOKUP($M88,'RLMA-SAWS Database'!$A$5:$BF$3950,53)) -> 143.6 | AO88: =IF(OR($M88="",$M88=0),"",VLOOKUP($M88,'RLMA-SAWS Database'!$A$5:$BF$3950,54)) -> 164.6 | AP88: =IF(OR($M88="",$M88=0),"",VLOOKUP($M88,'RLMA-SAWS Database'!$A$5:$BF$3950,55)) -> 192.4 | AQ88: =IF(OR($M88="",$M88=0),"",VLOOKUP($M88,'RLMA-SAWS Database'!$A$5:$BF$3950,56)) -> 213.6 | AR88: =IF(OR($M88="",$M88=0),"",VLOOKUP($M88,'RLMA-SAWS Database'!$A$5:$BF$3950,57)) -> 235.1 | AS88: =IF(OR($M88="",$M88=0),"",VLOOKUP($M88,'RLMA-SAWS Database'!$A$5:$BF$3950,58)) -> 62 | AU88: 0261517W | AV88: =IF($AU88="","",VLOOKUP($AU88,'RLMA-SAWS Database'!$A$5:$BF$3950,2)) -> BLOEMSPRUIT | AW88: 16.20471 | AX88: =IF($AU88="",0,VLOOKUP($AU88,'RLMA-SAWS Database'!$A$5:$BF$3950,7)) -> 514 | AY88: 8329.22094 | AZ88: =IF($AU88="",0,VLOOKUP($AU88,'RLMA-SAWS Database'!$A$5:$BF$3950,9)) -> 50.8 | BA88: 823.199268 | BB88: =IF($AU88="",0,VLOOKUP($AU88,'RLMA-SAWS Database'!$A$5:$BF$3950,10)) -> 68.6 | BC88: 1111.643106 | BD88: =IF($AU88="",0,VLOOKUP($AU88,'RLMA-SAWS Database'!$A$5:$BF$3950,11)) -> 80.9 | BE88: 1310.961039 | BF88: =IF($AU88="",0,VLOOKUP($AU88,'RLMA-SAWS Database'!$A$5:$BF$3950,12)) -> 93.2 | BG88: 1510.278972 | BH88: =IF($AU88="",0,VLOOKUP($AU88,'RLMA-SAWS Database'!$A$5:$BF$3950,13)) -> 109.8 | BI88: 1779.277158 | BJ88: =IF($AU88="",0,VLOOKUP($AU88,'RLMA-SAWS Database'!$A$5:$BF$3950,14)) -> 122.8 | BK88: 1989.938388 | BL88: =IF($AU88="",0,VLOOKUP($AU88,'RLMA-SAWS Database'!$A$5:$BF$3950,15)) -> 136.1 | BM88: 2205.461031 | BN88: =IF($AU88="",0,VLOOKUP($AU88,'RLMA-SAWS Database'!$A$5:$BF$3950,16)) -> 67.1 | BO88: 1087.336041 | BP88: =IF($AU88="",0,VLOOKUP($AU88,'RLMA-SAWS Database'!$A$5:$BF$3950,17)) -> 90.2 | BQ88: 1461.664842 | BR88: =IF($AU88="",0,VLOOKUP($AU88,'RLMA-SAWS Database'!$A$5:$BF$3950,18)) -> 106.2 | BS88: 1720.940202 | BT88: =IF($AU88="",0,VLOOKUP($AU88,'RLMA-SAWS Database'!$A$5:$BF$3950,19)) -> 122.2 | BU88: 1980.215562 | BV88: =IF($AU88="",0,VLOOKUP($AU88,'RLMA-SAWS Database'!$A$5:$BF$3950,20)) -> 143.8 | BW88: 2330.237298 | BX88: =IF($AU88="",0,VLOOKUP($AU88,'RLMA-SAWS Database'!$A$5:$BF$3950,21)) -> 160.6 | BY88: 2602.476426 | BZ88: =IF($AU88="",0,VLOOKUP($AU88,'RLMA-SAWS Database'!$A$5:$BF$3950,22)) -> 178 | CA88: 2884.43838 | CB88: =IF($AU88="",0,VLOOKUP($AU88,'RLMA-SAWS Database'!$A$5:$BF$3950,23)) -> 74.7 | CC88: 1210.491837 | CD88: =IF($AU88="",0,VLOOKUP($AU88,'RLMA-SAWS Database'!$A$5:$BF$3950,24)) -> 100.3 | CE88: 1625.332413 | CF88: =IF($AU88="",0,VLOOKUP($AU88,'RLMA-SAWS Database'!$A$5:$BF$3950,25)) -> 117.8 | CG88: 1908.914838 | CH88: =IF($AU88="",0,VLOOKUP($AU88,'RLMA-SAWS Database'!$A$5:$BF$3950,26)) -> 135 | CI88: 2187.63585 | CJ88: =IF($AU88="",0,VLOOKUP($AU88,'RLMA-SAWS Database'!$A$5:$BF$3950,27)) -> 158 | CK88: 2560.34418 | CL88: =IF($AU88="",0,VLOOKUP($AU88,'RLMA-SAWS Database'!$A$5:$BF$3950,28)) -> 175.7 | CM88: 2847.167547 | CN88: =IF($AU88="",0,VLOOKUP($AU88,'RLMA-SAWS Database'!$A$5:$BF$3950,29)) -> 193.7 | CO88: 3138.852327 | CP88: =IF($AU88="",0,VLOOKUP($AU88,'RLMA-SAWS Database'!$A$5:$BF$3950,51)) -> 90.2 | CQ88: 1461.664842 | CR88: =IF($AU88="",0,VLOOKUP($AU88,'RLMA-SAWS Database'!$A$5:$BF$3950,52)) -> 122 | CS88: 1976.97462 | CT88: =IF($AU88="",0,VLOOKUP($AU88,'RLMA-SAWS Database'!$A$5:$BF$3950,53)) -> 143.6 | CU88: 2326.996356 | CV88: =IF($AU88="",0,VLOOKUP($AU88,'RLMA-SAWS Database'!$A$5:$BF$3950,54)) -> 164.6 | CW88: 2667.295266 | CX88: =IF($AU88="",0,VLOOKUP($AU88,'RLMA-SAWS Database'!$A$5:$BF$3950,55)) -> 192.4 | CY88: 3117.786204 | CZ88: =IF($AU88="",0,VLOOKUP($AU88,'RLMA-SAWS Database'!$A$5:$BF$3950,56)) -> 213.6 | DA88: 3461.326056 | DB88: =IF($AU88="",0,VLOOKUP($AU88,'RLMA-SAWS Database'!$A$5:$BF$3950,57)) -> 235.1 | DC88: 3809.727321 | DD88: =IF($AU88="",0,VLOOKUP($AU88,'RLMA-SAWS Database'!$A$5:$BF$3950,58)) -> 62 | DE88: 1004.69202
A89: 17 | C89: 0261523W | D89: 160.34259 | E89: =IF($C89="","",VLOOKUP($C89,'RLMA-SAWS Database'!$A$5:$BF$3950,2)) -> GROOTVLEI | F89: 117 | J89: =IF($G89="","",VLOOKUP($G89,'RLMA-SAWS Database'!$A$5:$BF$3950,2)) ->  | K89: FALSE | L89: FALSE | M89: 0261523W | N89: =IF(OR($M89="",$M89=0),"",VLOOKUP($M89,'RLMA-SAWS Database'!$A$5:$BF$3950,2)) -> GROOTVLEI | O89: 160.34259 | P89: =IF(OR($M89="",$M89=0),"",VLOOKUP($M89,'RLMA-SAWS Database'!$A$5:$BF$3950,7)) -> 518 | Q89: =IF(OR($M89="",$M89=0),"",VLOOKUP($M89,'RLMA-SAWS Database'!$A$5:$BF$3950,9)) -> 43.6 | R89: =IF(OR($M89="",$M89=0),"",VLOOKUP($M89,'RLMA-SAWS Database'!$A$5:$BF$3950,10)) -> 59 | S89: =IF(OR($M89="",$M89=0),"",VLOOKUP($M89,'RLMA-SAWS Database'!$A$5:$BF$3950,11)) -> 69.6 | T89: =IF(OR($M89="",$M89=0),"",VLOOKUP($M89,'RLMA-SAWS Database'!$A$5:$BF$3950,12)) -> 80.1 | U89: =IF(OR($M89="",$M89=0),"",VLOOKUP($M89,'RLMA-SAWS Database'!$A$5:$BF$3950,13)) -> 94.4 | V89: =IF(OR($M89="",$M89=0),"",VLOOKUP($M89,'RLMA-SAWS Database'!$A$5:$BF$3950,14)) -> 105.6 | W89: =IF(OR($M89="",$M89=0),"",VLOOKUP($M89,'RLMA-SAWS Database'!$A$5:$BF$3950,15)) -> 117 | X89: =IF(OR($M89="",$M89=0),"",VLOOKUP($M89,'RLMA-SAWS Database'!$A$5:$BF$3950,16)) -> 55.2 | Y89: =IF(OR($M89="",$M89=0),"",VLOOKUP($M89,'RLMA-SAWS Database'!$A$5:$BF$3950,17)) -> 74.1 | Z89: =IF(OR($M89="",$M89=0),"",VLOOKUP($M89,'RLMA-SAWS Database'!$A$5:$BF$3950,18)) -> 87.3 | AA89: =IF(OR($M89="",$M89=0),"",VLOOKUP($M89,'RLMA-SAWS Database'!$A$5:$BF$3950,19)) -> 100.5 | AB89: =IF(OR($M89="",$M89=0),"",VLOOKUP($M89,'RLMA-SAWS Database'!$A$5:$BF$3950,20)) -> 118.2 | AC89: =IF(OR($M89="",$M89=0),"",VLOOKUP($M89,'RLMA-SAWS Database'!$A$5:$BF$3950,21)) -> 132 | AD89: =IF(OR($M89="",$M89=0),"",VLOOKUP($M89,'RLMA-SAWS Database'!$A$5:$BF$3950,22)) -> 146.3 | AE89: =IF(OR($M89="",$M89=0),"",VLOOKUP($M89,'RLMA-SAWS Database'!$A$5:$BF$3950,23)) -> 61.6 | AF89: =IF(OR($M89="",$M89=0),"",VLOOKUP($M89,'RLMA-SAWS Database'!$A$5:$BF$3950,24)) -> 82.7 | AG89: =IF(OR($M89="",$M89=0),"",VLOOKUP($M89,'RLMA-SAWS Database'!$A$5:$BF$3950,25)) -> 97.1 | AH89: =IF(OR($M89="",$M89=0),"",VLOOKUP($M89,'RLMA-SAWS Database'!$A$5:$BF$3950,26)) -> 111.3 | AI89: =IF(OR($M89="",$M89=0),"",VLOOKUP($M89,'RLMA-SAWS Database'!$A$5:$BF$3950,27)) -> 130.3 | AJ89: =IF(OR($M89="",$M89=0),"",VLOOKUP($M89,'RLMA-SAWS Database'!$A$5:$BF$3950,28)) -> 144.9 | AK89: =IF(OR($M89="",$M89=0),"",VLOOKUP($M89,'RLMA-SAWS Database'!$A$5:$BF$3950,29)) -> 159.8 | AL89: =IF(OR($M89="",$M89=0),"",VLOOKUP($M89,'RLMA-SAWS Database'!$A$5:$BF$3950,51)) -> 79.4 | AM89: =IF(OR($M89="",$M89=0),"",VLOOKUP($M89,'RLMA-SAWS Database'!$A$5:$BF$3950,52)) -> 107.4 | AN89: =IF(OR($M89="",$M89=0),"",VLOOKUP($M89,'RLMA-SAWS Database'!$A$5:$BF$3950,53)) -> 126.4 | AO89: =IF(OR($M89="",$M89=0),"",VLOOKUP($M89,'RLMA-SAWS Database'!$A$5:$BF$3950,54)) -> 144.9 | AP89: =IF(OR($M89="",$M89=0),"",VLOOKUP($M89,'RLMA-SAWS Database'!$A$5:$BF$3950,55)) -> 169.4 | AQ89: =IF(OR($M89="",$M89=0),"",VLOOKUP($M89,'RLMA-SAWS Database'!$A$5:$BF$3950,56)) -> 188.1 | AR89: =IF(OR($M89="",$M89=0),"",VLOOKUP($M89,'RLMA-SAWS Database'!$A$5:$BF$3950,57)) -> 206.9 | AS89: =IF(OR($M89="",$M89=0),"",VLOOKUP($M89,'RLMA-SAWS Database'!$A$5:$BF$3950,58)) -> 62 | AU89: 0261523W | AV89: =IF($AU89="","",VLOOKUP($AU89,'RLMA-SAWS Database'!$A$5:$BF$3950,2)) -> GROOTVLEI | AW89: 160.34259 | AX89: =IF($AU89="",0,VLOOKUP($AU89,'RLMA-SAWS Database'!$A$5:$BF$3950,7)) -> 518 | AY89: 83057.46162 | AZ89: =IF($AU89="",0,VLOOKUP($AU89,'RLMA-SAWS Database'!$A$5:$BF$3950,9)) -> 43.6 | BA89: 6990.936924 | BB89: =IF($AU89="",0,VLOOKUP($AU89,'RLMA-SAWS Database'!$A$5:$BF$3950,10)) -> 59 | BC89: 9460.21281 | BD89: =IF($AU89="",0,VLOOKUP($AU89,'RLMA-SAWS Database'!$A$5:$BF$3950,11)) -> 69.6 | BE89: 11159.84426 | BF89: =IF($AU89="",0,VLOOKUP($AU89,'RLMA-SAWS Database'!$A$5:$BF$3950,12)) -> 80.1 | BG89: 12843.44146 | BH89: =IF($AU89="",0,VLOOKUP($AU89,'RLMA-SAWS Database'!$A$5:$BF$3950,13)) -> 94.4 | BI89: 15136.3405 | BJ89: =IF($AU89="",0,VLOOKUP($AU89,'RLMA-SAWS Database'!$A$5:$BF$3950,14)) -> 105.6 | BK89: 16932.1775 | BL89: =IF($AU89="",0,VLOOKUP($AU89,'RLMA-SAWS Database'!$A$5:$BF$3950,15)) -> 117 | BM89: 18760.08303 | BN89: =IF($AU89="",0,VLOOKUP($AU89,'RLMA-SAWS Database'!$A$5:$BF$3950,16)) -> 55.2 | BO89: 8850.910968 | BP89: =IF($AU89="",0,VLOOKUP($AU89,'RLMA-SAWS Database'!$A$5:$BF$3950,17)) -> 74.1 | BQ89: 11881.38592 | BR89: =IF($AU89="",0,VLOOKUP($AU89,'RLMA-SAWS Database'!$A$5:$BF$3950,18)) -> 87.3 | BS89: 13997.90811 | BT89: =IF($AU89="",0,VLOOKUP($AU89,'RLMA-SAWS Database'!$A$5:$BF$3950,19)) -> 100.5 | BU89: 16114.4303 | BV89: =IF($AU89="",0,VLOOKUP($AU89,'RLMA-SAWS Database'!$A$5:$BF$3950,20)) -> 118.2 | BW89: 18952.49414 | BX89: =IF($AU89="",0,VLOOKUP($AU89,'RLMA-SAWS Database'!$A$5:$BF$3950,21)) -> 132 | BY89: 21165.22188 | BZ89: =IF($AU89="",0,VLOOKUP($AU89,'RLMA-SAWS Database'!$A$5:$BF$3950,22)) -> 146.3 | CA89: 23458.12092 | CB89: =IF($AU89="",0,VLOOKUP($AU89,'RLMA-SAWS Database'!$A$5:$BF$3950,23)) -> 61.6 | CC89: 9877.103544 | CD89: =IF($AU89="",0,VLOOKUP($AU89,'RLMA-SAWS Database'!$A$5:$BF$3950,24)) -> 82.7 | CE89: 13260.33219 | CF89: =IF($AU89="",0,VLOOKUP($AU89,'RLMA-SAWS Database'!$A$5:$BF$3950,25)) -> 97.1 | CG89: 15569.26549 | CH89: =IF($AU89="",0,VLOOKUP($AU89,'RLMA-SAWS Database'!$A$5:$BF$3950,26)) -> 111.3 | CI89: 17846.13027 | CJ89: =IF($AU89="",0,VLOOKUP($AU89,'RLMA-SAWS Database'!$A$5:$BF$3950,27)) -> 130.3 | CK89: 20892.63948 | CL89: =IF($AU89="",0,VLOOKUP($AU89,'RLMA-SAWS Database'!$A$5:$BF$3950,28)) -> 144.9 | CM89: 23233.64129 | CN89: =IF($AU89="",0,VLOOKUP($AU89,'RLMA-SAWS Database'!$A$5:$BF$3950,29)) -> 159.8 | CO89: 25622.74588 | CP89: =IF($AU89="",0,VLOOKUP($AU89,'RLMA-SAWS Database'!$A$5:$BF$3950,51)) -> 79.4 | CQ89: 12731.20165 | CR89: =IF($AU89="",0,VLOOKUP($AU89,'RLMA-SAWS Database'!$A$5:$BF$3950,52)) -> 107.4 | CS89: 17220.79417 | CT89: =IF($AU89="",0,VLOOKUP($AU89,'RLMA-SAWS Database'!$A$5:$BF$3950,53)) -> 126.4 | CU89: 20267.30338 | CV89: =IF($AU89="",0,VLOOKUP($AU89,'RLMA-SAWS Database'!$A$5:$BF$3950,54)) -> 144.9 | CW89: 23233.64129 | CX89: =IF($AU89="",0,VLOOKUP($AU89,'RLMA-SAWS Database'!$A$5:$BF$3950,55)) -> 169.4 | CY89: 27162.03475 | CZ89: =IF($AU89="",0,VLOOKUP($AU89,'RLMA-SAWS Database'!$A$5:$BF$3950,56)) -> 188.1 | DA89: 30160.44118 | DB89: =IF($AU89="",0,VLOOKUP($AU89,'RLMA-SAWS Database'!$A$5:$BF$3950,57)) -> 206.9 | DC89: 33174.88187 | DD89: =IF($AU89="",0,VLOOKUP($AU89,'RLMA-SAWS Database'!$A$5:$BF$3950,58)) -> 62 | DE89: 9941.24058
A90: 18 | C90: 0261548W | D90: 73.01614 | E90: =IF($C90="","",VLOOKUP($C90,'RLMA-SAWS Database'!$A$5:$BF$3950,2)) -> SHANNON VALLEY | F90: 118 | J90: =IF($G90="","",VLOOKUP($G90,'RLMA-SAWS Database'!$A$5:$BF$3950,2)) ->  | K90: FALSE | L90: FALSE | M90: 0261548W | N90: =IF(OR($M90="",$M90=0),"",VLOOKUP($M90,'RLMA-SAWS Database'!$A$5:$BF$3950,2)) -> SHANNON VALLEY | O90: 73.01614 | P90: =IF(OR($M90="",$M90=0),"",VLOOKUP($M90,'RLMA-SAWS Database'!$A$5:$BF$3950,7)) -> 518 | Q90: =IF(OR($M90="",$M90=0),"",VLOOKUP($M90,'RLMA-SAWS Database'!$A$5:$BF$3950,9)) -> 47.2 | R90: =IF(OR($M90="",$M90=0),"",VLOOKUP($M90,'RLMA-SAWS Database'!$A$5:$BF$3950,10)) -> 63.8 | S90: =IF(OR($M90="",$M90=0),"",VLOOKUP($M90,'RLMA-SAWS Database'!$A$5:$BF$3950,11)) -> 75.3 | T90: =IF(OR($M90="",$M90=0),"",VLOOKUP($M90,'RLMA-SAWS Database'!$A$5:$BF$3950,12)) -> 86.8 | U90: =IF(OR($M90="",$M90=0),"",VLOOKUP($M90,'RLMA-SAWS Database'!$A$5:$BF$3950,13)) -> 102.2 | V90: =IF(OR($M90="",$M90=0),"",VLOOKUP($M90,'RLMA-SAWS Database'!$A$5:$BF$3950,14)) -> 114.3 | W90: =IF(OR($M90="",$M90=0),"",VLOOKUP($M90,'RLMA-SAWS Database'!$A$5:$BF$3950,15)) -> 126.7 | X90: =IF(OR($M90="",$M90=0),"",VLOOKUP($M90,'RLMA-SAWS Database'!$A$5:$BF$3950,16)) -> 63 | Y90: =IF(OR($M90="",$M90=0),"",VLOOKUP($M90,'RLMA-SAWS Database'!$A$5:$BF$3950,17)) -> 84.7 | Z90: =IF(OR($M90="",$M90=0),"",VLOOKUP($M90,'RLMA-SAWS Database'!$A$5:$BF$3950,18)) -> 99.8 | AA90: =IF(OR($M90="",$M90=0),"",VLOOKUP($M90,'RLMA-SAWS Database'!$A$5:$BF$3950,19)) -> 114.8 | AB90: =IF(OR($M90="",$M90=0),"",VLOOKUP($M90,'RLMA-SAWS Database'!$A$5:$BF$3950,20)) -> 135.1 | AC90: =IF(OR($M90="",$M90=0),"",VLOOKUP($M90,'RLMA-SAWS Database'!$A$5:$BF$3950,21)) -> 150.9 | AD90: =IF(OR($M90="",$M90=0),"",VLOOKUP($M90,'RLMA-SAWS Database'!$A$5:$BF$3950,22)) -> 167.2 | AE90: =IF(OR($M90="",$M90=0),"",VLOOKUP($M90,'RLMA-SAWS Database'!$A$5:$BF$3950,23)) -> 71.4 | AF90: =IF(OR($M90="",$M90=0),"",VLOOKUP($M90,'RLMA-SAWS Database'!$A$5:$BF$3950,24)) -> 95.9 | AG90: =IF(OR($M90="",$M90=0),"",VLOOKUP($M90,'RLMA-SAWS Database'!$A$5:$BF$3950,25)) -> 112.6 | AH90: =IF(OR($M90="",$M90=0),"",VLOOKUP($M90,'RLMA-SAWS Database'!$A$5:$BF$3950,26)) -> 129.1 | AI90: =IF(OR($M90="",$M90=0),"",VLOOKUP($M90,'RLMA-SAWS Database'!$A$5:$BF$3950,27)) -> 151 | AJ90: =IF(OR($M90="",$M90=0),"",VLOOKUP($M90,'RLMA-SAWS Database'!$A$5:$BF$3950,28)) -> 168 | AK90: =IF(OR($M90="",$M90=0),"",VLOOKUP($M90,'RLMA-SAWS Database'!$A$5:$BF$3950,29)) -> 185.2 | AL90: =IF(OR($M90="",$M90=0),"",VLOOKUP($M90,'RLMA-SAWS Database'!$A$5:$BF$3950,51)) -> 83.3 | AM90: =IF(OR($M90="",$M90=0),"",VLOOKUP($M90,'RLMA-SAWS Database'!$A$5:$BF$3950,52)) -> 112.7 | AN90: =IF(OR($M90="",$M90=0),"",VLOOKUP($M90,'RLMA-SAWS Database'!$A$5:$BF$3950,53)) -> 132.6 | AO90: =IF(OR($M90="",$M90=0),"",VLOOKUP($M90,'RLMA-SAWS Database'!$A$5:$BF$3950,54)) -> 152 | AP90: =IF(OR($M90="",$M90=0),"",VLOOKUP($M90,'RLMA-SAWS Database'!$A$5:$BF$3950,55)) -> 177.7 | AQ90: =IF(OR($M90="",$M90=0),"",VLOOKUP($M90,'RLMA-SAWS Database'!$A$5:$BF$3950,56)) -> 197.3 | AR90: =IF(OR($M90="",$M90=0),"",VLOOKUP($M90,'RLMA-SAWS Database'!$A$5:$BF$3950,57)) -> 217.1 | AS90: =IF(OR($M90="",$M90=0),"",VLOOKUP($M90,'RLMA-SAWS Database'!$A$5:$BF$3950,58)) -> 62 | AU90: 0261548W | AV90: =IF($AU90="","",VLOOKUP($AU90,'RLMA-SAWS Database'!$A$5:$BF$3950,2)) -> SHANNON VALLEY | AW90: 73.01614 | AX90: =IF($AU90="",0,VLOOKUP($AU90,'RLMA-SAWS Database'!$A$5:$BF$3950,7)) -> 518 | AY90: 37822.36052 | AZ90: =IF($AU90="",0,VLOOKUP($AU90,'RLMA-SAWS Database'!$A$5:$BF$3950,9)) -> 47.2 | BA90: 3446.361808 | BB90: =IF($AU90="",0,VLOOKUP($AU90,'RLMA-SAWS Database'!$A$5:$BF$3950,10)) -> 63.8 | BC90: 4658.429732 | BD90: =IF($AU90="",0,VLOOKUP($AU90,'RLMA-SAWS Database'!$A$5:$BF$3950,11)) -> 75.3 | BE90: 5498.115342 | BF90: =IF($AU90="",0,VLOOKUP($AU90,'RLMA-SAWS Database'!$A$5:$BF$3950,12)) -> 86.8 | BG90: 6337.800952 | BH90: =IF($AU90="",0,VLOOKUP($AU90,'RLMA-SAWS Database'!$A$5:$BF$3950,13)) -> 102.2 | BI90: 7462.249508 | BJ90: =IF($AU90="",0,VLOOKUP($AU90,'RLMA-SAWS Database'!$A$5:$BF$3950,14)) -> 114.3 | BK90: 8345.744802 | BL90: =IF($AU90="",0,VLOOKUP($AU90,'RLMA-SAWS Database'!$A$5:$BF$3950,15)) -> 126.7 | BM90: 9251.144938 | BN90: =IF($AU90="",0,VLOOKUP($AU90,'RLMA-SAWS Database'!$A$5:$BF$3950,16)) -> 63 | BO90: 4600.01682 | BP90: =IF($AU90="",0,VLOOKUP($AU90,'RLMA-SAWS Database'!$A$5:$BF$3950,17)) -> 84.7 | BQ90: 6184.467058 | BR90: =IF($AU90="",0,VLOOKUP($AU90,'RLMA-SAWS Database'!$A$5:$BF$3950,18)) -> 99.8 | BS90: 7287.010772 | BT90: =IF($AU90="",0,VLOOKUP($AU90,'RLMA-SAWS Database'!$A$5:$BF$3950,19)) -> 114.8 | BU90: 8382.252872 | BV90: =IF($AU90="",0,VLOOKUP($AU90,'RLMA-SAWS Database'!$A$5:$BF$3950,20)) -> 135.1 | BW90: 9864.480514 | BX90: =IF($AU90="",0,VLOOKUP($AU90,'RLMA-SAWS Database'!$A$5:$BF$3950,21)) -> 150.9 | BY90: 11018.13553 | BZ90: =IF($AU90="",0,VLOOKUP($AU90,'RLMA-SAWS Database'!$A$5:$BF$3950,22)) -> 167.2 | CA90: 12208.29861 | CB90: =IF($AU90="",0,VLOOKUP($AU90,'RLMA-SAWS Database'!$A$5:$BF$3950,23)) -> 71.4 | CC90: 5213.352396 | CD90: =IF($AU90="",0,VLOOKUP($AU90,'RLMA-SAWS Database'!$A$5:$BF$3950,24)) -> 95.9 | CE90: 7002.247826 | CF90: =IF($AU90="",0,VLOOKUP($AU90,'RLMA-SAWS Database'!$A$5:$BF$3950,25)) -> 112.6 | CG90: 8221.617364 | CH90: =IF($AU90="",0,VLOOKUP($AU90,'RLMA-SAWS Database'!$A$5:$BF$3950,26)) -> 129.1 | CI90: 9426.383674 | CJ90: =IF($AU90="",0,VLOOKUP($AU90,'RLMA-SAWS Database'!$A$5:$BF$3950,27)) -> 151 | CK90: 11025.43714 | CL90: =IF($AU90="",0,VLOOKUP($AU90,'RLMA-SAWS Database'!$A$5:$BF$3950,28)) -> 168 | CM90: 12266.71152 | CN90: =IF($AU90="",0,VLOOKUP($AU90,'RLMA-SAWS Database'!$A$5:$BF$3950,29)) -> 185.2 | CO90: 13522.58913 | CP90: =IF($AU90="",0,VLOOKUP($AU90,'RLMA-SAWS Database'!$A$5:$BF$3950,51)) -> 83.3 | CQ90: 6082.244462 | CR90: =IF($AU90="",0,VLOOKUP($AU90,'RLMA-SAWS Database'!$A$5:$BF$3950,52)) -> 112.7 | CS90: 8228.918978 | CT90: =IF($AU90="",0,VLOOKUP($AU90,'RLMA-SAWS Database'!$A$5:$BF$3950,53)) -> 132.6 | CU90: 9681.940164 | CV90: =IF($AU90="",0,VLOOKUP($AU90,'RLMA-SAWS Database'!$A$5:$BF$3950,54)) -> 152 | CW90: 11098.45328 | CX90: =IF($AU90="",0,VLOOKUP($AU90,'RLMA-SAWS Database'!$A$5:$BF$3950,55)) -> 177.7 | CY90: 12974.96808 | CZ90: =IF($AU90="",0,VLOOKUP($AU90,'RLMA-SAWS Database'!$A$5:$BF$3950,56)) -> 197.3 | DA90: 14406.08442 | DB90: =IF($AU90="",0,VLOOKUP($AU90,'RLMA-SAWS Database'!$A$5:$BF$3950,57)) -> 217.1 | DC90: 15851.80399 | DD90: =IF($AU90="",0,VLOOKUP($AU90,'RLMA-SAWS Database'!$A$5:$BF$3950,58)) -> 62 | DE90: 4527.00068
A91: 19 | C91: 0261722W | D91: 221.91174 | E91: =IF($C91="","",VLOOKUP($C91,'RLMA-SAWS Database'!$A$5:$BF$3950,2)) -> MAZELSPOORT DAM | F91: 119 | J91: =IF($G91="","",VLOOKUP($G91,'RLMA-SAWS Database'!$A$5:$BF$3950,2)) ->  | K91: FALSE | L91: FALSE | M91: 0261722W | N91: =IF(OR($M91="",$M91=0),"",VLOOKUP($M91,'RLMA-SAWS Database'!$A$5:$BF$3950,2)) -> MAZELSPOORT DAM | O91: 221.91174 | P91: =IF(OR($M91="",$M91=0),"",VLOOKUP($M91,'RLMA-SAWS Database'!$A$5:$BF$3950,7)) -> 534 | Q91: =IF(OR($M91="",$M91=0),"",VLOOKUP($M91,'RLMA-SAWS Database'!$A$5:$BF$3950,9)) -> 45.3 | R91: =IF(OR($M91="",$M91=0),"",VLOOKUP($M91,'RLMA-SAWS Database'!$A$5:$BF$3950,10)) -> 61.2 | S91: =IF(OR($M91="",$M91=0),"",VLOOKUP($M91,'RLMA-SAWS Database'!$A$5:$BF$3950,11)) -> 72.2 | T91: =IF(OR($M91="",$M91=0),"",VLOOKUP($M91,'RLMA-SAWS Database'!$A$5:$BF$3950,12)) -> 83.2 | U91: =IF(OR($M91="",$M91=0),"",VLOOKUP($M91,'RLMA-SAWS Database'!$A$5:$BF$3950,13)) -> 98 | V91: =IF(OR($M91="",$M91=0),"",VLOOKUP($M91,'RLMA-SAWS Database'!$A$5:$BF$3950,14)) -> 109.6 | W91: =IF(OR($M91="",$M91=0),"",VLOOKUP($M91,'RLMA-SAWS Database'!$A$5:$BF$3950,15)) -> 121.5 | X91: =IF(OR($M91="",$M91=0),"",VLOOKUP($M91,'RLMA-SAWS Database'!$A$5:$BF$3950,16)) -> 58.4 | Y91: =IF(OR($M91="",$M91=0),"",VLOOKUP($M91,'RLMA-SAWS Database'!$A$5:$BF$3950,17)) -> 78.5 | Z91: =IF(OR($M91="",$M91=0),"",VLOOKUP($M91,'RLMA-SAWS Database'!$A$5:$BF$3950,18)) -> 92.4 | AA91: =IF(OR($M91="",$M91=0),"",VLOOKUP($M91,'RLMA-SAWS Database'!$A$5:$BF$3950,19)) -> 106.3 | AB91: =IF(OR($M91="",$M91=0),"",VLOOKUP($M91,'RLMA-SAWS Database'!$A$5:$BF$3950,20)) -> 125.1 | AC91: =IF(OR($M91="",$M91=0),"",VLOOKUP($M91,'RLMA-SAWS Database'!$A$5:$BF$3950,21)) -> 139.7 | AD91: =IF(OR($M91="",$M91=0),"",VLOOKUP($M91,'RLMA-SAWS Database'!$A$5:$BF$3950,22)) -> 154.9 | AE91: =IF(OR($M91="",$M91=0),"",VLOOKUP($M91,'RLMA-SAWS Database'!$A$5:$BF$3950,23)) -> 66.4 | AF91: =IF(OR($M91="",$M91=0),"",VLOOKUP($M91,'RLMA-SAWS Database'!$A$5:$BF$3950,24)) -> 89.2 | AG91: =IF(OR($M91="",$M91=0),"",VLOOKUP($M91,'RLMA-SAWS Database'!$A$5:$BF$3950,25)) -> 104.8 | AH91: =IF(OR($M91="",$M91=0),"",VLOOKUP($M91,'RLMA-SAWS Database'!$A$5:$BF$3950,26)) -> 120.1 | AI91: =IF(OR($M91="",$M91=0),"",VLOOKUP($M91,'RLMA-SAWS Database'!$A$5:$BF$3950,27)) -> 140.5 | AJ91: =IF(OR($M91="",$M91=0),"",VLOOKUP($M91,'RLMA-SAWS Database'!$A$5:$BF$3950,28)) -> 156.3 | AK91: =IF(OR($M91="",$M91=0),"",VLOOKUP($M91,'RLMA-SAWS Database'!$A$5:$BF$3950,29)) -> 172.4 | AL91: =IF(OR($M91="",$M91=0),"",VLOOKUP($M91,'RLMA-SAWS Database'!$A$5:$BF$3950,51)) -> 85 | AM91: =IF(OR($M91="",$M91=0),"",VLOOKUP($M91,'RLMA-SAWS Database'!$A$5:$BF$3950,52)) -> 115 | AN91: =IF(OR($M91="",$M91=0),"",VLOOKUP($M91,'RLMA-SAWS Database'!$A$5:$BF$3950,53)) -> 135.3 | AO91: =IF(OR($M91="",$M91=0),"",VLOOKUP($M91,'RLMA-SAWS Database'!$A$5:$BF$3950,54)) -> 155.1 | AP91: =IF(OR($M91="",$M91=0),"",VLOOKUP($M91,'RLMA-SAWS Database'!$A$5:$BF$3950,55)) -> 181.2 | AQ91: =IF(OR($M91="",$M91=0),"",VLOOKUP($M91,'RLMA-SAWS Database'!$A$5:$BF$3950,56)) -> 201.2 | AR91: =IF(OR($M91="",$M91=0),"",VLOOKUP($M91,'RLMA-SAWS Database'!$A$5:$BF$3950,57)) -> 221.4 | AS91: =IF(OR($M91="",$M91=0),"",VLOOKUP($M91,'RLMA-SAWS Database'!$A$5:$BF$3950,58)) -> 63 | AU91: 0261722W | AV91: =IF($AU91="","",VLOOKUP($AU91,'RLMA-SAWS Database'!$A$5:$BF$3950,2)) -> MAZELSPOORT DAM | AW91: 221.91174 | AX91: =IF($AU91="",0,VLOOKUP($AU91,'RLMA-SAWS Database'!$A$5:$BF$3950,7)) -> 534 | AY91: 118500.8692 | AZ91: =IF($AU91="",0,VLOOKUP($AU91,'RLMA-SAWS Database'!$A$5:$BF$3950,9)) -> 45.3 | BA91: 10052.60182 | BB91: =IF($AU91="",0,VLOOKUP($AU91,'RLMA-SAWS Database'!$A$5:$BF$3950,10)) -> 61.2 | BC91: 13580.99849 | BD91: =IF($AU91="",0,VLOOKUP($AU91,'RLMA-SAWS Database'!$A$5:$BF$3950,11)) -> 72.2 | BE91: 16022.02763 | BF91: =IF($AU91="",0,VLOOKUP($AU91,'RLMA-SAWS Database'!$A$5:$BF$3950,12)) -> 83.2 | BG91: 18463.05677 | BH91: =IF($AU91="",0,VLOOKUP($AU91,'RLMA-SAWS Database'!$A$5:$BF$3950,13)) -> 98 | BI91: 21747.35052 | BJ91: =IF($AU91="",0,VLOOKUP($AU91,'RLMA-SAWS Database'!$A$5:$BF$3950,14)) -> 109.6 | BK91: 24321.5267 | BL91: =IF($AU91="",0,VLOOKUP($AU91,'RLMA-SAWS Database'!$A$5:$BF$3950,15)) -> 121.5 | BM91: 26962.27641 | BN91: =IF($AU91="",0,VLOOKUP($AU91,'RLMA-SAWS Database'!$A$5:$BF$3950,16)) -> 58.4 | BO91: 12959.64562 | BP91: =IF($AU91="",0,VLOOKUP($AU91,'RLMA-SAWS Database'!$A$5:$BF$3950,17)) -> 78.5 | BQ91: 17420.07159 | BR91: =IF($AU91="",0,VLOOKUP($AU91,'RLMA-SAWS Database'!$A$5:$BF$3950,18)) -> 92.4 | BS91: 20504.64478 | BT91: =IF($AU91="",0,VLOOKUP($AU91,'RLMA-SAWS Database'!$A$5:$BF$3950,19)) -> 106.3 | BU91: 23589.21796 | BV91: =IF($AU91="",0,VLOOKUP($AU91,'RLMA-SAWS Database'!$A$5:$BF$3950,20)) -> 125.1 | BW91: 27761.15867 | BX91: =IF($AU91="",0,VLOOKUP($AU91,'RLMA-SAWS Database'!$A$5:$BF$3950,21)) -> 139.7 | BY91: 31001.07008 | BZ91: =IF($AU91="",0,VLOOKUP($AU91,'RLMA-SAWS Database'!$A$5:$BF$3950,22)) -> 154.9 | CA91: 34374.12853 | CB91: =IF($AU91="",0,VLOOKUP($AU91,'RLMA-SAWS Database'!$A$5:$BF$3950,23)) -> 66.4 | CC91: 14734.93954 | CD91: =IF($AU91="",0,VLOOKUP($AU91,'RLMA-SAWS Database'!$A$5:$BF$3950,24)) -> 89.2 | CE91: 19794.52721 | CF91: =IF($AU91="",0,VLOOKUP($AU91,'RLMA-SAWS Database'!$A$5:$BF$3950,25)) -> 104.8 | CG91: 23256.35035 | CH91: =IF($AU91="",0,VLOOKUP($AU91,'RLMA-SAWS Database'!$A$5:$BF$3950,26)) -> 120.1 | CI91: 26651.59997 | CJ91: =IF($AU91="",0,VLOOKUP($AU91,'RLMA-SAWS Database'!$A$5:$BF$3950,27)) -> 140.5 | CK91: 31178.59947 | CL91: =IF($AU91="",0,VLOOKUP($AU91,'RLMA-SAWS Database'!$A$5:$BF$3950,28)) -> 156.3 | CM91: 34684.80496 | CN91: =IF($AU91="",0,VLOOKUP($AU91,'RLMA-SAWS Database'!$A$5:$BF$3950,29)) -> 172.4 | CO91: 38257.58398 | CP91: =IF($AU91="",0,VLOOKUP($AU91,'RLMA-SAWS Database'!$A$5:$BF$3950,51)) -> 85 | CQ91: 18862.4979 | CR91: =IF($AU91="",0,VLOOKUP($AU91,'RLMA-SAWS Database'!$A$5:$BF$3950,52)) -> 115 | CS91: 25519.8501 | CT91: =IF($AU91="",0,VLOOKUP($AU91,'RLMA-SAWS Database'!$A$5:$BF$3950,53)) -> 135.3 | CU91: 30024.65842 | CV91: =IF($AU91="",0,VLOOKUP($AU91,'RLMA-SAWS Database'!$A$5:$BF$3950,54)) -> 155.1 | CW91: 34418.51087 | CX91: =IF($AU91="",0,VLOOKUP($AU91,'RLMA-SAWS Database'!$A$5:$BF$3950,55)) -> 181.2 | CY91: 40210.40729 | CZ91: =IF($AU91="",0,VLOOKUP($AU91,'RLMA-SAWS Database'!$A$5:$BF$3950,56)) -> 201.2 | DA91: 44648.64209 | DB91: =IF($AU91="",0,VLOOKUP($AU91,'RLMA-SAWS Database'!$A$5:$BF$3950,57)) -> 221.4 | DC91: 49131.25924 | DD91: =IF($AU91="",0,VLOOKUP($AU91,'RLMA-SAWS Database'!$A$5:$BF$3950,58)) -> 63 | DE91: 13980.43962
A92: 20 | C92: 0261733W | D92: 171.47192 | E92: =IF($C92="","",VLOOKUP($C92,'RLMA-SAWS Database'!$A$5:$BF$3950,2)) -> TUSSENVIER | F92: 120 | J92: =IF($G92="","",VLOOKUP($G92,'RLMA-SAWS Database'!$A$5:$BF$3950,2)) ->  | K92: FALSE | L92: FALSE | M92: 0261733W | N92: =IF(OR($M92="",$M92=0),"",VLOOKUP($M92,'RLMA-SAWS Database'!$A$5:$BF$3950,2)) -> TUSSENVIER | O92: 171.47192 | P92: =IF(OR($M92="",$M92=0),"",VLOOKUP($M92,'RLMA-SAWS Database'!$A$5:$BF$3950,7)) -> 486 | Q92: =IF(OR($M92="",$M92=0),"",VLOOKUP($M92,'RLMA-SAWS Database'!$A$5:$BF$3950,9)) -> 50.5 | R92: =IF(OR($M92="",$M92=0),"",VLOOKUP($M92,'RLMA-SAWS Database'!$A$5:$BF$3950,10)) -> 68.2 | S92: =IF(OR($M92="",$M92=0),"",VLOOKUP($M92,'RLMA-SAWS Database'!$A$5:$BF$3950,11)) -> 80.5 | T92: =IF(OR($M92="",$M92=0),"",VLOOKUP($M92,'RLMA-SAWS Database'!$A$5:$BF$3950,12)) -> 92.7 | U92: =IF(OR($M92="",$M92=0),"",VLOOKUP($M92,'RLMA-SAWS Database'!$A$5:$BF$3950,13)) -> 109.2 | V92: =IF(OR($M92="",$M92=0),"",VLOOKUP($M92,'RLMA-SAWS Database'!$A$5:$BF$3950,14)) -> 122.1 | W92: =IF(OR($M92="",$M92=0),"",VLOOKUP($M92,'RLMA-SAWS Database'!$A$5:$BF$3950,15)) -> 135.3 | X92: =IF(OR($M92="",$M92=0),"",VLOOKUP($M92,'RLMA-SAWS Database'!$A$5:$BF$3950,16)) -> 63.2 | Y92: =IF(OR($M92="",$M92=0),"",VLOOKUP($M92,'RLMA-SAWS Database'!$A$5:$BF$3950,17)) -> 85 | Z92: =IF(OR($M92="",$M92=0),"",VLOOKUP($M92,'RLMA-SAWS Database'!$A$5:$BF$3950,18)) -> 100.1 | AA92: =IF(OR($M92="",$M92=0),"",VLOOKUP($M92,'RLMA-SAWS Database'!$A$5:$BF$3950,19)) -> 115.2 | AB92: =IF(OR($M92="",$M92=0),"",VLOOKUP($M92,'RLMA-SAWS Database'!$A$5:$BF$3950,20)) -> 135.5 | AC92: =IF(OR($M92="",$M92=0),"",VLOOKUP($M92,'RLMA-SAWS Database'!$A$5:$BF$3950,21)) -> 151.3 | AD92: =IF(OR($M92="",$M92=0),"",VLOOKUP($M92,'RLMA-SAWS Database'!$A$5:$BF$3950,22)) -> 167.7 | AE92: =IF(OR($M92="",$M92=0),"",VLOOKUP($M92,'RLMA-SAWS Database'!$A$5:$BF$3950,23)) -> 68.9 | AF92: =IF(OR($M92="",$M92=0),"",VLOOKUP($M92,'RLMA-SAWS Database'!$A$5:$BF$3950,24)) -> 92.5 | AG92: =IF(OR($M92="",$M92=0),"",VLOOKUP($M92,'RLMA-SAWS Database'!$A$5:$BF$3950,25)) -> 108.7 | AH92: =IF(OR($M92="",$M92=0),"",VLOOKUP($M92,'RLMA-SAWS Database'!$A$5:$BF$3950,26)) -> 124.6 | AI92: =IF(OR($M92="",$M92=0),"",VLOOKUP($M92,'RLMA-SAWS Database'!$A$5:$BF$3950,27)) -> 145.8 | AJ92: =IF(OR($M92="",$M92=0),"",VLOOKUP($M92,'RLMA-SAWS Database'!$A$5:$BF$3950,28)) -> 162.1 | AK92: =IF(OR($M92="",$M92=0),"",VLOOKUP($M92,'RLMA-SAWS Database'!$A$5:$BF$3950,29)) -> 178.8 | AL92: =IF(OR($M92="",$M92=0),"",VLOOKUP($M92,'RLMA-SAWS Database'!$A$5:$BF$3950,51)) -> 85.1 | AM92: =IF(OR($M92="",$M92=0),"",VLOOKUP($M92,'RLMA-SAWS Database'!$A$5:$BF$3950,52)) -> 115 | AN92: =IF(OR($M92="",$M92=0),"",VLOOKUP($M92,'RLMA-SAWS Database'!$A$5:$BF$3950,53)) -> 135.3 | AO92: =IF(OR($M92="",$M92=0),"",VLOOKUP($M92,'RLMA-SAWS Database'!$A$5:$BF$3950,54)) -> 155.2 | AP92: =IF(OR($M92="",$M92=0),"",VLOOKUP($M92,'RLMA-SAWS Database'!$A$5:$BF$3950,55)) -> 181.3 | AQ92: =IF(OR($M92="",$M92=0),"",VLOOKUP($M92,'RLMA-SAWS Database'!$A$5:$BF$3950,56)) -> 201.4 | AR92: =IF(OR($M92="",$M92=0),"",VLOOKUP($M92,'RLMA-SAWS Database'!$A$5:$BF$3950,57)) -> 221.6 | AS92: =IF(OR($M92="",$M92=0),"",VLOOKUP($M92,'RLMA-SAWS Database'!$A$5:$BF$3950,58)) -> 63 | AU92: 0261733W | AV92: =IF($AU92="","",VLOOKUP($AU92,'RLMA-SAWS Database'!$A$5:$BF$3950,2)) -> TUSSENVIER | AW92: 171.47192 | AX92: =IF($AU92="",0,VLOOKUP($AU92,'RLMA-SAWS Database'!$A$5:$BF$3950,7)) -> 486 | AY92: 83335.35312 | AZ92: =IF($AU92="",0,VLOOKUP($AU92,'RLMA-SAWS Database'!$A$5:$BF$3950,9)) -> 50.5 | BA92: 8659.33196 | BB92: =IF($AU92="",0,VLOOKUP($AU92,'RLMA-SAWS Database'!$A$5:$BF$3950,10)) -> 68.2 | BC92: 11694.38494 | BD92: =IF($AU92="",0,VLOOKUP($AU92,'RLMA-SAWS Database'!$A$5:$BF$3950,11)) -> 80.5 | BE92: 13803.48956 | BF92: =IF($AU92="",0,VLOOKUP($AU92,'RLMA-SAWS Database'!$A$5:$BF$3950,12)) -> 92.7 | BG92: 15895.44698 | BH92: =IF($AU92="",0,VLOOKUP($AU92,'RLMA-SAWS Database'!$A$5:$BF$3950,13)) -> 109.2 | BI92: 18724.73366 | BJ92: =IF($AU92="",0,VLOOKUP($AU92,'RLMA-SAWS Database'!$A$5:$BF$3950,14)) -> 122.1 | BK92: 20936.72143 | BL92: =IF($AU92="",0,VLOOKUP($AU92,'RLMA-SAWS Database'!$A$5:$BF$3950,15)) -> 135.3 | BM92: 23200.15078 | BN92: =IF($AU92="",0,VLOOKUP($AU92,'RLMA-SAWS Database'!$A$5:$BF$3950,16)) -> 63.2 | BO92: 10837.02534 | BP92: =IF($AU92="",0,VLOOKUP($AU92,'RLMA-SAWS Database'!$A$5:$BF$3950,17)) -> 85 | BQ92: 14575.1132 | BR92: =IF($AU92="",0,VLOOKUP($AU92,'RLMA-SAWS Database'!$A$5:$BF$3950,18)) -> 100.1 | BS92: 17164.33919 | BT92: =IF($AU92="",0,VLOOKUP($AU92,'RLMA-SAWS Database'!$A$5:$BF$3950,19)) -> 115.2 | BU92: 19753.56518 | BV92: =IF($AU92="",0,VLOOKUP($AU92,'RLMA-SAWS Database'!$A$5:$BF$3950,20)) -> 135.5 | BW92: 23234.44516 | BX92: =IF($AU92="",0,VLOOKUP($AU92,'RLMA-SAWS Database'!$A$5:$BF$3950,21)) -> 151.3 | BY92: 25943.7015 | BZ92: =IF($AU92="",0,VLOOKUP($AU92,'RLMA-SAWS Database'!$A$5:$BF$3950,22)) -> 167.7 | CA92: 28755.84098 | CB92: =IF($AU92="",0,VLOOKUP($AU92,'RLMA-SAWS Database'!$A$5:$BF$3950,23)) -> 68.9 | CC92: 11814.41529 | CD92: =IF($AU92="",0,VLOOKUP($AU92,'RLMA-SAWS Database'!$A$5:$BF$3950,24)) -> 92.5 | CE92: 15861.1526 | CF92: =IF($AU92="",0,VLOOKUP($AU92,'RLMA-SAWS Database'!$A$5:$BF$3950,25)) -> 108.7 | CG92: 18638.9977 | CH92: =IF($AU92="",0,VLOOKUP($AU92,'RLMA-SAWS Database'!$A$5:$BF$3950,26)) -> 124.6 | CI92: 21365.40123 | CJ92: =IF($AU92="",0,VLOOKUP($AU92,'RLMA-SAWS Database'!$A$5:$BF$3950,27)) -> 145.8 | CK92: 25000.60594 | CL92: =IF($AU92="",0,VLOOKUP($AU92,'RLMA-SAWS Database'!$A$5:$BF$3950,28)) -> 162.1 | CM92: 27795.59823 | CN92: =IF($AU92="",0,VLOOKUP($AU92,'RLMA-SAWS Database'!$A$5:$BF$3950,29)) -> 178.8 | CO92: 30659.1793 | CP92: =IF($AU92="",0,VLOOKUP($AU92,'RLMA-SAWS Database'!$A$5:$BF$3950,51)) -> 85.1 | CQ92: 14592.26039 | CR92: =IF($AU92="",0,VLOOKUP($AU92,'RLMA-SAWS Database'!$A$5:$BF$3950,52)) -> 115 | CS92: 19719.2708 | CT92: =IF($AU92="",0,VLOOKUP($AU92,'RLMA-SAWS Database'!$A$5:$BF$3950,53)) -> 135.3 | CU92: 23200.15078 | CV92: =IF($AU92="",0,VLOOKUP($AU92,'RLMA-SAWS Database'!$A$5:$BF$3950,54)) -> 155.2 | CW92: 26612.44198 | CX92: =IF($AU92="",0,VLOOKUP($AU92,'RLMA-SAWS Database'!$A$5:$BF$3950,55)) -> 181.3 | CY92: 31087.8591 | CZ92: =IF($AU92="",0,VLOOKUP($AU92,'RLMA-SAWS Database'!$A$5:$BF$3950,56)) -> 201.4 | DA92: 34534.44469 | DB92: =IF($AU92="",0,VLOOKUP($AU92,'RLMA-SAWS Database'!$A$5:$BF$3950,57)) -> 221.6 | DC92: 37998.17747 | DD92: =IF($AU92="",0,VLOOKUP($AU92,'RLMA-SAWS Database'!$A$5:$BF$3950,58)) -> 63 | DE92: 10802.73096
A93: 21 | C93: 0261789W | D93: 142.75949 | E93: =IF($C93="","",VLOOKUP($C93,'RLMA-SAWS Database'!$A$5:$BF$3950,2)) -> ELBA | F93: 121 | J93: =IF($G93="","",VLOOKUP($G93,'RLMA-SAWS Database'!$A$5:$BF$3950,2)) ->  | K93: FALSE | L93: FALSE | M93: 0261789W | N93: =IF(OR($M93="",$M93=0),"",VLOOKUP($M93,'RLMA-SAWS Database'!$A$5:$BF$3950,2)) -> ELBA | O93: 142.75949 | P93: =IF(OR($M93="",$M93=0),"",VLOOKUP($M93,'RLMA-SAWS Database'!$A$5:$BF$3950,7)) -> 551 | Q93: =IF(OR($M93="",$M93=0),"",VLOOKUP($M93,'RLMA-SAWS Database'!$A$5:$BF$3950,9)) -> 51.8 | R93: =IF(OR($M93="",$M93=0),"",VLOOKUP($M93,'RLMA-SAWS Database'!$A$5:$BF$3950,10)) -> 70.2 | S93: =IF(OR($M93="",$M93=0),"",VLOOKUP($M93,'RLMA-SAWS Database'!$A$5:$BF$3950,11)) -> 83.3 | T93: =IF(OR($M93="",$M93=0),"",VLOOKUP($M93,'RLMA-SAWS Database'!$A$5:$BF$3950,12)) -> 96.5 | U93: =IF(OR($M93="",$M93=0),"",VLOOKUP($M93,'RLMA-SAWS Database'!$A$5:$BF$3950,13)) -> 114.9 | V93: =IF(OR($M93="",$M93=0),"",VLOOKUP($M93,'RLMA-SAWS Database'!$A$5:$BF$3950,14)) -> 129.5 | W93: =IF(OR($M93="",$M93=0),"",VLOOKUP($M93,'RLMA-SAWS Database'!$A$5:$BF$3950,15)) -> 145 | X93: =IF(OR($M93="",$M93=0),"",VLOOKUP($M93,'RLMA-SAWS Database'!$A$5:$BF$3950,16)) -> 65.2 | Y93: =IF(OR($M93="",$M93=0),"",VLOOKUP($M93,'RLMA-SAWS Database'!$A$5:$BF$3950,17)) -> 87.9 | Z93: =IF(OR($M93="",$M93=0),"",VLOOKUP($M93,'RLMA-SAWS Database'!$A$5:$BF$3950,18)) -> 103.9 | AA93: =IF(OR($M93="",$M93=0),"",VLOOKUP($M93,'RLMA-SAWS Database'!$A$5:$BF$3950,19)) -> 120 | AB93: =IF(OR($M93="",$M93=0),"",VLOOKUP($M93,'RLMA-SAWS Database'!$A$5:$BF$3950,20)) -> 142.1 | AC93: =IF(OR($M93="",$M93=0),"",VLOOKUP($M93,'RLMA-SAWS Database'!$A$5:$BF$3950,21)) -> 159.4 | AD93: =IF(OR($M93="",$M93=0),"",VLOOKUP($M93,'RLMA-SAWS Database'!$A$5:$BF$3950,22)) -> 177.7 | AE93: =IF(OR($M93="",$M93=0),"",VLOOKUP($M93,'RLMA-SAWS Database'!$A$5:$BF$3950,23)) -> 72.6 | AF93: =IF(OR($M93="",$M93=0),"",VLOOKUP($M93,'RLMA-SAWS Database'!$A$5:$BF$3950,24)) -> 97.3 | AG93: =IF(OR($M93="",$M93=0),"",VLOOKUP($M93,'RLMA-SAWS Database'!$A$5:$BF$3950,25)) -> 114.3 | AH93: =IF(OR($M93="",$M93=0),"",VLOOKUP($M93,'RLMA-SAWS Database'!$A$5:$BF$3950,26)) -> 131.3 | AI93: =IF(OR($M93="",$M93=0),"",VLOOKUP($M93,'RLMA-SAWS Database'!$A$5:$BF$3950,27)) -> 154 | AJ93: =IF(OR($M93="",$M93=0),"",VLOOKUP($M93,'RLMA-SAWS Database'!$A$5:$BF$3950,28)) -> 171.7 | AK93: =IF(OR($M93="",$M93=0),"",VLOOKUP($M93,'RLMA-SAWS Database'!$A$5:$BF$3950,29)) -> 189.9 | AL93: =IF(OR($M93="",$M93=0),"",VLOOKUP($M93,'RLMA-SAWS Database'!$A$5:$BF$3950,51)) -> 94.3 | AM93: =IF(OR($M93="",$M93=0),"",VLOOKUP($M93,'RLMA-SAWS Database'!$A$5:$BF$3950,52)) -> 126.2 | AN93: =IF(OR($M93="",$M93=0),"",VLOOKUP($M93,'RLMA-SAWS Database'!$A$5:$BF$3950,53)) -> 148.1 | AO93: =IF(OR($M93="",$M93=0),"",VLOOKUP($M93,'RLMA-SAWS Database'!$A$5:$BF$3950,54)) -> 169.7 | AP93: =IF(OR($M93="",$M93=0),"",VLOOKUP($M93,'RLMA-SAWS Database'!$A$5:$BF$3950,55)) -> 198.7 | AQ93: =IF(OR($M93="",$M93=0),"",VLOOKUP($M93,'RLMA-SAWS Database'!$A$5:$BF$3950,56)) -> 221 | AR93: =IF(OR($M93="",$M93=0),"",VLOOKUP($M93,'RLMA-SAWS Database'!$A$5:$BF$3950,57)) -> 244 | AS93: =IF(OR($M93="",$M93=0),"",VLOOKUP($M93,'RLMA-SAWS Database'!$A$5:$BF$3950,58)) -> 63 | AU93: 0261789W | AV93: =IF($AU93="","",VLOOKUP($AU93,'RLMA-SAWS Database'!$A$5:$BF$3950,2)) -> ELBA | AW93: 142.75949 | AX93: =IF($AU93="",0,VLOOKUP($AU93,'RLMA-SAWS Database'!$A$5:$BF$3950,7)) -> 551 | AY93: 78660.47899 | AZ93: =IF($AU93="",0,VLOOKUP($AU93,'RLMA-SAWS Database'!$A$5:$BF$3950,9)) -> 51.8 | BA93: 7394.941582 | BB93: =IF($AU93="",0,VLOOKUP($AU93,'RLMA-SAWS Database'!$A$5:$BF$3950,10)) -> 70.2 | BC93: 10021.7162 | BD93: =IF($AU93="",0,VLOOKUP($AU93,'RLMA-SAWS Database'!$A$5:$BF$3950,11)) -> 83.3 | BE93: 11891.86552 | BF93: =IF($AU93="",0,VLOOKUP($AU93,'RLMA-SAWS Database'!$A$5:$BF$3950,12)) -> 96.5 | BG93: 13776.29078 | BH93: =IF($AU93="",0,VLOOKUP($AU93,'RLMA-SAWS Database'!$A$5:$BF$3950,13)) -> 114.9 | BI93: 16403.0654 | BJ93: =IF($AU93="",0,VLOOKUP($AU93,'RLMA-SAWS Database'!$A$5:$BF$3950,14)) -> 129.5 | BK93: 18487.35395 | BL93: =IF($AU93="",0,VLOOKUP($AU93,'RLMA-SAWS Database'!$A$5:$BF$3950,15)) -> 145 | BM93: 20700.12605 | BN93: =IF($AU93="",0,VLOOKUP($AU93,'RLMA-SAWS Database'!$A$5:$BF$3950,16)) -> 65.2 | BO93: 9307.918748 | BP93: =IF($AU93="",0,VLOOKUP($AU93,'RLMA-SAWS Database'!$A$5:$BF$3950,17)) -> 87.9 | BQ93: 12548.55917 | BR93: =IF($AU93="",0,VLOOKUP($AU93,'RLMA-SAWS Database'!$A$5:$BF$3950,18)) -> 103.9 | BS93: 14832.71101 | BT93: =IF($AU93="",0,VLOOKUP($AU93,'RLMA-SAWS Database'!$A$5:$BF$3950,19)) -> 120 | BU93: 17131.1388 | BV93: =IF($AU93="",0,VLOOKUP($AU93,'RLMA-SAWS Database'!$A$5:$BF$3950,20)) -> 142.1 | BW93: 20286.12353 | BX93: =IF($AU93="",0,VLOOKUP($AU93,'RLMA-SAWS Database'!$A$5:$BF$3950,21)) -> 159.4 | BY93: 22755.86271 | BZ93: =IF($AU93="",0,VLOOKUP($AU93,'RLMA-SAWS Database'!$A$5:$BF$3950,22)) -> 177.7 | CA93: 25368.36137 | CB93: =IF($AU93="",0,VLOOKUP($AU93,'RLMA-SAWS Database'!$A$5:$BF$3950,23)) -> 72.6 | CC93: 10364.33897 | CD93: =IF($AU93="",0,VLOOKUP($AU93,'RLMA-SAWS Database'!$A$5:$BF$3950,24)) -> 97.3 | CE93: 13890.49838 | CF93: =IF($AU93="",0,VLOOKUP($AU93,'RLMA-SAWS Database'!$A$5:$BF$3950,25)) -> 114.3 | CG93: 16317.40971 | CH93: =IF($AU93="",0,VLOOKUP($AU93,'RLMA-SAWS Database'!$A$5:$BF$3950,26)) -> 131.3 | CI93: 18744.32104 | CJ93: =IF($AU93="",0,VLOOKUP($AU93,'RLMA-SAWS Database'!$A$5:$BF$3950,27)) -> 154 | CK93: 21984.96146 | CL93: =IF($AU93="",0,VLOOKUP($AU93,'RLMA-SAWS Database'!$A$5:$BF$3950,28)) -> 171.7 | CM93: 24511.80443 | CN93: =IF($AU93="",0,VLOOKUP($AU93,'RLMA-SAWS Database'!$A$5:$BF$3950,29)) -> 189.9 | CO93: 27110.02715 | CP93: =IF($AU93="",0,VLOOKUP($AU93,'RLMA-SAWS Database'!$A$5:$BF$3950,51)) -> 94.3 | CQ93: 13462.21991 | CR93: =IF($AU93="",0,VLOOKUP($AU93,'RLMA-SAWS Database'!$A$5:$BF$3950,52)) -> 126.2 | CS93: 18016.24764 | CT93: =IF($AU93="",0,VLOOKUP($AU93,'RLMA-SAWS Database'!$A$5:$BF$3950,53)) -> 148.1 | CU93: 21142.68047 | CV93: =IF($AU93="",0,VLOOKUP($AU93,'RLMA-SAWS Database'!$A$5:$BF$3950,54)) -> 169.7 | CW93: 24226.28545 | CX93: =IF($AU93="",0,VLOOKUP($AU93,'RLMA-SAWS Database'!$A$5:$BF$3950,55)) -> 198.7 | CY93: 28366.31066 | CZ93: =IF($AU93="",0,VLOOKUP($AU93,'RLMA-SAWS Database'!$A$5:$BF$3950,56)) -> 221 | DA93: 31549.84729 | DB93: =IF($AU93="",0,VLOOKUP($AU93,'RLMA-SAWS Database'!$A$5:$BF$3950,57)) -> 244 | DC93: 34833.31556 | DD93: =IF($AU93="",0,VLOOKUP($AU93,'RLMA-SAWS Database'!$A$5:$BF$3950,58)) -> 63 | DE93: 8993.84787
A94: 22 | C94: 0261890W | D94: 371.22404 | E94: =IF($C94="","",VLOOKUP($C94,'RLMA-SAWS Database'!$A$5:$BF$3950,2)) -> MIDDELPOORT | F94: 122 | J94: =IF($G94="","",VLOOKUP($G94,'RLMA-SAWS Database'!$A$5:$BF$3950,2)) ->  | K94: FALSE | L94: FALSE | M94: 0261890W | N94: =IF(OR($M94="",$M94=0),"",VLOOKUP($M94,'RLMA-SAWS Database'!$A$5:$BF$3950,2)) -> MIDDELPOORT | O94: 371.22404 | P94: =IF(OR($M94="",$M94=0),"",VLOOKUP($M94,'RLMA-SAWS Database'!$A$5:$BF$3950,7)) -> 523 | Q94: =IF(OR($M94="",$M94=0),"",VLOOKUP($M94,'RLMA-SAWS Database'!$A$5:$BF$3950,9)) -> 52 | R94: =IF(OR($M94="",$M94=0),"",VLOOKUP($M94,'RLMA-SAWS Database'!$A$5:$BF$3950,10)) -> 70.3 | S94: =IF(OR($M94="",$M94=0),"",VLOOKUP($M94,'RLMA-SAWS Database'!$A$5:$BF$3950,11)) -> 83.4 | T94: =IF(OR($M94="",$M94=0),"",VLOOKUP($M94,'RLMA-SAWS Database'!$A$5:$BF$3950,12)) -> 96.7 | U94: =IF(OR($M94="",$M94=0),"",VLOOKUP($M94,'RLMA-SAWS Database'!$A$5:$BF$3950,13)) -> 115.2 | V94: =IF(OR($M94="",$M94=0),"",VLOOKUP($M94,'RLMA-SAWS Database'!$A$5:$BF$3950,14)) -> 129.8 | W94: =IF(OR($M94="",$M94=0),"",VLOOKUP($M94,'RLMA-SAWS Database'!$A$5:$BF$3950,15)) -> 145.4 | X94: =IF(OR($M94="",$M94=0),"",VLOOKUP($M94,'RLMA-SAWS Database'!$A$5:$BF$3950,16)) -> 64.3 | Y94: =IF(OR($M94="",$M94=0),"",VLOOKUP($M94,'RLMA-SAWS Database'!$A$5:$BF$3950,17)) -> 86.7 | Z94: =IF(OR($M94="",$M94=0),"",VLOOKUP($M94,'RLMA-SAWS Database'!$A$5:$BF$3950,18)) -> 102.4 | AA94: =IF(OR($M94="",$M94=0),"",VLOOKUP($M94,'RLMA-SAWS Database'!$A$5:$BF$3950,19)) -> 118.4 | AB94: =IF(OR($M94="",$M94=0),"",VLOOKUP($M94,'RLMA-SAWS Database'!$A$5:$BF$3950,20)) -> 140.1 | AC94: =IF(OR($M94="",$M94=0),"",VLOOKUP($M94,'RLMA-SAWS Database'!$A$5:$BF$3950,21)) -> 157.3 | AD94: =IF(OR($M94="",$M94=0),"",VLOOKUP($M94,'RLMA-SAWS Database'!$A$5:$BF$3950,22)) -> 175.2 | AE94: =IF(OR($M94="",$M94=0),"",VLOOKUP($M94,'RLMA-SAWS Database'!$A$5:$BF$3950,23)) -> 70.4 | AF94: =IF(OR($M94="",$M94=0),"",VLOOKUP($M94,'RLMA-SAWS Database'!$A$5:$BF$3950,24)) -> 94.3 | AG94: =IF(OR($M94="",$M94=0),"",VLOOKUP($M94,'RLMA-SAWS Database'!$A$5:$BF$3950,25)) -> 110.8 | AH94: =IF(OR($M94="",$M94=0),"",VLOOKUP($M94,'RLMA-SAWS Database'!$A$5:$BF$3950,26)) -> 127.2 | AI94: =IF(OR($M94="",$M94=0),"",VLOOKUP($M94,'RLMA-SAWS Database'!$A$5:$BF$3950,27)) -> 149.3 | AJ94: =IF(OR($M94="",$M94=0),"",VLOOKUP($M94,'RLMA-SAWS Database'!$A$5:$BF$3950,28)) -> 166.4 | AK94: =IF(OR($M94="",$M94=0),"",VLOOKUP($M94,'RLMA-SAWS Database'!$A$5:$BF$3950,29)) -> 184 | AL94: =IF(OR($M94="",$M94=0),"",VLOOKUP($M94,'RLMA-SAWS Database'!$A$5:$BF$3950,51)) -> 86.1 | AM94: =IF(OR($M94="",$M94=0),"",VLOOKUP($M94,'RLMA-SAWS Database'!$A$5:$BF$3950,52)) -> 115.3 | AN94: =IF(OR($M94="",$M94=0),"",VLOOKUP($M94,'RLMA-SAWS Database'!$A$5:$BF$3950,53)) -> 135.2 | AO94: =IF(OR($M94="",$M94=0),"",VLOOKUP($M94,'RLMA-SAWS Database'!$A$5:$BF$3950,54)) -> 155 | AP94: =IF(OR($M94="",$M94=0),"",VLOOKUP($M94,'RLMA-SAWS Database'!$A$5:$BF$3950,55)) -> 181.4 | AQ94: =IF(OR($M94="",$M94=0),"",VLOOKUP($M94,'RLMA-SAWS Database'!$A$5:$BF$3950,56)) -> 201.8 | AR94: =IF(OR($M94="",$M94=0),"",VLOOKUP($M94,'RLMA-SAWS Database'!$A$5:$BF$3950,57)) -> 222.8 | AS94: =IF(OR($M94="",$M94=0),"",VLOOKUP($M94,'RLMA-SAWS Database'!$A$5:$BF$3950,58)) -> 63 | AU94: 0261890W | AV94: =IF($AU94="","",VLOOKUP($AU94,'RLMA-SAWS Database'!$A$5:$BF$3950,2)) -> MIDDELPOORT | AW94: 371.22404 | AX94: =IF($AU94="",0,VLOOKUP($AU94,'RLMA-SAWS Database'!$A$5:$BF$3950,7)) -> 523 | AY94: 194150.1729 | AZ94: =IF($AU94="",0,VLOOKUP($AU94,'RLMA-SAWS Database'!$A$5:$BF$3950,9)) -> 52 | BA94: 19303.65008 | BB94: =IF($AU94="",0,VLOOKUP($AU94,'RLMA-SAWS Database'!$A$5:$BF$3950,10)) -> 70.3 | BC94: 26097.05001 | BD94: =IF($AU94="",0,VLOOKUP($AU94,'RLMA-SAWS Database'!$A$5:$BF$3950,11)) -> 83.4 | BE94: 30960.08494 | BF94: =IF($AU94="",0,VLOOKUP($AU94,'RLMA-SAWS Database'!$A$5:$BF$3950,12)) -> 96.7 | BG94: 35897.36467 | BH94: =IF($AU94="",0,VLOOKUP($AU94,'RLMA-SAWS Database'!$A$5:$BF$3950,13)) -> 115.2 | BI94: 42765.00941 | BJ94: =IF($AU94="",0,VLOOKUP($AU94,'RLMA-SAWS Database'!$A$5:$BF$3950,14)) -> 129.8 | BK94: 48184.88039 | BL94: =IF($AU94="",0,VLOOKUP($AU94,'RLMA-SAWS Database'!$A$5:$BF$3950,15)) -> 145.4 | BM94: 53975.97542 | BN94: =IF($AU94="",0,VLOOKUP($AU94,'RLMA-SAWS Database'!$A$5:$BF$3950,16)) -> 64.3 | BO94: 23869.70577 | BP94: =IF($AU94="",0,VLOOKUP($AU94,'RLMA-SAWS Database'!$A$5:$BF$3950,17)) -> 86.7 | BQ94: 32185.12427 | BR94: =IF($AU94="",0,VLOOKUP($AU94,'RLMA-SAWS Database'!$A$5:$BF$3950,18)) -> 102.4 | BS94: 38013.3417 | BT94: =IF($AU94="",0,VLOOKUP($AU94,'RLMA-SAWS Database'!$A$5:$BF$3950,19)) -> 118.4 | BU94: 43952.92634 | BV94: =IF($AU94="",0,VLOOKUP($AU94,'RLMA-SAWS Database'!$A$5:$BF$3950,20)) -> 140.1 | BW94: 52008.488 | BX94: =IF($AU94="",0,VLOOKUP($AU94,'RLMA-SAWS Database'!$A$5:$BF$3950,21)) -> 157.3 | BY94: 58393.54149 | BZ94: =IF($AU94="",0,VLOOKUP($AU94,'RLMA-SAWS Database'!$A$5:$BF$3950,22)) -> 175.2 | CA94: 65038.45181 | CB94: =IF($AU94="",0,VLOOKUP($AU94,'RLMA-SAWS Database'!$A$5:$BF$3950,23)) -> 70.4 | CC94: 26134.17242 | CD94: =IF($AU94="",0,VLOOKUP($AU94,'RLMA-SAWS Database'!$A$5:$BF$3950,24)) -> 94.3 | CE94: 35006.42697 | CF94: =IF($AU94="",0,VLOOKUP($AU94,'RLMA-SAWS Database'!$A$5:$BF$3950,25)) -> 110.8 | CG94: 41131.62363 | CH94: =IF($AU94="",0,VLOOKUP($AU94,'RLMA-SAWS Database'!$A$5:$BF$3950,26)) -> 127.2 | CI94: 47219.69789 | CJ94: =IF($AU94="",0,VLOOKUP($AU94,'RLMA-SAWS Database'!$A$5:$BF$3950,27)) -> 149.3 | CK94: 55423.74917 | CL94: =IF($AU94="",0,VLOOKUP($AU94,'RLMA-SAWS Database'!$A$5:$BF$3950,28)) -> 166.4 | CM94: 61771.68026 | CN94: =IF($AU94="",0,VLOOKUP($AU94,'RLMA-SAWS Database'!$A$5:$BF$3950,29)) -> 184 | CO94: 68305.22336 | CP94: =IF($AU94="",0,VLOOKUP($AU94,'RLMA-SAWS Database'!$A$5:$BF$3950,51)) -> 86.1 | CQ94: 31962.38984 | CR94: =IF($AU94="",0,VLOOKUP($AU94,'RLMA-SAWS Database'!$A$5:$BF$3950,52)) -> 115.3 | CS94: 42802.13181 | CT94: =IF($AU94="",0,VLOOKUP($AU94,'RLMA-SAWS Database'!$A$5:$BF$3950,53)) -> 135.2 | CU94: 50189.49021 | CV94: =IF($AU94="",0,VLOOKUP($AU94,'RLMA-SAWS Database'!$A$5:$BF$3950,54)) -> 155 | CW94: 57539.7262 | CX94: =IF($AU94="",0,VLOOKUP($AU94,'RLMA-SAWS Database'!$A$5:$BF$3950,55)) -> 181.4 | CY94: 67340.04086 | CZ94: =IF($AU94="",0,VLOOKUP($AU94,'RLMA-SAWS Database'!$A$5:$BF$3950,56)) -> 201.8 | DA94: 74913.01127 | DB94: =IF($AU94="",0,VLOOKUP($AU94,'RLMA-SAWS Database'!$A$5:$BF$3950,57)) -> 222.8 | DC94: 82708.71611 | DD94: =IF($AU94="",0,VLOOKUP($AU94,'RLMA-SAWS Database'!$A$5:$BF$3950,58)) -> 63 | DE94: 23387.11452
A95: 23 | C95: 0262129W | D95: 143.48825 | E95: =IF($C95="","",VLOOKUP($C95,'RLMA-SAWS Database'!$A$5:$BF$3950,2)) -> LIKATLONG | F95: 123 | J95: =IF($G95="","",VLOOKUP($G95,'RLMA-SAWS Database'!$A$5:$BF$3950,2)) ->  | K95: FALSE | L95: FALSE | M95: 0262129W | N95: =IF(OR($M95="",$M95=0),"",VLOOKUP($M95,'RLMA-SAWS Database'!$A$5:$BF$3950,2)) -> LIKATLONG | O95: 143.48825 | P95: =IF(OR($M95="",$M95=0),"",VLOOKUP($M95,'RLMA-SAWS Database'!$A$5:$BF$3950,7)) -> 516 | Q95: =IF(OR($M95="",$M95=0),"",VLOOKUP($M95,'RLMA-SAWS Database'!$A$5:$BF$3950,9)) -> 47.4 | R95: =IF(OR($M95="",$M95=0),"",VLOOKUP($M95,'RLMA-SAWS Database'!$A$5:$BF$3950,10)) -> 64.1 | S95: =IF(OR($M95="",$M95=0),"",VLOOKUP($M95,'RLMA-SAWS Database'!$A$5:$BF$3950,11)) -> 75.6 | T95: =IF(OR($M95="",$M95=0),"",VLOOKUP($M95,'RLMA-SAWS Database'!$A$5:$BF$3950,12)) -> 87.1 | U95: =IF(OR($M95="",$M95=0),"",VLOOKUP($M95,'RLMA-SAWS Database'!$A$5:$BF$3950,13)) -> 102.6 | V95: =IF(OR($M95="",$M95=0),"",VLOOKUP($M95,'RLMA-SAWS Database'!$A$5:$BF$3950,14)) -> 114.7 | W95: =IF(OR($M95="",$M95=0),"",VLOOKUP($M95,'RLMA-SAWS Database'!$A$5:$BF$3950,15)) -> 127.2 | X95: =IF(OR($M95="",$M95=0),"",VLOOKUP($M95,'RLMA-SAWS Database'!$A$5:$BF$3950,16)) -> 59.8 | Y95: =IF(OR($M95="",$M95=0),"",VLOOKUP($M95,'RLMA-SAWS Database'!$A$5:$BF$3950,17)) -> 80.4 | Z95: =IF(OR($M95="",$M95=0),"",VLOOKUP($M95,'RLMA-SAWS Database'!$A$5:$BF$3950,18)) -> 94.7 | AA95: =IF(OR($M95="",$M95=0),"",VLOOKUP($M95,'RLMA-SAWS Database'!$A$5:$BF$3950,19)) -> 109 | AB95: =IF(OR($M95="",$M95=0),"",VLOOKUP($M95,'RLMA-SAWS Database'!$A$5:$BF$3950,20)) -> 128.2 | AC95: =IF(OR($M95="",$M95=0),"",VLOOKUP($M95,'RLMA-SAWS Database'!$A$5:$BF$3950,21)) -> 143.2 | AD95: =IF(OR($M95="",$M95=0),"",VLOOKUP($M95,'RLMA-SAWS Database'!$A$5:$BF$3950,22)) -> 158.7 | AE95: =IF(OR($M95="",$M95=0),"",VLOOKUP($M95,'RLMA-SAWS Database'!$A$5:$BF$3950,23)) -> 66.6 | AF95: =IF(OR($M95="",$M95=0),"",VLOOKUP($M95,'RLMA-SAWS Database'!$A$5:$BF$3950,24)) -> 89.5 | AG95: =IF(OR($M95="",$M95=0),"",VLOOKUP($M95,'RLMA-SAWS Database'!$A$5:$BF$3950,25)) -> 105.1 | AH95: =IF(OR($M95="",$M95=0),"",VLOOKUP($M95,'RLMA-SAWS Database'!$A$5:$BF$3950,26)) -> 120.5 | AI95: =IF(OR($M95="",$M95=0),"",VLOOKUP($M95,'RLMA-SAWS Database'!$A$5:$BF$3950,27)) -> 141 | AJ95: =IF(OR($M95="",$M95=0),"",VLOOKUP($M95,'RLMA-SAWS Database'!$A$5:$BF$3950,28)) -> 156.8 | AK95: =IF(OR($M95="",$M95=0),"",VLOOKUP($M95,'RLMA-SAWS Database'!$A$5:$BF$3950,29)) -> 172.9 | AL95: =IF(OR($M95="",$M95=0),"",VLOOKUP($M95,'RLMA-SAWS Database'!$A$5:$BF$3950,51)) -> 84 | AM95: =IF(OR($M95="",$M95=0),"",VLOOKUP($M95,'RLMA-SAWS Database'!$A$5:$BF$3950,52)) -> 113.5 | AN95: =IF(OR($M95="",$M95=0),"",VLOOKUP($M95,'RLMA-SAWS Database'!$A$5:$BF$3950,53)) -> 133.6 | AO95: =IF(OR($M95="",$M95=0),"",VLOOKUP($M95,'RLMA-SAWS Database'!$A$5:$BF$3950,54)) -> 153.2 | AP95: =IF(OR($M95="",$M95=0),"",VLOOKUP($M95,'RLMA-SAWS Database'!$A$5:$BF$3950,55)) -> 179 | AQ95: =IF(OR($M95="",$M95=0),"",VLOOKUP($M95,'RLMA-SAWS Database'!$A$5:$BF$3950,56)) -> 198.7 | AR95: =IF(OR($M95="",$M95=0),"",VLOOKUP($M95,'RLMA-SAWS Database'!$A$5:$BF$3950,57)) -> 218.7 | AS95: =IF(OR($M95="",$M95=0),"",VLOOKUP($M95,'RLMA-SAWS Database'!$A$5:$BF$3950,58)) -> 64 | AU95: 0262129W | AV95: =IF($AU95="","",VLOOKUP($AU95,'RLMA-SAWS Database'!$A$5:$BF$3950,2)) -> LIKATLONG | AW95: 143.48825 | AX95: =IF($AU95="",0,VLOOKUP($AU95,'RLMA-SAWS Database'!$A$5:$BF$3950,7)) -> 516 | AY95: 74039.937 | AZ95: =IF($AU95="",0,VLOOKUP($AU95,'RLMA-SAWS Database'!$A$5:$BF$3950,9)) -> 47.4 | BA95: 6801.34305 | BB95: =IF($AU95="",0,VLOOKUP($AU95,'RLMA-SAWS Database'!$A$5:$BF$3950,10)) -> 64.1 | BC95: 9197.596825 | BD95: =IF($AU95="",0,VLOOKUP($AU95,'RLMA-SAWS Database'!$A$5:$BF$3950,11)) -> 75.6 | BE95: 10847.7117 | BF95: =IF($AU95="",0,VLOOKUP($AU95,'RLMA-SAWS Database'!$A$5:$BF$3950,12)) -> 87.1 | BG95: 12497.82657 | BH95: =IF($AU95="",0,VLOOKUP($AU95,'RLMA-SAWS Database'!$A$5:$BF$3950,13)) -> 102.6 | BI95: 14721.89445 | BJ95: =IF($AU95="",0,VLOOKUP($AU95,'RLMA-SAWS Database'!$A$5:$BF$3950,14)) -> 114.7 | BK95: 16458.10228 | BL95: =IF($AU95="",0,VLOOKUP($AU95,'RLMA-SAWS Database'!$A$5:$BF$3950,15)) -> 127.2 | BM95: 18251.7054 | BN95: =IF($AU95="",0,VLOOKUP($AU95,'RLMA-SAWS Database'!$A$5:$BF$3950,16)) -> 59.8 | BO95: 8580.59735 | BP95: =IF($AU95="",0,VLOOKUP($AU95,'RLMA-SAWS Database'!$A$5:$BF$3950,17)) -> 80.4 | BQ95: 11536.4553 | BR95: =IF($AU95="",0,VLOOKUP($AU95,'RLMA-SAWS Database'!$A$5:$BF$3950,18)) -> 94.7 | BS95: 13588.33727 | BT95: =IF($AU95="",0,VLOOKUP($AU95,'RLMA-SAWS Database'!$A$5:$BF$3950,19)) -> 109 | BU95: 15640.21925 | BV95: =IF($AU95="",0,VLOOKUP($AU95,'RLMA-SAWS Database'!$A$5:$BF$3950,20)) -> 128.2 | BW95: 18395.19365 | BX95: =IF($AU95="",0,VLOOKUP($AU95,'RLMA-SAWS Database'!$A$5:$BF$3950,21)) -> 143.2 | BY95: 20547.5174 | BZ95: =IF($AU95="",0,VLOOKUP($AU95,'RLMA-SAWS Database'!$A$5:$BF$3950,22)) -> 158.7 | CA95: 22771.58527 | CB95: =IF($AU95="",0,VLOOKUP($AU95,'RLMA-SAWS Database'!$A$5:$BF$3950,23)) -> 66.6 | CC95: 9556.31745 | CD95: =IF($AU95="",0,VLOOKUP($AU95,'RLMA-SAWS Database'!$A$5:$BF$3950,24)) -> 89.5 | CE95: 12842.19837 | CF95: =IF($AU95="",0,VLOOKUP($AU95,'RLMA-SAWS Database'!$A$5:$BF$3950,25)) -> 105.1 | CG95: 15080.61507 | CH95: =IF($AU95="",0,VLOOKUP($AU95,'RLMA-SAWS Database'!$A$5:$BF$3950,26)) -> 120.5 | CI95: 17290.33412 | CJ95: =IF($AU95="",0,VLOOKUP($AU95,'RLMA-SAWS Database'!$A$5:$BF$3950,27)) -> 141 | CK95: 20231.84325 | CL95: =IF($AU95="",0,VLOOKUP($AU95,'RLMA-SAWS Database'!$A$5:$BF$3950,28)) -> 156.8 | CM95: 22498.9576 | CN95: =IF($AU95="",0,VLOOKUP($AU95,'RLMA-SAWS Database'!$A$5:$BF$3950,29)) -> 172.9 | CO95: 24809.11843 | CP95: =IF($AU95="",0,VLOOKUP($AU95,'RLMA-SAWS Database'!$A$5:$BF$3950,51)) -> 84 | CQ95: 12053.013 | CR95: =IF($AU95="",0,VLOOKUP($AU95,'RLMA-SAWS Database'!$A$5:$BF$3950,52)) -> 113.5 | CS95: 16285.91637 | CT95: =IF($AU95="",0,VLOOKUP($AU95,'RLMA-SAWS Database'!$A$5:$BF$3950,53)) -> 133.6 | CU95: 19170.0302 | CV95: =IF($AU95="",0,VLOOKUP($AU95,'RLMA-SAWS Database'!$A$5:$BF$3950,54)) -> 153.2 | CW95: 21982.3999 | CX95: =IF($AU95="",0,VLOOKUP($AU95,'RLMA-SAWS Database'!$A$5:$BF$3950,55)) -> 179 | CY95: 25684.39675 | CZ95: =IF($AU95="",0,VLOOKUP($AU95,'RLMA-SAWS Database'!$A$5:$BF$3950,56)) -> 198.7 | DA95: 28511.11527 | DB95: =IF($AU95="",0,VLOOKUP($AU95,'RLMA-SAWS Database'!$A$5:$BF$3950,57)) -> 218.7 | DC95: 31380.88027 | DD95: =IF($AU95="",0,VLOOKUP($AU95,'RLMA-SAWS Database'!$A$5:$BF$3950,58)) -> 64 | DE95: 9183.248
A96: 24 | C96: 0262155W | D96: 132.66482 | E96: =IF($C96="","",VLOOKUP($C96,'RLMA-SAWS Database'!$A$5:$BF$3950,2)) -> TEVREDE | F96: 124 | J96: =IF($G96="","",VLOOKUP($G96,'RLMA-SAWS Database'!$A$5:$BF$3950,2)) ->  | K96: FALSE | L96: FALSE | M96: 0262155W | N96: =IF(OR($M96="",$M96=0),"",VLOOKUP($M96,'RLMA-SAWS Database'!$A$5:$BF$3950,2)) -> TEVREDE | O96: 132.66482 | P96: =IF(OR($M96="",$M96=0),"",VLOOKUP($M96,'RLMA-SAWS Database'!$A$5:$BF$3950,7)) -> 473 | Q96: =IF(OR($M96="",$M96=0),"",VLOOKUP($M96,'RLMA-SAWS Database'!$A$5:$BF$3950,9)) -> 48.3 | R96: =IF(OR($M96="",$M96=0),"",VLOOKUP($M96,'RLMA-SAWS Database'!$A$5:$BF$3950,10)) -> 65.3 | S96: =IF(OR($M96="",$M96=0),"",VLOOKUP($M96,'RLMA-SAWS Database'!$A$5:$BF$3950,11)) -> 77.5 | T96: =IF(OR($M96="",$M96=0),"",VLOOKUP($M96,'RLMA-SAWS Database'!$A$5:$BF$3950,12)) -> 89.8 | U96: =IF(OR($M96="",$M96=0),"",VLOOKUP($M96,'RLMA-SAWS Database'!$A$5:$BF$3950,13)) -> 106.9 | V96: =IF(OR($M96="",$M96=0),"",VLOOKUP($M96,'RLMA-SAWS Database'!$A$5:$BF$3950,14)) -> 120.6 | W96: =IF(OR($M96="",$M96=0),"",VLOOKUP($M96,'RLMA-SAWS Database'!$A$5:$BF$3950,15)) -> 135 | X96: =IF(OR($M96="",$M96=0),"",VLOOKUP($M96,'RLMA-SAWS Database'!$A$5:$BF$3950,16)) -> 60.4 | Y96: =IF(OR($M96="",$M96=0),"",VLOOKUP($M96,'RLMA-SAWS Database'!$A$5:$BF$3950,17)) -> 81.5 | Z96: =IF(OR($M96="",$M96=0),"",VLOOKUP($M96,'RLMA-SAWS Database'!$A$5:$BF$3950,18)) -> 96.3 | AA96: =IF(OR($M96="",$M96=0),"",VLOOKUP($M96,'RLMA-SAWS Database'!$A$5:$BF$3950,19)) -> 111.3 | AB96: =IF(OR($M96="",$M96=0),"",VLOOKUP($M96,'RLMA-SAWS Database'!$A$5:$BF$3950,20)) -> 131.7 | AC96: =IF(OR($M96="",$M96=0),"",VLOOKUP($M96,'RLMA-SAWS Database'!$A$5:$BF$3950,21)) -> 147.9 | AD96: =IF(OR($M96="",$M96=0),"",VLOOKUP($M96,'RLMA-SAWS Database'!$A$5:$BF$3950,22)) -> 164.8 | AE96: =IF(OR($M96="",$M96=0),"",VLOOKUP($M96,'RLMA-SAWS Database'!$A$5:$BF$3950,23)) -> 64.6 | AF96: =IF(OR($M96="",$M96=0),"",VLOOKUP($M96,'RLMA-SAWS Database'!$A$5:$BF$3950,24)) -> 86.6 | AG96: =IF(OR($M96="",$M96=0),"",VLOOKUP($M96,'RLMA-SAWS Database'!$A$5:$BF$3950,25)) -> 101.7 | AH96: =IF(OR($M96="",$M96=0),"",VLOOKUP($M96,'RLMA-SAWS Database'!$A$5:$BF$3950,26)) -> 116.8 | AI96: =IF(OR($M96="",$M96=0),"",VLOOKUP($M96,'RLMA-SAWS Database'!$A$5:$BF$3950,27)) -> 137 | AJ96: =IF(OR($M96="",$M96=0),"",VLOOKUP($M96,'RLMA-SAWS Database'!$A$5:$BF$3950,28)) -> 152.8 | AK96: =IF(OR($M96="",$M96=0),"",VLOOKUP($M96,'RLMA-SAWS Database'!$A$5:$BF$3950,29)) -> 168.9 | AL96: =IF(OR($M96="",$M96=0),"",VLOOKUP($M96,'RLMA-SAWS Database'!$A$5:$BF$3950,51)) -> 83.3 | AM96: =IF(OR($M96="",$M96=0),"",VLOOKUP($M96,'RLMA-SAWS Database'!$A$5:$BF$3950,52)) -> 111.5 | AN96: =IF(OR($M96="",$M96=0),"",VLOOKUP($M96,'RLMA-SAWS Database'!$A$5:$BF$3950,53)) -> 130.8 | AO96: =IF(OR($M96="",$M96=0),"",VLOOKUP($M96,'RLMA-SAWS Database'!$A$5:$BF$3950,54)) -> 149.9 | AP96: =IF(OR($M96="",$M96=0),"",VLOOKUP($M96,'RLMA-SAWS Database'!$A$5:$BF$3950,55)) -> 175.5 | AQ96: =IF(OR($M96="",$M96=0),"",VLOOKUP($M96,'RLMA-SAWS Database'!$A$5:$BF$3950,56)) -> 195.2 | AR96: =IF(OR($M96="",$M96=0),"",VLOOKUP($M96,'RLMA-SAWS Database'!$A$5:$BF$3950,57)) -> 215.5 | AS96: =IF(OR($M96="",$M96=0),"",VLOOKUP($M96,'RLMA-SAWS Database'!$A$5:$BF$3950,58)) -> 64 | AU96: 0262155W | AV96: =IF($AU96="","",VLOOKUP($AU96,'RLMA-SAWS Database'!$A$5:$BF$3950,2)) -> TEVREDE | AW96: 132.66482 | AX96: =IF($AU96="",0,VLOOKUP($AU96,'RLMA-SAWS Database'!$A$5:$BF$3950,7)) -> 473 | AY96: 62750.45986 | AZ96: =IF($AU96="",0,VLOOKUP($AU96,'RLMA-SAWS Database'!$A$5:$BF$3950,9)) -> 48.3 | BA96: 6407.710806 | BB96: =IF($AU96="",0,VLOOKUP($AU96,'RLMA-SAWS Database'!$A$5:$BF$3950,10)) -> 65.3 | BC96: 8663.012746 | BD96: =IF($AU96="",0,VLOOKUP($AU96,'RLMA-SAWS Database'!$A$5:$BF$3950,11)) -> 77.5 | BE96: 10281.52355 | BF96: =IF($AU96="",0,VLOOKUP($AU96,'RLMA-SAWS Database'!$A$5:$BF$3950,12)) -> 89.8 | BG96: 11913.30084 | BH96: =IF($AU96="",0,VLOOKUP($AU96,'RLMA-SAWS Database'!$A$5:$BF$3950,13)) -> 106.9 | BI96: 14181.86926 | BJ96: =IF($AU96="",0,VLOOKUP($AU96,'RLMA-SAWS Database'!$A$5:$BF$3950,14)) -> 120.6 | BK96: 15999.37729 | BL96: =IF($AU96="",0,VLOOKUP($AU96,'RLMA-SAWS Database'!$A$5:$BF$3950,15)) -> 135 | BM96: 17909.7507 | BN96: =IF($AU96="",0,VLOOKUP($AU96,'RLMA-SAWS Database'!$A$5:$BF$3950,16)) -> 60.4 | BO96: 8012.955128 | BP96: =IF($AU96="",0,VLOOKUP($AU96,'RLMA-SAWS Database'!$A$5:$BF$3950,17)) -> 81.5 | BQ96: 10812.18283 | BR96: =IF($AU96="",0,VLOOKUP($AU96,'RLMA-SAWS Database'!$A$5:$BF$3950,18)) -> 96.3 | BS96: 12775.62217 | BT96: =IF($AU96="",0,VLOOKUP($AU96,'RLMA-SAWS Database'!$A$5:$BF$3950,19)) -> 111.3 | BU96: 14765.59447 | BV96: =IF($AU96="",0,VLOOKUP($AU96,'RLMA-SAWS Database'!$A$5:$BF$3950,20)) -> 131.7 | BW96: 17471.95679 | BX96: =IF($AU96="",0,VLOOKUP($AU96,'RLMA-SAWS Database'!$A$5:$BF$3950,21)) -> 147.9 | BY96: 19621.12688 | BZ96: =IF($AU96="",0,VLOOKUP($AU96,'RLMA-SAWS Database'!$A$5:$BF$3950,22)) -> 164.8 | CA96: 21863.16234 | CB96: =IF($AU96="",0,VLOOKUP($AU96,'RLMA-SAWS Database'!$A$5:$BF$3950,23)) -> 64.6 | CC96: 8570.147372 | CD96: =IF($AU96="",0,VLOOKUP($AU96,'RLMA-SAWS Database'!$A$5:$BF$3950,24)) -> 86.6 | CE96: 11488.77341 | CF96: =IF($AU96="",0,VLOOKUP($AU96,'RLMA-SAWS Database'!$A$5:$BF$3950,25)) -> 101.7 | CG96: 13492.01219 | CH96: =IF($AU96="",0,VLOOKUP($AU96,'RLMA-SAWS Database'!$A$5:$BF$3950,26)) -> 116.8 | CI96: 15495.25098 | CJ96: =IF($AU96="",0,VLOOKUP($AU96,'RLMA-SAWS Database'!$A$5:$BF$3950,27)) -> 137 | CK96: 18175.08034 | CL96: =IF($AU96="",0,VLOOKUP($AU96,'RLMA-SAWS Database'!$A$5:$BF$3950,28)) -> 152.8 | CM96: 20271.1845 | CN96: =IF($AU96="",0,VLOOKUP($AU96,'RLMA-SAWS Database'!$A$5:$BF$3950,29)) -> 168.9 | CO96: 22407.0881 | CP96: =IF($AU96="",0,VLOOKUP($AU96,'RLMA-SAWS Database'!$A$5:$BF$3950,51)) -> 83.3 | CQ96: 11050.97951 | CR96: =IF($AU96="",0,VLOOKUP($AU96,'RLMA-SAWS Database'!$A$5:$BF$3950,52)) -> 111.5 | CS96: 14792.12743 | CT96: =IF($AU96="",0,VLOOKUP($AU96,'RLMA-SAWS Database'!$A$5:$BF$3950,53)) -> 130.8 | CU96: 17352.55846 | CV96: =IF($AU96="",0,VLOOKUP($AU96,'RLMA-SAWS Database'!$A$5:$BF$3950,54)) -> 149.9 | CW96: 19886.45652 | CX96: =IF($AU96="",0,VLOOKUP($AU96,'RLMA-SAWS Database'!$A$5:$BF$3950,55)) -> 175.5 | CY96: 23282.67591 | CZ96: =IF($AU96="",0,VLOOKUP($AU96,'RLMA-SAWS Database'!$A$5:$BF$3950,56)) -> 195.2 | DA96: 25896.17286 | DB96: =IF($AU96="",0,VLOOKUP($AU96,'RLMA-SAWS Database'!$A$5:$BF$3950,57)) -> 215.5 | DC96: 28589.26871 | DD96: =IF($AU96="",0,VLOOKUP($AU96,'RLMA-SAWS Database'!$A$5:$BF$3950,58)) -> 64 | DE96: 8490.54848
A97: 25 | C97: 0262247W | D97: 113.55446 | E97: =IF($C97="","",VLOOKUP($C97,'RLMA-SAWS Database'!$A$5:$BF$3950,2)) -> MALIKA | F97: 125 | J97: =IF($G97="","",VLOOKUP($G97,'RLMA-SAWS Database'!$A$5:$BF$3950,2)) ->  | K97: FALSE | L97: FALSE | M97: 0262247W | N97: =IF(OR($M97="",$M97=0),"",VLOOKUP($M97,'RLMA-SAWS Database'!$A$5:$BF$3950,2)) -> MALIKA | O97: 113.55446 | P97: =IF(OR($M97="",$M97=0),"",VLOOKUP($M97,'RLMA-SAWS Database'!$A$5:$BF$3950,7)) -> 566 | Q97: =IF(OR($M97="",$M97=0),"",VLOOKUP($M97,'RLMA-SAWS Database'!$A$5:$BF$3950,9)) -> 39.2 | R97: =IF(OR($M97="",$M97=0),"",VLOOKUP($M97,'RLMA-SAWS Database'!$A$5:$BF$3950,10)) -> 53.1 | S97: =IF(OR($M97="",$M97=0),"",VLOOKUP($M97,'RLMA-SAWS Database'!$A$5:$BF$3950,11)) -> 63 | T97: =IF(OR($M97="",$M97=0),"",VLOOKUP($M97,'RLMA-SAWS Database'!$A$5:$BF$3950,12)) -> 73 | U97: =IF(OR($M97="",$M97=0),"",VLOOKUP($M97,'RLMA-SAWS Database'!$A$5:$BF$3950,13)) -> 86.9 | V97: =IF(OR($M97="",$M97=0),"",VLOOKUP($M97,'RLMA-SAWS Database'!$A$5:$BF$3950,14)) -> 98 | W97: =IF(OR($M97="",$M97=0),"",VLOOKUP($M97,'RLMA-SAWS Database'!$A$5:$BF$3950,15)) -> 109.7 | X97: =IF(OR($M97="",$M97=0),"",VLOOKUP($M97,'RLMA-SAWS Database'!$A$5:$BF$3950,16)) -> 51.8 | Y97: =IF(OR($M97="",$M97=0),"",VLOOKUP($M97,'RLMA-SAWS Database'!$A$5:$BF$3950,17)) -> 69.9 | Z97: =IF(OR($M97="",$M97=0),"",VLOOKUP($M97,'RLMA-SAWS Database'!$A$5:$BF$3950,18)) -> 82.6 | AA97: =IF(OR($M97="",$M97=0),"",VLOOKUP($M97,'RLMA-SAWS Database'!$A$5:$BF$3950,19)) -> 95.4 | AB97: =IF(OR($M97="",$M97=0),"",VLOOKUP($M97,'RLMA-SAWS Database'!$A$5:$BF$3950,20)) -> 112.9 | AC97: =IF(OR($M97="",$M97=0),"",VLOOKUP($M97,'RLMA-SAWS Database'!$A$5:$BF$3950,21)) -> 126.7 | AD97: =IF(OR($M97="",$M97=0),"",VLOOKUP($M97,'RLMA-SAWS Database'!$A$5:$BF$3950,22)) -> 141.2 | AE97: =IF(OR($M97="",$M97=0),"",VLOOKUP($M97,'RLMA-SAWS Database'!$A$5:$BF$3950,23)) -> 59.4 | AF97: =IF(OR($M97="",$M97=0),"",VLOOKUP($M97,'RLMA-SAWS Database'!$A$5:$BF$3950,24)) -> 79.5 | AG97: =IF(OR($M97="",$M97=0),"",VLOOKUP($M97,'RLMA-SAWS Database'!$A$5:$BF$3950,25)) -> 93.5 | AH97: =IF(OR($M97="",$M97=0),"",VLOOKUP($M97,'RLMA-SAWS Database'!$A$5:$BF$3950,26)) -> 107.3 | AI97: =IF(OR($M97="",$M97=0),"",VLOOKUP($M97,'RLMA-SAWS Database'!$A$5:$BF$3950,27)) -> 125.9 | AJ97: =IF(OR($M97="",$M97=0),"",VLOOKUP($M97,'RLMA-SAWS Database'!$A$5:$BF$3950,28)) -> 140.4 | AK97: =IF(OR($M97="",$M97=0),"",VLOOKUP($M97,'RLMA-SAWS Database'!$A$5:$BF$3950,29)) -> 155.2 | AL97: =IF(OR($M97="",$M97=0),"",VLOOKUP($M97,'RLMA-SAWS Database'!$A$5:$BF$3950,51)) -> 78.4 | AM97: =IF(OR($M97="",$M97=0),"",VLOOKUP($M97,'RLMA-SAWS Database'!$A$5:$BF$3950,52)) -> 104.9 | AN97: =IF(OR($M97="",$M97=0),"",VLOOKUP($M97,'RLMA-SAWS Database'!$A$5:$BF$3950,53)) -> 123.1 | AO97: =IF(OR($M97="",$M97=0),"",VLOOKUP($M97,'RLMA-SAWS Database'!$A$5:$BF$3950,54)) -> 141.1 | AP97: =IF(OR($M97="",$M97=0),"",VLOOKUP($M97,'RLMA-SAWS Database'!$A$5:$BF$3950,55)) -> 165.2 | AQ97: =IF(OR($M97="",$M97=0),"",VLOOKUP($M97,'RLMA-SAWS Database'!$A$5:$BF$3950,56)) -> 183.7 | AR97: =IF(OR($M97="",$M97=0),"",VLOOKUP($M97,'RLMA-SAWS Database'!$A$5:$BF$3950,57)) -> 202.8 | AS97: =IF(OR($M97="",$M97=0),"",VLOOKUP($M97,'RLMA-SAWS Database'!$A$5:$BF$3950,58)) -> 64 | AU97: 0262247W | AV97: =IF($AU97="","",VLOOKUP($AU97,'RLMA-SAWS Database'!$A$5:$BF$3950,2)) -> MALIKA | AW97: 113.55446 | AX97: =IF($AU97="",0,VLOOKUP($AU97,'RLMA-SAWS Database'!$A$5:$BF$3950,7)) -> 566 | AY97: 64271.82436 | AZ97: =IF($AU97="",0,VLOOKUP($AU97,'RLMA-SAWS Database'!$A$5:$BF$3950,9)) -> 39.2 | BA97: 4451.334832 | BB97: =IF($AU97="",0,VLOOKUP($AU97,'RLMA-SAWS Database'!$A$5:$BF$3950,10)) -> 53.1 | BC97: 6029.741826 | BD97: =IF($AU97="",0,VLOOKUP($AU97,'RLMA-SAWS Database'!$A$5:$BF$3950,11)) -> 63 | BE97: 7153.93098 | BF97: =IF($AU97="",0,VLOOKUP($AU97,'RLMA-SAWS Database'!$A$5:$BF$3950,12)) -> 73 | BG97: 8289.47558 | BH97: =IF($AU97="",0,VLOOKUP($AU97,'RLMA-SAWS Database'!$A$5:$BF$3950,13)) -> 86.9 | BI97: 9867.882574 | BJ97: =IF($AU97="",0,VLOOKUP($AU97,'RLMA-SAWS Database'!$A$5:$BF$3950,14)) -> 98 | BK97: 11128.33708 | BL97: =IF($AU97="",0,VLOOKUP($AU97,'RLMA-SAWS Database'!$A$5:$BF$3950,15)) -> 109.7 | BM97: 12456.92426 | BN97: =IF($AU97="",0,VLOOKUP($AU97,'RLMA-SAWS Database'!$A$5:$BF$3950,16)) -> 51.8 | BO97: 5882.121028 | BP97: =IF($AU97="",0,VLOOKUP($AU97,'RLMA-SAWS Database'!$A$5:$BF$3950,17)) -> 69.9 | BQ97: 7937.456754 | BR97: =IF($AU97="",0,VLOOKUP($AU97,'RLMA-SAWS Database'!$A$5:$BF$3950,18)) -> 82.6 | BS97: 9379.598396 | BT97: =IF($AU97="",0,VLOOKUP($AU97,'RLMA-SAWS Database'!$A$5:$BF$3950,19)) -> 95.4 | BU97: 10833.09548 | BV97: =IF($AU97="",0,VLOOKUP($AU97,'RLMA-SAWS Database'!$A$5:$BF$3950,20)) -> 112.9 | BW97: 12820.29853 | BX97: =IF($AU97="",0,VLOOKUP($AU97,'RLMA-SAWS Database'!$A$5:$BF$3950,21)) -> 126.7 | BY97: 14387.35008 | BZ97: =IF($AU97="",0,VLOOKUP($AU97,'RLMA-SAWS Database'!$A$5:$BF$3950,22)) -> 141.2 | CA97: 16033.88975 | CB97: =IF($AU97="",0,VLOOKUP($AU97,'RLMA-SAWS Database'!$A$5:$BF$3950,23)) -> 59.4 | CC97: 6745.134924 | CD97: =IF($AU97="",0,VLOOKUP($AU97,'RLMA-SAWS Database'!$A$5:$BF$3950,24)) -> 79.5 | CE97: 9027.57957 | CF97: =IF($AU97="",0,VLOOKUP($AU97,'RLMA-SAWS Database'!$A$5:$BF$3950,25)) -> 93.5 | CG97: 10617.34201 | CH97: =IF($AU97="",0,VLOOKUP($AU97,'RLMA-SAWS Database'!$A$5:$BF$3950,26)) -> 107.3 | CI97: 12184.39356 | CJ97: =IF($AU97="",0,VLOOKUP($AU97,'RLMA-SAWS Database'!$A$5:$BF$3950,27)) -> 125.9 | CK97: 14296.50651 | CL97: =IF($AU97="",0,VLOOKUP($AU97,'RLMA-SAWS Database'!$A$5:$BF$3950,28)) -> 140.4 | CM97: 15943.04618 | CN97: =IF($AU97="",0,VLOOKUP($AU97,'RLMA-SAWS Database'!$A$5:$BF$3950,29)) -> 155.2 | CO97: 17623.65219 | CP97: =IF($AU97="",0,VLOOKUP($AU97,'RLMA-SAWS Database'!$A$5:$BF$3950,51)) -> 78.4 | CQ97: 8902.669664 | CR97: =IF($AU97="",0,VLOOKUP($AU97,'RLMA-SAWS Database'!$A$5:$BF$3950,52)) -> 104.9 | CS97: 11911.86285 | CT97: =IF($AU97="",0,VLOOKUP($AU97,'RLMA-SAWS Database'!$A$5:$BF$3950,53)) -> 123.1 | CU97: 13978.55403 | CV97: =IF($AU97="",0,VLOOKUP($AU97,'RLMA-SAWS Database'!$A$5:$BF$3950,54)) -> 141.1 | CW97: 16022.53431 | CX97: =IF($AU97="",0,VLOOKUP($AU97,'RLMA-SAWS Database'!$A$5:$BF$3950,55)) -> 165.2 | CY97: 18759.19679 | CZ97: =IF($AU97="",0,VLOOKUP($AU97,'RLMA-SAWS Database'!$A$5:$BF$3950,56)) -> 183.7 | DA97: 20859.9543 | DB97: =IF($AU97="",0,VLOOKUP($AU97,'RLMA-SAWS Database'!$A$5:$BF$3950,57)) -> 202.8 | DC97: 23028.84449 | DD97: =IF($AU97="",0,VLOOKUP($AU97,'RLMA-SAWS Database'!$A$5:$BF$3950,58)) -> 64 | DE97: 7267.48544
A98: 26 | C98: 0262271W | D98: 140.45671 | E98: =IF($C98="","",VLOOKUP($C98,'RLMA-SAWS Database'!$A$5:$BF$3950,2)) -> ROOIKRAAL | F98: 126 | J98: =IF($G98="","",VLOOKUP($G98,'RLMA-SAWS Database'!$A$5:$BF$3950,2)) ->  | K98: FALSE | L98: FALSE | M98: 0262271W | N98: =IF(OR($M98="",$M98=0),"",VLOOKUP($M98,'RLMA-SAWS Database'!$A$5:$BF$3950,2)) -> ROOIKRAAL | O98: 140.45671 | P98: =IF(OR($M98="",$M98=0),"",VLOOKUP($M98,'RLMA-SAWS Database'!$A$5:$BF$3950,7)) -> 435 | Q98: =IF(OR($M98="",$M98=0),"",VLOOKUP($M98,'RLMA-SAWS Database'!$A$5:$BF$3950,9)) -> 52.5 | R98: =IF(OR($M98="",$M98=0),"",VLOOKUP($M98,'RLMA-SAWS Database'!$A$5:$BF$3950,10)) -> 71.1 | S98: =IF(OR($M98="",$M98=0),"",VLOOKUP($M98,'RLMA-SAWS Database'!$A$5:$BF$3950,11)) -> 84.3 | T98: =IF(OR($M98="",$M98=0),"",VLOOKUP($M98,'RLMA-SAWS Database'!$A$5:$BF$3950,12)) -> 97.8 | U98: =IF(OR($M98="",$M98=0),"",VLOOKUP($M98,'RLMA-SAWS Database'!$A$5:$BF$3950,13)) -> 116.4 | V98: =IF(OR($M98="",$M98=0),"",VLOOKUP($M98,'RLMA-SAWS Database'!$A$5:$BF$3950,14)) -> 131.2 | W98: =IF(OR($M98="",$M98=0),"",VLOOKUP($M98,'RLMA-SAWS Database'!$A$5:$BF$3950,15)) -> 146.9 | X98: =IF(OR($M98="",$M98=0),"",VLOOKUP($M98,'RLMA-SAWS Database'!$A$5:$BF$3950,16)) -> 59.9 | Y98: =IF(OR($M98="",$M98=0),"",VLOOKUP($M98,'RLMA-SAWS Database'!$A$5:$BF$3950,17)) -> 80.7 | Z98: =IF(OR($M98="",$M98=0),"",VLOOKUP($M98,'RLMA-SAWS Database'!$A$5:$BF$3950,18)) -> 95.4 | AA98: =IF(OR($M98="",$M98=0),"",VLOOKUP($M98,'RLMA-SAWS Database'!$A$5:$BF$3950,19)) -> 110.3 | AB98: =IF(OR($M98="",$M98=0),"",VLOOKUP($M98,'RLMA-SAWS Database'!$A$5:$BF$3950,20)) -> 130.5 | AC98: =IF(OR($M98="",$M98=0),"",VLOOKUP($M98,'RLMA-SAWS Database'!$A$5:$BF$3950,21)) -> 146.5 | AD98: =IF(OR($M98="",$M98=0),"",VLOOKUP($M98,'RLMA-SAWS Database'!$A$5:$BF$3950,22)) -> 163.2 | AE98: =IF(OR($M98="",$M98=0),"",VLOOKUP($M98,'RLMA-SAWS Database'!$A$5:$BF$3950,23)) -> 66 | AF98: =IF(OR($M98="",$M98=0),"",VLOOKUP($M98,'RLMA-SAWS Database'!$A$5:$BF$3950,24)) -> 88.4 | AG98: =IF(OR($M98="",$M98=0),"",VLOOKUP($M98,'RLMA-SAWS Database'!$A$5:$BF$3950,25)) -> 103.9 | AH98: =IF(OR($M98="",$M98=0),"",VLOOKUP($M98,'RLMA-SAWS Database'!$A$5:$BF$3950,26)) -> 119.3 | AI98: =IF(OR($M98="",$M98=0),"",VLOOKUP($M98,'RLMA-SAWS Database'!$A$5:$BF$3950,27)) -> 140 | AJ98: =IF(OR($M98="",$M98=0),"",VLOOKUP($M98,'RLMA-SAWS Database'!$A$5:$BF$3950,28)) -> 156.1 | AK98: =IF(OR($M98="",$M98=0),"",VLOOKUP($M98,'RLMA-SAWS Database'!$A$5:$BF$3950,29)) -> 172.6 | AL98: =IF(OR($M98="",$M98=0),"",VLOOKUP($M98,'RLMA-SAWS Database'!$A$5:$BF$3950,51)) -> 80.9 | AM98: =IF(OR($M98="",$M98=0),"",VLOOKUP($M98,'RLMA-SAWS Database'!$A$5:$BF$3950,52)) -> 108.3 | AN98: =IF(OR($M98="",$M98=0),"",VLOOKUP($M98,'RLMA-SAWS Database'!$A$5:$BF$3950,53)) -> 127 | AO98: =IF(OR($M98="",$M98=0),"",VLOOKUP($M98,'RLMA-SAWS Database'!$A$5:$BF$3950,54)) -> 145.6 | AP98: =IF(OR($M98="",$M98=0),"",VLOOKUP($M98,'RLMA-SAWS Database'!$A$5:$BF$3950,55)) -> 170.4 | AQ98: =IF(OR($M98="",$M98=0),"",VLOOKUP($M98,'RLMA-SAWS Database'!$A$5:$BF$3950,56)) -> 189.6 | AR98: =IF(OR($M98="",$M98=0),"",VLOOKUP($M98,'RLMA-SAWS Database'!$A$5:$BF$3950,57)) -> 209.3 | AS98: =IF(OR($M98="",$M98=0),"",VLOOKUP($M98,'RLMA-SAWS Database'!$A$5:$BF$3950,58)) -> 64 | AU98: 0262271W | AV98: =IF($AU98="","",VLOOKUP($AU98,'RLMA-SAWS Database'!$A$5:$BF$3950,2)) -> ROOIKRAAL | AW98: 140.45671 | AX98: =IF($AU98="",0,VLOOKUP($AU98,'RLMA-SAWS Database'!$A$5:$BF$3950,7)) -> 435 | AY98: 61098.66885 | AZ98: =IF($AU98="",0,VLOOKUP($AU98,'RLMA-SAWS Database'!$A$5:$BF$3950,9)) -> 52.5 | BA98: 7373.977275 | BB98: =IF($AU98="",0,VLOOKUP($AU98,'RLMA-SAWS Database'!$A$5:$BF$3950,10)) -> 71.1 | BC98: 9986.472081 | BD98: =IF($AU98="",0,VLOOKUP($AU98,'RLMA-SAWS Database'!$A$5:$BF$3950,11)) -> 84.3 | BE98: 11840.50065 | BF98: =IF($AU98="",0,VLOOKUP($AU98,'RLMA-SAWS Database'!$A$5:$BF$3950,12)) -> 97.8 | BG98: 13736.66624 | BH98: =IF($AU98="",0,VLOOKUP($AU98,'RLMA-SAWS Database'!$A$5:$BF$3950,13)) -> 116.4 | BI98: 16349.16104 | BJ98: =IF($AU98="",0,VLOOKUP($AU98,'RLMA-SAWS Database'!$A$5:$BF$3950,14)) -> 131.2 | BK98: 18427.92035 | BL98: =IF($AU98="",0,VLOOKUP($AU98,'RLMA-SAWS Database'!$A$5:$BF$3950,15)) -> 146.9 | BM98: 20633.0907 | BN98: =IF($AU98="",0,VLOOKUP($AU98,'RLMA-SAWS Database'!$A$5:$BF$3950,16)) -> 59.9 | BO98: 8413.356929 | BP98: =IF($AU98="",0,VLOOKUP($AU98,'RLMA-SAWS Database'!$A$5:$BF$3950,17)) -> 80.7 | BQ98: 11334.8565 | BR98: =IF($AU98="",0,VLOOKUP($AU98,'RLMA-SAWS Database'!$A$5:$BF$3950,18)) -> 95.4 | BS98: 13399.57013 | BT98: =IF($AU98="",0,VLOOKUP($AU98,'RLMA-SAWS Database'!$A$5:$BF$3950,19)) -> 110.3 | BU98: 15492.37511 | BV98: =IF($AU98="",0,VLOOKUP($AU98,'RLMA-SAWS Database'!$A$5:$BF$3950,20)) -> 130.5 | BW98: 18329.60065 | BX98: =IF($AU98="",0,VLOOKUP($AU98,'RLMA-SAWS Database'!$A$5:$BF$3950,21)) -> 146.5 | BY98: 20576.90801 | BZ98: =IF($AU98="",0,VLOOKUP($AU98,'RLMA-SAWS Database'!$A$5:$BF$3950,22)) -> 163.2 | CA98: 22922.53507 | CB98: =IF($AU98="",0,VLOOKUP($AU98,'RLMA-SAWS Database'!$A$5:$BF$3950,23)) -> 66 | CC98: 9270.14286 | CD98: =IF($AU98="",0,VLOOKUP($AU98,'RLMA-SAWS Database'!$A$5:$BF$3950,24)) -> 88.4 | CE98: 12416.37316 | CF98: =IF($AU98="",0,VLOOKUP($AU98,'RLMA-SAWS Database'!$A$5:$BF$3950,25)) -> 103.9 | CG98: 14593.45217 | CH98: =IF($AU98="",0,VLOOKUP($AU98,'RLMA-SAWS Database'!$A$5:$BF$3950,26)) -> 119.3 | CI98: 16756.4855 | CJ98: =IF($AU98="",0,VLOOKUP($AU98,'RLMA-SAWS Database'!$A$5:$BF$3950,27)) -> 140 | CK98: 19663.9394 | CL98: =IF($AU98="",0,VLOOKUP($AU98,'RLMA-SAWS Database'!$A$5:$BF$3950,28)) -> 156.1 | CM98: 21925.29243 | CN98: =IF($AU98="",0,VLOOKUP($AU98,'RLMA-SAWS Database'!$A$5:$BF$3950,29)) -> 172.6 | CO98: 24242.82815 | CP98: =IF($AU98="",0,VLOOKUP($AU98,'RLMA-SAWS Database'!$A$5:$BF$3950,51)) -> 80.9 | CQ98: 11362.94784 | CR98: =IF($AU98="",0,VLOOKUP($AU98,'RLMA-SAWS Database'!$A$5:$BF$3950,52)) -> 108.3 | CS98: 15211.46169 | CT98: =IF($AU98="",0,VLOOKUP($AU98,'RLMA-SAWS Database'!$A$5:$BF$3950,53)) -> 127 | CU98: 17838.00217 | CV98: =IF($AU98="",0,VLOOKUP($AU98,'RLMA-SAWS Database'!$A$5:$BF$3950,54)) -> 145.6 | CW98: 20450.49698 | CX98: =IF($AU98="",0,VLOOKUP($AU98,'RLMA-SAWS Database'!$A$5:$BF$3950,55)) -> 170.4 | CY98: 23933.82338 | CZ98: =IF($AU98="",0,VLOOKUP($AU98,'RLMA-SAWS Database'!$A$5:$BF$3950,56)) -> 189.6 | DA98: 26630.59222 | DB98: =IF($AU98="",0,VLOOKUP($AU98,'RLMA-SAWS Database'!$A$5:$BF$3950,57)) -> 209.3 | DC98: 29397.5894 | DD98: =IF($AU98="",0,VLOOKUP($AU98,'RLMA-SAWS Database'!$A$5:$BF$3950,58)) -> 64 | DE98: 8989.22944
A99: 27 | C99: 0262314W | D99: 250.3775 | E99: =IF($C99="","",VLOOKUP($C99,'RLMA-SAWS Database'!$A$5:$BF$3950,2)) -> KROMDRAAI | F99: 127 | J99: =IF($G99="","",VLOOKUP($G99,'RLMA-SAWS Database'!$A$5:$BF$3950,2)) ->  | K99: FALSE | L99: FALSE | M99: 0262314W | N99: =IF(OR($M99="",$M99=0),"",VLOOKUP($M99,'RLMA-SAWS Database'!$A$5:$BF$3950,2)) -> KROMDRAAI | O99: 250.3775 | P99: =IF(OR($M99="",$M99=0),"",VLOOKUP($M99,'RLMA-SAWS Database'!$A$5:$BF$3950,7)) -> 526 | Q99: =IF(OR($M99="",$M99=0),"",VLOOKUP($M99,'RLMA-SAWS Database'!$A$5:$BF$3950,9)) -> 48.3 | R99: =IF(OR($M99="",$M99=0),"",VLOOKUP($M99,'RLMA-SAWS Database'!$A$5:$BF$3950,10)) -> 65.4 | S99: =IF(OR($M99="",$M99=0),"",VLOOKUP($M99,'RLMA-SAWS Database'!$A$5:$BF$3950,11)) -> 77.6 | T99: =IF(OR($M99="",$M99=0),"",VLOOKUP($M99,'RLMA-SAWS Database'!$A$5:$BF$3950,12)) -> 90 | U99: =IF(OR($M99="",$M99=0),"",VLOOKUP($M99,'RLMA-SAWS Database'!$A$5:$BF$3950,13)) -> 107.1 | V99: =IF(OR($M99="",$M99=0),"",VLOOKUP($M99,'RLMA-SAWS Database'!$A$5:$BF$3950,14)) -> 120.7 | W99: =IF(OR($M99="",$M99=0),"",VLOOKUP($M99,'RLMA-SAWS Database'!$A$5:$BF$3950,15)) -> 135.2 | X99: =IF(OR($M99="",$M99=0),"",VLOOKUP($M99,'RLMA-SAWS Database'!$A$5:$BF$3950,16)) -> 61.4 | Y99: =IF(OR($M99="",$M99=0),"",VLOOKUP($M99,'RLMA-SAWS Database'!$A$5:$BF$3950,17)) -> 82.9 | Z99: =IF(OR($M99="",$M99=0),"",VLOOKUP($M99,'RLMA-SAWS Database'!$A$5:$BF$3950,18)) -> 97.9 | AA99: =IF(OR($M99="",$M99=0),"",VLOOKUP($M99,'RLMA-SAWS Database'!$A$5:$BF$3950,19)) -> 113.2 | AB99: =IF(OR($M99="",$M99=0),"",VLOOKUP($M99,'RLMA-SAWS Database'!$A$5:$BF$3950,20)) -> 134 | AC99: =IF(OR($M99="",$M99=0),"",VLOOKUP($M99,'RLMA-SAWS Database'!$A$5:$BF$3950,21)) -> 150.4 | AD99: =IF(OR($M99="",$M99=0),"",VLOOKUP($M99,'RLMA-SAWS Database'!$A$5:$BF$3950,22)) -> 167.5 | AE99: =IF(OR($M99="",$M99=0),"",VLOOKUP($M99,'RLMA-SAWS Database'!$A$5:$BF$3950,23)) -> 67.7 | AF99: =IF(OR($M99="",$M99=0),"",VLOOKUP($M99,'RLMA-SAWS Database'!$A$5:$BF$3950,24)) -> 90.6 | AG99: =IF(OR($M99="",$M99=0),"",VLOOKUP($M99,'RLMA-SAWS Database'!$A$5:$BF$3950,25)) -> 106.5 | AH99: =IF(OR($M99="",$M99=0),"",VLOOKUP($M99,'RLMA-SAWS Database'!$A$5:$BF$3950,26)) -> 122.2 | AI99: =IF(OR($M99="",$M99=0),"",VLOOKUP($M99,'RLMA-SAWS Database'!$A$5:$BF$3950,27)) -> 143.4 | AJ99: =IF(OR($M99="",$M99=0),"",VLOOKUP($M99,'RLMA-SAWS Database'!$A$5:$BF$3950,28)) -> 159.9 | AK99: =IF(OR($M99="",$M99=0),"",VLOOKUP($M99,'RLMA-SAWS Database'!$A$5:$BF$3950,29)) -> 176.8 | AL99: =IF(OR($M99="",$M99=0),"",VLOOKUP($M99,'RLMA-SAWS Database'!$A$5:$BF$3950,51)) -> 84.8 | AM99: =IF(OR($M99="",$M99=0),"",VLOOKUP($M99,'RLMA-SAWS Database'!$A$5:$BF$3950,52)) -> 113.6 | AN99: =IF(OR($M99="",$M99=0),"",VLOOKUP($M99,'RLMA-SAWS Database'!$A$5:$BF$3950,53)) -> 133.2 | AO99: =IF(OR($M99="",$M99=0),"",VLOOKUP($M99,'RLMA-SAWS Database'!$A$5:$BF$3950,54)) -> 152.6 | AP99: =IF(OR($M99="",$M99=0),"",VLOOKUP($M99,'RLMA-SAWS Database'!$A$5:$BF$3950,55)) -> 178.7 | AQ99: =IF(OR($M99="",$M99=0),"",VLOOKUP($M99,'RLMA-SAWS Database'!$A$5:$BF$3950,56)) -> 198.8 | AR99: =IF(OR($M99="",$M99=0),"",VLOOKUP($M99,'RLMA-SAWS Database'!$A$5:$BF$3950,57)) -> 219.5 | AS99: =IF(OR($M99="",$M99=0),"",VLOOKUP($M99,'RLMA-SAWS Database'!$A$5:$BF$3950,58)) -> 64 | AU99: 0262314W | AV99: =IF($AU99="","",VLOOKUP($AU99,'RLMA-SAWS Database'!$A$5:$BF$3950,2)) -> KROMDRAAI | AW99: 250.3775 | AX99: =IF($AU99="",0,VLOOKUP($AU99,'RLMA-SAWS Database'!$A$5:$BF$3950,7)) -> 526 | AY99: 131698.565 | AZ99: =IF($AU99="",0,VLOOKUP($AU99,'RLMA-SAWS Database'!$A$5:$BF$3950,9)) -> 48.3 | BA99: 12093.23325 | BB99: =IF($AU99="",0,VLOOKUP($AU99,'RLMA-SAWS Database'!$A$5:$BF$3950,10)) -> 65.4 | BC99: 16374.6885 | BD99: =IF($AU99="",0,VLOOKUP($AU99,'RLMA-SAWS Database'!$A$5:$BF$3950,11)) -> 77.6 | BE99: 19429.294 | BF99: =IF($AU99="",0,VLOOKUP($AU99,'RLMA-SAWS Database'!$A$5:$BF$3950,12)) -> 90 | BG99: 22533.975 | BH99: =IF($AU99="",0,VLOOKUP($AU99,'RLMA-SAWS Database'!$A$5:$BF$3950,13)) -> 107.1 | BI99: 26815.43025 | BJ99: =IF($AU99="",0,VLOOKUP($AU99,'RLMA-SAWS Database'!$A$5:$BF$3950,14)) -> 120.7 | BK99: 30220.56425 | BL99: =IF($AU99="",0,VLOOKUP($AU99,'RLMA-SAWS Database'!$A$5:$BF$3950,15)) -> 135.2 | BM99: 33851.038 | BN99: =IF($AU99="",0,VLOOKUP($AU99,'RLMA-SAWS Database'!$A$5:$BF$3950,16)) -> 61.4 | BO99: 15373.1785 | BP99: =IF($AU99="",0,VLOOKUP($AU99,'RLMA-SAWS Database'!$A$5:$BF$3950,17)) -> 82.9 | BQ99: 20756.29475 | BR99: =IF($AU99="",0,VLOOKUP($AU99,'RLMA-SAWS Database'!$A$5:$BF$3950,18)) -> 97.9 | BS99: 24511.95725 | BT99: =IF($AU99="",0,VLOOKUP($AU99,'RLMA-SAWS Database'!$A$5:$BF$3950,19)) -> 113.2 | BU99: 28342.733 | BV99: =IF($AU99="",0,VLOOKUP($AU99,'RLMA-SAWS Database'!$A$5:$BF$3950,20)) -> 134 | BW99: 33550.585 | BX99: =IF($AU99="",0,VLOOKUP($AU99,'RLMA-SAWS Database'!$A$5:$BF$3950,21)) -> 150.4 | BY99: 37656.776 | BZ99: =IF($AU99="",0,VLOOKUP($AU99,'RLMA-SAWS Database'!$A$5:$BF$3950,22)) -> 167.5 | CA99: 41938.23125 | CB99: =IF($AU99="",0,VLOOKUP($AU99,'RLMA-SAWS Database'!$A$5:$BF$3950,23)) -> 67.7 | CC99: 16950.55675 | CD99: =IF($AU99="",0,VLOOKUP($AU99,'RLMA-SAWS Database'!$A$5:$BF$3950,24)) -> 90.6 | CE99: 22684.2015 | CF99: =IF($AU99="",0,VLOOKUP($AU99,'RLMA-SAWS Database'!$A$5:$BF$3950,25)) -> 106.5 | CG99: 26665.20375 | CH99: =IF($AU99="",0,VLOOKUP($AU99,'RLMA-SAWS Database'!$A$5:$BF$3950,26)) -> 122.2 | CI99: 30596.1305 | CJ99: =IF($AU99="",0,VLOOKUP($AU99,'RLMA-SAWS Database'!$A$5:$BF$3950,27)) -> 143.4 | CK99: 35904.1335 | CL99: =IF($AU99="",0,VLOOKUP($AU99,'RLMA-SAWS Database'!$A$5:$BF$3950,28)) -> 159.9 | CM99: 40035.36225 | CN99: =IF($AU99="",0,VLOOKUP($AU99,'RLMA-SAWS Database'!$A$5:$BF$3950,29)) -> 176.8 | CO99: 44266.742 | CP99: =IF($AU99="",0,VLOOKUP($AU99,'RLMA-SAWS Database'!$A$5:$BF$3950,51)) -> 84.8 | CQ99: 21232.012 | CR99: =IF($AU99="",0,VLOOKUP($AU99,'RLMA-SAWS Database'!$A$5:$BF$3950,52)) -> 113.6 | CS99: 28442.884 | CT99: =IF($AU99="",0,VLOOKUP($AU99,'RLMA-SAWS Database'!$A$5:$BF$3950,53)) -> 133.2 | CU99: 33350.283 | CV99: =IF($AU99="",0,VLOOKUP($AU99,'RLMA-SAWS Database'!$A$5:$BF$3950,54)) -> 152.6 | CW99: 38207.6065 | CX99: =IF($AU99="",0,VLOOKUP($AU99,'RLMA-SAWS Database'!$A$5:$BF$3950,55)) -> 178.7 | CY99: 44742.45925 | CZ99: =IF($AU99="",0,VLOOKUP($AU99,'RLMA-SAWS Database'!$A$5:$BF$3950,56)) -> 198.8 | DA99: 49775.047 | DB99: =IF($AU99="",0,VLOOKUP($AU99,'RLMA-SAWS Database'!$A$5:$BF$3950,57)) -> 219.5 | DC99: 54957.86125 | DD99: =IF($AU99="",0,VLOOKUP($AU99,'RLMA-SAWS Database'!$A$5:$BF$3950,58)) -> 64 | DE99: 16024.16
A100: 28 | C100: 0262353W | D100: 296.53507 | E100: =IF($C100="","",VLOOKUP($C100,'RLMA-SAWS Database'!$A$5:$BF$3950,2)) -> KILMARNOCK | F100: 128 | J100: =IF($G100="","",VLOOKUP($G100,'RLMA-SAWS Database'!$A$5:$BF$3950,2)) ->  | K100: FALSE | L100: FALSE | M100: 0262353W | N100: =IF(OR($M100="",$M100=0),"",VLOOKUP($M100,'RLMA-SAWS Database'!$A$5:$BF$3950,2)) -> KILMARNOCK | O100: 296.53507 | P100: =IF(OR($M100="",$M100=0),"",VLOOKUP($M100,'RLMA-SAWS Database'!$A$5:$BF$3950,7)) -> 530 | Q100: =IF(OR($M100="",$M100=0),"",VLOOKUP($M100,'RLMA-SAWS Database'!$A$5:$BF$3950,9)) -> 50.4 | R100: =IF(OR($M100="",$M100=0),"",VLOOKUP($M100,'RLMA-SAWS Database'!$A$5:$BF$3950,10)) -> 68.2 | S100: =IF(OR($M100="",$M100=0),"",VLOOKUP($M100,'RLMA-SAWS Database'!$A$5:$BF$3950,11)) -> 80.9 | T100: =IF(OR($M100="",$M100=0),"",VLOOKUP($M100,'RLMA-SAWS Database'!$A$5:$BF$3950,12)) -> 93.7 | U100: =IF(OR($M100="",$M100=0),"",VLOOKUP($M100,'RLMA-SAWS Database'!$A$5:$BF$3950,13)) -> 111.6 | V100: =IF(OR($M100="",$M100=0),"",VLOOKUP($M100,'RLMA-SAWS Database'!$A$5:$BF$3950,14)) -> 125.8 | W100: =IF(OR($M100="",$M100=0),"",VLOOKUP($M100,'RLMA-SAWS Database'!$A$5:$BF$3950,15)) -> 140.9 | X100: =IF(OR($M100="",$M100=0),"",VLOOKUP($M100,'RLMA-SAWS Database'!$A$5:$BF$3950,16)) -> 67 | Y100: =IF(OR($M100="",$M100=0),"",VLOOKUP($M100,'RLMA-SAWS Database'!$A$5:$BF$3950,17)) -> 90.4 | Z100: =IF(OR($M100="",$M100=0),"",VLOOKUP($M100,'RLMA-SAWS Database'!$A$5:$BF$3950,18)) -> 106.8 | AA100: =IF(OR($M100="",$M100=0),"",VLOOKUP($M100,'RLMA-SAWS Database'!$A$5:$BF$3950,19)) -> 123.5 | AB100: =IF(OR($M100="",$M100=0),"",VLOOKUP($M100,'RLMA-SAWS Database'!$A$5:$BF$3950,20)) -> 146.1 | AC100: =IF(OR($M100="",$M100=0),"",VLOOKUP($M100,'RLMA-SAWS Database'!$A$5:$BF$3950,21)) -> 164 | AD100: =IF(OR($M100="",$M100=0),"",VLOOKUP($M100,'RLMA-SAWS Database'!$A$5:$BF$3950,22)) -> 182.8 | AE100: =IF(OR($M100="",$M100=0),"",VLOOKUP($M100,'RLMA-SAWS Database'!$A$5:$BF$3950,23)) -> 74 | AF100: =IF(OR($M100="",$M100=0),"",VLOOKUP($M100,'RLMA-SAWS Database'!$A$5:$BF$3950,24)) -> 99.1 | AG100: =IF(OR($M100="",$M100=0),"",VLOOKUP($M100,'RLMA-SAWS Database'!$A$5:$BF$3950,25)) -> 116.5 | AH100: =IF(OR($M100="",$M100=0),"",VLOOKUP($M100,'RLMA-SAWS Database'!$A$5:$BF$3950,26)) -> 133.8 | AI100: =IF(OR($M100="",$M100=0),"",VLOOKUP($M100,'RLMA-SAWS Database'!$A$5:$BF$3950,27)) -> 157 | AJ100: =IF(OR($M100="",$M100=0),"",VLOOKUP($M100,'RLMA-SAWS Database'!$A$5:$BF$3950,28)) -> 175 | AK100: =IF(OR($M100="",$M100=0),"",VLOOKUP($M100,'RLMA-SAWS Database'!$A$5:$BF$3950,29)) -> 193.5 | AL100: =IF(OR($M100="",$M100=0),"",VLOOKUP($M100,'RLMA-SAWS Database'!$A$5:$BF$3950,51)) -> 94.4 | AM100: =IF(OR($M100="",$M100=0),"",VLOOKUP($M100,'RLMA-SAWS Database'!$A$5:$BF$3950,52)) -> 126.4 | AN100: =IF(OR($M100="",$M100=0),"",VLOOKUP($M100,'RLMA-SAWS Database'!$A$5:$BF$3950,53)) -> 148.2 | AO100: =IF(OR($M100="",$M100=0),"",VLOOKUP($M100,'RLMA-SAWS Database'!$A$5:$BF$3950,54)) -> 169.9 | AP100: =IF(OR($M100="",$M100=0),"",VLOOKUP($M100,'RLMA-SAWS Database'!$A$5:$BF$3950,55)) -> 198.9 | AQ100: =IF(OR($M100="",$M100=0),"",VLOOKUP($M100,'RLMA-SAWS Database'!$A$5:$BF$3950,56)) -> 221.3 | AR100: =IF(OR($M100="",$M100=0),"",VLOOKUP($M100,'RLMA-SAWS Database'!$A$5:$BF$3950,57)) -> 244.2 | AS100: =IF(OR($M100="",$M100=0),"",VLOOKUP($M100,'RLMA-SAWS Database'!$A$5:$BF$3950,58)) -> 64 | AU100: 0262353W | AV100: =IF($AU100="","",VLOOKUP($AU100,'RLMA-SAWS Database'!$A$5:$BF$3950,2)) -> KILMARNOCK | AW100: 296.53507 | AX100: =IF($AU100="",0,VLOOKUP($AU100,'RLMA-SAWS Database'!$A$5:$BF$3950,7)) -> 530 | AY100: 157163.5871 | AZ100: =IF($AU100="",0,VLOOKUP($AU100,'RLMA-SAWS Database'!$A$5:$BF$3950,9)) -> 50.4 | BA100: 14945.36753 | BB100: =IF($AU100="",0,VLOOKUP($AU100,'RLMA-SAWS Database'!$A$5:$BF$3950,10)) -> 68.2 | BC100: 20223.69177 | BD100: =IF($AU100="",0,VLOOKUP($AU100,'RLMA-SAWS Database'!$A$5:$BF$3950,11)) -> 80.9 | BE100: 23989.68716 | BF100: =IF($AU100="",0,VLOOKUP($AU100,'RLMA-SAWS Database'!$A$5:$BF$3950,12)) -> 93.7 | BG100: 27785.33606 | BH100: =IF($AU100="",0,VLOOKUP($AU100,'RLMA-SAWS Database'!$A$5:$BF$3950,13)) -> 111.6 | BI100: 33093.31381 | BJ100: =IF($AU100="",0,VLOOKUP($AU100,'RLMA-SAWS Database'!$A$5:$BF$3950,14)) -> 125.8 | BK100: 37304.11181 | BL100: =IF($AU100="",0,VLOOKUP($AU100,'RLMA-SAWS Database'!$A$5:$BF$3950,15)) -> 140.9 | BM100: 41781.79136 | BN100: =IF($AU100="",0,VLOOKUP($AU100,'RLMA-SAWS Database'!$A$5:$BF$3950,16)) -> 67 | BO100: 19867.84969 | BP100: =IF($AU100="",0,VLOOKUP($AU100,'RLMA-SAWS Database'!$A$5:$BF$3950,17)) -> 90.4 | BQ100: 26806.77033 | BR100: =IF($AU100="",0,VLOOKUP($AU100,'RLMA-SAWS Database'!$A$5:$BF$3950,18)) -> 106.8 | BS100: 31669.94548 | BT100: =IF($AU100="",0,VLOOKUP($AU100,'RLMA-SAWS Database'!$A$5:$BF$3950,19)) -> 123.5 | BU100: 36622.08115 | BV100: =IF($AU100="",0,VLOOKUP($AU100,'RLMA-SAWS Database'!$A$5:$BF$3950,20)) -> 146.1 | BW100: 43323.77373 | BX100: =IF($AU100="",0,VLOOKUP($AU100,'RLMA-SAWS Database'!$A$5:$BF$3950,21)) -> 164 | BY100: 48631.75148 | BZ100: =IF($AU100="",0,VLOOKUP($AU100,'RLMA-SAWS Database'!$A$5:$BF$3950,22)) -> 182.8 | CA100: 54206.6108 | CB100: =IF($AU100="",0,VLOOKUP($AU100,'RLMA-SAWS Database'!$A$5:$BF$3950,23)) -> 74 | CC100: 21943.59518 | CD100: =IF($AU100="",0,VLOOKUP($AU100,'RLMA-SAWS Database'!$A$5:$BF$3950,24)) -> 99.1 | CE100: 29386.62544 | CF100: =IF($AU100="",0,VLOOKUP($AU100,'RLMA-SAWS Database'!$A$5:$BF$3950,25)) -> 116.5 | CG100: 34546.33566 | CH100: =IF($AU100="",0,VLOOKUP($AU100,'RLMA-SAWS Database'!$A$5:$BF$3950,26)) -> 133.8 | CI100: 39676.39237 | CJ100: =IF($AU100="",0,VLOOKUP($AU100,'RLMA-SAWS Database'!$A$5:$BF$3950,27)) -> 157 | CK100: 46556.00599 | CL100: =IF($AU100="",0,VLOOKUP($AU100,'RLMA-SAWS Database'!$A$5:$BF$3950,28)) -> 175 | CM100: 51893.63725 | CN100: =IF($AU100="",0,VLOOKUP($AU100,'RLMA-SAWS Database'!$A$5:$BF$3950,29)) -> 193.5 | CO100: 57379.53605 | CP100: =IF($AU100="",0,VLOOKUP($AU100,'RLMA-SAWS Database'!$A$5:$BF$3950,51)) -> 94.4 | CQ100: 27992.91061 | CR100: =IF($AU100="",0,VLOOKUP($AU100,'RLMA-SAWS Database'!$A$5:$BF$3950,52)) -> 126.4 | CS100: 37482.03285 | CT100: =IF($AU100="",0,VLOOKUP($AU100,'RLMA-SAWS Database'!$A$5:$BF$3950,53)) -> 148.2 | CU100: 43946.49737 | CV100: =IF($AU100="",0,VLOOKUP($AU100,'RLMA-SAWS Database'!$A$5:$BF$3950,54)) -> 169.9 | CW100: 50381.30839 | CX100: =IF($AU100="",0,VLOOKUP($AU100,'RLMA-SAWS Database'!$A$5:$BF$3950,55)) -> 198.9 | CY100: 58980.82542 | CZ100: =IF($AU100="",0,VLOOKUP($AU100,'RLMA-SAWS Database'!$A$5:$BF$3950,56)) -> 221.3 | DA100: 65623.21099 | DB100: =IF($AU100="",0,VLOOKUP($AU100,'RLMA-SAWS Database'!$A$5:$BF$3950,57)) -> 244.2 | DC100: 72413.86409 | DD100: =IF($AU100="",0,VLOOKUP($AU100,'RLMA-SAWS Database'!$A$5:$BF$3950,58)) -> 64 | DE100: 18978.24448
A101: 29 | C101: 0262453W | D101: 183.87166 | E101: =IF($C101="","",VLOOKUP($C101,'RLMA-SAWS Database'!$A$5:$BF$3950,2)) -> VOGELSTRUISKOOI | F101: 129 | J101: =IF($G101="","",VLOOKUP($G101,'RLMA-SAWS Database'!$A$5:$BF$3950,2)) ->  | K101: FALSE | L101: FALSE | M101: 0262453W | N101: =IF(OR($M101="",$M101=0),"",VLOOKUP($M101,'RLMA-SAWS Database'!$A$5:$BF$3950,2)) -> VOGELSTRUISKOOI | O101: 183.87166 | P101: =IF(OR($M101="",$M101=0),"",VLOOKUP($M101,'RLMA-SAWS Database'!$A$5:$BF$3950,7)) -> 548 | Q101: =IF(OR($M101="",$M101=0),"",VLOOKUP($M101,'RLMA-SAWS Database'!$A$5:$BF$3950,9)) -> 42.8 | R101: =IF(OR($M101="",$M101=0),"",VLOOKUP($M101,'RLMA-SAWS Database'!$A$5:$BF$3950,10)) -> 57.9 | S101: =IF(OR($M101="",$M101=0),"",VLOOKUP($M101,'RLMA-SAWS Database'!$A$5:$BF$3950,11)) -> 68.7 | T101: =IF(OR($M101="",$M101=0),"",VLOOKUP($M101,'RLMA-SAWS Database'!$A$5:$BF$3950,12)) -> 79.6 | U101: =IF(OR($M101="",$M101=0),"",VLOOKUP($M101,'RLMA-SAWS Database'!$A$5:$BF$3950,13)) -> 94.7 | V101: =IF(OR($M101="",$M101=0),"",VLOOKUP($M101,'RLMA-SAWS Database'!$A$5:$BF$3950,14)) -> 106.8 | W101: =IF(OR($M101="",$M101=0),"",VLOOKUP($M101,'RLMA-SAWS Database'!$A$5:$BF$3950,15)) -> 119.6 | X101: =IF(OR($M101="",$M101=0),"",VLOOKUP($M101,'RLMA-SAWS Database'!$A$5:$BF$3950,16)) -> 54.2 | Y101: =IF(OR($M101="",$M101=0),"",VLOOKUP($M101,'RLMA-SAWS Database'!$A$5:$BF$3950,17)) -> 73.1 | Z101: =IF(OR($M101="",$M101=0),"",VLOOKUP($M101,'RLMA-SAWS Database'!$A$5:$BF$3950,18)) -> 86.4 | AA101: =IF(OR($M101="",$M101=0),"",VLOOKUP($M101,'RLMA-SAWS Database'!$A$5:$BF$3950,19)) -> 99.9 | AB101: =IF(OR($M101="",$M101=0),"",VLOOKUP($M101,'RLMA-SAWS Database'!$A$5:$BF$3950,20)) -> 118.2 | AC101: =IF(OR($M101="",$M101=0),"",VLOOKUP($M101,'RLMA-SAWS Database'!$A$5:$BF$3950,21)) -> 132.7 | AD101: =IF(OR($M101="",$M101=0),"",VLOOKUP($M101,'RLMA-SAWS Database'!$A$5:$BF$3950,22)) -> 147.8 | AE101: =IF(OR($M101="",$M101=0),"",VLOOKUP($M101,'RLMA-SAWS Database'!$A$5:$BF$3950,23)) -> 60.2 | AF101: =IF(OR($M101="",$M101=0),"",VLOOKUP($M101,'RLMA-SAWS Database'!$A$5:$BF$3950,24)) -> 80.6 | AG101: =IF(OR($M101="",$M101=0),"",VLOOKUP($M101,'RLMA-SAWS Database'!$A$5:$BF$3950,25)) -> 94.8 | AH101: =IF(OR($M101="",$M101=0),"",VLOOKUP($M101,'RLMA-SAWS Database'!$A$5:$BF$3950,26)) -> 108.8 | AI101: =IF(OR($M101="",$M101=0),"",VLOOKUP($M101,'RLMA-SAWS Database'!$A$5:$BF$3950,27)) -> 127.6 | AJ101: =IF(OR($M101="",$M101=0),"",VLOOKUP($M101,'RLMA-SAWS Database'!$A$5:$BF$3950,28)) -> 142.3 | AK101: =IF(OR($M101="",$M101=0),"",VLOOKUP($M101,'RLMA-SAWS Database'!$A$5:$BF$3950,29)) -> 157.4 | AL101: =IF(OR($M101="",$M101=0),"",VLOOKUP($M101,'RLMA-SAWS Database'!$A$5:$BF$3950,51)) -> 74.8 | AM101: =IF(OR($M101="",$M101=0),"",VLOOKUP($M101,'RLMA-SAWS Database'!$A$5:$BF$3950,52)) -> 100.2 | AN101: =IF(OR($M101="",$M101=0),"",VLOOKUP($M101,'RLMA-SAWS Database'!$A$5:$BF$3950,53)) -> 117.5 | AO101: =IF(OR($M101="",$M101=0),"",VLOOKUP($M101,'RLMA-SAWS Database'!$A$5:$BF$3950,54)) -> 134.7 | AP101: =IF(OR($M101="",$M101=0),"",VLOOKUP($M101,'RLMA-SAWS Database'!$A$5:$BF$3950,55)) -> 157.7 | AQ101: =IF(OR($M101="",$M101=0),"",VLOOKUP($M101,'RLMA-SAWS Database'!$A$5:$BF$3950,56)) -> 175.4 | AR101: =IF(OR($M101="",$M101=0),"",VLOOKUP($M101,'RLMA-SAWS Database'!$A$5:$BF$3950,57)) -> 193.6 | AS101: =IF(OR($M101="",$M101=0),"",VLOOKUP($M101,'RLMA-SAWS Database'!$A$5:$BF$3950,58)) -> 64 | AU101: 0262453W | AV101: =IF($AU101="","",VLOOKUP($AU101,'RLMA-SAWS Database'!$A$5:$BF$3950,2)) -> VOGELSTRUISKOOI | AW101: 183.87166 | AX101: =IF($AU101="",0,VLOOKUP($AU101,'RLMA-SAWS Database'!$A$5:$BF$3950,7)) -> 548 | AY101: 100761.6697 | AZ101: =IF($AU101="",0,VLOOKUP($AU101,'RLMA-SAWS Database'!$A$5:$BF$3950,9)) -> 42.8 | BA101: 7869.707048 | BB101: =IF($AU101="",0,VLOOKUP($AU101,'RLMA-SAWS Database'!$A$5:$BF$3950,10)) -> 57.9 | BC101: 10646.16911 | BD101: =IF($AU101="",0,VLOOKUP($AU101,'RLMA-SAWS Database'!$A$5:$BF$3950,11)) -> 68.7 | BE101: 12631.98304 | BF101: =IF($AU101="",0,VLOOKUP($AU101,'RLMA-SAWS Database'!$A$5:$BF$3950,12)) -> 79.6 | BG101: 14636.18414 | BH101: =IF($AU101="",0,VLOOKUP($AU101,'RLMA-SAWS Database'!$A$5:$BF$3950,13)) -> 94.7 | BI101: 17412.6462 | BJ101: =IF($AU101="",0,VLOOKUP($AU101,'RLMA-SAWS Database'!$A$5:$BF$3950,14)) -> 106.8 | BK101: 19637.49329 | BL101: =IF($AU101="",0,VLOOKUP($AU101,'RLMA-SAWS Database'!$A$5:$BF$3950,15)) -> 119.6 | BM101: 21991.05054 | BN101: =IF($AU101="",0,VLOOKUP($AU101,'RLMA-SAWS Database'!$A$5:$BF$3950,16)) -> 54.2 | BO101: 9965.843972 | BP101: =IF($AU101="",0,VLOOKUP($AU101,'RLMA-SAWS Database'!$A$5:$BF$3950,17)) -> 73.1 | BQ101: 13441.01835 | BR101: =IF($AU101="",0,VLOOKUP($AU101,'RLMA-SAWS Database'!$A$5:$BF$3950,18)) -> 86.4 | BS101: 15886.51142 | BT101: =IF($AU101="",0,VLOOKUP($AU101,'RLMA-SAWS Database'!$A$5:$BF$3950,19)) -> 99.9 | BU101: 18368.77883 | BV101: =IF($AU101="",0,VLOOKUP($AU101,'RLMA-SAWS Database'!$A$5:$BF$3950,20)) -> 118.2 | BW101: 21733.63021 | BX101: =IF($AU101="",0,VLOOKUP($AU101,'RLMA-SAWS Database'!$A$5:$BF$3950,21)) -> 132.7 | BY101: 24399.76928 | BZ101: =IF($AU101="",0,VLOOKUP($AU101,'RLMA-SAWS Database'!$A$5:$BF$3950,22)) -> 147.8 | CA101: 27176.23135 | CB101: =IF($AU101="",0,VLOOKUP($AU101,'RLMA-SAWS Database'!$A$5:$BF$3950,23)) -> 60.2 | CC101: 11069.07393 | CD101: =IF($AU101="",0,VLOOKUP($AU101,'RLMA-SAWS Database'!$A$5:$BF$3950,24)) -> 80.6 | CE101: 14820.0558 | CF101: =IF($AU101="",0,VLOOKUP($AU101,'RLMA-SAWS Database'!$A$5:$BF$3950,25)) -> 94.8 | CG101: 17431.03337 | CH101: =IF($AU101="",0,VLOOKUP($AU101,'RLMA-SAWS Database'!$A$5:$BF$3950,26)) -> 108.8 | CI101: 20005.23661 | CJ101: =IF($AU101="",0,VLOOKUP($AU101,'RLMA-SAWS Database'!$A$5:$BF$3950,27)) -> 127.6 | CK101: 23462.02382 | CL101: =IF($AU101="",0,VLOOKUP($AU101,'RLMA-SAWS Database'!$A$5:$BF$3950,28)) -> 142.3 | CM101: 26164.93722 | CN101: =IF($AU101="",0,VLOOKUP($AU101,'RLMA-SAWS Database'!$A$5:$BF$3950,29)) -> 157.4 | CO101: 28941.39928 | CP101: =IF($AU101="",0,VLOOKUP($AU101,'RLMA-SAWS Database'!$A$5:$BF$3950,51)) -> 74.8 | CQ101: 13753.60017 | CR101: =IF($AU101="",0,VLOOKUP($AU101,'RLMA-SAWS Database'!$A$5:$BF$3950,52)) -> 100.2 | CS101: 18423.94033 | CT101: =IF($AU101="",0,VLOOKUP($AU101,'RLMA-SAWS Database'!$A$5:$BF$3950,53)) -> 117.5 | CU101: 21604.92005 | CV101: =IF($AU101="",0,VLOOKUP($AU101,'RLMA-SAWS Database'!$A$5:$BF$3950,54)) -> 134.7 | CW101: 24767.5126 | CX101: =IF($AU101="",0,VLOOKUP($AU101,'RLMA-SAWS Database'!$A$5:$BF$3950,55)) -> 157.7 | CY101: 28996.56078 | CZ101: =IF($AU101="",0,VLOOKUP($AU101,'RLMA-SAWS Database'!$A$5:$BF$3950,56)) -> 175.4 | DA101: 32251.08916 | DB101: =IF($AU101="",0,VLOOKUP($AU101,'RLMA-SAWS Database'!$A$5:$BF$3950,57)) -> 193.6 | DC101: 35597.55338 | DD101: =IF($AU101="",0,VLOOKUP($AU101,'RLMA-SAWS Database'!$A$5:$BF$3950,58)) -> 64 | DE101: 11767.78624
A102: 30 | C102: 0262479W | D102: 125.57253 | E102: =IF($C102="","",VLOOKUP($C102,'RLMA-SAWS Database'!$A$5:$BF$3950,2)) -> THE CLIFF | F102: 130 | J102: =IF($G102="","",VLOOKUP($G102,'RLMA-SAWS Database'!$A$5:$BF$3950,2)) ->  | K102: FALSE | L102: FALSE | M102: 0262479W | N102: =IF(OR($M102="",$M102=0),"",VLOOKUP($M102,'RLMA-SAWS Database'!$A$5:$BF$3950,2)) -> THE CLIFF | O102: 125.57253 | P102: =IF(OR($M102="",$M102=0),"",VLOOKUP($M102,'RLMA-SAWS Database'!$A$5:$BF$3950,7)) -> 554 | Q102: =IF(OR($M102="",$M102=0),"",VLOOKUP($M102,'RLMA-SAWS Database'!$A$5:$BF$3950,9)) -> 47.3 | R102: =IF(OR($M102="",$M102=0),"",VLOOKUP($M102,'RLMA-SAWS Database'!$A$5:$BF$3950,10)) -> 64 | S102: =IF(OR($M102="",$M102=0),"",VLOOKUP($M102,'RLMA-SAWS Database'!$A$5:$BF$3950,11)) -> 76 | T102: =IF(OR($M102="",$M102=0),"",VLOOKUP($M102,'RLMA-SAWS Database'!$A$5:$BF$3950,12)) -> 88.1 | U102: =IF(OR($M102="",$M102=0),"",VLOOKUP($M102,'RLMA-SAWS Database'!$A$5:$BF$3950,13)) -> 104.8 | V102: =IF(OR($M102="",$M102=0),"",VLOOKUP($M102,'RLMA-SAWS Database'!$A$5:$BF$3950,14)) -> 118.2 | W102: =IF(OR($M102="",$M102=0),"",VLOOKUP($M102,'RLMA-SAWS Database'!$A$5:$BF$3950,15)) -> 132.4 | X102: =IF(OR($M102="",$M102=0),"",VLOOKUP($M102,'RLMA-SAWS Database'!$A$5:$BF$3950,16)) -> 60.6 | Y102: =IF(OR($M102="",$M102=0),"",VLOOKUP($M102,'RLMA-SAWS Database'!$A$5:$BF$3950,17)) -> 81.8 | Z102: =IF(OR($M102="",$M102=0),"",VLOOKUP($M102,'RLMA-SAWS Database'!$A$5:$BF$3950,18)) -> 96.7 | AA102: =IF(OR($M102="",$M102=0),"",VLOOKUP($M102,'RLMA-SAWS Database'!$A$5:$BF$3950,19)) -> 111.7 | AB102: =IF(OR($M102="",$M102=0),"",VLOOKUP($M102,'RLMA-SAWS Database'!$A$5:$BF$3950,20)) -> 132.2 | AC102: =IF(OR($M102="",$M102=0),"",VLOOKUP($M102,'RLMA-SAWS Database'!$A$5:$BF$3950,21)) -> 148.4 | AD102: =IF(OR($M102="",$M102=0),"",VLOOKUP($M102,'RLMA-SAWS Database'!$A$5:$BF$3950,22)) -> 165.4 | AE102: =IF(OR($M102="",$M102=0),"",VLOOKUP($M102,'RLMA-SAWS Database'!$A$5:$BF$3950,23)) -> 67.3 | AF102: =IF(OR($M102="",$M102=0),"",VLOOKUP($M102,'RLMA-SAWS Database'!$A$5:$BF$3950,24)) -> 90.1 | AG102: =IF(OR($M102="",$M102=0),"",VLOOKUP($M102,'RLMA-SAWS Database'!$A$5:$BF$3950,25)) -> 105.9 | AH102: =IF(OR($M102="",$M102=0),"",VLOOKUP($M102,'RLMA-SAWS Database'!$A$5:$BF$3950,26)) -> 121.6 | AI102: =IF(OR($M102="",$M102=0),"",VLOOKUP($M102,'RLMA-SAWS Database'!$A$5:$BF$3950,27)) -> 142.6 | AJ102: =IF(OR($M102="",$M102=0),"",VLOOKUP($M102,'RLMA-SAWS Database'!$A$5:$BF$3950,28)) -> 159 | AK102: =IF(OR($M102="",$M102=0),"",VLOOKUP($M102,'RLMA-SAWS Database'!$A$5:$BF$3950,29)) -> 175.8 | AL102: =IF(OR($M102="",$M102=0),"",VLOOKUP($M102,'RLMA-SAWS Database'!$A$5:$BF$3950,51)) -> 85.5 | AM102: =IF(OR($M102="",$M102=0),"",VLOOKUP($M102,'RLMA-SAWS Database'!$A$5:$BF$3950,52)) -> 114.4 | AN102: =IF(OR($M102="",$M102=0),"",VLOOKUP($M102,'RLMA-SAWS Database'!$A$5:$BF$3950,53)) -> 134.2 | AO102: =IF(OR($M102="",$M102=0),"",VLOOKUP($M102,'RLMA-SAWS Database'!$A$5:$BF$3950,54)) -> 153.8 | AP102: =IF(OR($M102="",$M102=0),"",VLOOKUP($M102,'RLMA-SAWS Database'!$A$5:$BF$3950,55)) -> 180.1 | AQ102: =IF(OR($M102="",$M102=0),"",VLOOKUP($M102,'RLMA-SAWS Database'!$A$5:$BF$3950,56)) -> 200.3 | AR102: =IF(OR($M102="",$M102=0),"",VLOOKUP($M102,'RLMA-SAWS Database'!$A$5:$BF$3950,57)) -> 221.1 | AS102: =IF(OR($M102="",$M102=0),"",VLOOKUP($M102,'RLMA-SAWS Database'!$A$5:$BF$3950,58)) -> 64 | AU102: 0262479W | AV102: =IF($AU102="","",VLOOKUP($AU102,'RLMA-SAWS Database'!$A$5:$BF$3950,2)) -> THE CLIFF | AW102: 125.57253 | AX102: =IF($AU102="",0,VLOOKUP($AU102,'RLMA-SAWS Database'!$A$5:$BF$3950,7)) -> 554 | AY102: 69567.18162 | AZ102: =IF($AU102="",0,VLOOKUP($AU102,'RLMA-SAWS Database'!$A$5:$BF$3950,9)) -> 47.3 | BA102: 5939.580669 | BB102: =IF($AU102="",0,VLOOKUP($AU102,'RLMA-SAWS Database'!$A$5:$BF$3950,10)) -> 64 | BC102: 8036.64192 | BD102: =IF($AU102="",0,VLOOKUP($AU102,'RLMA-SAWS Database'!$A$5:$BF$3950,11)) -> 76 | BE102: 9543.51228 | BF102: =IF($AU102="",0,VLOOKUP($AU102,'RLMA-SAWS Database'!$A$5:$BF$3950,12)) -> 88.1 | BG102: 11062.93989 | BH102: =IF($AU102="",0,VLOOKUP($AU102,'RLMA-SAWS Database'!$A$5:$BF$3950,13)) -> 104.8 | BI102: 13160.00114 | BJ102: =IF($AU102="",0,VLOOKUP($AU102,'RLMA-SAWS Database'!$A$5:$BF$3950,14)) -> 118.2 | BK102: 14842.67305 | BL102: =IF($AU102="",0,VLOOKUP($AU102,'RLMA-SAWS Database'!$A$5:$BF$3950,15)) -> 132.4 | BM102: 16625.80297 | BN102: =IF($AU102="",0,VLOOKUP($AU102,'RLMA-SAWS Database'!$A$5:$BF$3950,16)) -> 60.6 | BO102: 7609.695318 | BP102: =IF($AU102="",0,VLOOKUP($AU102,'RLMA-SAWS Database'!$A$5:$BF$3950,17)) -> 81.8 | BQ102: 10271.83295 | BR102: =IF($AU102="",0,VLOOKUP($AU102,'RLMA-SAWS Database'!$A$5:$BF$3950,18)) -> 96.7 | BS102: 12142.86365 | BT102: =IF($AU102="",0,VLOOKUP($AU102,'RLMA-SAWS Database'!$A$5:$BF$3950,19)) -> 111.7 | BU102: 14026.4516 | BV102: =IF($AU102="",0,VLOOKUP($AU102,'RLMA-SAWS Database'!$A$5:$BF$3950,20)) -> 132.2 | BW102: 16600.68847 | BX102: =IF($AU102="",0,VLOOKUP($AU102,'RLMA-SAWS Database'!$A$5:$BF$3950,21)) -> 148.4 | BY102: 18634.96345 | BZ102: =IF($AU102="",0,VLOOKUP($AU102,'RLMA-SAWS Database'!$A$5:$BF$3950,22)) -> 165.4 | CA102: 20769.69646 | CB102: =IF($AU102="",0,VLOOKUP($AU102,'RLMA-SAWS Database'!$A$5:$BF$3950,23)) -> 67.3 | CC102: 8451.031269 | CD102: =IF($AU102="",0,VLOOKUP($AU102,'RLMA-SAWS Database'!$A$5:$BF$3950,24)) -> 90.1 | CE102: 11314.08495 | CF102: =IF($AU102="",0,VLOOKUP($AU102,'RLMA-SAWS Database'!$A$5:$BF$3950,25)) -> 105.9 | CG102: 13298.13093 | CH102: =IF($AU102="",0,VLOOKUP($AU102,'RLMA-SAWS Database'!$A$5:$BF$3950,26)) -> 121.6 | CI102: 15269.61965 | CJ102: =IF($AU102="",0,VLOOKUP($AU102,'RLMA-SAWS Database'!$A$5:$BF$3950,27)) -> 142.6 | CK102: 17906.64278 | CL102: =IF($AU102="",0,VLOOKUP($AU102,'RLMA-SAWS Database'!$A$5:$BF$3950,28)) -> 159 | CM102: 19966.03227 | CN102: =IF($AU102="",0,VLOOKUP($AU102,'RLMA-SAWS Database'!$A$5:$BF$3950,29)) -> 175.8 | CO102: 22075.65077 | CP102: =IF($AU102="",0,VLOOKUP($AU102,'RLMA-SAWS Database'!$A$5:$BF$3950,51)) -> 85.5 | CQ102: 10736.45132 | CR102: =IF($AU102="",0,VLOOKUP($AU102,'RLMA-SAWS Database'!$A$5:$BF$3950,52)) -> 114.4 | CS102: 14365.49743 | CT102: =IF($AU102="",0,VLOOKUP($AU102,'RLMA-SAWS Database'!$A$5:$BF$3950,53)) -> 134.2 | CU102: 16851.83353 | CV102: =IF($AU102="",0,VLOOKUP($AU102,'RLMA-SAWS Database'!$A$5:$BF$3950,54)) -> 153.8 | CW102: 19313.05511 | CX102: =IF($AU102="",0,VLOOKUP($AU102,'RLMA-SAWS Database'!$A$5:$BF$3950,55)) -> 180.1 | CY102: 22615.61265 | CZ102: =IF($AU102="",0,VLOOKUP($AU102,'RLMA-SAWS Database'!$A$5:$BF$3950,56)) -> 200.3 | DA102: 25152.17776 | DB102: =IF($AU102="",0,VLOOKUP($AU102,'RLMA-SAWS Database'!$A$5:$BF$3950,57)) -> 221.1 | DC102: 27764.08638 | DD102: =IF($AU102="",0,VLOOKUP($AU102,'RLMA-SAWS Database'!$A$5:$BF$3950,58)) -> 64 | DE102: 8036.64192
A103: 31 | C103: 0262613W | D103: 242.22521 | E103: =IF($C103="","",VLOOKUP($C103,'RLMA-SAWS Database'!$A$5:$BF$3950,2)) -> THABA NCHU (Municipality) | F103: 131 | J103: =IF($G103="","",VLOOKUP($G103,'RLMA-SAWS Database'!$A$5:$BF$3950,2)) ->  | K103: FALSE | L103: FALSE | M103: 0262613W | N103: =IF(OR($M103="",$M103=0),"",VLOOKUP($M103,'RLMA-SAWS Database'!$A$5:$BF$3950,2)) -> THABA NCHU (Municipality) | O103: 242.22521 | P103: =IF(OR($M103="",$M103=0),"",VLOOKUP($M103,'RLMA-SAWS Database'!$A$5:$BF$3950,7)) -> 590 | Q103: =IF(OR($M103="",$M103=0),"",VLOOKUP($M103,'RLMA-SAWS Database'!$A$5:$BF$3950,9)) -> 48.7 | R103: =IF(OR($M103="",$M103=0),"",VLOOKUP($M103,'RLMA-SAWS Database'!$A$5:$BF$3950,10)) -> 65.9 | S103: =IF(OR($M103="",$M103=0),"",VLOOKUP($M103,'RLMA-SAWS Database'!$A$5:$BF$3950,11)) -> 78.2 | T103: =IF(OR($M103="",$M103=0),"",VLOOKUP($M103,'RLMA-SAWS Database'!$A$5:$BF$3950,12)) -> 90.7 | U103: =IF(OR($M103="",$M103=0),"",VLOOKUP($M103,'RLMA-SAWS Database'!$A$5:$BF$3950,13)) -> 108 | V103: =IF(OR($M103="",$M103=0),"",VLOOKUP($M103,'RLMA-SAWS Database'!$A$5:$BF$3950,14)) -> 121.8 | W103: =IF(OR($M103="",$M103=0),"",VLOOKUP($M103,'RLMA-SAWS Database'!$A$5:$BF$3950,15)) -> 136.3 | X103: =IF(OR($M103="",$M103=0),"",VLOOKUP($M103,'RLMA-SAWS Database'!$A$5:$BF$3950,16)) -> 63.3 | Y103: =IF(OR($M103="",$M103=0),"",VLOOKUP($M103,'RLMA-SAWS Database'!$A$5:$BF$3950,17)) -> 85.3 | Z103: =IF(OR($M103="",$M103=0),"",VLOOKUP($M103,'RLMA-SAWS Database'!$A$5:$BF$3950,18)) -> 100.8 | AA103: =IF(OR($M103="",$M103=0),"",VLOOKUP($M103,'RLMA-SAWS Database'!$A$5:$BF$3950,19)) -> 116.6 | AB103: =IF(OR($M103="",$M103=0),"",VLOOKUP($M103,'RLMA-SAWS Database'!$A$5:$BF$3950,20)) -> 137.9 | AC103: =IF(OR($M103="",$M103=0),"",VLOOKUP($M103,'RLMA-SAWS Database'!$A$5:$BF$3950,21)) -> 154.8 | AD103: =IF(OR($M103="",$M103=0),"",VLOOKUP($M103,'RLMA-SAWS Database'!$A$5:$BF$3950,22)) -> 172.5 | AE103: =IF(OR($M103="",$M103=0),"",VLOOKUP($M103,'RLMA-SAWS Database'!$A$5:$BF$3950,23)) -> 70.1 | AF103: =IF(OR($M103="",$M103=0),"",VLOOKUP($M103,'RLMA-SAWS Database'!$A$5:$BF$3950,24)) -> 93.9 | AG103: =IF(OR($M103="",$M103=0),"",VLOOKUP($M103,'RLMA-SAWS Database'!$A$5:$BF$3950,25)) -> 110.3 | AH103: =IF(OR($M103="",$M103=0),"",VLOOKUP($M103,'RLMA-SAWS Database'!$A$5:$BF$3950,26)) -> 126.7 | AI103: =IF(OR($M103="",$M103=0),"",VLOOKUP($M103,'RLMA-SAWS Database'!$A$5:$BF$3950,27)) -> 148.6 | AJ103: =IF(OR($M103="",$M103=0),"",VLOOKUP($M103,'RLMA-SAWS Database'!$A$5:$BF$3950,28)) -> 165.7 | AK103: =IF(OR($M103="",$M103=0),"",VLOOKUP($M103,'RLMA-SAWS Database'!$A$5:$BF$3950,29)) -> 183.2 | AL103: =IF(OR($M103="",$M103=0),"",VLOOKUP($M103,'RLMA-SAWS Database'!$A$5:$BF$3950,51)) -> 93.3 | AM103: =IF(OR($M103="",$M103=0),"",VLOOKUP($M103,'RLMA-SAWS Database'!$A$5:$BF$3950,52)) -> 124.9 | AN103: =IF(OR($M103="",$M103=0),"",VLOOKUP($M103,'RLMA-SAWS Database'!$A$5:$BF$3950,53)) -> 146.4 | AO103: =IF(OR($M103="",$M103=0),"",VLOOKUP($M103,'RLMA-SAWS Database'!$A$5:$BF$3950,54)) -> 167.8 | AP103: =IF(OR($M103="",$M103=0),"",VLOOKUP($M103,'RLMA-SAWS Database'!$A$5:$BF$3950,55)) -> 196.5 | AQ103: =IF(OR($M103="",$M103=0),"",VLOOKUP($M103,'RLMA-SAWS Database'!$A$5:$BF$3950,56)) -> 218.6 | AR103: =IF(OR($M103="",$M103=0),"",VLOOKUP($M103,'RLMA-SAWS Database'!$A$5:$BF$3950,57)) -> 241.3 | AS103: =IF(OR($M103="",$M103=0),"",VLOOKUP($M103,'RLMA-SAWS Database'!$A$5:$BF$3950,58)) -> 65 | AU103: 0262613W | AV103: =IF($AU103="","",VLOOKUP($AU103,'RLMA-SAWS Database'!$A$5:$BF$3950,2)) -> THABA NCHU (Municipality) | AW103: 242.22521 | AX103: =IF($AU103="",0,VLOOKUP($AU103,'RLMA-SAWS Database'!$A$5:$BF$3950,7)) -> 590 | AY103: 142912.8739 | AZ103: =IF($AU103="",0,VLOOKUP($AU103,'RLMA-SAWS Database'!$A$5:$BF$3950,9)) -> 48.7 | BA103: 11796.36773 | BB103: =IF($AU103="",0,VLOOKUP($AU103,'RLMA-SAWS Database'!$A$5:$BF$3950,10)) -> 65.9 | BC103: 15962.64134 | BD103: =IF($AU103="",0,VLOOKUP($AU103,'RLMA-SAWS Database'!$A$5:$BF$3950,11)) -> 78.2 | BE103: 18942.01142 | BF103: =IF($AU103="",0,VLOOKUP($AU103,'RLMA-SAWS Database'!$A$5:$BF$3950,12)) -> 90.7 | BG103: 21969.82655 | BH103: =IF($AU103="",0,VLOOKUP($AU103,'RLMA-SAWS Database'!$A$5:$BF$3950,13)) -> 108 | BI103: 26160.32268 | BJ103: =IF($AU103="",0,VLOOKUP($AU103,'RLMA-SAWS Database'!$A$5:$BF$3950,14)) -> 121.8 | BK103: 29503.03058 | BL103: =IF($AU103="",0,VLOOKUP($AU103,'RLMA-SAWS Database'!$A$5:$BF$3950,15)) -> 136.3 | BM103: 33015.29612 | BN103: =IF($AU103="",0,VLOOKUP($AU103,'RLMA-SAWS Database'!$A$5:$BF$3950,16)) -> 63.3 | BO103: 15332.85579 | BP103: =IF($AU103="",0,VLOOKUP($AU103,'RLMA-SAWS Database'!$A$5:$BF$3950,17)) -> 85.3 | BQ103: 20661.81041 | BR103: =IF($AU103="",0,VLOOKUP($AU103,'RLMA-SAWS Database'!$A$5:$BF$3950,18)) -> 100.8 | BS103: 24416.30117 | BT103: =IF($AU103="",0,VLOOKUP($AU103,'RLMA-SAWS Database'!$A$5:$BF$3950,19)) -> 116.6 | BU103: 28243.45949 | BV103: =IF($AU103="",0,VLOOKUP($AU103,'RLMA-SAWS Database'!$A$5:$BF$3950,20)) -> 137.9 | BW103: 33402.85646 | BX103: =IF($AU103="",0,VLOOKUP($AU103,'RLMA-SAWS Database'!$A$5:$BF$3950,21)) -> 154.8 | BY103: 37496.46251 | BZ103: =IF($AU103="",0,VLOOKUP($AU103,'RLMA-SAWS Database'!$A$5:$BF$3950,22)) -> 172.5 | CA103: 41783.84873 | CB103: =IF($AU103="",0,VLOOKUP($AU103,'RLMA-SAWS Database'!$A$5:$BF$3950,23)) -> 70.1 | CC103: 16979.98722 | CD103: =IF($AU103="",0,VLOOKUP($AU103,'RLMA-SAWS Database'!$A$5:$BF$3950,24)) -> 93.9 | CE103: 22744.94722 | CF103: =IF($AU103="",0,VLOOKUP($AU103,'RLMA-SAWS Database'!$A$5:$BF$3950,25)) -> 110.3 | CG103: 26717.44066 | CH103: =IF($AU103="",0,VLOOKUP($AU103,'RLMA-SAWS Database'!$A$5:$BF$3950,26)) -> 126.7 | CI103: 30689.93411 | CJ103: =IF($AU103="",0,VLOOKUP($AU103,'RLMA-SAWS Database'!$A$5:$BF$3950,27)) -> 148.6 | CK103: 35994.66621 | CL103: =IF($AU103="",0,VLOOKUP($AU103,'RLMA-SAWS Database'!$A$5:$BF$3950,28)) -> 165.7 | CM103: 40136.7173 | CN103: =IF($AU103="",0,VLOOKUP($AU103,'RLMA-SAWS Database'!$A$5:$BF$3950,29)) -> 183.2 | CO103: 44375.65847 | CP103: =IF($AU103="",0,VLOOKUP($AU103,'RLMA-SAWS Database'!$A$5:$BF$3950,51)) -> 93.3 | CQ103: 22599.61209 | CR103: =IF($AU103="",0,VLOOKUP($AU103,'RLMA-SAWS Database'!$A$5:$BF$3950,52)) -> 124.9 | CS103: 30253.92873 | CT103: =IF($AU103="",0,VLOOKUP($AU103,'RLMA-SAWS Database'!$A$5:$BF$3950,53)) -> 146.4 | CU103: 35461.77074 | CV103: =IF($AU103="",0,VLOOKUP($AU103,'RLMA-SAWS Database'!$A$5:$BF$3950,54)) -> 167.8 | CW103: 40645.39024 | CX103: =IF($AU103="",0,VLOOKUP($AU103,'RLMA-SAWS Database'!$A$5:$BF$3950,55)) -> 196.5 | CY103: 47597.25377 | CZ103: =IF($AU103="",0,VLOOKUP($AU103,'RLMA-SAWS Database'!$A$5:$BF$3950,56)) -> 218.6 | DA103: 52950.43091 | DB103: =IF($AU103="",0,VLOOKUP($AU103,'RLMA-SAWS Database'!$A$5:$BF$3950,57)) -> 241.3 | DC103: 58448.94317 | DD103: =IF($AU103="",0,VLOOKUP($AU103,'RLMA-SAWS Database'!$A$5:$BF$3950,58)) -> 65 | DE103: 15744.63865
A104: 32 | C104: 0262690W | D104: 115.31035 | E104: =IF($C104="","",VLOOKUP($C104,'RLMA-SAWS Database'!$A$5:$BF$3950,2)) -> MELROSE | F104: 132 | J104: =IF($G104="","",VLOOKUP($G104,'RLMA-SAWS Database'!$A$5:$BF$3950,2)) ->  | K104: FALSE | L104: FALSE | M104: 0262690W | N104: =IF(OR($M104="",$M104=0),"",VLOOKUP($M104,'RLMA-SAWS Database'!$A$5:$BF$3950,2)) -> MELROSE | O104: 115.31035 | P104: =IF(OR($M104="",$M104=0),"",VLOOKUP($M104,'RLMA-SAWS Database'!$A$5:$BF$3950,7)) -> 548 | Q104: =IF(OR($M104="",$M104=0),"",VLOOKUP($M104,'RLMA-SAWS Database'!$A$5:$BF$3950,9)) -> 44.4 | R104: =IF(OR($M104="",$M104=0),"",VLOOKUP($M104,'RLMA-SAWS Database'!$A$5:$BF$3950,10)) -> 60 | S104: =IF(OR($M104="",$M104=0),"",VLOOKUP($M104,'RLMA-SAWS Database'!$A$5:$BF$3950,11)) -> 71.2 | T104: =IF(OR($M104="",$M104=0),"",VLOOKUP($M104,'RLMA-SAWS Database'!$A$5:$BF$3950,12)) -> 82.6 | U104: =IF(OR($M104="",$M104=0),"",VLOOKUP($M104,'RLMA-SAWS Database'!$A$5:$BF$3950,13)) -> 98.3 | V104: =IF(OR($M104="",$M104=0),"",VLOOKUP($M104,'RLMA-SAWS Database'!$A$5:$BF$3950,14)) -> 110.8 | W104: =IF(OR($M104="",$M104=0),"",VLOOKUP($M104,'RLMA-SAWS Database'!$A$5:$BF$3950,15)) -> 124.1 | X104: =IF(OR($M104="",$M104=0),"",VLOOKUP($M104,'RLMA-SAWS Database'!$A$5:$BF$3950,16)) -> 56.5 | Y104: =IF(OR($M104="",$M104=0),"",VLOOKUP($M104,'RLMA-SAWS Database'!$A$5:$BF$3950,17)) -> 76.2 | Z104: =IF(OR($M104="",$M104=0),"",VLOOKUP($M104,'RLMA-SAWS Database'!$A$5:$BF$3950,18)) -> 90.1 | AA104: =IF(OR($M104="",$M104=0),"",VLOOKUP($M104,'RLMA-SAWS Database'!$A$5:$BF$3950,19)) -> 104.1 | AB104: =IF(OR($M104="",$M104=0),"",VLOOKUP($M104,'RLMA-SAWS Database'!$A$5:$BF$3950,20)) -> 123.2 | AC104: =IF(OR($M104="",$M104=0),"",VLOOKUP($M104,'RLMA-SAWS Database'!$A$5:$BF$3950,21)) -> 138.3 | AD104: =IF(OR($M104="",$M104=0),"",VLOOKUP($M104,'RLMA-SAWS Database'!$A$5:$BF$3950,22)) -> 154.1 | AE104: =IF(OR($M104="",$M104=0),"",VLOOKUP($M104,'RLMA-SAWS Database'!$A$5:$BF$3950,23)) -> 64.5 | AF104: =IF(OR($M104="",$M104=0),"",VLOOKUP($M104,'RLMA-SAWS Database'!$A$5:$BF$3950,24)) -> 86.3 | AG104: =IF(OR($M104="",$M104=0),"",VLOOKUP($M104,'RLMA-SAWS Database'!$A$5:$BF$3950,25)) -> 101.5 | AH104: =IF(OR($M104="",$M104=0),"",VLOOKUP($M104,'RLMA-SAWS Database'!$A$5:$BF$3950,26)) -> 116.5 | AI104: =IF(OR($M104="",$M104=0),"",VLOOKUP($M104,'RLMA-SAWS Database'!$A$5:$BF$3950,27)) -> 136.7 | AJ104: =IF(OR($M104="",$M104=0),"",VLOOKUP($M104,'RLMA-SAWS Database'!$A$5:$BF$3950,28)) -> 152.4 | AK104: =IF(OR($M104="",$M104=0),"",VLOOKUP($M104,'RLMA-SAWS Database'!$A$5:$BF$3950,29)) -> 168.5 | AL104: =IF(OR($M104="",$M104=0),"",VLOOKUP($M104,'RLMA-SAWS Database'!$A$5:$BF$3950,51)) -> 82.5 | AM104: =IF(OR($M104="",$M104=0),"",VLOOKUP($M104,'RLMA-SAWS Database'!$A$5:$BF$3950,52)) -> 110.5 | AN104: =IF(OR($M104="",$M104=0),"",VLOOKUP($M104,'RLMA-SAWS Database'!$A$5:$BF$3950,53)) -> 129.6 | AO104: =IF(OR($M104="",$M104=0),"",VLOOKUP($M104,'RLMA-SAWS Database'!$A$5:$BF$3950,54)) -> 148.5 | AP104: =IF(OR($M104="",$M104=0),"",VLOOKUP($M104,'RLMA-SAWS Database'!$A$5:$BF$3950,55)) -> 173.9 | AQ104: =IF(OR($M104="",$M104=0),"",VLOOKUP($M104,'RLMA-SAWS Database'!$A$5:$BF$3950,56)) -> 193.4 | AR104: =IF(OR($M104="",$M104=0),"",VLOOKUP($M104,'RLMA-SAWS Database'!$A$5:$BF$3950,57)) -> 213.5 | AS104: =IF(OR($M104="",$M104=0),"",VLOOKUP($M104,'RLMA-SAWS Database'!$A$5:$BF$3950,58)) -> 65 | AU104: 0262690W | AV104: =IF($AU104="","",VLOOKUP($AU104,'RLMA-SAWS Database'!$A$5:$BF$3950,2)) -> MELROSE | AW104: 115.31035 | AX104: =IF($AU104="",0,VLOOKUP($AU104,'RLMA-SAWS Database'!$A$5:$BF$3950,7)) -> 548 | AY104: 63190.0718 | AZ104: =IF($AU104="",0,VLOOKUP($AU104,'RLMA-SAWS Database'!$A$5:$BF$3950,9)) -> 44.4 | BA104: 5119.77954 | BB104: =IF($AU104="",0,VLOOKUP($AU104,'RLMA-SAWS Database'!$A$5:$BF$3950,10)) -> 60 | BC104: 6918.621 | BD104: =IF($AU104="",0,VLOOKUP($AU104,'RLMA-SAWS Database'!$A$5:$BF$3950,11)) -> 71.2 | BE104: 8210.09692 | BF104: =IF($AU104="",0,VLOOKUP($AU104,'RLMA-SAWS Database'!$A$5:$BF$3950,12)) -> 82.6 | BG104: 9524.63491 | BH104: =IF($AU104="",0,VLOOKUP($AU104,'RLMA-SAWS Database'!$A$5:$BF$3950,13)) -> 98.3 | BI104: 11335.00741 | BJ104: =IF($AU104="",0,VLOOKUP($AU104,'RLMA-SAWS Database'!$A$5:$BF$3950,14)) -> 110.8 | BK104: 12776.38678 | BL104: =IF($AU104="",0,VLOOKUP($AU104,'RLMA-SAWS Database'!$A$5:$BF$3950,15)) -> 124.1 | BM104: 14310.01443 | BN104: =IF($AU104="",0,VLOOKUP($AU104,'RLMA-SAWS Database'!$A$5:$BF$3950,16)) -> 56.5 | BO104: 6515.034775 | BP104: =IF($AU104="",0,VLOOKUP($AU104,'RLMA-SAWS Database'!$A$5:$BF$3950,17)) -> 76.2 | BQ104: 8786.64867 | BR104: =IF($AU104="",0,VLOOKUP($AU104,'RLMA-SAWS Database'!$A$5:$BF$3950,18)) -> 90.1 | BS104: 10389.46253 | BT104: =IF($AU104="",0,VLOOKUP($AU104,'RLMA-SAWS Database'!$A$5:$BF$3950,19)) -> 104.1 | BU104: 12003.80743 | BV104: =IF($AU104="",0,VLOOKUP($AU104,'RLMA-SAWS Database'!$A$5:$BF$3950,20)) -> 123.2 | BW104: 14206.23512 | BX104: =IF($AU104="",0,VLOOKUP($AU104,'RLMA-SAWS Database'!$A$5:$BF$3950,21)) -> 138.3 | BY104: 15947.42141 | BZ104: =IF($AU104="",0,VLOOKUP($AU104,'RLMA-SAWS Database'!$A$5:$BF$3950,22)) -> 154.1 | CA104: 17769.32494 | CB104: =IF($AU104="",0,VLOOKUP($AU104,'RLMA-SAWS Database'!$A$5:$BF$3950,23)) -> 64.5 | CC104: 7437.517575 | CD104: =IF($AU104="",0,VLOOKUP($AU104,'RLMA-SAWS Database'!$A$5:$BF$3950,24)) -> 86.3 | CE104: 9951.283205 | CF104: =IF($AU104="",0,VLOOKUP($AU104,'RLMA-SAWS Database'!$A$5:$BF$3950,25)) -> 101.5 | CG104: 11704.00052 | CH104: =IF($AU104="",0,VLOOKUP($AU104,'RLMA-SAWS Database'!$A$5:$BF$3950,26)) -> 116.5 | CI104: 13433.65577 | CJ104: =IF($AU104="",0,VLOOKUP($AU104,'RLMA-SAWS Database'!$A$5:$BF$3950,27)) -> 136.7 | CK104: 15762.92484 | CL104: =IF($AU104="",0,VLOOKUP($AU104,'RLMA-SAWS Database'!$A$5:$BF$3950,28)) -> 152.4 | CM104: 17573.29734 | CN104: =IF($AU104="",0,VLOOKUP($AU104,'RLMA-SAWS Database'!$A$5:$BF$3950,29)) -> 168.5 | CO104: 19429.79398 | CP104: =IF($AU104="",0,VLOOKUP($AU104,'RLMA-SAWS Database'!$A$5:$BF$3950,51)) -> 82.5 | CQ104: 9513.103875 | CR104: =IF($AU104="",0,VLOOKUP($AU104,'RLMA-SAWS Database'!$A$5:$BF$3950,52)) -> 110.5 | CS104: 12741.79368 | CT104: =IF($AU104="",0,VLOOKUP($AU104,'RLMA-SAWS Database'!$A$5:$BF$3950,53)) -> 129.6 | CU104: 14944.22136 | CV104: =IF($AU104="",0,VLOOKUP($AU104,'RLMA-SAWS Database'!$A$5:$BF$3950,54)) -> 148.5 | CW104: 17123.58697 | CX104: =IF($AU104="",0,VLOOKUP($AU104,'RLMA-SAWS Database'!$A$5:$BF$3950,55)) -> 173.9 | CY104: 20052.46986 | CZ104: =IF($AU104="",0,VLOOKUP($AU104,'RLMA-SAWS Database'!$A$5:$BF$3950,56)) -> 193.4 | DA104: 22301.02169 | DB104: =IF($AU104="",0,VLOOKUP($AU104,'RLMA-SAWS Database'!$A$5:$BF$3950,57)) -> 213.5 | DC104: 24618.75972 | DD104: =IF($AU104="",0,VLOOKUP($AU104,'RLMA-SAWS Database'!$A$5:$BF$3950,58)) -> 65 | DE104: 7495.17275
A105: 33 | C105: 0262734W | D105: 70.39844 | E105: =IF($C105="","",VLOOKUP($C105,'RLMA-SAWS Database'!$A$5:$BF$3950,2)) -> WILGEBOOMNEK | F105: 133 | J105: =IF($G105="","",VLOOKUP($G105,'RLMA-SAWS Database'!$A$5:$BF$3950,2)) ->  | K105: FALSE | L105: FALSE | M105: 0262734W | N105: =IF(OR($M105="",$M105=0),"",VLOOKUP($M105,'RLMA-SAWS Database'!$A$5:$BF$3950,2)) -> WILGEBOOMNEK | O105: 70.39844 | P105: =IF(OR($M105="",$M105=0),"",VLOOKUP($M105,'RLMA-SAWS Database'!$A$5:$BF$3950,7)) -> 649 | Q105: =IF(OR($M105="",$M105=0),"",VLOOKUP($M105,'RLMA-SAWS Database'!$A$5:$BF$3950,9)) -> 47.6 | R105: =IF(OR($M105="",$M105=0),"",VLOOKUP($M105,'RLMA-SAWS Database'!$A$5:$BF$3950,10)) -> 64.4 | S105: =IF(OR($M105="",$M105=0),"",VLOOKUP($M105,'RLMA-SAWS Database'!$A$5:$BF$3950,11)) -> 76.4 | T105: =IF(OR($M105="",$M105=0),"",VLOOKUP($M105,'RLMA-SAWS Database'!$A$5:$BF$3950,12)) -> 88.6 | U105: =IF(OR($M105="",$M105=0),"",VLOOKUP($M105,'RLMA-SAWS Database'!$A$5:$BF$3950,13)) -> 105.4 | V105: =IF(OR($M105="",$M105=0),"",VLOOKUP($M105,'RLMA-SAWS Database'!$A$5:$BF$3950,14)) -> 118.9 | W105: =IF(OR($M105="",$M105=0),"",VLOOKUP($M105,'RLMA-SAWS Database'!$A$5:$BF$3950,15)) -> 133.1 | X105: =IF(OR($M105="",$M105=0),"",VLOOKUP($M105,'RLMA-SAWS Database'!$A$5:$BF$3950,16)) -> 60.4 | Y105: =IF(OR($M105="",$M105=0),"",VLOOKUP($M105,'RLMA-SAWS Database'!$A$5:$BF$3950,17)) -> 81.4 | Z105: =IF(OR($M105="",$M105=0),"",VLOOKUP($M105,'RLMA-SAWS Database'!$A$5:$BF$3950,18)) -> 96.2 | AA105: =IF(OR($M105="",$M105=0),"",VLOOKUP($M105,'RLMA-SAWS Database'!$A$5:$BF$3950,19)) -> 111.2 | AB105: =IF(OR($M105="",$M105=0),"",VLOOKUP($M105,'RLMA-SAWS Database'!$A$5:$BF$3950,20)) -> 131.6 | AC105: =IF(OR($M105="",$M105=0),"",VLOOKUP($M105,'RLMA-SAWS Database'!$A$5:$BF$3950,21)) -> 147.7 | AD105: =IF(OR($M105="",$M105=0),"",VLOOKUP($M105,'RLMA-SAWS Database'!$A$5:$BF$3950,22)) -> 164.6 | AE105: =IF(OR($M105="",$M105=0),"",VLOOKUP($M105,'RLMA-SAWS Database'!$A$5:$BF$3950,23)) -> 66.9 | AF105: =IF(OR($M105="",$M105=0),"",VLOOKUP($M105,'RLMA-SAWS Database'!$A$5:$BF$3950,24)) -> 89.6 | AG105: =IF(OR($M105="",$M105=0),"",VLOOKUP($M105,'RLMA-SAWS Database'!$A$5:$BF$3950,25)) -> 105.4 | AH105: =IF(OR($M105="",$M105=0),"",VLOOKUP($M105,'RLMA-SAWS Database'!$A$5:$BF$3950,26)) -> 121 | AI105: =IF(OR($M105="",$M105=0),"",VLOOKUP($M105,'RLMA-SAWS Database'!$A$5:$BF$3950,27)) -> 141.9 | AJ105: =IF(OR($M105="",$M105=0),"",VLOOKUP($M105,'RLMA-SAWS Database'!$A$5:$BF$3950,28)) -> 158.2 | AK105: =IF(OR($M105="",$M105=0),"",VLOOKUP($M105,'RLMA-SAWS Database'!$A$5:$BF$3950,29)) -> 175 | AL105: =IF(OR($M105="",$M105=0),"",VLOOKUP($M105,'RLMA-SAWS Database'!$A$5:$BF$3950,51)) -> 84.2 | AM105: =IF(OR($M105="",$M105=0),"",VLOOKUP($M105,'RLMA-SAWS Database'!$A$5:$BF$3950,52)) -> 112.7 | AN105: =IF(OR($M105="",$M105=0),"",VLOOKUP($M105,'RLMA-SAWS Database'!$A$5:$BF$3950,53)) -> 132.2 | AO105: =IF(OR($M105="",$M105=0),"",VLOOKUP($M105,'RLMA-SAWS Database'!$A$5:$BF$3950,54)) -> 151.5 | AP105: =IF(OR($M105="",$M105=0),"",VLOOKUP($M105,'RLMA-SAWS Database'!$A$5:$BF$3950,55)) -> 177.4 | AQ105: =IF(OR($M105="",$M105=0),"",VLOOKUP($M105,'RLMA-SAWS Database'!$A$5:$BF$3950,56)) -> 197.4 | AR105: =IF(OR($M105="",$M105=0),"",VLOOKUP($M105,'RLMA-SAWS Database'!$A$5:$BF$3950,57)) -> 217.8 | AS105: =IF(OR($M105="",$M105=0),"",VLOOKUP($M105,'RLMA-SAWS Database'!$A$5:$BF$3950,58)) -> 66 | AU105: 0262734W | AV105: =IF($AU105="","",VLOOKUP($AU105,'RLMA-SAWS Database'!$A$5:$BF$3950,2)) -> WILGEBOOMNEK | AW105: 70.39844 | AX105: =IF($AU105="",0,VLOOKUP($AU105,'RLMA-SAWS Database'!$A$5:$BF$3950,7)) -> 649 | AY105: 45688.58756 | AZ105: =IF($AU105="",0,VLOOKUP($AU105,'RLMA-SAWS Database'!$A$5:$BF$3950,9)) -> 47.6 | BA105: 3350.965744 | BB105: =IF($AU105="",0,VLOOKUP($AU105,'RLMA-SAWS Database'!$A$5:$BF$3950,10)) -> 64.4 | BC105: 4533.659536 | BD105: =IF($AU105="",0,VLOOKUP($AU105,'RLMA-SAWS Database'!$A$5:$BF$3950,11)) -> 76.4 | BE105: 5378.440816 | BF105: =IF($AU105="",0,VLOOKUP($AU105,'RLMA-SAWS Database'!$A$5:$BF$3950,12)) -> 88.6 | BG105: 6237.301784 | BH105: =IF($AU105="",0,VLOOKUP($AU105,'RLMA-SAWS Database'!$A$5:$BF$3950,13)) -> 105.4 | BI105: 7419.995576 | BJ105: =IF($AU105="",0,VLOOKUP($AU105,'RLMA-SAWS Database'!$A$5:$BF$3950,14)) -> 118.9 | BK105: 8370.374516 | BL105: =IF($AU105="",0,VLOOKUP($AU105,'RLMA-SAWS Database'!$A$5:$BF$3950,15)) -> 133.1 | BM105: 9370.032364 | BN105: =IF($AU105="",0,VLOOKUP($AU105,'RLMA-SAWS Database'!$A$5:$BF$3950,16)) -> 60.4 | BO105: 4252.065776 | BP105: =IF($AU105="",0,VLOOKUP($AU105,'RLMA-SAWS Database'!$A$5:$BF$3950,17)) -> 81.4 | BQ105: 5730.433016 | BR105: =IF($AU105="",0,VLOOKUP($AU105,'RLMA-SAWS Database'!$A$5:$BF$3950,18)) -> 96.2 | BS105: 6772.329928 | BT105: =IF($AU105="",0,VLOOKUP($AU105,'RLMA-SAWS Database'!$A$5:$BF$3950,19)) -> 111.2 | BU105: 7828.306528 | BV105: =IF($AU105="",0,VLOOKUP($AU105,'RLMA-SAWS Database'!$A$5:$BF$3950,20)) -> 131.6 | BW105: 9264.434704 | BX105: =IF($AU105="",0,VLOOKUP($AU105,'RLMA-SAWS Database'!$A$5:$BF$3950,21)) -> 147.7 | BY105: 10397.84959 | BZ105: =IF($AU105="",0,VLOOKUP($AU105,'RLMA-SAWS Database'!$A$5:$BF$3950,22)) -> 164.6 | CA105: 11587.58322 | CB105: =IF($AU105="",0,VLOOKUP($AU105,'RLMA-SAWS Database'!$A$5:$BF$3950,23)) -> 66.9 | CC105: 4709.655636 | CD105: =IF($AU105="",0,VLOOKUP($AU105,'RLMA-SAWS Database'!$A$5:$BF$3950,24)) -> 89.6 | CE105: 6307.700224 | CF105: =IF($AU105="",0,VLOOKUP($AU105,'RLMA-SAWS Database'!$A$5:$BF$3950,25)) -> 105.4 | CG105: 7419.995576 | CH105: =IF($AU105="",0,VLOOKUP($AU105,'RLMA-SAWS Database'!$A$5:$BF$3950,26)) -> 121 | CI105: 8518.21124 | CJ105: =IF($AU105="",0,VLOOKUP($AU105,'RLMA-SAWS Database'!$A$5:$BF$3950,27)) -> 141.9 | CK105: 9989.538636 | CL105: =IF($AU105="",0,VLOOKUP($AU105,'RLMA-SAWS Database'!$A$5:$BF$3950,28)) -> 158.2 | CM105: 11137.03321 | CN105: =IF($AU105="",0,VLOOKUP($AU105,'RLMA-SAWS Database'!$A$5:$BF$3950,29)) -> 175 | CO105: 12319.727 | CP105: =IF($AU105="",0,VLOOKUP($AU105,'RLMA-SAWS Database'!$A$5:$BF$3950,51)) -> 84.2 | CQ105: 5927.548648 | CR105: =IF($AU105="",0,VLOOKUP($AU105,'RLMA-SAWS Database'!$A$5:$BF$3950,52)) -> 112.7 | CS105: 7933.904188 | CT105: =IF($AU105="",0,VLOOKUP($AU105,'RLMA-SAWS Database'!$A$5:$BF$3950,53)) -> 132.2 | CU105: 9306.673768 | CV105: =IF($AU105="",0,VLOOKUP($AU105,'RLMA-SAWS Database'!$A$5:$BF$3950,54)) -> 151.5 | CW105: 10665.36366 | CX105: =IF($AU105="",0,VLOOKUP($AU105,'RLMA-SAWS Database'!$A$5:$BF$3950,55)) -> 177.4 | CY105: 12488.68326 | CZ105: =IF($AU105="",0,VLOOKUP($AU105,'RLMA-SAWS Database'!$A$5:$BF$3950,56)) -> 197.4 | DA105: 13896.65206 | DB105: =IF($AU105="",0,VLOOKUP($AU105,'RLMA-SAWS Database'!$A$5:$BF$3950,57)) -> 217.8 | DC105: 15332.78023 | DD105: =IF($AU105="",0,VLOOKUP($AU105,'RLMA-SAWS Database'!$A$5:$BF$3950,58)) -> 66 | DE105: 4646.29704
A106: =$A105+1 -> 34 | C106: 0262828W | D106: 147.23746 | E106: =IF($C106="","",VLOOKUP($C106,'RLMA-SAWS Database'!$A$5:$BF$3950,2)) -> YORK | F106: 134 | J106: =IF($G106="","",VLOOKUP($G106,'RLMA-SAWS Database'!$A$5:$BF$3950,2)) ->  | K106: FALSE | L106: FALSE | M106: 0262828W | N106: =IF(OR($M106="",$M106=0),"",VLOOKUP($M106,'RLMA-SAWS Database'!$A$5:$BF$3950,2)) -> YORK | O106: 147.23746 | P106: =IF(OR($M106="",$M106=0),"",VLOOKUP($M106,'RLMA-SAWS Database'!$A$5:$BF$3950,7)) -> 686 | Q106: =IF(OR($M106="",$M106=0),"",VLOOKUP($M106,'RLMA-SAWS Database'!$A$5:$BF$3950,9)) -> 48.6 | R106: =IF(OR($M106="",$M106=0),"",VLOOKUP($M106,'RLMA-SAWS Database'!$A$5:$BF$3950,10)) -> 65.8 | S106: =IF(OR($M106="",$M106=0),"",VLOOKUP($M106,'RLMA-SAWS Database'!$A$5:$BF$3950,11)) -> 78.1 | T106: =IF(OR($M106="",$M106=0),"",VLOOKUP($M106,'RLMA-SAWS Database'!$A$5:$BF$3950,12)) -> 90.5 | U106: =IF(OR($M106="",$M106=0),"",VLOOKUP($M106,'RLMA-SAWS Database'!$A$5:$BF$3950,13)) -> 107.8 | V106: =IF(OR($M106="",$M106=0),"",VLOOKUP($M106,'RLMA-SAWS Database'!$A$5:$BF$3950,14)) -> 121.5 | W106: =IF(OR($M106="",$M106=0),"",VLOOKUP($M106,'RLMA-SAWS Database'!$A$5:$BF$3950,15)) -> 136.1 | X106: =IF(OR($M106="",$M106=0),"",VLOOKUP($M106,'RLMA-SAWS Database'!$A$5:$BF$3950,16)) -> 62.9 | Y106: =IF(OR($M106="",$M106=0),"",VLOOKUP($M106,'RLMA-SAWS Database'!$A$5:$BF$3950,17)) -> 84.8 | Z106: =IF(OR($M106="",$M106=0),"",VLOOKUP($M106,'RLMA-SAWS Database'!$A$5:$BF$3950,18)) -> 100.3 | AA106: =IF(OR($M106="",$M106=0),"",VLOOKUP($M106,'RLMA-SAWS Database'!$A$5:$BF$3950,19)) -> 115.9 | AB106: =IF(OR($M106="",$M106=0),"",VLOOKUP($M106,'RLMA-SAWS Database'!$A$5:$BF$3950,20)) -> 137.2 | AC106: =IF(OR($M106="",$M106=0),"",VLOOKUP($M106,'RLMA-SAWS Database'!$A$5:$BF$3950,21)) -> 153.9 | AD106: =IF(OR($M106="",$M106=0),"",VLOOKUP($M106,'RLMA-SAWS Database'!$A$5:$BF$3950,22)) -> 171.5 | AE106: =IF(OR($M106="",$M106=0),"",VLOOKUP($M106,'RLMA-SAWS Database'!$A$5:$BF$3950,23)) -> 68.6 | AF106: =IF(OR($M106="",$M106=0),"",VLOOKUP($M106,'RLMA-SAWS Database'!$A$5:$BF$3950,24)) -> 91.9 | AG106: =IF(OR($M106="",$M106=0),"",VLOOKUP($M106,'RLMA-SAWS Database'!$A$5:$BF$3950,25)) -> 108 | AH106: =IF(OR($M106="",$M106=0),"",VLOOKUP($M106,'RLMA-SAWS Database'!$A$5:$BF$3950,26)) -> 124 | AI106: =IF(OR($M106="",$M106=0),"",VLOOKUP($M106,'RLMA-SAWS Database'!$A$5:$BF$3950,27)) -> 145.5 | AJ106: =IF(OR($M106="",$M106=0),"",VLOOKUP($M106,'RLMA-SAWS Database'!$A$5:$BF$3950,28)) -> 162.2 | AK106: =IF(OR($M106="",$M106=0),"",VLOOKUP($M106,'RLMA-SAWS Database'!$A$5:$BF$3950,29)) -> 179.4 | AL106: =IF(OR($M106="",$M106=0),"",VLOOKUP($M106,'RLMA-SAWS Database'!$A$5:$BF$3950,51)) -> 84.3 | AM106: =IF(OR($M106="",$M106=0),"",VLOOKUP($M106,'RLMA-SAWS Database'!$A$5:$BF$3950,52)) -> 112.8 | AN106: =IF(OR($M106="",$M106=0),"",VLOOKUP($M106,'RLMA-SAWS Database'!$A$5:$BF$3950,53)) -> 132.3 | AO106: =IF(OR($M106="",$M106=0),"",VLOOKUP($M106,'RLMA-SAWS Database'!$A$5:$BF$3950,54)) -> 151.6 | AP106: =IF(OR($M106="",$M106=0),"",VLOOKUP($M106,'RLMA-SAWS Database'!$A$5:$BF$3950,55)) -> 177.6 | AQ106: =IF(OR($M106="",$M106=0),"",VLOOKUP($M106,'RLMA-SAWS Database'!$A$5:$BF$3950,56)) -> 197.5 | AR106: =IF(OR($M106="",$M106=0),"",VLOOKUP($M106,'RLMA-SAWS Database'!$A$5:$BF$3950,57)) -> 218 | AS106: =IF(OR($M106="",$M106=0),"",VLOOKUP($M106,'RLMA-SAWS Database'!$A$5:$BF$3950,58)) -> 68 | AU106: 0262828W | AV106: =IF($AU106="","",VLOOKUP($AU106,'RLMA-SAWS Database'!$A$5:$BF$3950,2)) -> YORK | AW106: 147.23746 | AX106: =IF($AU106="",0,VLOOKUP($AU106,'RLMA-SAWS Database'!$A$5:$BF$3950,7)) -> 686 | AY106: 101004.8976 | AZ106: =IF($AU106="",0,VLOOKUP($AU106,'RLMA-SAWS Database'!$A$5:$BF$3950,9)) -> 48.6 | BA106: 7155.740556 | BB106: =IF($AU106="",0,VLOOKUP($AU106,'RLMA-SAWS Database'!$A$5:$BF$3950,10)) -> 65.8 | BC106: 9688.224868 | BD106: =IF($AU106="",0,VLOOKUP($AU106,'RLMA-SAWS Database'!$A$5:$BF$3950,11)) -> 78.1 | BE106: 11499.24563 | BF106: =IF($AU106="",0,VLOOKUP($AU106,'RLMA-SAWS Database'!$A$5:$BF$3950,12)) -> 90.5 | BG106: 13324.99013 | BH106: =IF($AU106="",0,VLOOKUP($AU106,'RLMA-SAWS Database'!$A$5:$BF$3950,13)) -> 107.8 | BI106: 15872.19819 | BJ106: =IF($AU106="",0,VLOOKUP($AU106,'RLMA-SAWS Database'!$A$5:$BF$3950,14)) -> 121.5 | BK106: 17889.35139 | BL106: =IF($AU106="",0,VLOOKUP($AU106,'RLMA-SAWS Database'!$A$5:$BF$3950,15)) -> 136.1 | BM106: 20039.01831 | BN106: =IF($AU106="",0,VLOOKUP($AU106,'RLMA-SAWS Database'!$A$5:$BF$3950,16)) -> 62.9 | BO106: 9261.236234 | BP106: =IF($AU106="",0,VLOOKUP($AU106,'RLMA-SAWS Database'!$A$5:$BF$3950,17)) -> 84.8 | BQ106: 12485.73661 | BR106: =IF($AU106="",0,VLOOKUP($AU106,'RLMA-SAWS Database'!$A$5:$BF$3950,18)) -> 100.3 | BS106: 14767.91724 | BT106: =IF($AU106="",0,VLOOKUP($AU106,'RLMA-SAWS Database'!$A$5:$BF$3950,19)) -> 115.9 | BU106: 17064.82161 | BV106: =IF($AU106="",0,VLOOKUP($AU106,'RLMA-SAWS Database'!$A$5:$BF$3950,20)) -> 137.2 | BW106: 20200.97951 | BX106: =IF($AU106="",0,VLOOKUP($AU106,'RLMA-SAWS Database'!$A$5:$BF$3950,21)) -> 153.9 | BY106: 22659.84509 | BZ106: =IF($AU106="",0,VLOOKUP($AU106,'RLMA-SAWS Database'!$A$5:$BF$3950,22)) -> 171.5 | CA106: 25251.22439 | CB106: =IF($AU106="",0,VLOOKUP($AU106,'RLMA-SAWS Database'!$A$5:$BF$3950,23)) -> 68.6 | CC106: 10100.48976 | CD106: =IF($AU106="",0,VLOOKUP($AU106,'RLMA-SAWS Database'!$A$5:$BF$3950,24)) -> 91.9 | CE106: 13531.12257 | CF106: =IF($AU106="",0,VLOOKUP($AU106,'RLMA-SAWS Database'!$A$5:$BF$3950,25)) -> 108 | CG106: 15901.64568 | CH106: =IF($AU106="",0,VLOOKUP($AU106,'RLMA-SAWS Database'!$A$5:$BF$3950,26)) -> 124 | CI106: 18257.44504 | CJ106: =IF($AU106="",0,VLOOKUP($AU106,'RLMA-SAWS Database'!$A$5:$BF$3950,27)) -> 145.5 | CK106: 21423.05043 | CL106: =IF($AU106="",0,VLOOKUP($AU106,'RLMA-SAWS Database'!$A$5:$BF$3950,28)) -> 162.2 | CM106: 23881.91601 | CN106: =IF($AU106="",0,VLOOKUP($AU106,'RLMA-SAWS Database'!$A$5:$BF$3950,29)) -> 179.4 | CO106: 26414.40032 | CP106: =IF($AU106="",0,VLOOKUP($AU106,'RLMA-SAWS Database'!$A$5:$BF$3950,51)) -> 84.3 | CQ106: 12412.11788 | CR106: =IF($AU106="",0,VLOOKUP($AU106,'RLMA-SAWS Database'!$A$5:$BF$3950,52)) -> 112.8 | CS106: 16608.38549 | CT106: =IF($AU106="",0,VLOOKUP($AU106,'RLMA-SAWS Database'!$A$5:$BF$3950,53)) -> 132.3 | CU106: 19479.51596 | CV106: =IF($AU106="",0,VLOOKUP($AU106,'RLMA-SAWS Database'!$A$5:$BF$3950,54)) -> 151.6 | CW106: 22321.19894 | CX106: =IF($AU106="",0,VLOOKUP($AU106,'RLMA-SAWS Database'!$A$5:$BF$3950,55)) -> 177.6 | CY106: 26149.3729 | CZ106: =IF($AU106="",0,VLOOKUP($AU106,'RLMA-SAWS Database'!$A$5:$BF$3950,56)) -> 197.5 | DA106: 29079.39835 | DB106: =IF($AU106="",0,VLOOKUP($AU106,'RLMA-SAWS Database'!$A$5:$BF$3950,57)) -> 218 | DC106: 32097.76628 | DD106: =IF($AU106="",0,VLOOKUP($AU106,'RLMA-SAWS Database'!$A$5:$BF$3950,58)) -> 68 | DE106: 10012.14728
A107: 35 | C107: 0292833W | D107: 136.60424 | E107: =IF($C107="","",VLOOKUP($C107,'RLMA-SAWS Database'!$A$5:$BF$3950,2)) -> KRUGERSDRIFTDAM | F107: 135 | J107: =IF($G107="","",VLOOKUP($G107,'RLMA-SAWS Database'!$A$5:$BF$3950,2)) ->  | K107: FALSE | L107: FALSE | M107: 0292833W | N107: =IF(OR($M107="",$M107=0),"",VLOOKUP($M107,'RLMA-SAWS Database'!$A$5:$BF$3950,2)) -> KRUGERSDRIFTDAM | O107: 136.60424 | P107: =IF(OR($M107="",$M107=0),"",VLOOKUP($M107,'RLMA-SAWS Database'!$A$5:$BF$3950,7)) -> 453 | Q107: =IF(OR($M107="",$M107=0),"",VLOOKUP($M107,'RLMA-SAWS Database'!$A$5:$BF$3950,9)) -> 46.9 | R107: =IF(OR($M107="",$M107=0),"",VLOOKUP($M107,'RLMA-SAWS Database'!$A$5:$BF$3950,10)) -> 63.3 | S107: =IF(OR($M107="",$M107=0),"",VLOOKUP($M107,'RLMA-SAWS Database'!$A$5:$BF$3950,11)) -> 74.7 | T107: =IF(OR($M107="",$M107=0),"",VLOOKUP($M107,'RLMA-SAWS Database'!$A$5:$BF$3950,12)) -> 86.1 | U107: =IF(OR($M107="",$M107=0),"",VLOOKUP($M107,'RLMA-SAWS Database'!$A$5:$BF$3950,13)) -> 101.4 | V107: =IF(OR($M107="",$M107=0),"",VLOOKUP($M107,'RLMA-SAWS Database'!$A$5:$BF$3950,14)) -> 113.3 | W107: =IF(OR($M107="",$M107=0),"",VLOOKUP($M107,'RLMA-SAWS Database'!$A$5:$BF$3950,15)) -> 125.7 | X107: =IF(OR($M107="",$M107=0),"",VLOOKUP($M107,'RLMA-SAWS Database'!$A$5:$BF$3950,16)) -> 60 | Y107: =IF(OR($M107="",$M107=0),"",VLOOKUP($M107,'RLMA-SAWS Database'!$A$5:$BF$3950,17)) -> 80.6 | Z107: =IF(OR($M107="",$M107=0),"",VLOOKUP($M107,'RLMA-SAWS Database'!$A$5:$BF$3950,18)) -> 94.9 | AA107: =IF(OR($M107="",$M107=0),"",VLOOKUP($M107,'RLMA-SAWS Database'!$A$5:$BF$3950,19)) -> 109.3 | AB107: =IF(OR($M107="",$M107=0),"",VLOOKUP($M107,'RLMA-SAWS Database'!$A$5:$BF$3950,20)) -> 128.6 | AC107: =IF(OR($M107="",$M107=0),"",VLOOKUP($M107,'RLMA-SAWS Database'!$A$5:$BF$3950,21)) -> 143.6 | AD107: =IF(OR($M107="",$M107=0),"",VLOOKUP($M107,'RLMA-SAWS Database'!$A$5:$BF$3950,22)) -> 159.1 | AE107: =IF(OR($M107="",$M107=0),"",VLOOKUP($M107,'RLMA-SAWS Database'!$A$5:$BF$3950,23)) -> 69.4 | AF107: =IF(OR($M107="",$M107=0),"",VLOOKUP($M107,'RLMA-SAWS Database'!$A$5:$BF$3950,24)) -> 93.2 | AG107: =IF(OR($M107="",$M107=0),"",VLOOKUP($M107,'RLMA-SAWS Database'!$A$5:$BF$3950,25)) -> 109.5 | AH107: =IF(OR($M107="",$M107=0),"",VLOOKUP($M107,'RLMA-SAWS Database'!$A$5:$BF$3950,26)) -> 125.4 | AI107: =IF(OR($M107="",$M107=0),"",VLOOKUP($M107,'RLMA-SAWS Database'!$A$5:$BF$3950,27)) -> 146.8 | AJ107: =IF(OR($M107="",$M107=0),"",VLOOKUP($M107,'RLMA-SAWS Database'!$A$5:$BF$3950,28)) -> 163.3 | AK107: =IF(OR($M107="",$M107=0),"",VLOOKUP($M107,'RLMA-SAWS Database'!$A$5:$BF$3950,29)) -> 180 | AL107: =IF(OR($M107="",$M107=0),"",VLOOKUP($M107,'RLMA-SAWS Database'!$A$5:$BF$3950,51)) -> 89.8 | AM107: =IF(OR($M107="",$M107=0),"",VLOOKUP($M107,'RLMA-SAWS Database'!$A$5:$BF$3950,52)) -> 121.5 | AN107: =IF(OR($M107="",$M107=0),"",VLOOKUP($M107,'RLMA-SAWS Database'!$A$5:$BF$3950,53)) -> 142.9 | AO107: =IF(OR($M107="",$M107=0),"",VLOOKUP($M107,'RLMA-SAWS Database'!$A$5:$BF$3950,54)) -> 163.9 | AP107: =IF(OR($M107="",$M107=0),"",VLOOKUP($M107,'RLMA-SAWS Database'!$A$5:$BF$3950,55)) -> 191.5 | AQ107: =IF(OR($M107="",$M107=0),"",VLOOKUP($M107,'RLMA-SAWS Database'!$A$5:$BF$3950,56)) -> 212.7 | AR107: =IF(OR($M107="",$M107=0),"",VLOOKUP($M107,'RLMA-SAWS Database'!$A$5:$BF$3950,57)) -> 234 | AS107: =IF(OR($M107="",$M107=0),"",VLOOKUP($M107,'RLMA-SAWS Database'!$A$5:$BF$3950,58)) -> 61 | AU107: 0292833W | AV107: =IF($AU107="","",VLOOKUP($AU107,'RLMA-SAWS Database'!$A$5:$BF$3950,2)) -> KRUGERSDRIFTDAM | AW107: 136.60424 | AX107: =IF($AU107="",0,VLOOKUP($AU107,'RLMA-SAWS Database'!$A$5:$BF$3950,7)) -> 453 | AY107: 61881.72072 | AZ107: =IF($AU107="",0,VLOOKUP($AU107,'RLMA-SAWS Database'!$A$5:$BF$3950,9)) -> 46.9 | BA107: 6406.738856 | BB107: =IF($AU107="",0,VLOOKUP($AU107,'RLMA-SAWS Database'!$A$5:$BF$3950,10)) -> 63.3 | BC107: 8647.048392 | BD107: =IF($AU107="",0,VLOOKUP($AU107,'RLMA-SAWS Database'!$A$5:$BF$3950,11)) -> 74.7 | BE107: 10204.33673 | BF107: =IF($AU107="",0,VLOOKUP($AU107,'RLMA-SAWS Database'!$A$5:$BF$3950,12)) -> 86.1 | BG107: 11761.62506 | BH107: =IF($AU107="",0,VLOOKUP($AU107,'RLMA-SAWS Database'!$A$5:$BF$3950,13)) -> 101.4 | BI107: 13851.66994 | BJ107: =IF($AU107="",0,VLOOKUP($AU107,'RLMA-SAWS Database'!$A$5:$BF$3950,14)) -> 113.3 | BK107: 15477.26039 | BL107: =IF($AU107="",0,VLOOKUP($AU107,'RLMA-SAWS Database'!$A$5:$BF$3950,15)) -> 125.7 | BM107: 17171.15297 | BN107: =IF($AU107="",0,VLOOKUP($AU107,'RLMA-SAWS Database'!$A$5:$BF$3950,16)) -> 60 | BO107: 8196.2544 | BP107: =IF($AU107="",0,VLOOKUP($AU107,'RLMA-SAWS Database'!$A$5:$BF$3950,17)) -> 80.6 | BQ107: 11010.30174 | BR107: =IF($AU107="",0,VLOOKUP($AU107,'RLMA-SAWS Database'!$A$5:$BF$3950,18)) -> 94.9 | BS107: 12963.74238 | BT107: =IF($AU107="",0,VLOOKUP($AU107,'RLMA-SAWS Database'!$A$5:$BF$3950,19)) -> 109.3 | BU107: 14930.84343 | BV107: =IF($AU107="",0,VLOOKUP($AU107,'RLMA-SAWS Database'!$A$5:$BF$3950,20)) -> 128.6 | BW107: 17567.30526 | BX107: =IF($AU107="",0,VLOOKUP($AU107,'RLMA-SAWS Database'!$A$5:$BF$3950,21)) -> 143.6 | BY107: 19616.36886 | BZ107: =IF($AU107="",0,VLOOKUP($AU107,'RLMA-SAWS Database'!$A$5:$BF$3950,22)) -> 159.1 | CA107: 21733.73458 | CB107: =IF($AU107="",0,VLOOKUP($AU107,'RLMA-SAWS Database'!$A$5:$BF$3950,23)) -> 69.4 | CC107: 9480.334256 | CD107: =IF($AU107="",0,VLOOKUP($AU107,'RLMA-SAWS Database'!$A$5:$BF$3950,24)) -> 93.2 | CE107: 12731.51517 | CF107: =IF($AU107="",0,VLOOKUP($AU107,'RLMA-SAWS Database'!$A$5:$BF$3950,25)) -> 109.5 | CG107: 14958.16428 | CH107: =IF($AU107="",0,VLOOKUP($AU107,'RLMA-SAWS Database'!$A$5:$BF$3950,26)) -> 125.4 | CI107: 17130.1717 | CJ107: =IF($AU107="",0,VLOOKUP($AU107,'RLMA-SAWS Database'!$A$5:$BF$3950,27)) -> 146.8 | CK107: 20053.50243 | CL107: =IF($AU107="",0,VLOOKUP($AU107,'RLMA-SAWS Database'!$A$5:$BF$3950,28)) -> 163.3 | CM107: 22307.47239 | CN107: =IF($AU107="",0,VLOOKUP($AU107,'RLMA-SAWS Database'!$A$5:$BF$3950,29)) -> 180 | CO107: 24588.7632 | CP107: =IF($AU107="",0,VLOOKUP($AU107,'RLMA-SAWS Database'!$A$5:$BF$3950,51)) -> 89.8 | CQ107: 12267.06075 | CR107: =IF($AU107="",0,VLOOKUP($AU107,'RLMA-SAWS Database'!$A$5:$BF$3950,52)) -> 121.5 | CS107: 16597.41516 | CT107: =IF($AU107="",0,VLOOKUP($AU107,'RLMA-SAWS Database'!$A$5:$BF$3950,53)) -> 142.9 | CU107: 19520.7459 | CV107: =IF($AU107="",0,VLOOKUP($AU107,'RLMA-SAWS Database'!$A$5:$BF$3950,54)) -> 163.9 | CW107: 22389.43494 | CX107: =IF($AU107="",0,VLOOKUP($AU107,'RLMA-SAWS Database'!$A$5:$BF$3950,55)) -> 191.5 | CY107: 26159.71196 | CZ107: =IF($AU107="",0,VLOOKUP($AU107,'RLMA-SAWS Database'!$A$5:$BF$3950,56)) -> 212.7 | DA107: 29055.72185 | DB107: =IF($AU107="",0,VLOOKUP($AU107,'RLMA-SAWS Database'!$A$5:$BF$3950,57)) -> 234 | DC107: 31965.39216 | DD107: =IF($AU107="",0,VLOOKUP($AU107,'RLMA-SAWS Database'!$A$5:$BF$3950,58)) -> 61 | DE107: 8332.85864
A108: 36 | C108: 0293204W | D108: 333.1289 | E108: =IF($C108="","",VLOOKUP($C108,'RLMA-SAWS Database'!$A$5:$BF$3950,2)) -> DONKERHOEK | F108: 136 | J108: =IF($G108="","",VLOOKUP($G108,'RLMA-SAWS Database'!$A$5:$BF$3950,2)) ->  | K108: FALSE | L108: FALSE | M108: 0293204W | N108: =IF(OR($M108="",$M108=0),"",VLOOKUP($M108,'RLMA-SAWS Database'!$A$5:$BF$3950,2)) -> DONKERHOEK | O108: 333.1289 | P108: =IF(OR($M108="",$M108=0),"",VLOOKUP($M108,'RLMA-SAWS Database'!$A$5:$BF$3950,7)) -> 478 | Q108: =IF(OR($M108="",$M108=0),"",VLOOKUP($M108,'RLMA-SAWS Database'!$A$5:$BF$3950,9)) -> 46.7 | R108: =IF(OR($M108="",$M108=0),"",VLOOKUP($M108,'RLMA-SAWS Database'!$A$5:$BF$3950,10)) -> 63 | S108: =IF(OR($M108="",$M108=0),"",VLOOKUP($M108,'RLMA-SAWS Database'!$A$5:$BF$3950,11)) -> 74.4 | T108: =IF(OR($M108="",$M108=0),"",VLOOKUP($M108,'RLMA-SAWS Database'!$A$5:$BF$3950,12)) -> 85.7 | U108: =IF(OR($M108="",$M108=0),"",VLOOKUP($M108,'RLMA-SAWS Database'!$A$5:$BF$3950,13)) -> 101 | V108: =IF(OR($M108="",$M108=0),"",VLOOKUP($M108,'RLMA-SAWS Database'!$A$5:$BF$3950,14)) -> 112.9 | W108: =IF(OR($M108="",$M108=0),"",VLOOKUP($M108,'RLMA-SAWS Database'!$A$5:$BF$3950,15)) -> 125.1 | X108: =IF(OR($M108="",$M108=0),"",VLOOKUP($M108,'RLMA-SAWS Database'!$A$5:$BF$3950,16)) -> 57.9 | Y108: =IF(OR($M108="",$M108=0),"",VLOOKUP($M108,'RLMA-SAWS Database'!$A$5:$BF$3950,17)) -> 77.8 | Z108: =IF(OR($M108="",$M108=0),"",VLOOKUP($M108,'RLMA-SAWS Database'!$A$5:$BF$3950,18)) -> 91.6 | AA108: =IF(OR($M108="",$M108=0),"",VLOOKUP($M108,'RLMA-SAWS Database'!$A$5:$BF$3950,19)) -> 105.5 | AB108: =IF(OR($M108="",$M108=0),"",VLOOKUP($M108,'RLMA-SAWS Database'!$A$5:$BF$3950,20)) -> 124.1 | AC108: =IF(OR($M108="",$M108=0),"",VLOOKUP($M108,'RLMA-SAWS Database'!$A$5:$BF$3950,21)) -> 138.6 | AD108: =IF(OR($M108="",$M108=0),"",VLOOKUP($M108,'RLMA-SAWS Database'!$A$5:$BF$3950,22)) -> 153.6 | AE108: =IF(OR($M108="",$M108=0),"",VLOOKUP($M108,'RLMA-SAWS Database'!$A$5:$BF$3950,23)) -> 65.3 | AF108: =IF(OR($M108="",$M108=0),"",VLOOKUP($M108,'RLMA-SAWS Database'!$A$5:$BF$3950,24)) -> 87.7 | AG108: =IF(OR($M108="",$M108=0),"",VLOOKUP($M108,'RLMA-SAWS Database'!$A$5:$BF$3950,25)) -> 103 | AH108: =IF(OR($M108="",$M108=0),"",VLOOKUP($M108,'RLMA-SAWS Database'!$A$5:$BF$3950,26)) -> 118 | AI108: =IF(OR($M108="",$M108=0),"",VLOOKUP($M108,'RLMA-SAWS Database'!$A$5:$BF$3950,27)) -> 138.1 | AJ108: =IF(OR($M108="",$M108=0),"",VLOOKUP($M108,'RLMA-SAWS Database'!$A$5:$BF$3950,28)) -> 153.6 | AK108: =IF(OR($M108="",$M108=0),"",VLOOKUP($M108,'RLMA-SAWS Database'!$A$5:$BF$3950,29)) -> 169.4 | AL108: =IF(OR($M108="",$M108=0),"",VLOOKUP($M108,'RLMA-SAWS Database'!$A$5:$BF$3950,51)) -> 82.6 | AM108: =IF(OR($M108="",$M108=0),"",VLOOKUP($M108,'RLMA-SAWS Database'!$A$5:$BF$3950,52)) -> 111.7 | AN108: =IF(OR($M108="",$M108=0),"",VLOOKUP($M108,'RLMA-SAWS Database'!$A$5:$BF$3950,53)) -> 131.4 | AO108: =IF(OR($M108="",$M108=0),"",VLOOKUP($M108,'RLMA-SAWS Database'!$A$5:$BF$3950,54)) -> 150.6 | AP108: =IF(OR($M108="",$M108=0),"",VLOOKUP($M108,'RLMA-SAWS Database'!$A$5:$BF$3950,55)) -> 176 | AQ108: =IF(OR($M108="",$M108=0),"",VLOOKUP($M108,'RLMA-SAWS Database'!$A$5:$BF$3950,56)) -> 195.5 | AR108: =IF(OR($M108="",$M108=0),"",VLOOKUP($M108,'RLMA-SAWS Database'!$A$5:$BF$3950,57)) -> 215.1 | AS108: =IF(OR($M108="",$M108=0),"",VLOOKUP($M108,'RLMA-SAWS Database'!$A$5:$BF$3950,58)) -> 61 | AU108: 0293204W | AV108: =IF($AU108="","",VLOOKUP($AU108,'RLMA-SAWS Database'!$A$5:$BF$3950,2)) -> DONKERHOEK | AW108: 333.1289 | AX108: =IF($AU108="",0,VLOOKUP($AU108,'RLMA-SAWS Database'!$A$5:$BF$3950,7)) -> 478 | AY108: 159235.6142 | AZ108: =IF($AU108="",0,VLOOKUP($AU108,'RLMA-SAWS Database'!$A$5:$BF$3950,9)) -> 46.7 | BA108: 15557.11963 | BB108: =IF($AU108="",0,VLOOKUP($AU108,'RLMA-SAWS Database'!$A$5:$BF$3950,10)) -> 63 | BC108: 20987.1207 | BD108: =IF($AU108="",0,VLOOKUP($AU108,'RLMA-SAWS Database'!$A$5:$BF$3950,11)) -> 74.4 | BE108: 24784.79016 | BF108: =IF($AU108="",0,VLOOKUP($AU108,'RLMA-SAWS Database'!$A$5:$BF$3950,12)) -> 85.7 | BG108: 28549.14673 | BH108: =IF($AU108="",0,VLOOKUP($AU108,'RLMA-SAWS Database'!$A$5:$BF$3950,13)) -> 101 | BI108: 33646.0189 | BJ108: =IF($AU108="",0,VLOOKUP($AU108,'RLMA-SAWS Database'!$A$5:$BF$3950,14)) -> 112.9 | BK108: 37610.25281 | BL108: =IF($AU108="",0,VLOOKUP($AU108,'RLMA-SAWS Database'!$A$5:$BF$3950,15)) -> 125.1 | BM108: 41674.42539 | BN108: =IF($AU108="",0,VLOOKUP($AU108,'RLMA-SAWS Database'!$A$5:$BF$3950,16)) -> 57.9 | BO108: 19288.16331 | BP108: =IF($AU108="",0,VLOOKUP($AU108,'RLMA-SAWS Database'!$A$5:$BF$3950,17)) -> 77.8 | BQ108: 25917.42842 | BR108: =IF($AU108="",0,VLOOKUP($AU108,'RLMA-SAWS Database'!$A$5:$BF$3950,18)) -> 91.6 | BS108: 30514.60724 | BT108: =IF($AU108="",0,VLOOKUP($AU108,'RLMA-SAWS Database'!$A$5:$BF$3950,19)) -> 105.5 | BU108: 35145.09895 | BV108: =IF($AU108="",0,VLOOKUP($AU108,'RLMA-SAWS Database'!$A$5:$BF$3950,20)) -> 124.1 | BW108: 41341.29649 | BX108: =IF($AU108="",0,VLOOKUP($AU108,'RLMA-SAWS Database'!$A$5:$BF$3950,21)) -> 138.6 | BY108: 46171.66554 | BZ108: =IF($AU108="",0,VLOOKUP($AU108,'RLMA-SAWS Database'!$A$5:$BF$3950,22)) -> 153.6 | CA108: 51168.59904 | CB108: =IF($AU108="",0,VLOOKUP($AU108,'RLMA-SAWS Database'!$A$5:$BF$3950,23)) -> 65.3 | CC108: 21753.31717 | CD108: =IF($AU108="",0,VLOOKUP($AU108,'RLMA-SAWS Database'!$A$5:$BF$3950,24)) -> 87.7 | CE108: 29215.40453 | CF108: =IF($AU108="",0,VLOOKUP($AU108,'RLMA-SAWS Database'!$A$5:$BF$3950,25)) -> 103 | CG108: 34312.2767 | CH108: =IF($AU108="",0,VLOOKUP($AU108,'RLMA-SAWS Database'!$A$5:$BF$3950,26)) -> 118 | CI108: 39309.2102 | CJ108: =IF($AU108="",0,VLOOKUP($AU108,'RLMA-SAWS Database'!$A$5:$BF$3950,27)) -> 138.1 | CK108: 46005.10109 | CL108: =IF($AU108="",0,VLOOKUP($AU108,'RLMA-SAWS Database'!$A$5:$BF$3950,28)) -> 153.6 | CM108: 51168.59904 | CN108: =IF($AU108="",0,VLOOKUP($AU108,'RLMA-SAWS Database'!$A$5:$BF$3950,29)) -> 169.4 | CO108: 56432.03566 | CP108: =IF($AU108="",0,VLOOKUP($AU108,'RLMA-SAWS Database'!$A$5:$BF$3950,51)) -> 82.6 | CQ108: 27516.44714 | CR108: =IF($AU108="",0,VLOOKUP($AU108,'RLMA-SAWS Database'!$A$5:$BF$3950,52)) -> 111.7 | CS108: 37210.49813 | CT108: =IF($AU108="",0,VLOOKUP($AU108,'RLMA-SAWS Database'!$A$5:$BF$3950,53)) -> 131.4 | CU108: 43773.13746 | CV108: =IF($AU108="",0,VLOOKUP($AU108,'RLMA-SAWS Database'!$A$5:$BF$3950,54)) -> 150.6 | CW108: 50169.21234 | CX108: =IF($AU108="",0,VLOOKUP($AU108,'RLMA-SAWS Database'!$A$5:$BF$3950,55)) -> 176 | CY108: 58630.6864 | CZ108: =IF($AU108="",0,VLOOKUP($AU108,'RLMA-SAWS Database'!$A$5:$BF$3950,56)) -> 195.5 | DA108: 65126.69995 | DB108: =IF($AU108="",0,VLOOKUP($AU108,'RLMA-SAWS Database'!$A$5:$BF$3950,57)) -> 215.1 | DC108: 71656.02639 | DD108: =IF($AU108="",0,VLOOKUP($AU108,'RLMA-SAWS Database'!$A$5:$BF$3950,58)) -> 61 | DE108: 20320.8629
A109: 37 | C109: 0293403W | D109: 217.81977 | E109: =IF($C109="","",VLOOKUP($C109,'RLMA-SAWS Database'!$A$5:$BF$3950,2)) -> VOORUITSIG | F109: 137 | J109: =IF($G109="","",VLOOKUP($G109,'RLMA-SAWS Database'!$A$5:$BF$3950,2)) ->  | K109: FALSE | L109: FALSE | M109: 0293403W | N109: =IF(OR($M109="",$M109=0),"",VLOOKUP($M109,'RLMA-SAWS Database'!$A$5:$BF$3950,2)) -> VOORUITSIG | O109: 217.81977 | P109: =IF(OR($M109="",$M109=0),"",VLOOKUP($M109,'RLMA-SAWS Database'!$A$5:$BF$3950,7)) -> 463 | Q109: =IF(OR($M109="",$M109=0),"",VLOOKUP($M109,'RLMA-SAWS Database'!$A$5:$BF$3950,9)) -> 56.3 | R109: =IF(OR($M109="",$M109=0),"",VLOOKUP($M109,'RLMA-SAWS Database'!$A$5:$BF$3950,10)) -> 76.1 | S109: =IF(OR($M109="",$M109=0),"",VLOOKUP($M109,'RLMA-SAWS Database'!$A$5:$BF$3950,11)) -> 89.8 | T109: =IF(OR($M109="",$M109=0),"",VLOOKUP($M109,'RLMA-SAWS Database'!$A$5:$BF$3950,12)) -> 103.5 | U109: =IF(OR($M109="",$M109=0),"",VLOOKUP($M109,'RLMA-SAWS Database'!$A$5:$BF$3950,13)) -> 121.9 | V109: =IF(OR($M109="",$M109=0),"",VLOOKUP($M109,'RLMA-SAWS Database'!$A$5:$BF$3950,14)) -> 136.3 | W109: =IF(OR($M109="",$M109=0),"",VLOOKUP($M109,'RLMA-SAWS Database'!$A$5:$BF$3950,15)) -> 151.1 | X109: =IF(OR($M109="",$M109=0),"",VLOOKUP($M109,'RLMA-SAWS Database'!$A$5:$BF$3950,16)) -> 66.3 | Y109: =IF(OR($M109="",$M109=0),"",VLOOKUP($M109,'RLMA-SAWS Database'!$A$5:$BF$3950,17)) -> 89.1 | Z109: =IF(OR($M109="",$M109=0),"",VLOOKUP($M109,'RLMA-SAWS Database'!$A$5:$BF$3950,18)) -> 104.9 | AA109: =IF(OR($M109="",$M109=0),"",VLOOKUP($M109,'RLMA-SAWS Database'!$A$5:$BF$3950,19)) -> 120.7 | AB109: =IF(OR($M109="",$M109=0),"",VLOOKUP($M109,'RLMA-SAWS Database'!$A$5:$BF$3950,20)) -> 142 | AC109: =IF(OR($M109="",$M109=0),"",VLOOKUP($M109,'RLMA-SAWS Database'!$A$5:$BF$3950,21)) -> 158.6 | AD109: =IF(OR($M109="",$M109=0),"",VLOOKUP($M109,'RLMA-SAWS Database'!$A$5:$BF$3950,22)) -> 175.8 | AE109: =IF(OR($M109="",$M109=0),"",VLOOKUP($M109,'RLMA-SAWS Database'!$A$5:$BF$3950,23)) -> 72.9 | AF109: =IF(OR($M109="",$M109=0),"",VLOOKUP($M109,'RLMA-SAWS Database'!$A$5:$BF$3950,24)) -> 97.9 | AG109: =IF(OR($M109="",$M109=0),"",VLOOKUP($M109,'RLMA-SAWS Database'!$A$5:$BF$3950,25)) -> 115 | AH109: =IF(OR($M109="",$M109=0),"",VLOOKUP($M109,'RLMA-SAWS Database'!$A$5:$BF$3950,26)) -> 131.8 | AI109: =IF(OR($M109="",$M109=0),"",VLOOKUP($M109,'RLMA-SAWS Database'!$A$5:$BF$3950,27)) -> 154.2 | AJ109: =IF(OR($M109="",$M109=0),"",VLOOKUP($M109,'RLMA-SAWS Database'!$A$5:$BF$3950,28)) -> 171.5 | AK109: =IF(OR($M109="",$M109=0),"",VLOOKUP($M109,'RLMA-SAWS Database'!$A$5:$BF$3950,29)) -> 189.1 | AL109: =IF(OR($M109="",$M109=0),"",VLOOKUP($M109,'RLMA-SAWS Database'!$A$5:$BF$3950,51)) -> 91.7 | AM109: =IF(OR($M109="",$M109=0),"",VLOOKUP($M109,'RLMA-SAWS Database'!$A$5:$BF$3950,52)) -> 124 | AN109: =IF(OR($M109="",$M109=0),"",VLOOKUP($M109,'RLMA-SAWS Database'!$A$5:$BF$3950,53)) -> 145.9 | AO109: =IF(OR($M109="",$M109=0),"",VLOOKUP($M109,'RLMA-SAWS Database'!$A$5:$BF$3950,54)) -> 167.3 | AP109: =IF(OR($M109="",$M109=0),"",VLOOKUP($M109,'RLMA-SAWS Database'!$A$5:$BF$3950,55)) -> 195.4 | AQ109: =IF(OR($M109="",$M109=0),"",VLOOKUP($M109,'RLMA-SAWS Database'!$A$5:$BF$3950,56)) -> 217 | AR109: =IF(OR($M109="",$M109=0),"",VLOOKUP($M109,'RLMA-SAWS Database'!$A$5:$BF$3950,57)) -> 238.8 | AS109: =IF(OR($M109="",$M109=0),"",VLOOKUP($M109,'RLMA-SAWS Database'!$A$5:$BF$3950,58)) -> 62 | AU109: 0293403W | AV109: =IF($AU109="","",VLOOKUP($AU109,'RLMA-SAWS Database'!$A$5:$BF$3950,2)) -> VOORUITSIG | AW109: 217.81977 | AX109: =IF($AU109="",0,VLOOKUP($AU109,'RLMA-SAWS Database'!$A$5:$BF$3950,7)) -> 463 | AY109: 100850.5535 | AZ109: =IF($AU109="",0,VLOOKUP($AU109,'RLMA-SAWS Database'!$A$5:$BF$3950,9)) -> 56.3 | BA109: 12263.25305 | BB109: =IF($AU109="",0,VLOOKUP($AU109,'RLMA-SAWS Database'!$A$5:$BF$3950,10)) -> 76.1 | BC109: 16576.0845 | BD109: =IF($AU109="",0,VLOOKUP($AU109,'RLMA-SAWS Database'!$A$5:$BF$3950,11)) -> 89.8 | BE109: 19560.21535 | BF109: =IF($AU109="",0,VLOOKUP($AU109,'RLMA-SAWS Database'!$A$5:$BF$3950,12)) -> 103.5 | BG109: 22544.3462 | BH109: =IF($AU109="",0,VLOOKUP($AU109,'RLMA-SAWS Database'!$A$5:$BF$3950,13)) -> 121.9 | BI109: 26552.22996 | BJ109: =IF($AU109="",0,VLOOKUP($AU109,'RLMA-SAWS Database'!$A$5:$BF$3950,14)) -> 136.3 | BK109: 29688.83465 | BL109: =IF($AU109="",0,VLOOKUP($AU109,'RLMA-SAWS Database'!$A$5:$BF$3950,15)) -> 151.1 | BM109: 32912.56725 | BN109: =IF($AU109="",0,VLOOKUP($AU109,'RLMA-SAWS Database'!$A$5:$BF$3950,16)) -> 66.3 | BO109: 14441.45075 | BP109: =IF($AU109="",0,VLOOKUP($AU109,'RLMA-SAWS Database'!$A$5:$BF$3950,17)) -> 89.1 | BQ109: 19407.74151 | BR109: =IF($AU109="",0,VLOOKUP($AU109,'RLMA-SAWS Database'!$A$5:$BF$3950,18)) -> 104.9 | BS109: 22849.29387 | BT109: =IF($AU109="",0,VLOOKUP($AU109,'RLMA-SAWS Database'!$A$5:$BF$3950,19)) -> 120.7 | BU109: 26290.84624 | BV109: =IF($AU109="",0,VLOOKUP($AU109,'RLMA-SAWS Database'!$A$5:$BF$3950,20)) -> 142 | BW109: 30930.40734 | BX109: =IF($AU109="",0,VLOOKUP($AU109,'RLMA-SAWS Database'!$A$5:$BF$3950,21)) -> 158.6 | BY109: 34546.21552 | BZ109: =IF($AU109="",0,VLOOKUP($AU109,'RLMA-SAWS Database'!$A$5:$BF$3950,22)) -> 175.8 | CA109: 38292.71557 | CB109: =IF($AU109="",0,VLOOKUP($AU109,'RLMA-SAWS Database'!$A$5:$BF$3950,23)) -> 72.9 | CC109: 15879.06123 | CD109: =IF($AU109="",0,VLOOKUP($AU109,'RLMA-SAWS Database'!$A$5:$BF$3950,24)) -> 97.9 | CE109: 21324.55548 | CF109: =IF($AU109="",0,VLOOKUP($AU109,'RLMA-SAWS Database'!$A$5:$BF$3950,25)) -> 115 | CG109: 25049.27355 | CH109: =IF($AU109="",0,VLOOKUP($AU109,'RLMA-SAWS Database'!$A$5:$BF$3950,26)) -> 131.8 | CI109: 28708.64569 | CJ109: =IF($AU109="",0,VLOOKUP($AU109,'RLMA-SAWS Database'!$A$5:$BF$3950,27)) -> 154.2 | CK109: 33587.80853 | CL109: =IF($AU109="",0,VLOOKUP($AU109,'RLMA-SAWS Database'!$A$5:$BF$3950,28)) -> 171.5 | CM109: 37356.09056 | CN109: =IF($AU109="",0,VLOOKUP($AU109,'RLMA-SAWS Database'!$A$5:$BF$3950,29)) -> 189.1 | CO109: 41189.71851 | CP109: =IF($AU109="",0,VLOOKUP($AU109,'RLMA-SAWS Database'!$A$5:$BF$3950,51)) -> 91.7 | CQ109: 19974.07291 | CR109: =IF($AU109="",0,VLOOKUP($AU109,'RLMA-SAWS Database'!$A$5:$BF$3950,52)) -> 124 | CS109: 27009.65148 | CT109: =IF($AU109="",0,VLOOKUP($AU109,'RLMA-SAWS Database'!$A$5:$BF$3950,53)) -> 145.9 | CU109: 31779.90444 | CV109: =IF($AU109="",0,VLOOKUP($AU109,'RLMA-SAWS Database'!$A$5:$BF$3950,54)) -> 167.3 | CW109: 36441.24752 | CX109: =IF($AU109="",0,VLOOKUP($AU109,'RLMA-SAWS Database'!$A$5:$BF$3950,55)) -> 195.4 | CY109: 42561.98306 | CZ109: =IF($AU109="",0,VLOOKUP($AU109,'RLMA-SAWS Database'!$A$5:$BF$3950,56)) -> 217 | DA109: 47266.89009 | DB109: =IF($AU109="",0,VLOOKUP($AU109,'RLMA-SAWS Database'!$A$5:$BF$3950,57)) -> 238.8 | DC109: 52015.36108 | DD109: =IF($AU109="",0,VLOOKUP($AU109,'RLMA-SAWS Database'!$A$5:$BF$3950,58)) -> 62 | DE109: 13504.82574
A110: 38 | C110: 0293514W | D110: 148.72627 | E110: =IF($C110="","",VLOOKUP($C110,'RLMA-SAWS Database'!$A$5:$BF$3950,2)) -> STILLEWONING | F110: 138 | J110: =IF($G110="","",VLOOKUP($G110,'RLMA-SAWS Database'!$A$5:$BF$3950,2)) ->  | K110: FALSE | L110: FALSE | M110: 0293514W | N110: =IF(OR($M110="",$M110=0),"",VLOOKUP($M110,'RLMA-SAWS Database'!$A$5:$BF$3950,2)) -> STILLEWONING | O110: 148.72627 | P110: =IF(OR($M110="",$M110=0),"",VLOOKUP($M110,'RLMA-SAWS Database'!$A$5:$BF$3950,7)) -> 486 | Q110: =IF(OR($M110="",$M110=0),"",VLOOKUP($M110,'RLMA-SAWS Database'!$A$5:$BF$3950,9)) -> 45.6 | R110: =IF(OR($M110="",$M110=0),"",VLOOKUP($M110,'RLMA-SAWS Database'!$A$5:$BF$3950,10)) -> 61.5 | S110: =IF(OR($M110="",$M110=0),"",VLOOKUP($M110,'RLMA-SAWS Database'!$A$5:$BF$3950,11)) -> 72.6 | T110: =IF(OR($M110="",$M110=0),"",VLOOKUP($M110,'RLMA-SAWS Database'!$A$5:$BF$3950,12)) -> 83.7 | U110: =IF(OR($M110="",$M110=0),"",VLOOKUP($M110,'RLMA-SAWS Database'!$A$5:$BF$3950,13)) -> 98.6 | V110: =IF(OR($M110="",$M110=0),"",VLOOKUP($M110,'RLMA-SAWS Database'!$A$5:$BF$3950,14)) -> 110.2 | W110: =IF(OR($M110="",$M110=0),"",VLOOKUP($M110,'RLMA-SAWS Database'!$A$5:$BF$3950,15)) -> 122.2 | X110: =IF(OR($M110="",$M110=0),"",VLOOKUP($M110,'RLMA-SAWS Database'!$A$5:$BF$3950,16)) -> 58.4 | Y110: =IF(OR($M110="",$M110=0),"",VLOOKUP($M110,'RLMA-SAWS Database'!$A$5:$BF$3950,17)) -> 78.5 | Z110: =IF(OR($M110="",$M110=0),"",VLOOKUP($M110,'RLMA-SAWS Database'!$A$5:$BF$3950,18)) -> 92.4 | AA110: =IF(OR($M110="",$M110=0),"",VLOOKUP($M110,'RLMA-SAWS Database'!$A$5:$BF$3950,19)) -> 106.3 | AB110: =IF(OR($M110="",$M110=0),"",VLOOKUP($M110,'RLMA-SAWS Database'!$A$5:$BF$3950,20)) -> 125.1 | AC110: =IF(OR($M110="",$M110=0),"",VLOOKUP($M110,'RLMA-SAWS Database'!$A$5:$BF$3950,21)) -> 139.7 | AD110: =IF(OR($M110="",$M110=0),"",VLOOKUP($M110,'RLMA-SAWS Database'!$A$5:$BF$3950,22)) -> 154.8 | AE110: =IF(OR($M110="",$M110=0),"",VLOOKUP($M110,'RLMA-SAWS Database'!$A$5:$BF$3950,23)) -> 64.3 | AF110: =IF(OR($M110="",$M110=0),"",VLOOKUP($M110,'RLMA-SAWS Database'!$A$5:$BF$3950,24)) -> 86.3 | AG110: =IF(OR($M110="",$M110=0),"",VLOOKUP($M110,'RLMA-SAWS Database'!$A$5:$BF$3950,25)) -> 101.4 | AH110: =IF(OR($M110="",$M110=0),"",VLOOKUP($M110,'RLMA-SAWS Database'!$A$5:$BF$3950,26)) -> 116.2 | AI110: =IF(OR($M110="",$M110=0),"",VLOOKUP($M110,'RLMA-SAWS Database'!$A$5:$BF$3950,27)) -> 135.9 | AJ110: =IF(OR($M110="",$M110=0),"",VLOOKUP($M110,'RLMA-SAWS Database'!$A$5:$BF$3950,28)) -> 151.2 | AK110: =IF(OR($M110="",$M110=0),"",VLOOKUP($M110,'RLMA-SAWS Database'!$A$5:$BF$3950,29)) -> 166.7 | AL110: =IF(OR($M110="",$M110=0),"",VLOOKUP($M110,'RLMA-SAWS Database'!$A$5:$BF$3950,51)) -> 83 | AM110: =IF(OR($M110="",$M110=0),"",VLOOKUP($M110,'RLMA-SAWS Database'!$A$5:$BF$3950,52)) -> 112.3 | AN110: =IF(OR($M110="",$M110=0),"",VLOOKUP($M110,'RLMA-SAWS Database'!$A$5:$BF$3950,53)) -> 132.1 | AO110: =IF(OR($M110="",$M110=0),"",VLOOKUP($M110,'RLMA-SAWS Database'!$A$5:$BF$3950,54)) -> 151.5 | AP110: =IF(OR($M110="",$M110=0),"",VLOOKUP($M110,'RLMA-SAWS Database'!$A$5:$BF$3950,55)) -> 177 | AQ110: =IF(OR($M110="",$M110=0),"",VLOOKUP($M110,'RLMA-SAWS Database'!$A$5:$BF$3950,56)) -> 196.5 | AR110: =IF(OR($M110="",$M110=0),"",VLOOKUP($M110,'RLMA-SAWS Database'!$A$5:$BF$3950,57)) -> 216.2 | AS110: =IF(OR($M110="",$M110=0),"",VLOOKUP($M110,'RLMA-SAWS Database'!$A$5:$BF$3950,58)) -> 62 | AU110: 0293514W | AV110: =IF($AU110="","",VLOOKUP($AU110,'RLMA-SAWS Database'!$A$5:$BF$3950,2)) -> STILLEWONING | AW110: 148.72627 | AX110: =IF($AU110="",0,VLOOKUP($AU110,'RLMA-SAWS Database'!$A$5:$BF$3950,7)) -> 486 | AY110: 72280.96722 | AZ110: =IF($AU110="",0,VLOOKUP($AU110,'RLMA-SAWS Database'!$A$5:$BF$3950,9)) -> 45.6 | BA110: 6781.917912 | BB110: =IF($AU110="",0,VLOOKUP($AU110,'RLMA-SAWS Database'!$A$5:$BF$3950,10)) -> 61.5 | BC110: 9146.665605 | BD110: =IF($AU110="",0,VLOOKUP($AU110,'RLMA-SAWS Database'!$A$5:$BF$3950,11)) -> 72.6 | BE110: 10797.5272 | BF110: =IF($AU110="",0,VLOOKUP($AU110,'RLMA-SAWS Database'!$A$5:$BF$3950,12)) -> 83.7 | BG110: 12448.3888 | BH110: =IF($AU110="",0,VLOOKUP($AU110,'RLMA-SAWS Database'!$A$5:$BF$3950,13)) -> 98.6 | BI110: 14664.41022 | BJ110: =IF($AU110="",0,VLOOKUP($AU110,'RLMA-SAWS Database'!$A$5:$BF$3950,14)) -> 110.2 | BK110: 16389.63495 | BL110: =IF($AU110="",0,VLOOKUP($AU110,'RLMA-SAWS Database'!$A$5:$BF$3950,15)) -> 122.2 | BM110: 18174.35019 | BN110: =IF($AU110="",0,VLOOKUP($AU110,'RLMA-SAWS Database'!$A$5:$BF$3950,16)) -> 58.4 | BO110: 8685.614168 | BP110: =IF($AU110="",0,VLOOKUP($AU110,'RLMA-SAWS Database'!$A$5:$BF$3950,17)) -> 78.5 | BQ110: 11675.01219 | BR110: =IF($AU110="",0,VLOOKUP($AU110,'RLMA-SAWS Database'!$A$5:$BF$3950,18)) -> 92.4 | BS110: 13742.30735 | BT110: =IF($AU110="",0,VLOOKUP($AU110,'RLMA-SAWS Database'!$A$5:$BF$3950,19)) -> 106.3 | BU110: 15809.6025 | BV110: =IF($AU110="",0,VLOOKUP($AU110,'RLMA-SAWS Database'!$A$5:$BF$3950,20)) -> 125.1 | BW110: 18605.65638 | BX110: =IF($AU110="",0,VLOOKUP($AU110,'RLMA-SAWS Database'!$A$5:$BF$3950,21)) -> 139.7 | BY110: 20777.05992 | BZ110: =IF($AU110="",0,VLOOKUP($AU110,'RLMA-SAWS Database'!$A$5:$BF$3950,22)) -> 154.8 | CA110: 23022.8266 | CB110: =IF($AU110="",0,VLOOKUP($AU110,'RLMA-SAWS Database'!$A$5:$BF$3950,23)) -> 64.3 | CC110: 9563.099161 | CD110: =IF($AU110="",0,VLOOKUP($AU110,'RLMA-SAWS Database'!$A$5:$BF$3950,24)) -> 86.3 | CE110: 12835.0771 | CF110: =IF($AU110="",0,VLOOKUP($AU110,'RLMA-SAWS Database'!$A$5:$BF$3950,25)) -> 101.4 | CG110: 15080.84378 | CH110: =IF($AU110="",0,VLOOKUP($AU110,'RLMA-SAWS Database'!$A$5:$BF$3950,26)) -> 116.2 | CI110: 17281.99257 | CJ110: =IF($AU110="",0,VLOOKUP($AU110,'RLMA-SAWS Database'!$A$5:$BF$3950,27)) -> 135.9 | CK110: 20211.90009 | CL110: =IF($AU110="",0,VLOOKUP($AU110,'RLMA-SAWS Database'!$A$5:$BF$3950,28)) -> 151.2 | CM110: 22487.41202 | CN110: =IF($AU110="",0,VLOOKUP($AU110,'RLMA-SAWS Database'!$A$5:$BF$3950,29)) -> 166.7 | CO110: 24792.66921 | CP110: =IF($AU110="",0,VLOOKUP($AU110,'RLMA-SAWS Database'!$A$5:$BF$3950,51)) -> 83 | CQ110: 12344.28041 | CR110: =IF($AU110="",0,VLOOKUP($AU110,'RLMA-SAWS Database'!$A$5:$BF$3950,52)) -> 112.3 | CS110: 16701.96012 | CT110: =IF($AU110="",0,VLOOKUP($AU110,'RLMA-SAWS Database'!$A$5:$BF$3950,53)) -> 132.1 | CU110: 19646.74027 | CV110: =IF($AU110="",0,VLOOKUP($AU110,'RLMA-SAWS Database'!$A$5:$BF$3950,54)) -> 151.5 | CW110: 22532.0299 | CX110: =IF($AU110="",0,VLOOKUP($AU110,'RLMA-SAWS Database'!$A$5:$BF$3950,55)) -> 177 | CY110: 26324.54979 | CZ110: =IF($AU110="",0,VLOOKUP($AU110,'RLMA-SAWS Database'!$A$5:$BF$3950,56)) -> 196.5 | DA110: 29224.71205 | DB110: =IF($AU110="",0,VLOOKUP($AU110,'RLMA-SAWS Database'!$A$5:$BF$3950,57)) -> 216.2 | DC110: 32154.61957 | DD110: =IF($AU110="",0,VLOOKUP($AU110,'RLMA-SAWS Database'!$A$5:$BF$3950,58)) -> 62 | DE110: 9221.02874
A111: 39 | C111: 0293568W | D111: 140.84356 | E111: =IF($C111="","",VLOOKUP($C111,'RLMA-SAWS Database'!$A$5:$BF$3950,2)) -> GLEN COLLEGE | F111: 139 | J111: =IF($G111="","",VLOOKUP($G111,'RLMA-SAWS Database'!$A$5:$BF$3950,2)) ->  | K111: FALSE | L111: FALSE | M111: 0293568W | N111: =IF(OR($M111="",$M111=0),"",VLOOKUP($M111,'RLMA-SAWS Database'!$A$5:$BF$3950,2)) -> GLEN COLLEGE | O111: 140.84356 | P111: =IF(OR($M111="",$M111=0),"",VLOOKUP($M111,'RLMA-SAWS Database'!$A$5:$BF$3950,7)) -> 464 | Q111: =IF(OR($M111="",$M111=0),"",VLOOKUP($M111,'RLMA-SAWS Database'!$A$5:$BF$3950,9)) -> 41.3 | R111: =IF(OR($M111="",$M111=0),"",VLOOKUP($M111,'RLMA-SAWS Database'!$A$5:$BF$3950,10)) -> 55.8 | S111: =IF(OR($M111="",$M111=0),"",VLOOKUP($M111,'RLMA-SAWS Database'!$A$5:$BF$3950,11)) -> 65.8 | T111: =IF(OR($M111="",$M111=0),"",VLOOKUP($M111,'RLMA-SAWS Database'!$A$5:$BF$3950,12)) -> 75.8 | U111: =IF(OR($M111="",$M111=0),"",VLOOKUP($M111,'RLMA-SAWS Database'!$A$5:$BF$3950,13)) -> 89.3 | V111: =IF(OR($M111="",$M111=0),"",VLOOKUP($M111,'RLMA-SAWS Database'!$A$5:$BF$3950,14)) -> 99.8 | W111: =IF(OR($M111="",$M111=0),"",VLOOKUP($M111,'RLMA-SAWS Database'!$A$5:$BF$3950,15)) -> 110.7 | X111: =IF(OR($M111="",$M111=0),"",VLOOKUP($M111,'RLMA-SAWS Database'!$A$5:$BF$3950,16)) -> 53.5 | Y111: =IF(OR($M111="",$M111=0),"",VLOOKUP($M111,'RLMA-SAWS Database'!$A$5:$BF$3950,17)) -> 71.9 | Z111: =IF(OR($M111="",$M111=0),"",VLOOKUP($M111,'RLMA-SAWS Database'!$A$5:$BF$3950,18)) -> 84.7 | AA111: =IF(OR($M111="",$M111=0),"",VLOOKUP($M111,'RLMA-SAWS Database'!$A$5:$BF$3950,19)) -> 97.5 | AB111: =IF(OR($M111="",$M111=0),"",VLOOKUP($M111,'RLMA-SAWS Database'!$A$5:$BF$3950,20)) -> 114.7 | AC111: =IF(OR($M111="",$M111=0),"",VLOOKUP($M111,'RLMA-SAWS Database'!$A$5:$BF$3950,21)) -> 128.1 | AD111: =IF(OR($M111="",$M111=0),"",VLOOKUP($M111,'RLMA-SAWS Database'!$A$5:$BF$3950,22)) -> 142 | AE111: =IF(OR($M111="",$M111=0),"",VLOOKUP($M111,'RLMA-SAWS Database'!$A$5:$BF$3950,23)) -> 57.4 | AF111: =IF(OR($M111="",$M111=0),"",VLOOKUP($M111,'RLMA-SAWS Database'!$A$5:$BF$3950,24)) -> 77.1 | AG111: =IF(OR($M111="",$M111=0),"",VLOOKUP($M111,'RLMA-SAWS Database'!$A$5:$BF$3950,25)) -> 90.5 | AH111: =IF(OR($M111="",$M111=0),"",VLOOKUP($M111,'RLMA-SAWS Database'!$A$5:$BF$3950,26)) -> 103.8 | AI111: =IF(OR($M111="",$M111=0),"",VLOOKUP($M111,'RLMA-SAWS Database'!$A$5:$BF$3950,27)) -> 121.4 | AJ111: =IF(OR($M111="",$M111=0),"",VLOOKUP($M111,'RLMA-SAWS Database'!$A$5:$BF$3950,28)) -> 135.1 | AK111: =IF(OR($M111="",$M111=0),"",VLOOKUP($M111,'RLMA-SAWS Database'!$A$5:$BF$3950,29)) -> 148.9 | AL111: =IF(OR($M111="",$M111=0),"",VLOOKUP($M111,'RLMA-SAWS Database'!$A$5:$BF$3950,51)) -> 70.7 | AM111: =IF(OR($M111="",$M111=0),"",VLOOKUP($M111,'RLMA-SAWS Database'!$A$5:$BF$3950,52)) -> 95.6 | AN111: =IF(OR($M111="",$M111=0),"",VLOOKUP($M111,'RLMA-SAWS Database'!$A$5:$BF$3950,53)) -> 112.5 | AO111: =IF(OR($M111="",$M111=0),"",VLOOKUP($M111,'RLMA-SAWS Database'!$A$5:$BF$3950,54)) -> 129 | AP111: =IF(OR($M111="",$M111=0),"",VLOOKUP($M111,'RLMA-SAWS Database'!$A$5:$BF$3950,55)) -> 150.8 | AQ111: =IF(OR($M111="",$M111=0),"",VLOOKUP($M111,'RLMA-SAWS Database'!$A$5:$BF$3950,56)) -> 167.4 | AR111: =IF(OR($M111="",$M111=0),"",VLOOKUP($M111,'RLMA-SAWS Database'!$A$5:$BF$3950,57)) -> 184.2 | AS111: =IF(OR($M111="",$M111=0),"",VLOOKUP($M111,'RLMA-SAWS Database'!$A$5:$BF$3950,58)) -> 62 | AU111: 0293568W | AV111: =IF($AU111="","",VLOOKUP($AU111,'RLMA-SAWS Database'!$A$5:$BF$3950,2)) -> GLEN COLLEGE | AW111: 140.84356 | AX111: =IF($AU111="",0,VLOOKUP($AU111,'RLMA-SAWS Database'!$A$5:$BF$3950,7)) -> 464 | AY111: 65351.41184 | AZ111: =IF($AU111="",0,VLOOKUP($AU111,'RLMA-SAWS Database'!$A$5:$BF$3950,9)) -> 41.3 | BA111: 5816.839028 | BB111: =IF($AU111="",0,VLOOKUP($AU111,'RLMA-SAWS Database'!$A$5:$BF$3950,10)) -> 55.8 | BC111: 7859.070648 | BD111: =IF($AU111="",0,VLOOKUP($AU111,'RLMA-SAWS Database'!$A$5:$BF$3950,11)) -> 65.8 | BE111: 9267.506248 | BF111: =IF($AU111="",0,VLOOKUP($AU111,'RLMA-SAWS Database'!$A$5:$BF$3950,12)) -> 75.8 | BG111: 10675.94185 | BH111: =IF($AU111="",0,VLOOKUP($AU111,'RLMA-SAWS Database'!$A$5:$BF$3950,13)) -> 89.3 | BI111: 12577.32991 | BJ111: =IF($AU111="",0,VLOOKUP($AU111,'RLMA-SAWS Database'!$A$5:$BF$3950,14)) -> 99.8 | BK111: 14056.18729 | BL111: =IF($AU111="",0,VLOOKUP($AU111,'RLMA-SAWS Database'!$A$5:$BF$3950,15)) -> 110.7 | BM111: 15591.38209 | BN111: =IF($AU111="",0,VLOOKUP($AU111,'RLMA-SAWS Database'!$A$5:$BF$3950,16)) -> 53.5 | BO111: 7535.13046 | BP111: =IF($AU111="",0,VLOOKUP($AU111,'RLMA-SAWS Database'!$A$5:$BF$3950,17)) -> 71.9 | BQ111: 10126.65196 | BR111: =IF($AU111="",0,VLOOKUP($AU111,'RLMA-SAWS Database'!$A$5:$BF$3950,18)) -> 84.7 | BS111: 11929.44953 | BT111: =IF($AU111="",0,VLOOKUP($AU111,'RLMA-SAWS Database'!$A$5:$BF$3950,19)) -> 97.5 | BU111: 13732.2471 | BV111: =IF($AU111="",0,VLOOKUP($AU111,'RLMA-SAWS Database'!$A$5:$BF$3950,20)) -> 114.7 | BW111: 16154.75633 | BX111: =IF($AU111="",0,VLOOKUP($AU111,'RLMA-SAWS Database'!$A$5:$BF$3950,21)) -> 128.1 | BY111: 18042.06004 | BZ111: =IF($AU111="",0,VLOOKUP($AU111,'RLMA-SAWS Database'!$A$5:$BF$3950,22)) -> 142 | CA111: 19999.78552 | CB111: =IF($AU111="",0,VLOOKUP($AU111,'RLMA-SAWS Database'!$A$5:$BF$3950,23)) -> 57.4 | CC111: 8084.420344 | CD111: =IF($AU111="",0,VLOOKUP($AU111,'RLMA-SAWS Database'!$A$5:$BF$3950,24)) -> 77.1 | CE111: 10859.03848 | CF111: =IF($AU111="",0,VLOOKUP($AU111,'RLMA-SAWS Database'!$A$5:$BF$3950,25)) -> 90.5 | CG111: 12746.34218 | CH111: =IF($AU111="",0,VLOOKUP($AU111,'RLMA-SAWS Database'!$A$5:$BF$3950,26)) -> 103.8 | CI111: 14619.56153 | CJ111: =IF($AU111="",0,VLOOKUP($AU111,'RLMA-SAWS Database'!$A$5:$BF$3950,27)) -> 121.4 | CK111: 17098.40818 | CL111: =IF($AU111="",0,VLOOKUP($AU111,'RLMA-SAWS Database'!$A$5:$BF$3950,28)) -> 135.1 | CM111: 19027.96496 | CN111: =IF($AU111="",0,VLOOKUP($AU111,'RLMA-SAWS Database'!$A$5:$BF$3950,29)) -> 148.9 | CO111: 20971.60608 | CP111: =IF($AU111="",0,VLOOKUP($AU111,'RLMA-SAWS Database'!$A$5:$BF$3950,51)) -> 70.7 | CQ111: 9957.639692 | CR111: =IF($AU111="",0,VLOOKUP($AU111,'RLMA-SAWS Database'!$A$5:$BF$3950,52)) -> 95.6 | CS111: 13464.64434 | CT111: =IF($AU111="",0,VLOOKUP($AU111,'RLMA-SAWS Database'!$A$5:$BF$3950,53)) -> 112.5 | CU111: 15844.9005 | CV111: =IF($AU111="",0,VLOOKUP($AU111,'RLMA-SAWS Database'!$A$5:$BF$3950,54)) -> 129 | CW111: 18168.81924 | CX111: =IF($AU111="",0,VLOOKUP($AU111,'RLMA-SAWS Database'!$A$5:$BF$3950,55)) -> 150.8 | CY111: 21239.20885 | CZ111: =IF($AU111="",0,VLOOKUP($AU111,'RLMA-SAWS Database'!$A$5:$BF$3950,56)) -> 167.4 | DA111: 23577.21194 | DB111: =IF($AU111="",0,VLOOKUP($AU111,'RLMA-SAWS Database'!$A$5:$BF$3950,57)) -> 184.2 | DC111: 25943.38375 | DD111: =IF($AU111="",0,VLOOKUP($AU111,'RLMA-SAWS Database'!$A$5:$BF$3950,58)) -> 62 | DE111: 8732.30072
A112: 40 | C112: 0293597W | D112: 90.09416 | E112: =IF($C112="","",VLOOKUP($C112,'RLMA-SAWS Database'!$A$5:$BF$3950,2)) -> GLEN (Agriculture) | F112: 140 | J112: =IF($G112="","",VLOOKUP($G112,'RLMA-SAWS Database'!$A$5:$BF$3950,2)) ->  | K112: FALSE | L112: FALSE | M112: 0293597W | N112: =IF(OR($M112="",$M112=0),"",VLOOKUP($M112,'RLMA-SAWS Database'!$A$5:$BF$3950,2)) -> GLEN (Agriculture) | O112: 90.09416 | P112: =IF(OR($M112="",$M112=0),"",VLOOKUP($M112,'RLMA-SAWS Database'!$A$5:$BF$3950,7)) -> 529 | Q112: =IF(OR($M112="",$M112=0),"",VLOOKUP($M112,'RLMA-SAWS Database'!$A$5:$BF$3950,9)) -> 52.1 | R112: =IF(OR($M112="",$M112=0),"",VLOOKUP($M112,'RLMA-SAWS Database'!$A$5:$BF$3950,10)) -> 70.4 | S112: =IF(OR($M112="",$M112=0),"",VLOOKUP($M112,'RLMA-SAWS Database'!$A$5:$BF$3950,11)) -> 83.1 | T112: =IF(OR($M112="",$M112=0),"",VLOOKUP($M112,'RLMA-SAWS Database'!$A$5:$BF$3950,12)) -> 95.8 | U112: =IF(OR($M112="",$M112=0),"",VLOOKUP($M112,'RLMA-SAWS Database'!$A$5:$BF$3950,13)) -> 112.8 | V112: =IF(OR($M112="",$M112=0),"",VLOOKUP($M112,'RLMA-SAWS Database'!$A$5:$BF$3950,14)) -> 126.1 | W112: =IF(OR($M112="",$M112=0),"",VLOOKUP($M112,'RLMA-SAWS Database'!$A$5:$BF$3950,15)) -> 139.8 | X112: =IF(OR($M112="",$M112=0),"",VLOOKUP($M112,'RLMA-SAWS Database'!$A$5:$BF$3950,16)) -> 66.3 | Y112: =IF(OR($M112="",$M112=0),"",VLOOKUP($M112,'RLMA-SAWS Database'!$A$5:$BF$3950,17)) -> 89.1 | Z112: =IF(OR($M112="",$M112=0),"",VLOOKUP($M112,'RLMA-SAWS Database'!$A$5:$BF$3950,18)) -> 104.9 | AA112: =IF(OR($M112="",$M112=0),"",VLOOKUP($M112,'RLMA-SAWS Database'!$A$5:$BF$3950,19)) -> 120.7 | AB112: =IF(OR($M112="",$M112=0),"",VLOOKUP($M112,'RLMA-SAWS Database'!$A$5:$BF$3950,20)) -> 142.1 | AC112: =IF(OR($M112="",$M112=0),"",VLOOKUP($M112,'RLMA-SAWS Database'!$A$5:$BF$3950,21)) -> 158.7 | AD112: =IF(OR($M112="",$M112=0),"",VLOOKUP($M112,'RLMA-SAWS Database'!$A$5:$BF$3950,22)) -> 175.8 | AE112: =IF(OR($M112="",$M112=0),"",VLOOKUP($M112,'RLMA-SAWS Database'!$A$5:$BF$3950,23)) -> 73.9 | AF112: =IF(OR($M112="",$M112=0),"",VLOOKUP($M112,'RLMA-SAWS Database'!$A$5:$BF$3950,24)) -> 99.3 | AG112: =IF(OR($M112="",$M112=0),"",VLOOKUP($M112,'RLMA-SAWS Database'!$A$5:$BF$3950,25)) -> 116.6 | AH112: =IF(OR($M112="",$M112=0),"",VLOOKUP($M112,'RLMA-SAWS Database'!$A$5:$BF$3950,26)) -> 133.7 | AI112: =IF(OR($M112="",$M112=0),"",VLOOKUP($M112,'RLMA-SAWS Database'!$A$5:$BF$3950,27)) -> 156.4 | AJ112: =IF(OR($M112="",$M112=0),"",VLOOKUP($M112,'RLMA-SAWS Database'!$A$5:$BF$3950,28)) -> 174 | AK112: =IF(OR($M112="",$M112=0),"",VLOOKUP($M112,'RLMA-SAWS Database'!$A$5:$BF$3950,29)) -> 191.8 | AL112: =IF(OR($M112="",$M112=0),"",VLOOKUP($M112,'RLMA-SAWS Database'!$A$5:$BF$3950,51)) -> 90.9 | AM112: =IF(OR($M112="",$M112=0),"",VLOOKUP($M112,'RLMA-SAWS Database'!$A$5:$BF$3950,52)) -> 123 | AN112: =IF(OR($M112="",$M112=0),"",VLOOKUP($M112,'RLMA-SAWS Database'!$A$5:$BF$3950,53)) -> 144.7 | AO112: =IF(OR($M112="",$M112=0),"",VLOOKUP($M112,'RLMA-SAWS Database'!$A$5:$BF$3950,54)) -> 165.9 | AP112: =IF(OR($M112="",$M112=0),"",VLOOKUP($M112,'RLMA-SAWS Database'!$A$5:$BF$3950,55)) -> 193.8 | AQ112: =IF(OR($M112="",$M112=0),"",VLOOKUP($M112,'RLMA-SAWS Database'!$A$5:$BF$3950,56)) -> 215.3 | AR112: =IF(OR($M112="",$M112=0),"",VLOOKUP($M112,'RLMA-SAWS Database'!$A$5:$BF$3950,57)) -> 236.9 | AS112: =IF(OR($M112="",$M112=0),"",VLOOKUP($M112,'RLMA-SAWS Database'!$A$5:$BF$3950,58)) -> 62 | AU112: 0293597W | AV112: =IF($AU112="","",VLOOKUP($AU112,'RLMA-SAWS Database'!$A$5:$BF$3950,2)) -> GLEN (Agriculture) | AW112: 90.09416 | AX112: =IF($AU112="",0,VLOOKUP($AU112,'RLMA-SAWS Database'!$A$5:$BF$3950,7)) -> 529 | AY112: 47659.81064 | AZ112: =IF($AU112="",0,VLOOKUP($AU112,'RLMA-SAWS Database'!$A$5:$BF$3950,9)) -> 52.1 | BA112: 4693.905736 | BB112: =IF($AU112="",0,VLOOKUP($AU112,'RLMA-SAWS Database'!$A$5:$BF$3950,10)) -> 70.4 | BC112: 6342.628864 | BD112: =IF($AU112="",0,VLOOKUP($AU112,'RLMA-SAWS Database'!$A$5:$BF$3950,11)) -> 83.1 | BE112: 7486.824696 | BF112: =IF($AU112="",0,VLOOKUP($AU112,'RLMA-SAWS Database'!$A$5:$BF$3950,12)) -> 95.8 | BG112: 8631.020528 | BH112: =IF($AU112="",0,VLOOKUP($AU112,'RLMA-SAWS Database'!$A$5:$BF$3950,13)) -> 112.8 | BI112: 10162.62125 | BJ112: =IF($AU112="",0,VLOOKUP($AU112,'RLMA-SAWS Database'!$A$5:$BF$3950,14)) -> 126.1 | BK112: 11360.87358 | BL112: =IF($AU112="",0,VLOOKUP($AU112,'RLMA-SAWS Database'!$A$5:$BF$3950,15)) -> 139.8 | BM112: 12595.16357 | BN112: =IF($AU112="",0,VLOOKUP($AU112,'RLMA-SAWS Database'!$A$5:$BF$3950,16)) -> 66.3 | BO112: 5973.242808 | BP112: =IF($AU112="",0,VLOOKUP($AU112,'RLMA-SAWS Database'!$A$5:$BF$3950,17)) -> 89.1 | BQ112: 8027.389656 | BR112: =IF($AU112="",0,VLOOKUP($AU112,'RLMA-SAWS Database'!$A$5:$BF$3950,18)) -> 104.9 | BS112: 9450.877384 | BT112: =IF($AU112="",0,VLOOKUP($AU112,'RLMA-SAWS Database'!$A$5:$BF$3950,19)) -> 120.7 | BU112: 10874.36511 | BV112: =IF($AU112="",0,VLOOKUP($AU112,'RLMA-SAWS Database'!$A$5:$BF$3950,20)) -> 142.1 | BW112: 12802.38014 | BX112: =IF($AU112="",0,VLOOKUP($AU112,'RLMA-SAWS Database'!$A$5:$BF$3950,21)) -> 158.7 | BY112: 14297.94319 | BZ112: =IF($AU112="",0,VLOOKUP($AU112,'RLMA-SAWS Database'!$A$5:$BF$3950,22)) -> 175.8 | CA112: 15838.55333 | CB112: =IF($AU112="",0,VLOOKUP($AU112,'RLMA-SAWS Database'!$A$5:$BF$3950,23)) -> 73.9 | CC112: 6657.958424 | CD112: =IF($AU112="",0,VLOOKUP($AU112,'RLMA-SAWS Database'!$A$5:$BF$3950,24)) -> 99.3 | CE112: 8946.350088 | CF112: =IF($AU112="",0,VLOOKUP($AU112,'RLMA-SAWS Database'!$A$5:$BF$3950,25)) -> 116.6 | CG112: 10504.97906 | CH112: =IF($AU112="",0,VLOOKUP($AU112,'RLMA-SAWS Database'!$A$5:$BF$3950,26)) -> 133.7 | CI112: 12045.58919 | CJ112: =IF($AU112="",0,VLOOKUP($AU112,'RLMA-SAWS Database'!$A$5:$BF$3950,27)) -> 156.4 | CK112: 14090.72662 | CL112: =IF($AU112="",0,VLOOKUP($AU112,'RLMA-SAWS Database'!$A$5:$BF$3950,28)) -> 174 | CM112: 15676.38384 | CN112: =IF($AU112="",0,VLOOKUP($AU112,'RLMA-SAWS Database'!$A$5:$BF$3950,29)) -> 191.8 | CO112: 17280.05989 | CP112: =IF($AU112="",0,VLOOKUP($AU112,'RLMA-SAWS Database'!$A$5:$BF$3950,51)) -> 90.9 | CQ112: 8189.559144 | CR112: =IF($AU112="",0,VLOOKUP($AU112,'RLMA-SAWS Database'!$A$5:$BF$3950,52)) -> 123 | CS112: 11081.58168 | CT112: =IF($AU112="",0,VLOOKUP($AU112,'RLMA-SAWS Database'!$A$5:$BF$3950,53)) -> 144.7 | CU112: 13036.62495 | CV112: =IF($AU112="",0,VLOOKUP($AU112,'RLMA-SAWS Database'!$A$5:$BF$3950,54)) -> 165.9 | CW112: 14946.62114 | CX112: =IF($AU112="",0,VLOOKUP($AU112,'RLMA-SAWS Database'!$A$5:$BF$3950,55)) -> 193.8 | CY112: 17460.24821 | CZ112: =IF($AU112="",0,VLOOKUP($AU112,'RLMA-SAWS Database'!$A$5:$BF$3950,56)) -> 215.3 | DA112: 19397.27265 | DB112: =IF($AU112="",0,VLOOKUP($AU112,'RLMA-SAWS Database'!$A$5:$BF$3950,57)) -> 236.9 | DC112: 21343.3065 | DD112: =IF($AU112="",0,VLOOKUP($AU112,'RLMA-SAWS Database'!$A$5:$BF$3950,58)) -> 62 | DE112: 5585.83792
A113: 41 | C113: 0293622W | D113: 153.6715 | E113: =IF($C113="","",VLOOKUP($C113,'RLMA-SAWS Database'!$A$5:$BF$3950,2)) -> KAREE | F113: 141 | J113: =IF($G113="","",VLOOKUP($G113,'RLMA-SAWS Database'!$A$5:$BF$3950,2)) ->  | K113: FALSE | L113: FALSE | M113: 0293622W | N113: =IF(OR($M113="",$M113=0),"",VLOOKUP($M113,'RLMA-SAWS Database'!$A$5:$BF$3950,2)) -> KAREE | O113: 153.6715 | P113: =IF(OR($M113="",$M113=0),"",VLOOKUP($M113,'RLMA-SAWS Database'!$A$5:$BF$3950,7)) -> 500 | Q113: =IF(OR($M113="",$M113=0),"",VLOOKUP($M113,'RLMA-SAWS Database'!$A$5:$BF$3950,9)) -> 52.3 | R113: =IF(OR($M113="",$M113=0),"",VLOOKUP($M113,'RLMA-SAWS Database'!$A$5:$BF$3950,10)) -> 70.6 | S113: =IF(OR($M113="",$M113=0),"",VLOOKUP($M113,'RLMA-SAWS Database'!$A$5:$BF$3950,11)) -> 83.3 | T113: =IF(OR($M113="",$M113=0),"",VLOOKUP($M113,'RLMA-SAWS Database'!$A$5:$BF$3950,12)) -> 96 | U113: =IF(OR($M113="",$M113=0),"",VLOOKUP($M113,'RLMA-SAWS Database'!$A$5:$BF$3950,13)) -> 113.1 | V113: =IF(OR($M113="",$M113=0),"",VLOOKUP($M113,'RLMA-SAWS Database'!$A$5:$BF$3950,14)) -> 126.4 | W113: =IF(OR($M113="",$M113=0),"",VLOOKUP($M113,'RLMA-SAWS Database'!$A$5:$BF$3950,15)) -> 140.2 | X113: =IF(OR($M113="",$M113=0),"",VLOOKUP($M113,'RLMA-SAWS Database'!$A$5:$BF$3950,16)) -> 63.1 | Y113: =IF(OR($M113="",$M113=0),"",VLOOKUP($M113,'RLMA-SAWS Database'!$A$5:$BF$3950,17)) -> 84.7 | Z113: =IF(OR($M113="",$M113=0),"",VLOOKUP($M113,'RLMA-SAWS Database'!$A$5:$BF$3950,18)) -> 99.8 | AA113: =IF(OR($M113="",$M113=0),"",VLOOKUP($M113,'RLMA-SAWS Database'!$A$5:$BF$3950,19)) -> 114.8 | AB113: =IF(OR($M113="",$M113=0),"",VLOOKUP($M113,'RLMA-SAWS Database'!$A$5:$BF$3950,20)) -> 135.1 | AC113: =IF(OR($M113="",$M113=0),"",VLOOKUP($M113,'RLMA-SAWS Database'!$A$5:$BF$3950,21)) -> 150.9 | AD113: =IF(OR($M113="",$M113=0),"",VLOOKUP($M113,'RLMA-SAWS Database'!$A$5:$BF$3950,22)) -> 167.3 | AE113: =IF(OR($M113="",$M113=0),"",VLOOKUP($M113,'RLMA-SAWS Database'!$A$5:$BF$3950,23)) -> 69.7 | AF113: =IF(OR($M113="",$M113=0),"",VLOOKUP($M113,'RLMA-SAWS Database'!$A$5:$BF$3950,24)) -> 93.6 | AG113: =IF(OR($M113="",$M113=0),"",VLOOKUP($M113,'RLMA-SAWS Database'!$A$5:$BF$3950,25)) -> 110 | AH113: =IF(OR($M113="",$M113=0),"",VLOOKUP($M113,'RLMA-SAWS Database'!$A$5:$BF$3950,26)) -> 126 | AI113: =IF(OR($M113="",$M113=0),"",VLOOKUP($M113,'RLMA-SAWS Database'!$A$5:$BF$3950,27)) -> 147.5 | AJ113: =IF(OR($M113="",$M113=0),"",VLOOKUP($M113,'RLMA-SAWS Database'!$A$5:$BF$3950,28)) -> 164.1 | AK113: =IF(OR($M113="",$M113=0),"",VLOOKUP($M113,'RLMA-SAWS Database'!$A$5:$BF$3950,29)) -> 180.9 | AL113: =IF(OR($M113="",$M113=0),"",VLOOKUP($M113,'RLMA-SAWS Database'!$A$5:$BF$3950,51)) -> 88.8 | AM113: =IF(OR($M113="",$M113=0),"",VLOOKUP($M113,'RLMA-SAWS Database'!$A$5:$BF$3950,52)) -> 120 | AN113: =IF(OR($M113="",$M113=0),"",VLOOKUP($M113,'RLMA-SAWS Database'!$A$5:$BF$3950,53)) -> 141.2 | AO113: =IF(OR($M113="",$M113=0),"",VLOOKUP($M113,'RLMA-SAWS Database'!$A$5:$BF$3950,54)) -> 161.9 | AP113: =IF(OR($M113="",$M113=0),"",VLOOKUP($M113,'RLMA-SAWS Database'!$A$5:$BF$3950,55)) -> 189.2 | AQ113: =IF(OR($M113="",$M113=0),"",VLOOKUP($M113,'RLMA-SAWS Database'!$A$5:$BF$3950,56)) -> 210.1 | AR113: =IF(OR($M113="",$M113=0),"",VLOOKUP($M113,'RLMA-SAWS Database'!$A$5:$BF$3950,57)) -> 231.2 | AS113: =IF(OR($M113="",$M113=0),"",VLOOKUP($M113,'RLMA-SAWS Database'!$A$5:$BF$3950,58)) -> 62 | AU113: 0293622W | AV113: =IF($AU113="","",VLOOKUP($AU113,'RLMA-SAWS Database'!$A$5:$BF$3950,2)) -> KAREE | AW113: 153.6715 | AX113: =IF($AU113="",0,VLOOKUP($AU113,'RLMA-SAWS Database'!$A$5:$BF$3950,7)) -> 500 | AY113: 76835.75 | AZ113: =IF($AU113="",0,VLOOKUP($AU113,'RLMA-SAWS Database'!$A$5:$BF$3950,9)) -> 52.3 | BA113: 8037.01945 | BB113: =IF($AU113="",0,VLOOKUP($AU113,'RLMA-SAWS Database'!$A$5:$BF$3950,10)) -> 70.6 | BC113: 10849.2079 | BD113: =IF($AU113="",0,VLOOKUP($AU113,'RLMA-SAWS Database'!$A$5:$BF$3950,11)) -> 83.3 | BE113: 12800.83595 | BF113: =IF($AU113="",0,VLOOKUP($AU113,'RLMA-SAWS Database'!$A$5:$BF$3950,12)) -> 96 | BG113: 14752.464 | BH113: =IF($AU113="",0,VLOOKUP($AU113,'RLMA-SAWS Database'!$A$5:$BF$3950,13)) -> 113.1 | BI113: 17380.24665 | BJ113: =IF($AU113="",0,VLOOKUP($AU113,'RLMA-SAWS Database'!$A$5:$BF$3950,14)) -> 126.4 | BK113: 19424.0776 | BL113: =IF($AU113="",0,VLOOKUP($AU113,'RLMA-SAWS Database'!$A$5:$BF$3950,15)) -> 140.2 | BM113: 21544.7443 | BN113: =IF($AU113="",0,VLOOKUP($AU113,'RLMA-SAWS Database'!$A$5:$BF$3950,16)) -> 63.1 | BO113: 9696.67165 | BP113: =IF($AU113="",0,VLOOKUP($AU113,'RLMA-SAWS Database'!$A$5:$BF$3950,17)) -> 84.7 | BQ113: 13015.97605 | BR113: =IF($AU113="",0,VLOOKUP($AU113,'RLMA-SAWS Database'!$A$5:$BF$3950,18)) -> 99.8 | BS113: 15336.4157 | BT113: =IF($AU113="",0,VLOOKUP($AU113,'RLMA-SAWS Database'!$A$5:$BF$3950,19)) -> 114.8 | BU113: 17641.4882 | BV113: =IF($AU113="",0,VLOOKUP($AU113,'RLMA-SAWS Database'!$A$5:$BF$3950,20)) -> 135.1 | BW113: 20761.01965 | BX113: =IF($AU113="",0,VLOOKUP($AU113,'RLMA-SAWS Database'!$A$5:$BF$3950,21)) -> 150.9 | BY113: 23189.02935 | BZ113: =IF($AU113="",0,VLOOKUP($AU113,'RLMA-SAWS Database'!$A$5:$BF$3950,22)) -> 167.3 | CA113: 25709.24195 | CB113: =IF($AU113="",0,VLOOKUP($AU113,'RLMA-SAWS Database'!$A$5:$BF$3950,23)) -> 69.7 | CC113: 10710.90355 | CD113: =IF($AU113="",0,VLOOKUP($AU113,'RLMA-SAWS Database'!$A$5:$BF$3950,24)) -> 93.6 | CE113: 14383.6524 | CF113: =IF($AU113="",0,VLOOKUP($AU113,'RLMA-SAWS Database'!$A$5:$BF$3950,25)) -> 110 | CG113: 16903.865 | CH113: =IF($AU113="",0,VLOOKUP($AU113,'RLMA-SAWS Database'!$A$5:$BF$3950,26)) -> 126 | CI113: 19362.609 | CJ113: =IF($AU113="",0,VLOOKUP($AU113,'RLMA-SAWS Database'!$A$5:$BF$3950,27)) -> 147.5 | CK113: 22666.54625 | CL113: =IF($AU113="",0,VLOOKUP($AU113,'RLMA-SAWS Database'!$A$5:$BF$3950,28)) -> 164.1 | CM113: 25217.49315 | CN113: =IF($AU113="",0,VLOOKUP($AU113,'RLMA-SAWS Database'!$A$5:$BF$3950,29)) -> 180.9 | CO113: 27799.17435 | CP113: =IF($AU113="",0,VLOOKUP($AU113,'RLMA-SAWS Database'!$A$5:$BF$3950,51)) -> 88.8 | CQ113: 13646.0292 | CR113: =IF($AU113="",0,VLOOKUP($AU113,'RLMA-SAWS Database'!$A$5:$BF$3950,52)) -> 120 | CS113: 18440.58 | CT113: =IF($AU113="",0,VLOOKUP($AU113,'RLMA-SAWS Database'!$A$5:$BF$3950,53)) -> 141.2 | CU113: 21698.4158 | CV113: =IF($AU113="",0,VLOOKUP($AU113,'RLMA-SAWS Database'!$A$5:$BF$3950,54)) -> 161.9 | CW113: 24879.41585 | CX113: =IF($AU113="",0,VLOOKUP($AU113,'RLMA-SAWS Database'!$A$5:$BF$3950,55)) -> 189.2 | CY113: 29074.6478 | CZ113: =IF($AU113="",0,VLOOKUP($AU113,'RLMA-SAWS Database'!$A$5:$BF$3950,56)) -> 210.1 | DA113: 32286.38215 | DB113: =IF($AU113="",0,VLOOKUP($AU113,'RLMA-SAWS Database'!$A$5:$BF$3950,57)) -> 231.2 | DC113: 35528.8508 | DD113: =IF($AU113="",0,VLOOKUP($AU113,'RLMA-SAWS Database'!$A$5:$BF$3950,58)) -> 62 | DE113: 9527.633
A114: 42 | C114: 0293652W | D114: 141.72424 | E114: =IF($C114="","",VLOOKUP($C114,'RLMA-SAWS Database'!$A$5:$BF$3950,2)) -> KAREE | F114: 142 | J114: =IF($G114="","",VLOOKUP($G114,'RLMA-SAWS Database'!$A$5:$BF$3950,2)) ->  | K114: FALSE | L114: FALSE | M114: 0293652W | N114: =IF(OR($M114="",$M114=0),"",VLOOKUP($M114,'RLMA-SAWS Database'!$A$5:$BF$3950,2)) -> KAREE | O114: 141.72424 | P114: =IF(OR($M114="",$M114=0),"",VLOOKUP($M114,'RLMA-SAWS Database'!$A$5:$BF$3950,7)) -> 500 | Q114: =IF(OR($M114="",$M114=0),"",VLOOKUP($M114,'RLMA-SAWS Database'!$A$5:$BF$3950,9)) -> 52.3 | R114: =IF(OR($M114="",$M114=0),"",VLOOKUP($M114,'RLMA-SAWS Database'!$A$5:$BF$3950,10)) -> 70.6 | S114: =IF(OR($M114="",$M114=0),"",VLOOKUP($M114,'RLMA-SAWS Database'!$A$5:$BF$3950,11)) -> 83.3 | T114: =IF(OR($M114="",$M114=0),"",VLOOKUP($M114,'RLMA-SAWS Database'!$A$5:$BF$3950,12)) -> 96 | U114: =IF(OR($M114="",$M114=0),"",VLOOKUP($M114,'RLMA-SAWS Database'!$A$5:$BF$3950,13)) -> 113.1 | V114: =IF(OR($M114="",$M114=0),"",VLOOKUP($M114,'RLMA-SAWS Database'!$A$5:$BF$3950,14)) -> 126.4 | W114: =IF(OR($M114="",$M114=0),"",VLOOKUP($M114,'RLMA-SAWS Database'!$A$5:$BF$3950,15)) -> 140.2 | X114: =IF(OR($M114="",$M114=0),"",VLOOKUP($M114,'RLMA-SAWS Database'!$A$5:$BF$3950,16)) -> 63.1 | Y114: =IF(OR($M114="",$M114=0),"",VLOOKUP($M114,'RLMA-SAWS Database'!$A$5:$BF$3950,17)) -> 84.7 | Z114: =IF(OR($M114="",$M114=0),"",VLOOKUP($M114,'RLMA-SAWS Database'!$A$5:$BF$3950,18)) -> 99.8 | AA114: =IF(OR($M114="",$M114=0),"",VLOOKUP($M114,'RLMA-SAWS Database'!$A$5:$BF$3950,19)) -> 114.8 | AB114: =IF(OR($M114="",$M114=0),"",VLOOKUP($M114,'RLMA-SAWS Database'!$A$5:$BF$3950,20)) -> 135.1 | AC114: =IF(OR($M114="",$M114=0),"",VLOOKUP($M114,'RLMA-SAWS Database'!$A$5:$BF$3950,21)) -> 150.9 | AD114: =IF(OR($M114="",$M114=0),"",VLOOKUP($M114,'RLMA-SAWS Database'!$A$5:$BF$3950,22)) -> 167.3 | AE114: =IF(OR($M114="",$M114=0),"",VLOOKUP($M114,'RLMA-SAWS Database'!$A$5:$BF$3950,23)) -> 69.7 | AF114: =IF(OR($M114="",$M114=0),"",VLOOKUP($M114,'RLMA-SAWS Database'!$A$5:$BF$3950,24)) -> 93.6 | AG114: =IF(OR($M114="",$M114=0),"",VLOOKUP($M114,'RLMA-SAWS Database'!$A$5:$BF$3950,25)) -> 110 | AH114: =IF(OR($M114="",$M114=0),"",VLOOKUP($M114,'RLMA-SAWS Database'!$A$5:$BF$3950,26)) -> 126 | AI114: =IF(OR($M114="",$M114=0),"",VLOOKUP($M114,'RLMA-SAWS Database'!$A$5:$BF$3950,27)) -> 147.5 | AJ114: =IF(OR($M114="",$M114=0),"",VLOOKUP($M114,'RLMA-SAWS Database'!$A$5:$BF$3950,28)) -> 164.1 | AK114: =IF(OR($M114="",$M114=0),"",VLOOKUP($M114,'RLMA-SAWS Database'!$A$5:$BF$3950,29)) -> 180.9 | AL114: =IF(OR($M114="",$M114=0),"",VLOOKUP($M114,'RLMA-SAWS Database'!$A$5:$BF$3950,51)) -> 88.8 | AM114: =IF(OR($M114="",$M114=0),"",VLOOKUP($M114,'RLMA-SAWS Database'!$A$5:$BF$3950,52)) -> 120 | AN114: =IF(OR($M114="",$M114=0),"",VLOOKUP($M114,'RLMA-SAWS Database'!$A$5:$BF$3950,53)) -> 141.2 | AO114: =IF(OR($M114="",$M114=0),"",VLOOKUP($M114,'RLMA-SAWS Database'!$A$5:$BF$3950,54)) -> 161.9 | AP114: =IF(OR($M114="",$M114=0),"",VLOOKUP($M114,'RLMA-SAWS Database'!$A$5:$BF$3950,55)) -> 189.2 | AQ114: =IF(OR($M114="",$M114=0),"",VLOOKUP($M114,'RLMA-SAWS Database'!$A$5:$BF$3950,56)) -> 210.1 | AR114: =IF(OR($M114="",$M114=0),"",VLOOKUP($M114,'RLMA-SAWS Database'!$A$5:$BF$3950,57)) -> 231.2 | AS114: =IF(OR($M114="",$M114=0),"",VLOOKUP($M114,'RLMA-SAWS Database'!$A$5:$BF$3950,58)) -> 62 | AU114: 0293652W | AV114: =IF($AU114="","",VLOOKUP($AU114,'RLMA-SAWS Database'!$A$5:$BF$3950,2)) -> KAREE | AW114: 141.72424 | AX114: =IF($AU114="",0,VLOOKUP($AU114,'RLMA-SAWS Database'!$A$5:$BF$3950,7)) -> 500 | AY114: 70862.12 | AZ114: =IF($AU114="",0,VLOOKUP($AU114,'RLMA-SAWS Database'!$A$5:$BF$3950,9)) -> 52.3 | BA114: 7412.177752 | BB114: =IF($AU114="",0,VLOOKUP($AU114,'RLMA-SAWS Database'!$A$5:$BF$3950,10)) -> 70.6 | BC114: 10005.73134 | BD114: =IF($AU114="",0,VLOOKUP($AU114,'RLMA-SAWS Database'!$A$5:$BF$3950,11)) -> 83.3 | BE114: 11805.62919 | BF114: =IF($AU114="",0,VLOOKUP($AU114,'RLMA-SAWS Database'!$A$5:$BF$3950,12)) -> 96 | BG114: 13605.52704 | BH114: =IF($AU114="",0,VLOOKUP($AU114,'RLMA-SAWS Database'!$A$5:$BF$3950,13)) -> 113.1 | BI114: 16029.01154 | BJ114: =IF($AU114="",0,VLOOKUP($AU114,'RLMA-SAWS Database'!$A$5:$BF$3950,14)) -> 126.4 | BK114: 17913.94394 | BL114: =IF($AU114="",0,VLOOKUP($AU114,'RLMA-SAWS Database'!$A$5:$BF$3950,15)) -> 140.2 | BM114: 19869.73845 | BN114: =IF($AU114="",0,VLOOKUP($AU114,'RLMA-SAWS Database'!$A$5:$BF$3950,16)) -> 63.1 | BO114: 8942.799544 | BP114: =IF($AU114="",0,VLOOKUP($AU114,'RLMA-SAWS Database'!$A$5:$BF$3950,17)) -> 84.7 | BQ114: 12004.04313 | BR114: =IF($AU114="",0,VLOOKUP($AU114,'RLMA-SAWS Database'!$A$5:$BF$3950,18)) -> 99.8 | BS114: 14144.07915 | BT114: =IF($AU114="",0,VLOOKUP($AU114,'RLMA-SAWS Database'!$A$5:$BF$3950,19)) -> 114.8 | BU114: 16269.94275 | BV114: =IF($AU114="",0,VLOOKUP($AU114,'RLMA-SAWS Database'!$A$5:$BF$3950,20)) -> 135.1 | BW114: 19146.94482 | BX114: =IF($AU114="",0,VLOOKUP($AU114,'RLMA-SAWS Database'!$A$5:$BF$3950,21)) -> 150.9 | BY114: 21386.18782 | BZ114: =IF($AU114="",0,VLOOKUP($AU114,'RLMA-SAWS Database'!$A$5:$BF$3950,22)) -> 167.3 | CA114: 23710.46535 | CB114: =IF($AU114="",0,VLOOKUP($AU114,'RLMA-SAWS Database'!$A$5:$BF$3950,23)) -> 69.7 | CC114: 9878.179528 | CD114: =IF($AU114="",0,VLOOKUP($AU114,'RLMA-SAWS Database'!$A$5:$BF$3950,24)) -> 93.6 | CE114: 13265.38886 | CF114: =IF($AU114="",0,VLOOKUP($AU114,'RLMA-SAWS Database'!$A$5:$BF$3950,25)) -> 110 | CG114: 15589.6664 | CH114: =IF($AU114="",0,VLOOKUP($AU114,'RLMA-SAWS Database'!$A$5:$BF$3950,26)) -> 126 | CI114: 17857.25424 | CJ114: =IF($AU114="",0,VLOOKUP($AU114,'RLMA-SAWS Database'!$A$5:$BF$3950,27)) -> 147.5 | CK114: 20904.3254 | CL114: =IF($AU114="",0,VLOOKUP($AU114,'RLMA-SAWS Database'!$A$5:$BF$3950,28)) -> 164.1 | CM114: 23256.94778 | CN114: =IF($AU114="",0,VLOOKUP($AU114,'RLMA-SAWS Database'!$A$5:$BF$3950,29)) -> 180.9 | CO114: 25637.91502 | CP114: =IF($AU114="",0,VLOOKUP($AU114,'RLMA-SAWS Database'!$A$5:$BF$3950,51)) -> 88.8 | CQ114: 12585.11251 | CR114: =IF($AU114="",0,VLOOKUP($AU114,'RLMA-SAWS Database'!$A$5:$BF$3950,52)) -> 120 | CS114: 17006.9088 | CT114: =IF($AU114="",0,VLOOKUP($AU114,'RLMA-SAWS Database'!$A$5:$BF$3950,53)) -> 141.2 | CU114: 20011.46269 | CV114: =IF($AU114="",0,VLOOKUP($AU114,'RLMA-SAWS Database'!$A$5:$BF$3950,54)) -> 161.9 | CW114: 22945.15446 | CX114: =IF($AU114="",0,VLOOKUP($AU114,'RLMA-SAWS Database'!$A$5:$BF$3950,55)) -> 189.2 | CY114: 26814.22621 | CZ114: =IF($AU114="",0,VLOOKUP($AU114,'RLMA-SAWS Database'!$A$5:$BF$3950,56)) -> 210.1 | DA114: 29776.26282 | DB114: =IF($AU114="",0,VLOOKUP($AU114,'RLMA-SAWS Database'!$A$5:$BF$3950,57)) -> 231.2 | DC114: 32766.64429 | DD114: =IF($AU114="",0,VLOOKUP($AU114,'RLMA-SAWS Database'!$A$5:$BF$3950,58)) -> 62 | DE114: 8786.90288
